Workbook

Sheet Firing Range (hidden)
G1: =SUM(G3:G25) -> 0 | M1: =SUM(M3:M25) -> 0.02 | S1: =SUM(S3:S25) -> 0 | Z1: REF | AS1: =SUM(AS3:AS25) -> 4345640 | AW1: =SUM(AW3:AW25) -> 0 | BA1: =SUM(BA3:BA25) -> 0 | BE1: =SUM(BE3:BE25) -> 0
E2: July UIFSM | F2: REF | G2: Check | I2: Element 1 Pre | J2: Element 1 Post | K2: Element 1 Total | L2: REF | M2: Check | O2: Element 2 Pre | P2: Element 2 Post | Q2: Element 2 Total | R2: REF | S2: Check | U2: MLD&SLCN | V2: BESD | W2: SLD | X2: PD&PMLD | Y2: ASD | Z2: WeekdayMLD&SLCN | AA2: WeekdayBESD | AB2: WeekdaySLD | AC2: WeekdayPD&PMLD | AD2: WeekdayASD | AE2: WeekendPD&PMLD | AF2: WeekendASD | AG2: MLD & SLCN | AH2: BESD | AI2: SLD | AJ2: PD & PMLD | AK2: ASD | AL2: Weekday MLD & SLCN | AM2: WeekdayBESD | AN2: WeekdaySLD | AO2: WeekdayPD&PMLD | AP2: WeekdayASD | AQ2: WeekendPD&PMLD | AR2: WeekendASD | AS2: Check | AU2: Year1 De-delegation | AV2: REF | AW2: Check | AY2: Year2 De-delegation | AZ2: REF | BA2: Check | BC2: Year3 De-delegation | BD2: REF | BE2: Check
B3: 7032 | C3: Bower Grove School | E3: 2883.42 | F3: 2883.42 | G3: =E3-F3 -> 0 | I3: 832000 | J3: 0 | K3: =I3+J3 -> 832000 | L3: 832000 | M3: =ROUND(L3-K3,2) -> 0 | O3: 1248000 | P3: 0 | Q3: =O3+P3 -> 1248000 | R3: 1248000 | S3: =ROUND(R3-Q3,2) -> 0 | U3: 3284 | V3: 7759.36 | W3: 11019.68 | X3: 23911.14 | Y3: 14927.64 | Z3: 0 | AA3: 0 | AB3: 0 | AC3: 0 | AD3: 0 | AE3: 0 | AF3: 0 | AS3: =ROUND(SUM(U3:AF3)-SUM(AG3:AR3),0) -> 60902 | AU3: 4950.4 | AV3: 4950.4 | AW3: =ROUND(AV3-AU3,2) -> 0 | AY3: 4950.4 | AZ3: 4950.4 | BA3: =ROUND(AZ3-AY3,2) -> 0 | BC3: 4950.4 | BD3: 4950.4 | BE3: =ROUND(BD3-BC3,2) -> 0
B4: 7033 | C4: St Anthony's School | E4: 3887.25 | F4: 3887.25 | G4: =E4-F4 -> 0 | I4: 410666.67 | J4: 0 | K4: =I4+J4 -> 410666.67 | L4: 410666.6667 | M4: =ROUND(L4-K4,2) -> 0 | O4: 616000 | P4: 0 | Q4: =O4+P4 -> 616000 | R4: 616000 | S4: =ROUND(R4-Q4,2) -> 0 | U4: 7564.56 | V4: 12048.38 | W4: 15300.24 | X4: 28191.7 | Y4: 19208.2 | Z4: 0 | AA4: 0 | AB4: 0 | AC4: 0 | AD4: 0 | AE4: 0 | AF4: 0 | AS4: =ROUND(SUM(U4:AF4)-SUM(AG4:AR4),0) -> 82313 | AU4: 2443.47 | AV4: 2443.466667 | AW4: =ROUND(AV4-AU4,2) -> 0 | AY4: 2403.8 | AZ4: 2403.8 | BA4: =ROUND(AZ4-AY4,2) -> 0 | BC4: 2403.8 | BD4: 2403.8 | BE4: =ROUND(BD4-BC4,2) -> 0
B5: 7039 | C5: The Ifield School | E5: 5988.5 | F5: 5988.5 | G5: 0 | I5: 705000 | J5: 156000 | K5: 861000 | L5: 861000 | M5: 0 | O5: 1057500 | P5: 234000 | Q5: 1291500 | R5: 1291500 | S5: 0 | U5: 3010.4 | V5: 6807.6 | W5: 10719.58 | X5: 23611.04 | Y5: 16047.28 | Z5: 0 | AA5: 0 | AB5: 0 | AC5: 0 | AD5: 0 | AE5: 0 | AF5: 0 | AS5: 60196 | AU5: 5122.95 | AV5: 5122.95 | AW5: 0 | AY5: 5307.4 | AZ5: 5307.4 | BA5: 0 | BC5: 5307.4 | BD5: 5307.4 | BE5: 0
B6: 7040 | C6: The Foreland School | E6: 4657.33 | F6: 4657.33 | G6: 0 | I6: 565333.33 | J6: 102666.67 | K6: 668000 | L6: 668000 | M6: 0 | O6: 848000 | P6: 154000 | Q6: 1002000 | R6: 1002000 | S6: 0 | U6: 4295.4 | V6: 8119.12 | W6: 12031.08 | X6: 24922.56 | Y6: 17358.8 | Z6: 0 | AA6: 0 | AB6: 0 | AC6: 0 | AD6: 0 | AE6: 0 | AF6: 0 | AS6: 66727 | AU6: 3974.6 | AV6: 3974.6 | AW6: 0 | AY6: 3879.4 | AZ6: 3879.4 | BA6: 0 | BC6: 3879.4 | BD6: 3879.4 | BE6: 0
B7: 7041 | C7: Goldwyn Community Special School | E7: 0 | F7: 0 | G7: 0 | I7: 486666.67 | J7: 0 | K7: 486666.67 | L7: 486666.6667 | M7: 0 | O7: 730000 | P7: 0 | Q7: 730000 | R7: 730000 | S7: 0 | U7: 9518.02 | V7: 18808.94 | W7: 16888.16 | X7: 29170.46 | Y7: 20611.46 | Z7: 0 | AA7: 0 | AB7: 0 | AC7: 0 | AD7: 0 | AE7: 0 | AF7: 0 | AS7: 94997 | AU7: 2895.67 | AV7: 2895.666667 | AW7: 0 | AY7: 3094 | AZ7: 3094 | BA7: 0 | BC7: 3094 | BD7: 3094 | BE7: 0
B8: 7043 | C8: Highview School | E8: 2440.08 | F8: 2440.08 | G8: 0 | I8: 620000 | J8: 145333.33 | K8: 765333.33 | L8: 765333.3333 | M8: 0 | O8: 930000 | P8: 218000 | Q8: 1148000 | R8: 1148000 | S8: 0 | U8: 3096.56 | V8: 6808.8 | W8: 10626.28 | X8: 23424.78 | Y8: 15861.02 | Z8: 0 | AA8: 0 | AB8: 0 | AC8: 0 | AD8: 0 | AE8: 0 | AF8: 0 | AS8: 59817 | AU8: 4553.73 | AV8: 4553.733333 | AW8: 0 | AY8: 4807.6 | AZ8: 4807.6 | BA8: 0 | BC8: 4807.6 | BD8: 4807.6 | BE8: 0
B9: 7044 | C9: Rowhill School | E9: 3443.92 | F9: 3443.92 | G9: 0 | I9: 440666.67 | J9: 0 | K9: 440666.67 | L9: 440666.6667 | M9: 0 | O9: 661000 | P9: 0 | Q9: 661000 | R9: 661000 | S9: 0 | U9: 8290.3 | V9: 12728.62 | W9: 16176.3 | X9: 29318.12 | Y9: 20171.7 | Z9: 0 | AA9: 0 | AB9: 0 | AC9: 0 | AD9: 0 | AE9: 0 | AF9: 0 | AS9: 86685 | AU9: 2621.97 | AV9: 2621.966667 | AW9: 0 | AY9: 2522.8 | AZ9: 2522.8 | BA9: 0 | BC9: 2522.8 | BD9: 2522.8 | BE9: 0
B10: 7045 | C10: Harbour School | E10: 3665.58 | F10: 3665.58 | G10: 0 | I10: 425000 | J10: 0 | K10: 425000 | L10: 425000 | M10: 0 | O10: 637500 | P10: 0 | Q10: 637500 | R10: 637500 | S10: 0 | U10: 7190.3 | V10: 11515.28 | W10: 14925.98 | X10: 27817.44 | Y10: 18833.94 | Z10: 0 | AA10: 0 | AB10: 0 | AC10: 0 | AD10: 0 | AE10: 0 | AF10: 0 | AS10: 80283 | AU10: 2528.75 | AV10: 2528.75 | AW10: 0 | AY10: 2499 | AZ10: 2499 | BA10: 0 | BC10: 2499 | BD10: 2499 | BE10: 0
B11: 7051 | C11: Ridge View School | E11: 6992.33 | F11: 6992.33 | G11: 0 | I11: 389000 | J11: 42666.67 | K11: 431666.67 | L11: 431666.6667 | M11: 0 | O11: 583500 | P11: 64000 | Q11: 647500 | R11: 647500 | S11: 0 | U11: 7055.14 | V11: 10557.74 | W11: 14469.72 | X11: 27361.18 | Y11: 19797.44 | Z11: 0 | AA11: 0 | AB11: 0 | AC11: 0 | AD11: 0 | AE11: 0 | AF11: 0 | AS11: 79241 | AU11: 2568.42 | AV11: 2568.416667 | AW11: 0 | AY11: 2618 | AZ11: 2618 | BA11: 0 | BC11: 2618 | BD11: 2618 | BE11: 0
B12: 7052 | C12: Grange Park School | E12: 0 | F12: 0 | G12: 0 | I12: 242333.33 | J12: 156000 | K12: 398333.33 | L12: 398333.3333 | M12: 0 | O12: 363500 | P12: 234000 | Q12: 597500 | R12: 597500 | S12: 0 | U12: 6845.18 | V12: 10668.9 | W12: 14580.86 | X12: 27472.34 | Y12: 19908.58 | Z12: 0 | AA12: 0 | AB12: 0 | AC12: 0 | AD12: 0 | AE12: 0 | AF12: 0 | AS12: 79476 | AU12: 2370.08 | AV12: 2370.083333 | AW12: 0 | AY12: 2380 | AZ12: 2380 | BA12: 0 | BC12: 2380 | BD12: 2380 | BE12: 0
B13: 7056 | C13: Five Acre Wood School | E13: 7540.75 | F13: 7540.75 | G13: 0 | I13: 788000 | J13: 124000 | K13: 912000 | L13: 912000 | M13: 0 | O13: 1182000 | P13: 186000 | Q13: 1368000 | R13: 1368000 | S13: 0 | U13: 3751.2 | V13: 7141.92 | W13: 11121.34 | X13: 23616.16 | Y13: 16197.3 | Z13: 0 | AA13: 0 | AB13: 0 | AC13: 0 | AD13: 0 | AE13: 0 | AF13: 0 | AS13: 61828 | AU13: 5426.4 | AV13: 5426.4 | AW13: 0 | AY13: 5640.6 | AZ13: 5640.6 | BA13: 0 | BC13: 5640.6 | BD13: 5640.6 | BE13: 0
B14: 7062 | C14: The Orchard School | E14: 0 | F14: 0 | G14: 0 | I14: 320000 | J14: 0 | K14: 320000 | L14: 320000 | M14: 0 | O14: 480000 | P14: 0 | Q14: 480000 | R14: 480000 | S14: 0 | U14: 9679.88 | V14: 14039.2 | W14: 17415.56 | X14: 30307.02 | Y14: 21323.52 | Z14: 0 | AA14: 0 | AB14: 0 | AC14: 0 | AD14: 0 | AE14: 0 | AF14: 0 | AS14: 92765 | AU14: 1904 | AV14: 1904 | AW14: 0 | AY14: 1904 | AZ14: 1904 | BA14: 0 | BC14: 1904 | BD14: 1904 | BE14: 0
B15: 7063 | C15: St Nicholas' School | E15: 8206.33 | F15: 8206.33 | G15: 0 | I15: 701333.33 | J15: 154666.67 | K15: 856000 | L15: 856000 | M15: 0 | O15: 1052000 | P15: 232000 | Q15: 1284000 | R15: 1284000 | S15: 0 | U15: 3232.42 | V15: 7056.12 | W15: 10968.1 | X15: 23859.56 | Y15: 16295.82 | Z15: 0 | AA15: 0 | AB15: 0 | AC15: 0 | AD15: 0 | AE15: 0 | AF15: 0 | AS15: 61412 | AU15: 5093.2 | AV15: 5093.2 | AW15: 0 | AY15: 5164.6 | AZ15: 5164.6 | BA15: 0 | BC15: 5164.6 | BD15: 5164.6 | BE15: 0
B16: 7067 | C16: Portal House School | E16: 0 | F16: 0 | G16: 0 | I16: 228333.33 | J16: 0 | K16: 228333.33 | L16: 228333.3333 | M16: 0 | O16: 342500 | P16: 0 | Q16: 342500 | R16: 342500 | S16: 0 | U16: 15005.88 | V16: 24694.54 | W16: 22741.56 | X16: 35633.02 | Y16: 26649.52 | Z16: 0 | AA16: 0 | AB16: 0 | AC16: 0 | AD16: 0 | AE16: 0 | AF16: 0 | AS16: 124725 | AU16: 1358.58 | AV16: 1358.583333 | AW16: 0 | AY16: 1309 | AZ16: 1309 | BA16: 0 | BC16: 1309 | BD16: 1309 | BE16: 0
B17: 7069 | C17: The Wyvern School | E17: 6210.17 | F17: 6210.17 | G17: 0 | I17: 617666.67 | J17: 140000 | K17: 757666.67 | L17: 757666.6667 | M17: 0 | O17: 926500 | P17: 210000 | Q17: 1136500 | R17: 1136500 | S17: 0 | U17: 3988.48 | V17: 7812.2 | W17: 11724.16 | X17: 24615.64 | Y17: 17051.88 | Z17: 0 | AA17: 0 | AB17: 0 | AC17: 0 | AD17: 0 | AE17: 0 | AF17: 0 | AS17: 65192 | AU17: 4508.12 | AV17: 4508.116667 | AW17: 0 | AY17: 4522 | AZ17: 4522 | BA17: 0 | BC17: 4522 | BD17: 4522 | BE17: 0
B18: 7070 | C18: Oakley School | E18: 2883.42 | F18: 2883.42 | G18: 0 | I18: 583333.33 | J18: 173333.33 | K18: 756666.66 | L18: 756666.6667 | M18: 0.01 | O18: 875000 | P18: 260000 | Q18: 1135000 | R18: 1135000 | S18: 0 | U18: 4225.46 | V18: 8049.16 | W18: 11961.14 | X18: 24852.6 | Y18: 17288.86 | Z18: 0 | AA18: 0 | AB18: 0 | AC18: 0 | AD18: 0 | AE18: 0 | AF18: 0 | AS18: 66377 | AU18: 4502.17 | AV18: 4502.166667 | AW18: 0 | AY18: 4474.4 | AZ18: 4474.4 | BA18: 0 | BC18: 4474.4 | BD18: 4474.4 | BE18: 0
B19: 7072 | C19: Meadowfield School | E19: 8649.67 | F19: 8649.67 | G19: 0 | I19: 724666.67 | J19: 173333.33 | K19: 898000 | L19: 898000 | M19: 0 | O19: 1087000 | P19: 260000 | Q19: 1347000 | R19: 1347000 | S19: 0 | U19: 3512.08 | V19: 7335.78 | W19: 11247.76 | X19: 24139.22 | Y19: 16575.48 | Z19: 0 | AA19: 0 | AB19: 0 | AC19: 0 | AD19: 0 | AE19: 0 | AF19: 0 | AS19: 62810 | AU19: 5343.1 | AV19: 5343.1 | AW19: 0 | AY19: 5426.4 | AZ19: 5426.4 | BA19: 0 | BC19: 5426.4 | BD19: 5426.4 | BE19: 0
B20: 7002 | C20: Broomhill Bank School | E20: 0 | F20: 0 | G20: 0 | I20: 327000 | J20: 110666.67 | K20: 437666.67 | L20: 437666.6667 | M20: 0 | O20: 490500 | P20: 166000 | Q20: 656500 | R20: 656500 | S20: 0 | U20: 9865.34 | V20: 11718.32 | W20: 17235.46 | X20: 29517.76 | Y20: 22346.12 | Z20: 0 | AA20: 0 | AB20: 0 | AC20: 0 | AD20: 0 | AE20: 0 | AF20: 0 | AS20: 90683 | AU20: 2604.12 | AV20: 2604.116667 | AW20: 0 | AY20: 2713.2 | AZ20: 2713.2 | BA20: 0 | BC20: 2713.2 | BD20: 2713.2 | BE20: 0
B21: 7021 | C21: Valence School | E21: 4774.5 | F21: 4774.5 | G21: 0 | I21: 275333.33 | J21: 133333.33 | K21: 408666.66 | L21: 408666.6667 | M21: 0.01 | O21: 413000 | P21: 200000 | Q21: 613000 | R21: 613000 | S21: 0 | U21: 14013.24 | V21: 15295.76 | W21: 21495.8 | X21: 33965.46 | Y21: 23261.18 | Z21: 87029.7 | AA21: 90945.68 | AB21: 94915.7 | AC21: 108057.5 | AD21: 98911.08 | AE21: 155576.82 | AF21: 146430.4 | AS21: 889898 | AU21: 2431.57 | AV21: 2431.566667 | AW21: 0 | AY21: 2451.4 | AZ21: 2451.4 | BA21: 0 | BC21: 2451.4 | BD21: 2451.4 | BE21: 0
B22: 7034 | C22: Furness School | E22: 0 | F22: 0 | G22: 0 | I22: 176666.67 | J22: 0 | K22: 176666.67 | L22: 176666.6667 | M22: 0 | O22: 265000 | P22: 0 | Q22: 265000 | R22: 265000 | S22: 0 | U22: 25778.74 | V22: 29694.72 | W22: 33664.72 | X22: 46806.54 | Y22: 39106.28 | Z22: 89632.16 | AA22: 93548.14 | AB22: 97518.16 | AC22: 110659.96 | AD22: 102959.7 | AE22: 0 | AF22: 0 | AS22: 669369 | AU22: 1051.17 | AV22: 1051.166667 | AW22: 0 | AY22: 952 | AZ22: 952 | BA22: 0 | BC22: 952 | BD22: 952 | BE22: 0
B23: 7058 | C23: Stone Bay School | E23: 0 | F23: 0 | G23: 0 | I23: 110333.33 | J23: 113333.33 | K23: 223666.66 | L23: 223666.6667 | M23: 0.01 | O23: 165500 | P23: 170000 | Q23: 335500 | R23: 335500 | S23: 0 | U23: 14115.44 | V23: 17939.14 | W23: 21851.12 | X23: 34742.58 | Y23: 39956.54 | Z23: 84085 | AA23: 87908.7 | AB23: 91820.68 | AC23: 104712.14 | AD23: 109926.1 | AE23: 139012.92 | AF23: 144226.88 | AS23: 890297 | AU23: 1330.82 | AV23: 1330.816667 | AW23: 0 | AY23: 1332.8 | AZ23: 1332.8 | BA23: 0 | BC23: 1332.8 | BD23: 1332.8 | BE23: 0
B24: 7059 | C24: Foxwood School | E24: 9431.83 | F24: 9431.83 | G24: 0 | I24: 460666.67 | J24: 70666.67 | K24: 531333.34 | L24: 531333.3333 | M24: -0.01 | O24: 691000 | P24: 106000 | Q24: 797000 | R24: 797000 | S24: 0 | U24: 6748.66 | V24: 10390 | W24: 14301.98 | X24: 27193.44 | Y24: 19629.68 | Z24: 0 | AA24: 0 | AB24: 0 | AC24: 0 | AD24: 0 | AE24: 0 | AF24: 0 | AS24: 78264 | AU24: 3161.43 | AV24: 3161.433333 | AW24: 0 | AY24: 3117.8 | AZ24: 3117.8 | BA24: 0 | BC24: 3117.8 | BD24: 3117.8 | BE24: 0
B25: 7073 | C25: Laleham Gap School | E25: 2883.42 | F25: 2883.42 | G25: 0 | I25: 728000 | J25: 0 | K25: 728000 | L25: 728000 | M25: 0 | O25: 1092000 | P25: 0 | Q25: 1092000 | R25: 1092000 | S25: 0 | U25: 4732.16 | V25: 8555.86 | W25: 12467.84 | X25: 25359.3 | Y25: 17795.54 | Z25: 65444.52 | AA25: 69268.22 | AB25: 73180.2 | AC25: 86071.66 | AD25: 78507.9 | AE25: 0 | AF25: 0 | AS25: 441383 | AU25: 4331.6 | AV25: 4331.6 | AW25: 0 | AY25: 4331.6 | AZ25: 4331.6 | BA25: 0 | BC25: 4331.6 | BD25: 4331.6 | BE25: 0

Sheet Summary (hidden)
B2: Schools | E2: Advance (Element 3)
E4: April | F4: May | G4: June | H4: July | I4: August | J4: September | K4: October | L4: November | M4: December | N4: January | O4: February | P4: March | R4: Total
B5: 7032 | C5: Bower Grove School | E5: =ROUND(SUMIF(Pupils!$B$5:$B$500,$B5,Pupils!$Z$5:$Z$500),0) -> 0 | F5: =ROUND(SUMIF(Pupils!$B$5:$B$500,$B5,Pupils!$AD$5:$AD$500),0) -> 0 | G5: =ROUND(SUMIF(Pupils!$B$5:$B$500,$B5,Pupils!$AH$5:$AH$500),0) -> 0 | H5: =ROUND(SUMIF(Pupils!$B$5:$B$500,$B5,Pupils!$AL$5:$AL$500),0) -> 0 | I5: =ROUND(SUMIF(Pupils!$B$5:$B$500,$B5,Pupils!$AP$5:$AP$500),0) -> 0 | J5: =ROUND(SUMIF(Pupils!$B$5:$B$500,$B5,Pupils!$AT$5:$AT$500),0) -> 0 | K5: =ROUND(SUMIF(Pupils!$B$5:$B$500,$B5,Pupils!$AX$5:$AX$500),0) -> 0 | L5: =ROUND(SUMIF(Pupils!$B$5:$B$500,$B5,Pupils!$BB$5:$BB$500),0) -> 0 | M5: =ROUND(SUMIF(Pupils!$B$5:$B$500,$B5,Pupils!$BF$5:$BF$500),0) -> 0 | N5: =ROUND(SUMIF(Pupils!$B$5:$B$500,$B5,Pupils!$BJ$5:$BJ$500),0) -> 0 | O5: =ROUND(SUMIF(Pupils!$B$5:$B$500,$B5,Pupils!$BN$5:$BN$500),0) -> 0 | P5: =ROUND(SUMIF(Pupils!$B$5:$B$500,$B5,Pupils!$BR$5:$BR$500),0) -> 0 | R5: =SUM(E5:P5) -> 0
B6: 7033 | C6: St Anthony's School | E6: =ROUND(SUMIF(Pupils!$B$5:$B$500,$B6,Pupils!$Z$5:$Z$500),0) -> 0 | F6: =ROUND(SUMIF(Pupils!$B$5:$B$500,$B6,Pupils!$AD$5:$AD$500),0) -> 0 | G6: =ROUND(SUMIF(Pupils!$B$5:$B$500,$B6,Pupils!$AH$5:$AH$500),0) -> 0 | H6: =ROUND(SUMIF(Pupils!$B$5:$B$500,$B6,Pupils!$AL$5:$AL$500),0) -> 0 | I6: =ROUND(SUMIF(Pupils!$B$5:$B$500,$B6,Pupils!$AP$5:$AP$500),0) -> 0 | J6: =ROUND(SUMIF(Pupils!$B$5:$B$500,$B6,Pupils!$AT$5:$AT$500),0) -> 0 | K6: =ROUND(SUMIF(Pupils!$B$5:$B$500,$B6,Pupils!$AX$5:$AX$500),0) -> 0 | L6: =ROUND(SUMIF(Pupils!$B$5:$B$500,$B6,Pupils!$BB$5:$BB$500),0) -> 0 | M6: =ROUND(SUMIF(Pupils!$B$5:$B$500,$B6,Pupils!$BF$5:$BF$500),0) -> 0 | N6: =ROUND(SUMIF(Pupils!$B$5:$B$500,$B6,Pupils!$BJ$5:$BJ$500),0) -> 0 | O6: =ROUND(SUMIF(Pupils!$B$5:$B$500,$B6,Pupils!$BN$5:$BN$500),0) -> 0 | P6: =ROUND(SUMIF(Pupils!$B$5:$B$500,$B6,Pupils!$BR$5:$BR$500),0) -> 0 | R6: =SUM(E6:P6) -> 0
B7: 7039 | C7: The Ifield School | E7: =ROUND(SUMIF(Pupils!$B$5:$B$500,$B7,Pupils!$Z$5:$Z$500),0) -> 0 | F7: =ROUND(SUMIF(Pupils!$B$5:$B$500,$B7,Pupils!$AD$5:$AD$500),0) -> 0 | G7: =ROUND(SUMIF(Pupils!$B$5:$B$500,$B7,Pupils!$AH$5:$AH$500),0) -> 0 | H7: =ROUND(SUMIF(Pupils!$B$5:$B$500,$B7,Pupils!$AL$5:$AL$500),0) -> 0 | I7: =ROUND(SUMIF(Pupils!$B$5:$B$500,$B7,Pupils!$AP$5:$AP$500),0) -> 0 | J7: =ROUND(SUMIF(Pupils!$B$5:$B$500,$B7,Pupils!$AT$5:$AT$500),0) -> 0 | K7: =ROUND(SUMIF(Pupils!$B$5:$B$500,$B7,Pupils!$AX$5:$AX$500),0) -> 0 | L7: =ROUND(SUMIF(Pupils!$B$5:$B$500,$B7,Pupils!$BB$5:$BB$500),0) -> 0 | M7: =ROUND(SUMIF(Pupils!$B$5:$B$500,$B7,Pupils!$BF$5:$BF$500),0) -> 0 | N7: =ROUND(SUMIF(Pupils!$B$5:$B$500,$B7,Pupils!$BJ$5:$BJ$500),0) -> 0 | O7: =ROUND(SUMIF(Pupils!$B$5:$B$500,$B7,Pupils!$BN$5:$BN$500),0) -> 0 | P7: =ROUND(SUMIF(Pupils!$B$5:$B$500,$B7,Pupils!$BR$5:$BR$500),0) -> 0 | R7: 0
B8: 7040 | C8: Foreland Fields School | E8: =ROUND(SUMIF(Pupils!$B$5:$B$500,$B8,Pupils!$Z$5:$Z$500),0) -> 0 | F8: =ROUND(SUMIF(Pupils!$B$5:$B$500,$B8,Pupils!$AD$5:$AD$500),0) -> 0 | G8: =ROUND(SUMIF(Pupils!$B$5:$B$500,$B8,Pupils!$AH$5:$AH$500),0) -> 0 | H8: =ROUND(SUMIF(Pupils!$B$5:$B$500,$B8,Pupils!$AL$5:$AL$500),0) -> 0 | I8: =ROUND(SUMIF(Pupils!$B$5:$B$500,$B8,Pupils!$AP$5:$AP$500),0) -> 0 | J8: =ROUND(SUMIF(Pupils!$B$5:$B$500,$B8,Pupils!$AT$5:$AT$500),0) -> 0 | K8: =ROUND(SUMIF(Pupils!$B$5:$B$500,$B8,Pupils!$AX$5:$AX$500),0) -> 0 | L8: =ROUND(SUMIF(Pupils!$B$5:$B$500,$B8,Pupils!$BB$5:$BB$500),0) -> 0 | M8: =ROUND(SUMIF(Pupils!$B$5:$B$500,$B8,Pupils!$BF$5:$BF$500),0) -> 0 | N8: =ROUND(SUMIF(Pupils!$B$5:$B$500,$B8,Pupils!$BJ$5:$BJ$500),0) -> 0 | O8: =ROUND(SUMIF(Pupils!$B$5:$B$500,$B8,Pupils!$BN$5:$BN$500),0) -> 0 | P8: =ROUND(SUMIF(Pupils!$B$5:$B$500,$B8,Pupils!$BR$5:$BR$500),0) -> 0 | R8: 0
B9: 7041 | C9: Goldwyn Community Special School (Ashford) | E9: =ROUND(SUMIF(Pupils!$B$5:$B$500,$B9,Pupils!$Z$5:$Z$500),0) -> 0 | F9: =ROUND(SUMIF(Pupils!$B$5:$B$500,$B9,Pupils!$AD$5:$AD$500),0) -> 0 | G9: =ROUND(SUMIF(Pupils!$B$5:$B$500,$B9,Pupils!$AH$5:$AH$500),0) -> 0 | H9: =ROUND(SUMIF(Pupils!$B$5:$B$500,$B9,Pupils!$AL$5:$AL$500),0) -> 0 | I9: =ROUND(SUMIF(Pupils!$B$5:$B$500,$B9,Pupils!$AP$5:$AP$500),0) -> 0 | J9: =ROUND(SUMIF(Pupils!$B$5:$B$500,$B9,Pupils!$AT$5:$AT$500),0) -> 0 | K9: =ROUND(SUMIF(Pupils!$B$5:$B$500,$B9,Pupils!$AX$5:$AX$500),0) -> 0 | L9: =ROUND(SUMIF(Pupils!$B$5:$B$500,$B9,Pupils!$BB$5:$BB$500),0) -> 0 | M9: =ROUND(SUMIF(Pupils!$B$5:$B$500,$B9,Pupils!$BF$5:$BF$500),0) -> 0 | N9: =ROUND(SUMIF(Pupils!$B$5:$B$500,$B9,Pupils!$BJ$5:$BJ$500),0) -> 0 | O9: =ROUND(SUMIF(Pupils!$B$5:$B$500,$B9,Pupils!$BN$5:$BN$500),0) -> 0 | P9: =ROUND(SUMIF(Pupils!$B$5:$B$500,$B9,Pupils!$BR$5:$BR$500),0) -> 0 | R9: 0
B10: 7041F | C10: Goldwyn Community Special School (Folkestone) | E10: =ROUND(SUMIF(Pupils!$B$5:$B$500,$B10,Pupils!$Z$5:$Z$500),0) -> 0 | F10: =ROUND(SUMIF(Pupils!$B$5:$B$500,$B10,Pupils!$AD$5:$AD$500),0) -> 0 | G10: =ROUND(SUMIF(Pupils!$B$5:$B$500,$B10,Pupils!$AH$5:$AH$500),0) -> 0 | H10: =ROUND(SUMIF(Pupils!$B$5:$B$500,$B10,Pupils!$AL$5:$AL$500),0) -> 0 | I10: =ROUND(SUMIF(Pupils!$B$5:$B$500,$B10,Pupils!$AP$5:$AP$500),0) -> 0 | J10: =ROUND(SUMIF(Pupils!$B$5:$B$500,$B10,Pupils!$AT$5:$AT$500),0) -> 0 | K10: =ROUND(SUMIF(Pupils!$B$5:$B$500,$B10,Pupils!$AX$5:$AX$500),0) -> 0 | L10: =ROUND(SUMIF(Pupils!$B$5:$B$500,$B10,Pupils!$BB$5:$BB$500),0) -> 0 | M10: =ROUND(SUMIF(Pupils!$B$5:$B$500,$B10,Pupils!$BF$5:$BF$500),0) -> 0 | N10: =ROUND(SUMIF(Pupils!$B$5:$B$500,$B10,Pupils!$BJ$5:$BJ$500),0) -> 0 | O10: =ROUND(SUMIF(Pupils!$B$5:$B$500,$B10,Pupils!$BN$5:$BN$500),0) -> 0 | P10: =ROUND(SUMIF(Pupils!$B$5:$B$500,$B10,Pupils!$BR$5:$BR$500),0) -> 0 | R10: 0
B11: 7043 | C11: The Beacon Folkestone | E11: =ROUND(SUMIF(Pupils!$B$5:$B$500,$B11,Pupils!$Z$5:$Z$500),0) -> 0 | F11: =ROUND(SUMIF(Pupils!$B$5:$B$500,$B11,Pupils!$AD$5:$AD$500),0) -> 0 | G11: =ROUND(SUMIF(Pupils!$B$5:$B$500,$B11,Pupils!$AH$5:$AH$500),0) -> 0 | H11: =ROUND(SUMIF(Pupils!$B$5:$B$500,$B11,Pupils!$AL$5:$AL$500),0) -> 0 | I11: =ROUND(SUMIF(Pupils!$B$5:$B$500,$B11,Pupils!$AP$5:$AP$500),0) -> 0 | J11: =ROUND(SUMIF(Pupils!$B$5:$B$500,$B11,Pupils!$AT$5:$AT$500),0) -> 0 | K11: =ROUND(SUMIF(Pupils!$B$5:$B$500,$B11,Pupils!$AX$5:$AX$500),0) -> 0 | L11: =ROUND(SUMIF(Pupils!$B$5:$B$500,$B11,Pupils!$BB$5:$BB$500),0) -> 0 | M11: =ROUND(SUMIF(Pupils!$B$5:$B$500,$B11,Pupils!$BF$5:$BF$500),0) -> 0 | N11: =ROUND(SUMIF(Pupils!$B$5:$B$500,$B11,Pupils!$BJ$5:$BJ$500),0) -> 0 | O11: =ROUND(SUMIF(Pupils!$B$5:$B$500,$B11,Pupils!$BN$5:$BN$500),0) -> 0 | P11: =ROUND(SUMIF(Pupils!$B$5:$B$500,$B11,Pupils!$BR$5:$BR$500),0) -> 0 | R11: 0
B12: 7044 | C12: Rowhill School | E12: =ROUND(SUMIF(Pupils!$B$5:$B$500,$B12,Pupils!$Z$5:$Z$500),0) -> 0 | F12: =ROUND(SUMIF(Pupils!$B$5:$B$500,$B12,Pupils!$AD$5:$AD$500),0) -> 0 | G12: =ROUND(SUMIF(Pupils!$B$5:$B$500,$B12,Pupils!$AH$5:$AH$500),0) -> 0 | H12: =ROUND(SUMIF(Pupils!$B$5:$B$500,$B12,Pupils!$AL$5:$AL$500),0) -> 0 | I12: =ROUND(SUMIF(Pupils!$B$5:$B$500,$B12,Pupils!$AP$5:$AP$500),0) -> 0 | J12: =ROUND(SUMIF(Pupils!$B$5:$B$500,$B12,Pupils!$AT$5:$AT$500),0) -> 0 | K12: =ROUND(SUMIF(Pupils!$B$5:$B$500,$B12,Pupils!$AX$5:$AX$500),0) -> 0 | L12: =ROUND(SUMIF(Pupils!$B$5:$B$500,$B12,Pupils!$BB$5:$BB$500),0) -> 0 | M12: =ROUND(SUMIF(Pupils!$B$5:$B$500,$B12,Pupils!$BF$5:$BF$500),0) -> 0 | N12: =ROUND(SUMIF(Pupils!$B$5:$B$500,$B12,Pupils!$BJ$5:$BJ$500),0) -> 0 | O12: =ROUND(SUMIF(Pupils!$B$5:$B$500,$B12,Pupils!$BN$5:$BN$500),0) -> 0 | P12: =ROUND(SUMIF(Pupils!$B$5:$B$500,$B12,Pupils!$BR$5:$BR$500),0) -> 0 | R12: 0
B13: 7045 | C13: Elms School | E13: =ROUND(SUMIF(Pupils!$B$5:$B$500,$B13,Pupils!$Z$5:$Z$500),0) -> 0 | F13: =ROUND(SUMIF(Pupils!$B$5:$B$500,$B13,Pupils!$AD$5:$AD$500),0) -> 0 | G13: =ROUND(SUMIF(Pupils!$B$5:$B$500,$B13,Pupils!$AH$5:$AH$500),0) -> 0 | H13: =ROUND(SUMIF(Pupils!$B$5:$B$500,$B13,Pupils!$AL$5:$AL$500),0) -> 0 | I13: =ROUND(SUMIF(Pupils!$B$5:$B$500,$B13,Pupils!$AP$5:$AP$500),0) -> 0 | J13: =ROUND(SUMIF(Pupils!$B$5:$B$500,$B13,Pupils!$AT$5:$AT$500),0) -> 0 | K13: =ROUND(SUMIF(Pupils!$B$5:$B$500,$B13,Pupils!$AX$5:$AX$500),0) -> 0 | L13: =ROUND(SUMIF(Pupils!$B$5:$B$500,$B13,Pupils!$BB$5:$BB$500),0) -> 0 | M13: =ROUND(SUMIF(Pupils!$B$5:$B$500,$B13,Pupils!$BF$5:$BF$500),0) -> 0 | N13: =ROUND(SUMIF(Pupils!$B$5:$B$500,$B13,Pupils!$BJ$5:$BJ$500),0) -> 0 | O13: =ROUND(SUMIF(Pupils!$B$5:$B$500,$B13,Pupils!$BN$5:$BN$500),0) -> 0 | P13: =ROUND(SUMIF(Pupils!$B$5:$B$500,$B13,Pupils!$BR$5:$BR$500),0) -> 0 | R13: 0
B14: 7051 | C14: Nexus School | E14: =ROUND(SUMIF(Pupils!$B$5:$B$500,$B14,Pupils!$Z$5:$Z$500),0) -> 0 | F14: =ROUND(SUMIF(Pupils!$B$5:$B$500,$B14,Pupils!$AD$5:$AD$500),0) -> 0 | G14: =ROUND(SUMIF(Pupils!$B$5:$B$500,$B14,Pupils!$AH$5:$AH$500),0) -> 0 | H14: =ROUND(SUMIF(Pupils!$B$5:$B$500,$B14,Pupils!$AL$5:$AL$500),0) -> 0 | I14: =ROUND(SUMIF(Pupils!$B$5:$B$500,$B14,Pupils!$AP$5:$AP$500),0) -> 0 | J14: =ROUND(SUMIF(Pupils!$B$5:$B$500,$B14,Pupils!$AT$5:$AT$500),0) -> 0 | K14: =ROUND(SUMIF(Pupils!$B$5:$B$500,$B14,Pupils!$AX$5:$AX$500),0) -> 0 | L14: =ROUND(SUMIF(Pupils!$B$5:$B$500,$B14,Pupils!$BB$5:$BB$500),0) -> 0 | M14: =ROUND(SUMIF(Pupils!$B$5:$B$500,$B14,Pupils!$BF$5:$BF$500),0) -> 0 | N14: =ROUND(SUMIF(Pupils!$B$5:$B$500,$B14,Pupils!$BJ$5:$BJ$500),0) -> 0 | O14: =ROUND(SUMIF(Pupils!$B$5:$B$500,$B14,Pupils!$BN$5:$BN$500),0) -> 0 | P14: =ROUND(SUMIF(Pupils!$B$5:$B$500,$B14,Pupils!$BR$5:$BR$500),0) -> 0 | R14: 0
B15: 7052 | C15: Grange Park School | E15: =ROUND(SUMIF(Pupils!$B$5:$B$500,$B15,Pupils!$Z$5:$Z$500),0) -> 0 | F15: =ROUND(SUMIF(Pupils!$B$5:$B$500,$B15,Pupils!$AD$5:$AD$500),0) -> 0 | G15: =ROUND(SUMIF(Pupils!$B$5:$B$500,$B15,Pupils!$AH$5:$AH$500),0) -> 0 | H15: =ROUND(SUMIF(Pupils!$B$5:$B$500,$B15,Pupils!$AL$5:$AL$500),0) -> 0 | I15: =ROUND(SUMIF(Pupils!$B$5:$B$500,$B15,Pupils!$AP$5:$AP$500),0) -> 0 | J15: =ROUND(SUMIF(Pupils!$B$5:$B$500,$B15,Pupils!$AT$5:$AT$500),0) -> 0 | K15: =ROUND(SUMIF(Pupils!$B$5:$B$500,$B15,Pupils!$AX$5:$AX$500),0) -> 0 | L15: =ROUND(SUMIF(Pupils!$B$5:$B$500,$B15,Pupils!$BB$5:$BB$500),0) -> 0 | M15: =ROUND(SUMIF(Pupils!$B$5:$B$500,$B15,Pupils!$BF$5:$BF$500),0) -> 0 | N15: =ROUND(SUMIF(Pupils!$B$5:$B$500,$B15,Pupils!$BJ$5:$BJ$500),0) -> 0 | O15: =ROUND(SUMIF(Pupils!$B$5:$B$500,$B15,Pupils!$BN$5:$BN$500),0) -> 0 | P15: =ROUND(SUMIF(Pupils!$B$5:$B$500,$B15,Pupils!$BR$5:$BR$500),0) -> 0 | R15: 0
B16: 7056 | C16: Five Acre Wood School | E16: =ROUND(SUMIF(Pupils!$B$5:$B$500,$B16,Pupils!$Z$5:$Z$500),0) -> 0 | F16: =ROUND(SUMIF(Pupils!$B$5:$B$500,$B16,Pupils!$AD$5:$AD$500),0) -> 0 | G16: =ROUND(SUMIF(Pupils!$B$5:$B$500,$B16,Pupils!$AH$5:$AH$500),0) -> 0 | H16: =ROUND(SUMIF(Pupils!$B$5:$B$500,$B16,Pupils!$AL$5:$AL$500),0) -> 0 | I16: =ROUND(SUMIF(Pupils!$B$5:$B$500,$B16,Pupils!$AP$5:$AP$500),0) -> 0 | J16: =ROUND(SUMIF(Pupils!$B$5:$B$500,$B16,Pupils!$AT$5:$AT$500),0) -> 0 | K16: =ROUND(SUMIF(Pupils!$B$5:$B$500,$B16,Pupils!$AX$5:$AX$500),0) -> 0 | L16: =ROUND(SUMIF(Pupils!$B$5:$B$500,$B16,Pupils!$BB$5:$BB$500),0) -> 0 | M16: =ROUND(SUMIF(Pupils!$B$5:$B$500,$B16,Pupils!$BF$5:$BF$500),0) -> 0 | N16: =ROUND(SUMIF(Pupils!$B$5:$B$500,$B16,Pupils!$BJ$5:$BJ$500),0) -> 0 | O16: =ROUND(SUMIF(Pupils!$B$5:$B$500,$B16,Pupils!$BN$5:$BN$500),0) -> 0 | P16: =ROUND(SUMIF(Pupils!$B$5:$B$500,$B16,Pupils!$BR$5:$BR$500),0) -> 0 | R16: 0
B17: 7062 | C17: The Orchard School | E17: =ROUND(SUMIF(Pupils!$B$5:$B$500,$B17,Pupils!$Z$5:$Z$500),0) -> 0 | F17: =ROUND(SUMIF(Pupils!$B$5:$B$500,$B17,Pupils!$AD$5:$AD$500),0) -> 0 | G17: =ROUND(SUMIF(Pupils!$B$5:$B$500,$B17,Pupils!$AH$5:$AH$500),0) -> 0 | H17: =ROUND(SUMIF(Pupils!$B$5:$B$500,$B17,Pupils!$AL$5:$AL$500),0) -> 0 | I17: =ROUND(SUMIF(Pupils!$B$5:$B$500,$B17,Pupils!$AP$5:$AP$500),0) -> 0 | J17: =ROUND(SUMIF(Pupils!$B$5:$B$500,$B17,Pupils!$AT$5:$AT$500),0) -> 0 | K17: =ROUND(SUMIF(Pupils!$B$5:$B$500,$B17,Pupils!$AX$5:$AX$500),0) -> 0 | L17: =ROUND(SUMIF(Pupils!$B$5:$B$500,$B17,Pupils!$BB$5:$BB$500),0) -> 0 | M17: =ROUND(SUMIF(Pupils!$B$5:$B$500,$B17,Pupils!$BF$5:$BF$500),0) -> 0 | N17: =ROUND(SUMIF(Pupils!$B$5:$B$500,$B17,Pupils!$BJ$5:$BJ$500),0) -> 0 | O17: =ROUND(SUMIF(Pupils!$B$5:$B$500,$B17,Pupils!$BN$5:$BN$500),0) -> 0 | P17: =ROUND(SUMIF(Pupils!$B$5:$B$500,$B17,Pupils!$BR$5:$BR$500),0) -> 0 | R17: 0
B18: 7063 | C18: St Nicholas' School | E18: =ROUND(SUMIF(Pupils!$B$5:$B$500,$B18,Pupils!$Z$5:$Z$500),0) -> 0 | F18: =ROUND(SUMIF(Pupils!$B$5:$B$500,$B18,Pupils!$AD$5:$AD$500),0) -> 0 | G18: =ROUND(SUMIF(Pupils!$B$5:$B$500,$B18,Pupils!$AH$5:$AH$500),0) -> 0 | H18: =ROUND(SUMIF(Pupils!$B$5:$B$500,$B18,Pupils!$AL$5:$AL$500),0) -> 0 | I18: =ROUND(SUMIF(Pupils!$B$5:$B$500,$B18,Pupils!$AP$5:$AP$500),0) -> 0 | J18: =ROUND(SUMIF(Pupils!$B$5:$B$500,$B18,Pupils!$AT$5:$AT$500),0) -> 0 | K18: =ROUND(SUMIF(Pupils!$B$5:$B$500,$B18,Pupils!$AX$5:$AX$500),0) -> 0 | L18: =ROUND(SUMIF(Pupils!$B$5:$B$500,$B18,Pupils!$BB$5:$BB$500),0) -> 0 | M18: =ROUND(SUMIF(Pupils!$B$5:$B$500,$B18,Pupils!$BF$5:$BF$500),0) -> 0 | N18: =ROUND(SUMIF(Pupils!$B$5:$B$500,$B18,Pupils!$BJ$5:$BJ$500),0) -> 0 | O18: =ROUND(SUMIF(Pupils!$B$5:$B$500,$B18,Pupils!$BN$5:$BN$500),0) -> 0 | P18: =ROUND(SUMIF(Pupils!$B$5:$B$500,$B18,Pupils!$BR$5:$BR$500),0) -> 0 | R18: 0
B19: 7066 | C19: Milestone School | E19: =ROUND(SUMIF(Pupils!$B$5:$B$500,$B19,Pupils!$Z$5:$Z$500),0) -> 0 | F19: =ROUND(SUMIF(Pupils!$B$5:$B$500,$B19,Pupils!$AD$5:$AD$500),0) -> 0 | G19: =ROUND(SUMIF(Pupils!$B$5:$B$500,$B19,Pupils!$AH$5:$AH$500),0) -> 0 | H19: =ROUND(SUMIF(Pupils!$B$5:$B$500,$B19,Pupils!$AL$5:$AL$500),0) -> 0 | I19: =ROUND(SUMIF(Pupils!$B$5:$B$500,$B19,Pupils!$AP$5:$AP$500),0) -> 0 | J19: =ROUND(SUMIF(Pupils!$B$5:$B$500,$B19,Pupils!$AT$5:$AT$500),0) -> 0 | K19: =ROUND(SUMIF(Pupils!$B$5:$B$500,$B19,Pupils!$AX$5:$AX$500),0) -> 0 | L19: =ROUND(SUMIF(Pupils!$B$5:$B$500,$B19,Pupils!$BB$5:$BB$500),0) -> 0 | M19: =ROUND(SUMIF(Pupils!$B$5:$B$500,$B19,Pupils!$BF$5:$BF$500),0) -> 0 | N19: =ROUND(SUMIF(Pupils!$B$5:$B$500,$B19,Pupils!$BJ$5:$BJ$500),0) -> 0 | O19: =ROUND(SUMIF(Pupils!$B$5:$B$500,$B19,Pupils!$BN$5:$BN$500),0) -> 0 | P19: =ROUND(SUMIF(Pupils!$B$5:$B$500,$B19,Pupils!$BR$5:$BR$500),0) -> 0 | R19: 0
B20: 7067 | C20: Portal House School | E20: =ROUND(SUMIF(Pupils!$B$5:$B$500,$B20,Pupils!$Z$5:$Z$500),0) -> 0 | F20: =ROUND(SUMIF(Pupils!$B$5:$B$500,$B20,Pupils!$AD$5:$AD$500),0) -> 0 | G20: =ROUND(SUMIF(Pupils!$B$5:$B$500,$B20,Pupils!$AH$5:$AH$500),0) -> 0 | H20: =ROUND(SUMIF(Pupils!$B$5:$B$500,$B20,Pupils!$AL$5:$AL$500),0) -> 0 | I20: =ROUND(SUMIF(Pupils!$B$5:$B$500,$B20,Pupils!$AP$5:$AP$500),0) -> 0 | J20: =ROUND(SUMIF(Pupils!$B$5:$B$500,$B20,Pupils!$AT$5:$AT$500),0) -> 0 | K20: =ROUND(SUMIF(Pupils!$B$5:$B$500,$B20,Pupils!$AX$5:$AX$500),0) -> 0 | L20: =ROUND(SUMIF(Pupils!$B$5:$B$500,$B20,Pupils!$BB$5:$BB$500),0) -> 0 | M20: =ROUND(SUMIF(Pupils!$B$5:$B$500,$B20,Pupils!$BF$5:$BF$500),0) -> 0 | N20: =ROUND(SUMIF(Pupils!$B$5:$B$500,$B20,Pupils!$BJ$5:$BJ$500),0) -> 0 | O20: =ROUND(SUMIF(Pupils!$B$5:$B$500,$B20,Pupils!$BN$5:$BN$500),0) -> 0 | P20: =ROUND(SUMIF(Pupils!$B$5:$B$500,$B20,Pupils!$BR$5:$BR$500),0) -> 0 | R20: 0
B21: 7069 | C21: The Wyvern School | E21: =ROUND(SUMIF(Pupils!$B$5:$B$500,$B21,Pupils!$Z$5:$Z$500),0) -> 0 | F21: =ROUND(SUMIF(Pupils!$B$5:$B$500,$B21,Pupils!$AD$5:$AD$500),0) -> 0 | G21: =ROUND(SUMIF(Pupils!$B$5:$B$500,$B21,Pupils!$AH$5:$AH$500),0) -> 0 | H21: =ROUND(SUMIF(Pupils!$B$5:$B$500,$B21,Pupils!$AL$5:$AL$500),0) -> 0 | I21: =ROUND(SUMIF(Pupils!$B$5:$B$500,$B21,Pupils!$AP$5:$AP$500),0) -> 0 | J21: =ROUND(SUMIF(Pupils!$B$5:$B$500,$B21,Pupils!$AT$5:$AT$500),0) -> 0 | K21: =ROUND(SUMIF(Pupils!$B$5:$B$500,$B21,Pupils!$AX$5:$AX$500),0) -> 0 | L21: =ROUND(SUMIF(Pupils!$B$5:$B$500,$B21,Pupils!$BB$5:$BB$500),0) -> 0 | M21: =ROUND(SUMIF(Pupils!$B$5:$B$500,$B21,Pupils!$BF$5:$BF$500),0) -> 0 | N21: =ROUND(SUMIF(Pupils!$B$5:$B$500,$B21,Pupils!$BJ$5:$BJ$500),0) -> 0 | O21: =ROUND(SUMIF(Pupils!$B$5:$B$500,$B21,Pupils!$BN$5:$BN$500),0) -> 0 | P21: =ROUND(SUMIF(Pupils!$B$5:$B$500,$B21,Pupils!$BR$5:$BR$500),0) -> 0 | R21: 0
B22: 7070 | C22: Oakley School | E22: =ROUND(SUMIF(Pupils!$B$5:$B$500,$B22,Pupils!$Z$5:$Z$500),0) -> 0 | F22: =ROUND(SUMIF(Pupils!$B$5:$B$500,$B22,Pupils!$AD$5:$AD$500),0) -> 0 | G22: =ROUND(SUMIF(Pupils!$B$5:$B$500,$B22,Pupils!$AH$5:$AH$500),0) -> 0 | H22: =ROUND(SUMIF(Pupils!$B$5:$B$500,$B22,Pupils!$AL$5:$AL$500),0) -> 0 | I22: =ROUND(SUMIF(Pupils!$B$5:$B$500,$B22,Pupils!$AP$5:$AP$500),0) -> 0 | J22: =ROUND(SUMIF(Pupils!$B$5:$B$500,$B22,Pupils!$AT$5:$AT$500),0) -> 0 | K22: =ROUND(SUMIF(Pupils!$B$5:$B$500,$B22,Pupils!$AX$5:$AX$500),0) -> 0 | L22: =ROUND(SUMIF(Pupils!$B$5:$B$500,$B22,Pupils!$BB$5:$BB$500),0) -> 0 | M22: =ROUND(SUMIF(Pupils!$B$5:$B$500,$B22,Pupils!$BF$5:$BF$500),0) -> 0 | N22: =ROUND(SUMIF(Pupils!$B$5:$B$500,$B22,Pupils!$BJ$5:$BJ$500),0) -> 0 | O22: =ROUND(SUMIF(Pupils!$B$5:$B$500,$B22,Pupils!$BN$5:$BN$500),0) -> 0 | P22: =ROUND(SUMIF(Pupils!$B$5:$B$500,$B22,Pupils!$BR$5:$BR$500),0) -> 0 | R22: 0
B23: 7072 | C23: Meadowfield School | E23: =ROUND(SUMIF(Pupils!$B$5:$B$500,$B23,Pupils!$Z$5:$Z$500),0) -> 0 | F23: =ROUND(SUMIF(Pupils!$B$5:$B$500,$B23,Pupils!$AD$5:$AD$500),0) -> 0 | G23: =ROUND(SUMIF(Pupils!$B$5:$B$500,$B23,Pupils!$AH$5:$AH$500),0) -> 0 | H23: =ROUND(SUMIF(Pupils!$B$5:$B$500,$B23,Pupils!$AL$5:$AL$500),0) -> 0 | I23: =ROUND(SUMIF(Pupils!$B$5:$B$500,$B23,Pupils!$AP$5:$AP$500),0) -> 0 | J23: =ROUND(SUMIF(Pupils!$B$5:$B$500,$B23,Pupils!$AT$5:$AT$500),0) -> 0 | K23: =ROUND(SUMIF(Pupils!$B$5:$B$500,$B23,Pupils!$AX$5:$AX$500),0) -> 0 | L23: =ROUND(SUMIF(Pupils!$B$5:$B$500,$B23,Pupils!$BB$5:$BB$500),0) -> 0 | M23: =ROUND(SUMIF(Pupils!$B$5:$B$500,$B23,Pupils!$BF$5:$BF$500),0) -> 0 | N23: =ROUND(SUMIF(Pupils!$B$5:$B$500,$B23,Pupils!$BJ$5:$BJ$500),0) -> 0 | O23: =ROUND(SUMIF(Pupils!$B$5:$B$500,$B23,Pupils!$BN$5:$BN$500),0) -> 0 | P23: =ROUND(SUMIF(Pupils!$B$5:$B$500,$B23,Pupils!$BR$5:$BR$500),0) -> 0 | R23: 0
B24: 7002 | C24: Broomhill Bank School | E24: =ROUND(SUMIF(Pupils!$B$5:$B$500,$B24,Pupils!$Z$5:$Z$500),0) -> 0 | F24: =ROUND(SUMIF(Pupils!$B$5:$B$500,$B24,Pupils!$AD$5:$AD$500),0) -> 0 | G24: =ROUND(SUMIF(Pupils!$B$5:$B$500,$B24,Pupils!$AH$5:$AH$500),0) -> 0 | H24: =ROUND(SUMIF(Pupils!$B$5:$B$500,$B24,Pupils!$AL$5:$AL$500),0) -> 0 | I24: =ROUND(SUMIF(Pupils!$B$5:$B$500,$B24,Pupils!$AP$5:$AP$500),0) -> 0 | J24: =ROUND(SUMIF(Pupils!$B$5:$B$500,$B24,Pupils!$AT$5:$AT$500),0) -> 0 | K24: =ROUND(SUMIF(Pupils!$B$5:$B$500,$B24,Pupils!$AX$5:$AX$500),0) -> 0 | L24: =ROUND(SUMIF(Pupils!$B$5:$B$500,$B24,Pupils!$BB$5:$BB$500),0) -> 0 | M24: =ROUND(SUMIF(Pupils!$B$5:$B$500,$B24,Pupils!$BF$5:$BF$500),0) -> 0 | N24: =ROUND(SUMIF(Pupils!$B$5:$B$500,$B24,Pupils!$BJ$5:$BJ$500),0) -> 0 | O24: =ROUND(SUMIF(Pupils!$B$5:$B$500,$B24,Pupils!$BN$5:$BN$500),0) -> 0 | P24: =ROUND(SUMIF(Pupils!$B$5:$B$500,$B24,Pupils!$BR$5:$BR$500),0) -> 0 | R24: 0
B25: 7021 | C25: Valence School | E25: =ROUND(SUMIF(Pupils!$B$5:$B$500,$B25,Pupils!$Z$5:$Z$500),0) -> 0 | F25: =ROUND(SUMIF(Pupils!$B$5:$B$500,$B25,Pupils!$AD$5:$AD$500),0) -> 0 | G25: =ROUND(SUMIF(Pupils!$B$5:$B$500,$B25,Pupils!$AH$5:$AH$500),0) -> 0 | H25: =ROUND(SUMIF(Pupils!$B$5:$B$500,$B25,Pupils!$AL$5:$AL$500),0) -> 0 | I25: =ROUND(SUMIF(Pupils!$B$5:$B$500,$B25,Pupils!$AP$5:$AP$500),0) -> 0 | J25: =ROUND(SUMIF(Pupils!$B$5:$B$500,$B25,Pupils!$AT$5:$AT$500),0) -> 0 | K25: =ROUND(SUMIF(Pupils!$B$5:$B$500,$B25,Pupils!$AX$5:$AX$500),0) -> 0 | L25: =ROUND(SUMIF(Pupils!$B$5:$B$500,$B25,Pupils!$BB$5:$BB$500),0) -> 0 | M25: =ROUND(SUMIF(Pupils!$B$5:$B$500,$B25,Pupils!$BF$5:$BF$500),0) -> 0 | N25: =ROUND(SUMIF(Pupils!$B$5:$B$500,$B25,Pupils!$BJ$5:$BJ$500),0) -> 0 | O25: =ROUND(SUMIF(Pupils!$B$5:$B$500,$B25,Pupils!$BN$5:$BN$500),0) -> 0 | P25: =ROUND(SUMIF(Pupils!$B$5:$B$500,$B25,Pupils!$BR$5:$BR$500),0) -> 0 | R25: 0
B26: 7058 | C26: Stone Bay School | E26: =ROUND(SUMIF(Pupils!$B$5:$B$500,$B26,Pupils!$Z$5:$Z$500),0) -> 0 | F26: =ROUND(SUMIF(Pupils!$B$5:$B$500,$B26,Pupils!$AD$5:$AD$500),0) -> 0 | G26: =ROUND(SUMIF(Pupils!$B$5:$B$500,$B26,Pupils!$AH$5:$AH$500),0) -> 0 | H26: =ROUND(SUMIF(Pupils!$B$5:$B$500,$B26,Pupils!$AL$5:$AL$500),0) -> 0 | I26: =ROUND(SUMIF(Pupils!$B$5:$B$500,$B26,Pupils!$AP$5:$AP$500),0) -> 0 | J26: =ROUND(SUMIF(Pupils!$B$5:$B$500,$B26,Pupils!$AT$5:$AT$500),0) -> 0 | K26: =ROUND(SUMIF(Pupils!$B$5:$B$500,$B26,Pupils!$AX$5:$AX$500),0) -> 0 | L26: =ROUND(SUMIF(Pupils!$B$5:$B$500,$B26,Pupils!$BB$5:$BB$500),0) -> 0 | M26: =ROUND(SUMIF(Pupils!$B$5:$B$500,$B26,Pupils!$BF$5:$BF$500),0) -> 0 | N26: =ROUND(SUMIF(Pupils!$B$5:$B$500,$B26,Pupils!$BJ$5:$BJ$500),0) -> 0 | O26: =ROUND(SUMIF(Pupils!$B$5:$B$500,$B26,Pupils!$BN$5:$BN$500),0) -> 0 | P26: =ROUND(SUMIF(Pupils!$B$5:$B$500,$B26,Pupils!$BR$5:$BR$500),0) -> 0 | R26: 0
B27: 7073 | C27: Laleham Gap School | E27: =ROUND(SUMIF(Pupils!$B$5:$B$500,$B27,Pupils!$Z$5:$Z$500),0) -> 0 | F27: =ROUND(SUMIF(Pupils!$B$5:$B$500,$B27,Pupils!$AD$5:$AD$500),0) -> 0 | G27: =ROUND(SUMIF(Pupils!$B$5:$B$500,$B27,Pupils!$AH$5:$AH$500),0) -> 0 | H27: =ROUND(SUMIF(Pupils!$B$5:$B$500,$B27,Pupils!$AL$5:$AL$500),0) -> 0 | I27: =ROUND(SUMIF(Pupils!$B$5:$B$500,$B27,Pupils!$AP$5:$AP$500),0) -> 0 | J27: =ROUND(SUMIF(Pupils!$B$5:$B$500,$B27,Pupils!$AT$5:$AT$500),0) -> 0 | K27: =ROUND(SUMIF(Pupils!$B$5:$B$500,$B27,Pupils!$AX$5:$AX$500),0) -> 0 | L27: =ROUND(SUMIF(Pupils!$B$5:$B$500,$B27,Pupils!$BB$5:$BB$500),0) -> 0 | M27: =ROUND(SUMIF(Pupils!$B$5:$B$500,$B27,Pupils!$BF$5:$BF$500),0) -> 0 | N27: =ROUND(SUMIF(Pupils!$B$5:$B$500,$B27,Pupils!$BJ$5:$BJ$500),0) -> 0 | O27: =ROUND(SUMIF(Pupils!$B$5:$B$500,$B27,Pupils!$BN$5:$BN$500),0) -> 0 | P27: =ROUND(SUMIF(Pupils!$B$5:$B$500,$B27,Pupils!$BR$5:$BR$500),0) -> 0 | R27: 0
E29: =SUM(E5:E27) -> 0 | F29: 0 | G29: 0 | H29: 0 | I29: 0 | J29: 0 | K29: 0 | L29: 0 | M29: 0 | N29: 0 | O29: 0 | P29: 0 | R29: =SUM(R5:R27) -> 0
B30: Rates
F31: =INDEX('[Special_Data_Calc_2017-18.xlsx]Summary '!$G$8:$CF$157,MATCH(B35&D35,'[Special_Data_Calc_2017-18.xlsx]Summary '!$G$8:$G$157,0),78)-10000
B32: DfE | C32: School Name | D32: Need Type | E32: Rate Key | F32: Apr to Aug | G32: Sep to Mar | H32: Control Check | I32: MLD&SLCN
B33: 7032 | C33: Bower Grove School | D33: MLD & SLCN | E33: 7032MLD&SLCN | F33: 1585.854909 | G33: 1585.854909 | H33: =F33-G33 -> 0 | I33: BESD
B34: 7032 | C34: Bower Grove School | D34: BESD | E34: 7032BESD | F34: 3895.870377 | G34: 3895.870377 | H34: =F34-G34 -> 0 | I34: SLD
B35: 7032 | C35: Bower Grove School | D35: SLD | E35: 7032SLD | F35: 5453.69516 | G35: 5453.69516 | H35: 0 | I35: PD&PMLD
B36: 7032 | C36: Bower Grove School | D36: PD & PMLD | E36: 7032PD&PMLD | F36: 11899.42686 | G36: 11899.42686 | H36: 0 | I36: ASD
B37: 7032 | C37: Bower Grove School | D37: ASD | E37: 7032ASD | F37: 7407.676696 | G37: 7407.676696 | H37: 0 | I37: WeekdayMLD&SLCN
B38: 7033 | C38: St Anthony's School | D38: MLD & SLCN | E38: 7033MLD&SLCN | F38: 4136.467339 | G38: 4136.467339 | H38: 0 | I38: WeekdayBESD
B39: 7033 | C39: St Anthony's School | D39: BESD | E39: 7033BESD | F39: 6397.838953 | G39: 6397.838953 | H39: 0 | I39: WeekdaySLD
B40: 7033 | C40: St Anthony's School | D40: SLD | E40: 7033SLD | F40: 8004.30759 | G40: 8004.30759 | H40: 0 | I40: WeekdayPD&PMLD
B41: 7033 | C41: St Anthony's School | D41: PD & PMLD | E41: 7033PD&PMLD | F41: 14450.03929 | G41: 14450.03929 | H41: 0 | I41: WeekdayASD
B42: 7033 | C42: St Anthony's School | D42: ASD | E42: 7033ASD | F42: 9958.289126 | G42: 9958.289126 | H42: 0 | I42: WeekendPD&PMLD
B43: 7039 | C43: The Ifield School | D43: MLD & SLCN | E43: 7039MLD&SLCN | F43: 1468.429845 | G43: 1468.429845 | H43: 0 | I43: WeekendASD
B44: 7039 | C44: The Ifield School | D44: BESD | E44: 7039BESD | F44: 3380.28242 | G44: 3380.28242 | H44: 0
B45: 7039 | C45: The Ifield School | D45: SLD | E45: 7039SLD | F45: 5336.270096 | G45: 5336.270096 | H45: 0
B46: 7039 | C46: The Ifield School | D46: PD & PMLD | E46: 7039PD&PMLD | F46: 11782.0018 | G46: 11782.0018 | H46: 0
B47: 7039 | C47: The Ifield School | D47: ASD | E47: 7039ASD | F47: 8000.124702 | G47: 8000.124702 | H47: 0
B48: 7040 | C48: Foreland Fields School | D48: MLD & SLCN | E48: 7040MLD&SLCN | F48: 1659.582271 | G48: 1659.582271 | H48: 0
B49: 7040 | C49: Foreland Fields School | D49: BESD | E49: 7040BESD | F49: 3561.701215 | G49: 3561.701215 | H49: 0
B50: 7040 | C50: Foreland Fields School | D50: SLD | E50: 7040SLD | F50: 5517.68889 | G50: 5517.68889 | H50: 0
B51: 7040 | C51: Foreland Fields School | D51: PD & PMLD | E51: 7040PD&PMLD | F51: 11963.42059 | G51: 11963.42059 | H51: 0
B52: 7040 | C52: Foreland Fields School | D52: ASD | E52: 7040ASD | F52: 8181.543497 | G52: 8181.543497 | H52: 0
B53: 7041 | C53: Goldwyn Community Special School (Ashford) | D53: MLD & SLCN | E53: 7041MLD&SLCN | F53: 4106.033266 | G53: 4106.033266 | H53: 0
B54: 7041 | C54: Goldwyn Community Special School (Ashford) | D54: BESD | E54: 7041BESD | F54: 8478.971979 | G54: 8478.971979 | H54: 0
B55: 7041 | C55: Goldwyn Community Special School (Ashford) | D55: SLD | E55: 7041SLD | F55: 7574.915802 | G55: 7574.915802 | H55: 0
B56: 7041 | C56: Goldwyn Community Special School (Ashford) | D56: PD & PMLD | E56: 7041PD&PMLD | F56: 13399.75742 | G56: 13399.75742 | H56: 0
B57: 7041 | C57: Goldwyn Community Special School (Ashford) | D57: ASD | E57: 7041ASD | F57: 9327.361277 | G57: 9327.361277 | H57: 0
B58: 7043 | C58: The Beacon Folkestone | D58: MLD & SLCN | E58: 7043MLD&SLCN | F58: 1771.354798 | G58: 1771.354798 | H58: 0
B59: 7043 | C59: The Beacon Folkestone | D59: BESD | E59: 7043BESD | F59: 3531.597272 | G59: 3531.597272 | H59: 0
B60: 7043 | C60: The Beacon Folkestone | D60: SLD | E60: 7043SLD | F60: 5381.765664 | G60: 5381.765664 | H60: 0
B61: 7043 | C61: The Beacon Folkestone | D61: PD & PMLD | E61: 7043PD&PMLD | F61: 11541.76856 | G61: 11541.76856 | H61: 0
B62: 7043 | C62: The Beacon Folkestone | D62: ASD | E62: 7043ASD | F62: 7927.535924 | G62: 7927.535924 | H62: 0
B63: 7044 | C63: Rowhill School | D63: MLD & SLCN | E63: 7044MLD&SLCN | F63: 3976.791276 | G63: 3976.791276 | H63: 0
B64: 7044 | C64: Rowhill School | D64: BESD | E64: 7044BESD | F64: 6371.070248 | G64: 6371.070248 | H64: 0
B65: 7044 | C65: Rowhill School | D65: SLD | E65: 7044SLD | F65: 7919.790386 | G65: 7919.790386 | H65: 0
B66: 7044 | C66: Rowhill School | D66: PD & PMLD | E66: 7044PD&PMLD | F66: 14490.69519 | G66: 14490.69519 | H66: 0
B67: 7044 | C67: Rowhill School | D67: ASD | E67: 7044ASD | F67: 9917.486228 | G67: 9917.486228 | H67: 0
B68: 7045 | C68: Elms School | D68: MLD & SLCN | E68: 7045MLD&SLCN | F68: 3048.917283 | G68: 3048.917283 | H68: 0
B69: 7045 | C69: Elms School | D69: BESD | E69: 7045BESD | F69: 5260.263829 | G69: 5260.263829 | H69: 0
B70: 7045 | C70: Elms School | D70: SLD | E70: 7045SLD | F70: 6858.73993 | G70: 6858.73993 | H70: 0
B71: 7045 | C71: Elms School | D71: PD & PMLD | E71: 7045PD&PMLD | F71: 13207.78566 | G71: 13207.78566 | H71: 0
B72: 7045 | C72: Elms School | D72: ASD | E72: 7045ASD | F72: 8783.411743 | G72: 8783.411743 | H72: 0
B73: 7051 | C73: Nexus School | D73: MLD & SLCN | E73: 7051MLD&SLCN | F73: 2773.076948 | G73: 2773.076948 | H73: 0
B74: 7051 | C74: Nexus School | D74: BESD | E74: 7051BESD | F74: 4600.180205 | G74: 4600.180205 | H74: 0
B75: 7051 | C75: Nexus School | D75: SLD | E75: 7051SLD | F75: 6469.462126 | G75: 6469.462126 | H75: 0
B76: 7051 | C76: Nexus School | D76: PD & PMLD | E76: 7051PD&PMLD | F76: 12629.46502 | G76: 12629.46502 | H76: 0
B77: 7051 | C77: Nexus School | D77: ASD | E77: 7051ASD | F77: 9015.232386 | G77: 9015.232386 | H77: 0
B78: 7052 | C78: Grange Park School | D78: MLD & SLCN | E78: 7052MLD&SLCN | F78: 2861.065093 | G78: 2861.065093 | H78: 0
B79: 7052 | C79: Grange Park School | D79: BESD | E79: 7052BESD | F79: 4744.239879 | G79: 4744.239879 | H79: 0
B80: 7052 | C80: Grange Park School | D80: SLD | E80: 7052SLD | F80: 6670.88774 | G80: 6670.88774 | H80: 0
B81: 7052 | C81: Grange Park School | D81: PD & PMLD | E81: 7052PD&PMLD | F81: 13019.93347 | G81: 13019.93347 | H81: 0
B82: 7052 | C82: Grange Park School | D82: ASD | E82: 7052ASD | F82: 9294.784527 | G82: 9294.784527 | H82: 0
B83: 7056 | C83: Five Acre Wood School | D83: MLD & SLCN | E83: 7056MLD&SLCN | F83: 1254.393872 | G83: 1254.393872 | H83: 0
B84: 7056 | C84: Five Acre Wood School | D84: BESD | E84: 7056BESD | F84: 2850.299942 | G84: 2850.299942 | H84: 0
B85: 7056 | C85: Five Acre Wood School | D85: SLD | E85: 7056SLD | F85: 4727.328127 | G85: 4727.328127 | H85: 0
B86: 7056 | C86: Five Acre Wood School | D86: PD & PMLD | E86: 7056PD&PMLD | F86: 11081.40346 | G86: 11081.40346 | H86: 0
B87: 7056 | C87: Five Acre Wood School | D87: ASD | E87: 7056ASD | F87: 7351.224915 | G87: 7351.224915 | H87: 0
B88: 7062 | C88: The Orchard School | D88: MLD & SLCN | E88: 7062MLD&SLCN | F88: 4582.402759 | G88: 4582.402759 | H88: 0
B89: 7062 | C89: The Orchard School | D89: BESD | E89: 7062BESD | F89: 6793.809427 | G89: 6793.809427 | H89: 0
B90: 7062 | C90: The Orchard School | D90: SLD | E90: 7062SLD | F90: 8450.24301 | G90: 8450.24301 | H90: 0
B91: 7062 | C91: The Orchard School | D91: PD & PMLD | E91: 7062PD&PMLD | F91: 14895.97471 | G91: 14895.97471 | H91: 0
B92: 7062 | C92: The Orchard School | D92: ASD | E92: 7062ASD | F92: 10404.22455 | G92: 10404.22455 | H92: 0
B93: 7063 | C93: St Nicholas' School | D93: MLD & SLCN | E93: 7063MLD&SLCN | F93: 1570.651659 | G93: 1570.651659 | H93: 0
B94: 7063 | C94: St Nicholas' School | D94: BESD | E94: 7063BESD | F94: 3477.96491 | G94: 3477.96491 | H94: 0
B95: 7063 | C95: St Nicholas' School | D95: SLD | E95: 7063SLD | F95: 5433.952585 | G95: 5433.952585 | H95: 0
B96: 7063 | C96: St Nicholas' School | D96: PD & PMLD | E96: 7063PD&PMLD | F96: 11879.68429 | G96: 11879.68429 | H96: 0
B97: 7063 | C97: St Nicholas' School | D97: ASD | E97: 7063ASD | F97: 8097.807192 | G97: 8097.807192 | H97: 0
B98: 7066 | C98: Milestone School | D98: MLD & SLCN | E98: 7066MLD&SLCN | F98: 1515.826979 | G98: 1515.826979 | H98: =F98-G98 -> 0
B99: 7066 | C99: Milestone School | D99: BESD | E99: 7066BESD | F99: 3473.817261 | G99: 3473.817261 | H99: 0
B100: 7066 | C100: Milestone School | D100: SLD | E100: 7066SLD | F100: 5458.826089 | G100: 5458.826089 | H100: 0
B101: 7066 | C101: Milestone School | D101: PD & PMLD | E101: 7066PD&PMLD | F101: 12029.73089 | G101: 12029.73089 | H101: 0
B102: 7066 | C102: Milestone School | D102: ASD | E102: 7066ASD | F102: 8179.600462 | G102: 8179.600462 | H102: 0
B103: 7067 | C103: Portal House School | D103: MLD & SLCN | E103: 7067MLD&SLCN | F103: 6589.670146 | G103: 6589.670146 | H103: 0
B104: 7067 | C104: Portal House School | D104: BESD | E104: 7067BESD | F104: 11361.33469 | G104: 11361.33469 | H104: 0
B105: 7067 | C105: Portal House School | D105: SLD | E105: 7067SLD | F105: 10399.49279 | G105: 10399.49279 | H105: 0
B106: 7067 | C106: Portal House School | D106: PD & PMLD | E106: 7067PD&PMLD | F106: 16748.53852 | G106: 16748.53852 | H106: 0
B107: 7067 | C107: Portal House School | D107: ASD | E107: 7067ASD | F107: 12324.16461 | G107: 12324.16461 | H107: 0
B108: 7069 | C108: The Wyvern School | D108: MLD & SLCN | E108: 7069MLD&SLCN | F108: 1422.558325 | G108: 1422.558325 | H108: 0
B109: 7069 | C109: The Wyvern School | D109: BESD | E109: 7069BESD | F109: 3305.733112 | G109: 3305.733112 | H109: 0
B110: 7069 | C110: The Wyvern School | D110: SLD | E110: 7069SLD | F110: 5242.275964 | G110: 5242.275964 | H110: 0
B111: 7069 | C111: The Wyvern School | D111: PD & PMLD | E111: 7069PD&PMLD | F111: 11688.00767 | G111: 11688.00767 | H111: 0
B112: 7069 | C112: The Wyvern School | D112: ASD | E112: 7069ASD | F112: 7906.130571 | G112: 7906.130571 | H112: 0
B113: 7070 | C113: Oakley School | D113: MLD & SLCN | E113: 7070MLD&SLCN | F113: 1957.738238 | G113: 1957.738238 | H113: 0
B114: 7070 | C114: Oakley School | D114: BESD | E114: 7070BESD | F114: 3869.590813 | G114: 3869.590813 | H114: 0
B115: 7070 | C115: Oakley School | D115: SLD | E115: 7070SLD | F115: 5825.578489 | G115: 5825.578489 | H115: 0
B116: 7070 | C116: Oakley School | D116: PD & PMLD | E116: 7070PD&PMLD | F116: 12271.31019 | G116: 12271.31019 | H116: 0
B117: 7070 | C117: Oakley School | D117: ASD | E117: 7070ASD | F117: 8489.433095 | G117: 8489.433095 | H117: 0
B118: 7072 | C118: Meadowfield School | D118: MLD & SLCN | E118: 7072MLD&SLCN | F118: 1343.153043 | G118: 1343.153043 | H118: 0
B119: 7072 | C119: Meadowfield School | D119: BESD | E119: 7072BESD | F119: 3226.32783 | G119: 3226.32783 | H119: 0
B120: 7072 | C120: Meadowfield School | D120: SLD | E120: 7072SLD | F120: 5152.97569 | G120: 5152.97569 | H120: 0
B121: 7072 | C121: Meadowfield School | D121: PD & PMLD | E121: 7072PD&PMLD | F121: 11519.8742 | G121: 11519.8742 | H121: 0
B122: 7072 | C122: Meadowfield School | D122: ASD | E122: 7072ASD | F122: 7776.872477 | G122: 7776.872477 | H122: 0
B123: 7021 | C123: Valence School | D123: MLD & SLCN | E123: 7021MLD&SLCN | F123: 6075.630292 | G123: 6075.630292 | H123: 0
B124: 7021 | C124: Valence School | D124: BESD | E124: 7021BESD | F124: 7667.109053 | G124: 7667.109053 | H124: 0
B125: 7021 | C125: Valence School | D125: SLD | E125: 7021SLD | F125: 9652.117881 | G125: 9652.117881 | H125: 0
B126: 7021 | C126: Valence School | D126: PD & PMLD | E126: 7021PD&PMLD | F126: 16223.02268 | G126: 16223.02268 | H126: 0
B127: 7021 | C127: Valence School | D127: ASD | E127: 7021ASD | F127: 11649.81372 | G127: 11649.81372 | H127: 0
B128: 7021 | C128: Valence School 5 Nights | D128: Weekday MLD & SLCN | E128: 7021WeekdayMLD&SLCN | F128: 51929.39212 | G128: 51929.39212 | H128: 0
B129: 7021 | C129: Valence School 5 Nights | D129: Weekday BESD | E129: 7021WeekdayBESD | F129: 53887.3824 | G129: 53887.3824 | H129: 0
B130: 7021 | C130: Valence School 5 Nights | D130: Weekday SLD | E130: 7021WeekdaySLD | F130: 55872.39123 | G130: 55872.39123 | H130: 0
B131: 7021 | C131: Valence School 5 Nights | D131: Weekday PD & PMLD | E131: 7021WeekdayPD&PMLD | F131: 62443.29603 | G131: 62443.29603 | H131: 0
B132: 7021 | C132: Valence School 5 Nights | D132: Weekday ASD | E132: 7021WeekdayASD | F132: 57870.08707 | G132: 57870.08707 | H132: 0
B133: 7021 | C133: Valence School 7 Nights | D133: Weekend MLD & SLCN | E133: 7021WeekendMLD&SLCN | F133: 76978.51537 | G133: 76978.51537 | H133: 0
B134: 7021 | C134: Valence School 7 Nights | D134: Weekend BESD | E134: 7021WeekendBESD | F134: 78936.50565 | G134: 78936.50565 | H134: 0
B135: 7021 | C135: Valence School 7 Nights | D135: Weekend SLD | E135: 7021WeekendSLD | F135: 80921.51448 | G135: 80921.51448 | H135: 0
B136: 7021 | C136: Valence School 7 Nights | D136: Weekend PD & PMLD | E136: 7021WeekendPD&PMLD | F136: 87492.41928 | G136: 87492.41928 | H136: 0
B137: 7021 | C137: Valence School 7 Nights | D137: Weekend ASD | E137: 7021WeekendASD | F137: 82919.21032 | G137: 82919.21032 | H137: 0
B138: 7002 | C138: Broomhill Bank School (North) | D138: MLD & SLCN | E138: 7002MLD&SLCN | F138: 4529.831195 | G138: 4529.831195 | H138: 0
B139: 7002 | C139: Broomhill Bank School (North) | D139: BESD | E139: 7002BESD | F139: 5687.057906 | G139: 5687.057906 | H139: 0
B140: 7002 | C140: Broomhill Bank School (North) | D140: SLD | E140: 7002SLD | F140: 8083.41318 | G140: 8083.41318 | H140: 0
B141: 7002 | C141: Broomhill Bank School (North) | D141: PD & PMLD | E141: 7002PD&PMLD | F141: 14009.60845 | G141: 14009.60845 | H141: 0
B142: 7002 | C142: Broomhill Bank School (North) | D142: ASD | E142: 7002ASD | F142: 10545.70571 | G142: 10545.70571 | H142: 0
B143: 7002 | C143: Broomhill Bank School (North) 5 Nights | D143: Weekday MLD & SLCN | E143: 7002WeekdayMLD&SLCN | F143: 43314.03598 | G143: 43314.03598 | H143: 0
B144: 7002 | C144: Broomhill Bank School (North) 5 Nights | D144: Weekday BESD | E144: 7002WeekdayBESD | F144: 45213.7271 | G144: 45213.7271 | H144: 0
B145: 7002 | C145: Broomhill Bank School (North) 5 Nights | D145: Weekday SLD | E145: 7002WeekdaySLD | F145: 47139.63229 | G145: 47139.63229 | H145: 0
B146: 7002 | C146: Broomhill Bank School (North) 5 Nights | D146: Weekday PD & PMLD | E146: 7002WeekdayPD&PMLD | F146: 53514.8884 | G146: 53514.8884 | H146: 0
B147: 7002 | C147: Broomhill Bank School (North) 5 Nights | D147: Weekday ASD | E147: 7002WeekdayASD | F147: 49779.3956 | G147: 49779.3956 | H147: 0
B148: 7058 | C148: Stone Bay School | D148: MLD & SLCN | E148: 7058MLD&SLCN | F148: 6536.410515 | G148: 6536.410515 | H148: 0
B149: 7058 | C149: Stone Bay School | D149: BESD | E149: 7058BESD | F149: 8448.26309 | G149: 8448.26309 | H149: 0
B150: 7058 | C150: Stone Bay School | D150: SLD | E150: 7058SLD | F150: 10404.25077 | G150: 10404.25077 | H150: 0
B151: 7058 | C151: Stone Bay School | D151: PD & PMLD | E151: 7058PD&PMLD | F151: 16849.98247 | G151: 16849.98247 | H151: 0
B152: 7058 | C152: Stone Bay School | D152: ASD | E152: 7058ASD | F152: 19456.963 | G152: 19456.963 | H152: 0
B153: 7058 | C153: Stone Bay School 5 Nights | D153: Weekday MLD & SLCN | E153: 7058WeekdayMLD&SLCN | F153: 50279.99895 | G153: 50279.99895 | H153: 0
B154: 7058 | C154: Stone Bay School 5 Nights | D154: Weekday BESD | E154: 7058WeekdayBESD | F154: 52191.85153 | G154: 52191.85153 | H154: 0
B155: 7058 | C155: Stone Bay School 5 Nights | D155: Weekday SLD | E155: 7058WeekdaySLD | F155: 54147.8392 | G155: 54147.8392 | H155: 0
B156: 7058 | C156: Stone Bay School 5 Nights | D156: Weekday PD & PMLD | E156: 7058WeekdayPD&PMLD | F156: 60593.57091 | G156: 60593.57091 | H156: 0
B157: 7058 | C157: Stone Bay School 5 Nights | D157: Weekday ASD | E157: 7058WeekdayASD | F157: 63200.55144 | G157: 63200.55144 | H157: 0
B158: 7058 | C158: Stone Bay School 7 Nights | D158: Weekend MLD & SLCN | E158: 7058WeekendMLD&SLCN | F158: 0 | G158: 0 | H158: 0
B159: 7058 | C159: Stone Bay School 7 Nights | D159: Weekend BESD | E159: 7058WeekendBESD | F159: 0 | G159: 0 | H159: 0
B160: 7058 | C160: Stone Bay School 7 Nights | D160: Weekend SLD | E160: 7058WeekendSLD | F160: 0 | G160: 0 | H160: 0
B161: 7058 | C161: Stone Bay School 7 Nights | D161: Weekend PD & PMLD | E161: 7058WeekendPD&PMLD | F161: 0 | G161: 0 | H161: 0
B162: 7058 | C162: Stone Bay School 7 Nights | D162: Weekend ASD | E162: 7058WeekendASD | F162: 0 | G162: 0 | H162: =F162-G162 -> 0
B163: 7073 | C163: Laleham Gap School | D163: MLD & SLCN | E163: 7073MLD&SLCN | F163: 1749.794503 | G163: 1749.794503 | H163: 0
B164: 7073 | C164: Laleham Gap School | D164: BESD | E164: 7073BESD | F164: 3651.896125 | G164: 3651.896125 | H164: 0
B165: 7073 | C165: Laleham Gap School | D165: SLD | E165: 7073SLD | F165: 5607.8838 | G165: 5607.8838 | H165: 0
B166: 7073 | C166: Laleham Gap School | D166: PD & PMLD | E166: 7073PD&PMLD | F166: 12053.6155 | G166: 12053.6155 | H166: 0
B167: 7073 | C167: Laleham Gap School | D167: ASD | E167: 7073ASD | F167: 8271.738407 | G167: 8271.738407 | H167: 0
B168: 7073 | C168: Laleham Gap School 5 Nights | D168: Weekday MLD & SLCN | E168: 7073WeekdayMLD&SLCN | F168: 65105.30329 | G168: 65105.30329 | H168: 0
B169: 7073 | C169: Laleham Gap School 5 Nights | D169: Weekday BESD | E169: 7073WeekdayBESD | F169: 67017.15587 | G169: 67017.15587 | H169: 0
B170: 7073 | C170: Laleham Gap School 5 Nights | D170: Weekday SLD | E170: 7073WeekdaySLD | F170: 68973.14354 | G170: 68973.14354 | H170: 0
B171: 7073 | C171: Laleham Gap School 5 Nights | D171: Weekday PD & PMLD | E171: 7073WeekdayPD&PMLD | F171: 75418.87525 | G171: 75418.87525 | H171: 0
B172: 7073 | C172: Laleham Gap School 5 Nights | D172: Weekday ASD | E172: 7073WeekdayASD | F172: 71636.99815 | G172: 71636.99815 | H172: 0

Sheet Excess Element 1 & 2 (hidden)
B2: Excess Element 1 & 2 Funding
B4: Attending Pupils | Q4: Places Commissioned | W4: Excess Pupils | AL4: Excess Funding | BB4: Protected Cash Advance
D5: March | E5: April | F5: May | G5: June | H5: July | I5: August | J5: September | K5: October | L5: November | M5: December | N5: January | O5: February
D6: April | E6: May | F6: June | G6: July | H6: August | I6: September | J6: October | K6: November | L6: December | M6: January | N6: February | O6: March | S6: Summer | T6: August | U6: Winter | Y6: April | Z6: May | AA6: June | AB6: July | AC6: August | AD6: September | AE6: October | AF6: November | AG6: December | AH6: January | AI6: February | AJ6: March | AN6: April | AO6: May | AP6: June | AQ6: July | AR6: August | AS6: September | AT6: October | AU6: November | AV6: December | AW6: January | AX6: February | AY6: March | AZ6: Total | BD6: C/FWD | BE6: April | BF6: May | BG6: June | BH6: July | BI6: August | BJ6: September | BK6: October | BL6: November | BM6: December | BN6: January | BO6: February | BP6: March | BQ6: Total | BT6: Summer pre | BU6: Summer post | BV6: winter pre | BW6: winter post
B7: 7002 | C7: Broomhill Bank School | D7: =COUNTIF(Pupils!BT:BT,$B7) -> 0 | E7: =COUNTIF(Pupils!BU:BU,$B7) -> 0 | F7: =COUNTIF(Pupils!BV:BV,$B7) -> 0 | G7: =COUNTIF(Pupils!BW:BW,$B7) -> 0 | H7: =COUNTIF(Pupils!BX:BX,$B7) -> 0 | I7: =COUNTIF(Pupils!BY:BY,$B7) -> 0 | J7: =COUNTIF(Pupils!BZ:BZ,$B7) -> 0 | K7: =COUNTIF(Pupils!CA:CA,$B7) -> 0 | L7: =COUNTIF(Pupils!CB:CB,$B7) -> 0 | M7: =COUNTIF(Pupils!CC:CC,$B7) -> 0 | N7: =COUNTIF(Pupils!CD:CD,$B7) -> 0 | O7: =COUNTIF(Pupils!CE:CE,$B7) -> 0 | Q7: 7002 | R7: Broomhill Bank School | S7: =BT7+BU7 -> 217 | T7: =BT7+BW7 -> 217 | U7: =BV7+BW7 -> 235 | W7: 7002 | X7: Broomhill Bank School | Y7: =IF(D7-$S7<0,0,D7-$S7) -> 0 | Z7: =IF(E7-$S7<0,0,E7-$S7) -> 0 | AA7: 0 | AB7: 0 | AC7: =IF(H7-$S7<0,0,H7-$S7) -> 0 | AD7: =IF(I7-T7<0,0,I7-T7) -> 0 | AE7: =IF(J7-$U7<0,0,J7-$U7) -> 0 | AF7: =IF(K7-$U7<0,0,K7-$U7) -> 0 | AG7: 0 | AH7: 0 | AI7: 0 | AJ7: 0 | AL7: 7002 | AM7: Broomhill Bank School | AN7: =Y7*833.33 -> 0 | AO7: =Z7*833.33 -> 0 | AP7: 0 | AQ7: 0 | AR7: 0 | AS7: 0 | AT7: 0 | AU7: 0 | AV7: 0 | AW7: 0 | AX7: 0 | AY7: 0 | AZ7: =SUM(AN7:AY7) -> 0 | BB7: 7002 | BC7: Broomhill Bank School | BD7: =IF(dfenumber='Excess Element 1 & 2'!BB7,'Excess E1&E2'!$C$4,0) -> 0 | BE7: =MAX(BD7,AN7) -> 0 | BF7: =MAX(AO7,BD7,BE7) -> 0 | BG7: =MAX(AP7,BD7,BE7,BF7) -> 0 | BH7: =MAX(AQ7,BD7,BE7,BF7,BG7) -> 0 | BI7: =MAX(AR7,BD7,BE7,BF7,BG7,BH7) -> 0 | BJ7: =MAX(AS7,BD7,BE7,BF7,BG7,BH7,BI7) -> 0 | BK7: =AT7 -> 0 | BL7: =MAX(AU7,BK7) -> 0 | BM7: =MAX(AV7,BK7,BL7) -> 0 | BN7: =MAX(AW7,BK7,BL7,BM7) -> 0 | BO7: =MAX(AX7,BK7,BL7,BM7,BN7) -> 0 | BP7: =MAX(AY7,BK7,BL7,BM7,BN7,BO7) -> 0 | BQ7: =SUM(BE7:BP7) -> 0 | BT7: 155 | BU7: 62 | BV7: 173 | BW7: 62
B8: 7021 | C8: Valence School | D8: =COUNTIF(Pupils!BT:BT,$B8) -> 0 | E8: =COUNTIF(Pupils!BU:BU,$B8) -> 0 | F8: =COUNTIF(Pupils!BV:BV,$B8) -> 0 | G8: =COUNTIF(Pupils!BW:BW,$B8) -> 0 | H8: =COUNTIF(Pupils!BX:BX,$B8) -> 0 | I8: =COUNTIF(Pupils!BY:BY,$B8) -> 0 | J8: =COUNTIF(Pupils!BZ:BZ,$B8) -> 0 | K8: =COUNTIF(Pupils!CA:CA,$B8) -> 0 | L8: =COUNTIF(Pupils!CB:CB,$B8) -> 0 | M8: =COUNTIF(Pupils!CC:CC,$B8) -> 0 | N8: =COUNTIF(Pupils!CD:CD,$B8) -> 0 | O8: =COUNTIF(Pupils!CE:CE,$B8) -> 0 | Q8: 7021 | R8: Valence School | S8: =BT8+BU8 -> 100 | T8: =BT8+BW8 -> 103 | U8: =BV8+BW8 -> 105 | W8: 7021 | X8: Valence School | Y8: =IF(D8-$S8<0,0,D8-$S8) -> 0 | Z8: =IF(E8-$S8<0,0,E8-$S8) -> 0 | AA8: =IF(F8-$S8<0,0,F8-$S8) -> 0 | AB8: =IF(G8-$S8<0,0,G8-$S8) -> 0 | AC8: =IF(H8-$S8<0,0,H8-$S8) -> 0 | AD8: =IF(I8-T8<0,0,I8-T8) -> 0 | AE8: =IF(J8-$U8<0,0,J8-$U8) -> 0 | AF8: =IF(K8-$U8<0,0,K8-$U8) -> 0 | AG8: =IF(L8-$U8<0,0,L8-$U8) -> 0 | AH8: =IF(M8-$U8<0,0,M8-$U8) -> 0 | AI8: =IF(N8-$U8<0,0,N8-$U8) -> 0 | AJ8: =IF(O8-$U8<0,0,O8-$U8) -> 0 | AL8: 7021 | AM8: Valence School | AN8: =Y8*833.33 -> 0 | AO8: =Z8*833.33 -> 0 | AP8: =AA8*833.33 -> 0 | AQ8: =AB8*833.33 -> 0 | AR8: =AC8*833.33 -> 0 | AS8: =AD8*833.33 -> 0 | AT8: =AE8*833.33 -> 0 | AU8: =AF8*833.33 -> 0 | AV8: =AG8*833.33 -> 0 | AW8: =AH8*833.33 -> 0 | AX8: =AI8*833.33 -> 0 | AY8: =AJ8*833.33 -> 0 | AZ8: =SUM(AN8:AY8) -> 0 | BB8: 7021 | BC8: Valence School | BD8: =IF(dfenumber='Excess Element 1 & 2'!BB8,'Excess E1&E2'!$C$4,0) -> 0 | BE8: =MAX(BD8,AN8) -> 0 | BF8: =MAX(AO8,BD8,BE8) -> 0 | BG8: =MAX(AP8,BD8,BE8,BF8) -> 0 | BH8: =MAX(AQ8,BD8,BE8,BF8,BG8) -> 0 | BI8: =MAX(AR8,BD8,BE8,BF8,BG8,BH8) -> 0 | BJ8: =MAX(AS8,BD8,BE8,BF8,BG8,BH8,BI8) -> 0 | BK8: =AT8 -> 0 | BL8: =MAX(AU8,BK8) -> 0 | BM8: =MAX(AV8,BK8,BL8) -> 0 | BN8: =MAX(AW8,BK8,BL8,BM8) -> 0 | BO8: =MAX(AX8,BK8,BL8,BM8,BN8) -> 0 | BP8: =MAX(AY8,BK8,BL8,BM8,BN8,BO8) -> 0 | BQ8: =SUM(BE8:BP8) -> 0 | BT8: 70 | BU8: 30 | BV8: 72 | BW8: 33
B9: 7032 | C9: Bower Grove School | D9: =COUNTIF(Pupils!BT:BT,$B9) -> 0 | E9: =COUNTIF(Pupils!BU:BU,$B9) -> 0 | F9: =COUNTIF(Pupils!BV:BV,$B9) -> 0 | G9: =COUNTIF(Pupils!BW:BW,$B9) -> 0 | H9: =COUNTIF(Pupils!BX:BX,$B9) -> 0 | I9: =COUNTIF(Pupils!BY:BY,$B9) -> 0 | J9: =COUNTIF(Pupils!BZ:BZ,$B9) -> 0 | K9: =COUNTIF(Pupils!CA:CA,$B9) -> 0 | L9: =COUNTIF(Pupils!CB:CB,$B9) -> 0 | M9: =COUNTIF(Pupils!CC:CC,$B9) -> 0 | N9: =COUNTIF(Pupils!CD:CD,$B9) -> 0 | O9: =COUNTIF(Pupils!CE:CE,$B9) -> 0 | Q9: 7032 | R9: Bower Grove School | S9: 212 | T9: 212 | U9: 214 | W9: 7032 | X9: Bower Grove School | Y9: 0 | Z9: 0 | AA9: 0 | AB9: 0 | AC9: 0 | AD9: 0 | AE9: 0 | AF9: 0 | AG9: 0 | AH9: 0 | AI9: 0 | AJ9: 0 | AL9: 7032 | AM9: Bower Grove School | AN9: 0 | AO9: 0 | AP9: 0 | AQ9: 0 | AR9: 0 | AS9: 0 | AT9: 0 | AU9: 0 | AV9: 0 | AW9: 0 | AX9: 0 | AY9: =AJ9*833.33 -> 0 | AZ9: 0 | BB9: 7032 | BC9: Bower Grove School | BD9: =IF(dfenumber='Excess Element 1 & 2'!BB9,'Excess E1&E2'!$C$4,0) -> 0 | BE9: 0 | BF9: 0 | BG9: 0 | BH9: 0 | BI9: 0 | BJ9: 0 | BK9: 0 | BL9: 0 | BM9: 0 | BN9: 0 | BO9: 0 | BP9: 0 | BQ9: 0 | BT9: 212 | BU9: 0 | BV9: 214 | BW9: 0
B10: 7033 | C10: St Anthony's School | D10: =COUNTIF(Pupils!BT:BT,$B10) -> 0 | E10: =COUNTIF(Pupils!BU:BU,$B10) -> 0 | F10: =COUNTIF(Pupils!BV:BV,$B10) -> 0 | G10: =COUNTIF(Pupils!BW:BW,$B10) -> 0 | H10: =COUNTIF(Pupils!BX:BX,$B10) -> 0 | I10: =COUNTIF(Pupils!BY:BY,$B10) -> 0 | J10: =COUNTIF(Pupils!BZ:BZ,$B10) -> 0 | K10: =COUNTIF(Pupils!CA:CA,$B10) -> 0 | L10: =COUNTIF(Pupils!CB:CB,$B10) -> 0 | M10: =COUNTIF(Pupils!CC:CC,$B10) -> 0 | N10: =COUNTIF(Pupils!CD:CD,$B10) -> 0 | O10: =COUNTIF(Pupils!CE:CE,$B10) -> 0 | Q10: 7033 | R10: St Anthony's School | S10: 98 | T10: 98 | U10: 98 | W10: 7033 | X10: St Anthony's School | Y10: 0 | Z10: 0 | AA10: 0 | AB10: 0 | AC10: 0 | AD10: 0 | AE10: 0 | AF10: 0 | AG10: 0 | AH10: 0 | AI10: 0 | AJ10: 0 | AL10: 7033 | AM10: St Anthony's School | AN10: 0 | AO10: 0 | AP10: 0 | AQ10: 0 | AR10: 0 | AS10: 0 | AT10: 0 | AU10: 0 | AV10: 0 | AW10: 0 | AX10: 0 | AY10: 0 | AZ10: 0 | BB10: 7033 | BC10: St Anthony's School | BD10: =IF(dfenumber='Excess Element 1 & 2'!BB10,'Excess E1&E2'!$C$4,0) -> 0 | BE10: 0 | BF10: 0 | BG10: 0 | BH10: 0 | BI10: 0 | BJ10: 0 | BK10: 0 | BL10: 0 | BM10: 0 | BN10: 0 | BO10: 0 | BP10: 0 | BQ10: 0 | BT10: 98 | BU10: 0 | BV10: 98 | BW10: 0
B11: 7039 | C11: The Ifield School | D11: =COUNTIF(Pupils!BT:BT,$B11) -> 0 | E11: =COUNTIF(Pupils!BU:BU,$B11) -> 0 | F11: =COUNTIF(Pupils!BV:BV,$B11) -> 0 | G11: =COUNTIF(Pupils!BW:BW,$B11) -> 0 | H11: =COUNTIF(Pupils!BX:BX,$B11) -> 0 | I11: =COUNTIF(Pupils!BY:BY,$B11) -> 0 | J11: =COUNTIF(Pupils!BZ:BZ,$B11) -> 0 | K11: =COUNTIF(Pupils!CA:CA,$B11) -> 0 | L11: =COUNTIF(Pupils!CB:CB,$B11) -> 0 | M11: =COUNTIF(Pupils!CC:CC,$B11) -> 0 | N11: =COUNTIF(Pupils!CD:CD,$B11) -> 0 | O11: =COUNTIF(Pupils!CE:CE,$B11) -> 0 | Q11: 7039 | R11: The Ifield School | S11: 230 | T11: 227 | U11: 250 | W11: 7039 | X11: The Ifield School | Y11: 0 | Z11: 0 | AA11: 0 | AB11: 0 | AC11: 0 | AD11: 0 | AE11: 0 | AF11: 0 | AG11: 0 | AH11: 0 | AI11: 0 | AJ11: 0 | AL11: 7039 | AM11: The Ifield School | AN11: 0 | AO11: 0 | AP11: 0 | AQ11: 0 | AR11: 0 | AS11: 0 | AT11: 0 | AU11: 0 | AV11: 0 | AW11: 0 | AX11: 0 | AY11: 0 | AZ11: 0 | BB11: 7039 | BC11: The Ifield School | BD11: =IF(dfenumber='Excess Element 1 & 2'!BB11,'Excess E1&E2'!$C$4,0) -> 0 | BE11: 0 | BF11: 0 | BG11: 0 | BH11: 0 | BI11: 0 | BJ11: 0 | BK11: 0 | BL11: 0 | BM11: 0 | BN11: 0 | BO11: 0 | BP11: 0 | BQ11: 0 | BT11: 187 | BU11: 43 | BV11: 210 | BW11: 40
B12: 7040 | C12: Foreland Fields School | D12: =COUNTIF(Pupils!BT:BT,$B12) -> 0 | E12: =COUNTIF(Pupils!BU:BU,$B12) -> 0 | F12: =COUNTIF(Pupils!BV:BV,$B12) -> 0 | G12: =COUNTIF(Pupils!BW:BW,$B12) -> 0 | H12: =COUNTIF(Pupils!BX:BX,$B12) -> 0 | I12: =COUNTIF(Pupils!BY:BY,$B12) -> 0 | J12: =COUNTIF(Pupils!BZ:BZ,$B12) -> 0 | K12: =COUNTIF(Pupils!CA:CA,$B12) -> 0 | L12: =COUNTIF(Pupils!CB:CB,$B12) -> 0 | M12: =COUNTIF(Pupils!CC:CC,$B12) -> 0 | N12: =COUNTIF(Pupils!CD:CD,$B12) -> 0 | O12: =COUNTIF(Pupils!CE:CE,$B12) -> 0 | Q12: 7040 | R12: Foreland Fields School | S12: 200 | T12: 199 | U12: 220 | W12: 7040 | X12: Foreland Fields School | Y12: 0 | Z12: 0 | AA12: 0 | AB12: 0 | AC12: 0 | AD12: 0 | AE12: 0 | AF12: 0 | AG12: 0 | AH12: 0 | AI12: 0 | AJ12: 0 | AL12: 7040 | AM12: Foreland Fields School | AN12: 0 | AO12: 0 | AP12: 0 | AQ12: 0 | AR12: 0 | AS12: 0 | AT12: 0 | AU12: 0 | AV12: 0 | AW12: 0 | AX12: 0 | AY12: 0 | AZ12: 0 | BB12: 7040 | BC12: Foreland Fields School | BD12: =IF(dfenumber='Excess Element 1 & 2'!BB12,'Excess E1&E2'!$C$4,0) -> 0 | BE12: 0 | BF12: 0 | BG12: 0 | BH12: 0 | BI12: 0 | BJ12: 0 | BK12: 0 | BL12: 0 | BM12: 0 | BN12: 0 | BO12: 0 | BP12: 0 | BQ12: 0 | BT12: 167 | BU12: 33 | BV12: 188 | BW12: 32
B13: 7041 | C13: Goldwyn Community Special School | D13: =COUNTIF(Pupils!BT:BT,$B13) -> 0 | E13: =COUNTIF(Pupils!BU:BU,$B13) -> 0 | F13: =COUNTIF(Pupils!BV:BV,$B13) -> 0 | G13: =COUNTIF(Pupils!BW:BW,$B13) -> 0 | H13: =COUNTIF(Pupils!BX:BX,$B13) -> 0 | I13: =COUNTIF(Pupils!BY:BY,$B13) -> 0 | J13: =COUNTIF(Pupils!BZ:BZ,$B13) -> 0 | K13: =COUNTIF(Pupils!CA:CA,$B13) -> 0 | L13: =COUNTIF(Pupils!CB:CB,$B13) -> 0 | M13: =COUNTIF(Pupils!CC:CC,$B13) -> 0 | N13: =COUNTIF(Pupils!CD:CD,$B13) -> 0 | O13: =COUNTIF(Pupils!CE:CE,$B13) -> 0 | Q13: 7041 | R13: Goldwyn Community Special School | S13: 150 | T13: 150 | U13: 150 | W13: 7041 | X13: Goldwyn Community Special School | Y13: 0 | Z13: 0 | AA13: 0 | AB13: 0 | AC13: 0 | AD13: 0 | AE13: 0 | AF13: 0 | AG13: 0 | AH13: 0 | AI13: 0 | AJ13: 0 | AL13: 7041 | AM13: Goldwyn Community Special School | AN13: 0 | AO13: 0 | AP13: 0 | AQ13: 0 | AR13: 0 | AS13: 0 | AT13: 0 | AU13: 0 | AV13: 0 | AW13: 0 | AX13: 0 | AY13: 0 | AZ13: 0 | BB13: 7041 | BC13: Goldwyn Community Special School | BD13: =IF(dfenumber='Excess Element 1 & 2'!BB13,'Excess E1&E2'!$C$4,0) -> 0 | BE13: 0 | BF13: 0 | BG13: 0 | BH13: 0 | BI13: 0 | BJ13: 0 | BK13: 0 | BL13: 0 | BM13: 0 | BN13: 0 | BO13: 0 | BP13: 0 | BQ13: 0 | BT13: 150 | BU13: 0 | BV13: 150
B14: 7043 | C14: The Beacon Folkestone | D14: =COUNTIF(Pupils!BT:BT,$B14) -> 0 | E14: =COUNTIF(Pupils!BU:BU,$B14) -> 0 | F14: =COUNTIF(Pupils!BV:BV,$B14) -> 0 | G14: =COUNTIF(Pupils!BW:BW,$B14) -> 0 | H14: =COUNTIF(Pupils!BX:BX,$B14) -> 0 | I14: =COUNTIF(Pupils!BY:BY,$B14) -> 0 | J14: =COUNTIF(Pupils!BZ:BZ,$B14) -> 0 | K14: =COUNTIF(Pupils!CA:CA,$B14) -> 0 | L14: =COUNTIF(Pupils!CB:CB,$B14) -> 0 | M14: =COUNTIF(Pupils!CC:CC,$B14) -> 0 | N14: =COUNTIF(Pupils!CD:CD,$B14) -> 0 | O14: =COUNTIF(Pupils!CE:CE,$B14) -> 0 | Q14: 7043 | R14: The Beacon Folkestone | S14: 354 | T14: 355 | U14: 370 | W14: 7043 | X14: The Beacon Folkestone | Y14: 0 | Z14: 0 | AA14: 0 | AB14: 0 | AC14: 0 | AD14: 0 | AE14: 0 | AF14: 0 | AG14: 0 | AH14: 0 | AI14: 0 | AJ14: 0 | AL14: 7043 | AM14: The Beacon Folkestone | AN14: 0 | AO14: 0 | AP14: 0 | AQ14: 0 | AR14: 0 | AS14: 0 | AT14: 0 | AU14: 0 | AV14: 0 | AW14: 0 | AX14: 0 | AY14: 0 | AZ14: 0 | BB14: 7043 | BC14: The Beacon Folkestone | BD14: =IF(dfenumber='Excess Element 1 & 2'!BB14,'Excess E1&E2'!$C$4,0) -> 0 | BE14: 0 | BF14: 0 | BG14: 0 | BH14: 0 | BI14: 0 | BJ14: 0 | BK14: 0 | BL14: 0 | BM14: 0 | BN14: 0 | BO14: 0 | BP14: 0 | BQ14: 0 | BT14: 291 | BU14: 63 | BV14: 306 | BW14: 64
B15: 7044 | C15: Rowhill School | D15: =COUNTIF(Pupils!BT:BT,$B15) -> 0 | E15: =COUNTIF(Pupils!BU:BU,$B15) -> 0 | F15: =COUNTIF(Pupils!BV:BV,$B15) -> 0 | G15: =COUNTIF(Pupils!BW:BW,$B15) -> 0 | H15: =COUNTIF(Pupils!BX:BX,$B15) -> 0 | I15: =COUNTIF(Pupils!BY:BY,$B15) -> 0 | J15: =COUNTIF(Pupils!BZ:BZ,$B15) -> 0 | K15: =COUNTIF(Pupils!CA:CA,$B15) -> 0 | L15: =COUNTIF(Pupils!CB:CB,$B15) -> 0 | M15: =COUNTIF(Pupils!CC:CC,$B15) -> 0 | N15: =COUNTIF(Pupils!CD:CD,$B15) -> 0 | O15: =COUNTIF(Pupils!CE:CE,$B15) -> 0 | Q15: 7044 | R15: Rowhill School | S15: 121 | T15: 121 | U15: 116 | W15: 7044 | X15: Rowhill School | Y15: 0 | Z15: 0 | AA15: 0 | AB15: 0 | AC15: 0 | AD15: 0 | AE15: 0 | AF15: 0 | AG15: 0 | AH15: 0 | AI15: 0 | AJ15: 0 | AL15: 7044 | AM15: Rowhill School | AN15: 0 | AO15: 0 | AP15: 0 | AQ15: 0 | AR15: 0 | AS15: 0 | AT15: 0 | AU15: 0 | AV15: 0 | AW15: 0 | AX15: 0 | AY15: 0 | AZ15: 0 | BB15: 7044 | BC15: Rowhill School | BD15: =IF(dfenumber='Excess Element 1 & 2'!BB15,'Excess E1&E2'!$C$4,0) -> 0 | BE15: 0 | BF15: 0 | BG15: 0 | BH15: 0 | BI15: 0 | BJ15: 0 | BK15: 0 | BL15: 0 | BM15: 0 | BN15: 0 | BO15: 0 | BP15: 0 | BQ15: 0 | BT15: 121 | BU15: 0 | BV15: 116 | BW15: 0
B16: 7045 | C16: Elms School | D16: =COUNTIF(Pupils!BT:BT,$B16) -> 0 | E16: =COUNTIF(Pupils!BU:BU,$B16) -> 0 | F16: =COUNTIF(Pupils!BV:BV,$B16) -> 0 | G16: =COUNTIF(Pupils!BW:BW,$B16) -> 0 | H16: =COUNTIF(Pupils!BX:BX,$B16) -> 0 | I16: =COUNTIF(Pupils!BY:BY,$B16) -> 0 | J16: =COUNTIF(Pupils!BZ:BZ,$B16) -> 0 | K16: =COUNTIF(Pupils!CA:CA,$B16) -> 0 | L16: =COUNTIF(Pupils!CB:CB,$B16) -> 0 | M16: =COUNTIF(Pupils!CC:CC,$B16) -> 0 | N16: =COUNTIF(Pupils!CD:CD,$B16) -> 0 | O16: =COUNTIF(Pupils!CE:CE,$B16) -> 0 | Q16: 7045 | R16: Elms School | S16: 115 | T16: 115 | U16: 158 | W16: 7045 | X16: Elms School | Y16: 0 | Z16: 0 | AA16: 0 | AB16: 0 | AC16: 0 | AD16: 0 | AE16: 0 | AF16: 0 | AG16: 0 | AH16: 0 | AI16: 0 | AJ16: 0 | AL16: 7045 | AM16: Elms School | AN16: 0 | AO16: 0 | AP16: 0 | AQ16: 0 | AR16: 0 | AS16: 0 | AT16: 0 | AU16: 0 | AV16: 0 | AW16: 0 | AX16: 0 | AY16: 0 | AZ16: 0 | BB16: 7045 | BC16: Elms School | BD16: =IF(dfenumber='Excess Element 1 & 2'!BB16,'Excess E1&E2'!$C$4,0) -> 0 | BE16: 0 | BF16: 0 | BG16: 0 | BH16: 0 | BI16: 0 | BJ16: 0 | BK16: 0 | BL16: 0 | BM16: 0 | BN16: 0 | BO16: 0 | BP16: 0 | BQ16: 0 | BT16: 115 | BU16: 0 | BV16: 158 | BW16: 0
B17: 7051 | C17: Nexus School | D17: =COUNTIF(Pupils!BT:BT,$B17) -> 0 | E17: =COUNTIF(Pupils!BU:BU,$B17) -> 0 | F17: =COUNTIF(Pupils!BV:BV,$B17) -> 0 | G17: =COUNTIF(Pupils!BW:BW,$B17) -> 0 | H17: =COUNTIF(Pupils!BX:BX,$B17) -> 0 | I17: =COUNTIF(Pupils!BY:BY,$B17) -> 0 | J17: =COUNTIF(Pupils!BZ:BZ,$B17) -> 0 | K17: =COUNTIF(Pupils!CA:CA,$B17) -> 0 | L17: =COUNTIF(Pupils!CB:CB,$B17) -> 0 | M17: =COUNTIF(Pupils!CC:CC,$B17) -> 0 | N17: =COUNTIF(Pupils!CD:CD,$B17) -> 0 | O17: =COUNTIF(Pupils!CE:CE,$B17) -> 0 | Q17: 7051 | R17: Nexus School | S17: 172 | T17: 172 | U17: 200 | W17: 7051 | X17: Nexus School | Y17: 0 | Z17: 0 | AA17: 0 | AB17: 0 | AC17: 0 | AD17: 0 | AE17: 0 | AF17: 0 | AG17: 0 | AH17: 0 | AI17: 0 | AJ17: 0 | AL17: 7051 | AM17: Nexus School | AN17: 0 | AO17: 0 | AP17: 0 | AQ17: 0 | AR17: 0 | AS17: 0 | AT17: 0 | AU17: 0 | AV17: 0 | AW17: 0 | AX17: 0 | AY17: 0 | AZ17: 0 | BB17: 7051 | BC17: Nexus School | BD17: =IF(dfenumber='Excess Element 1 & 2'!BB17,'Excess E1&E2'!$C$4,0) -> 0 | BE17: 0 | BF17: 0 | BG17: 0 | BH17: 0 | BI17: 0 | BJ17: 0 | BK17: 0 | BL17: 0 | BM17: 0 | BN17: 0 | BO17: 0 | BP17: 0 | BQ17: 0 | BT17: 158 | BU17: 14 | BV17: 186 | BW17: 14
B18: 7052 | C18: Grange Park School | D18: =COUNTIF(Pupils!BT:BT,$B18) -> 0 | E18: =COUNTIF(Pupils!BU:BU,$B18) -> 0 | F18: =COUNTIF(Pupils!BV:BV,$B18) -> 0 | G18: =COUNTIF(Pupils!BW:BW,$B18) -> 0 | H18: =COUNTIF(Pupils!BX:BX,$B18) -> 0 | I18: =COUNTIF(Pupils!BY:BY,$B18) -> 0 | J18: =COUNTIF(Pupils!BZ:BZ,$B18) -> 0 | K18: =COUNTIF(Pupils!CA:CA,$B18) -> 0 | L18: =COUNTIF(Pupils!CB:CB,$B18) -> 0 | M18: =COUNTIF(Pupils!CC:CC,$B18) -> 0 | N18: =COUNTIF(Pupils!CD:CD,$B18) -> 0 | O18: =COUNTIF(Pupils!CE:CE,$B18) -> 0 | Q18: 7052 | R18: Grange Park School | S18: 110 | T18: 114 | U18: 157 | W18: 7052 | X18: Grange Park School | Y18: =IF(D18-$S18<0,0,D18-$S18) -> 0 | Z18: 0 | AA18: 0 | AB18: 0 | AC18: =IF(H18-$S18<0,0,H18-$S18) -> 0 | AD18: =IF(I18-T18<0,0,I18-T18) -> 0 | AE18: 0 | AF18: 0 | AG18: 0 | AH18: 0 | AI18: 0 | AJ18: 0 | AL18: 7052 | AM18: Grange Park School | AN18: 0 | AO18: 0 | AP18: 0 | AQ18: 0 | AR18: =AC18*833.33 -> 0 | AS18: 0 | AT18: 0 | AU18: 0 | AV18: 0 | AW18: 0 | AX18: 0 | AY18: 0 | AZ18: 0 | BB18: 7052 | BC18: Grange Park School | BD18: =IF(dfenumber='Excess Element 1 & 2'!BB18,'Excess E1&E2'!$C$4,0) -> 0 | BE18: 0 | BF18: 0 | BG18: 0 | BH18: 0 | BI18: 0 | BJ18: 0 | BK18: 0 | BL18: 0 | BM18: 0 | BN18: 0 | BO18: 0 | BP18: 0 | BQ18: 0 | BT18: 64 | BU18: 46 | BV18: 107 | BW18: 50
B19: 7056 | C19: Five Acre Wood School | D19: =COUNTIF(Pupils!BT:BT,$B19) -> 0 | E19: =COUNTIF(Pupils!BU:BU,$B19) -> 0 | F19: =COUNTIF(Pupils!BV:BV,$B19) -> 0 | G19: =COUNTIF(Pupils!BW:BW,$B19) -> 0 | H19: =COUNTIF(Pupils!BX:BX,$B19) -> 0 | I19: =COUNTIF(Pupils!BY:BY,$B19) -> 0 | J19: =COUNTIF(Pupils!BZ:BZ,$B19) -> 0 | K19: =COUNTIF(Pupils!CA:CA,$B19) -> 0 | L19: =COUNTIF(Pupils!CB:CB,$B19) -> 0 | M19: =COUNTIF(Pupils!CC:CC,$B19) -> 0 | N19: =COUNTIF(Pupils!CD:CD,$B19) -> 0 | O19: =COUNTIF(Pupils!CE:CE,$B19) -> 0 | Q19: 7056 | R19: Five Acre Wood School | S19: 375 | T19: 382 | U19: 470 | W19: 7056 | X19: Five Acre Wood School | Y19: 0 | Z19: 0 | AA19: 0 | AB19: 0 | AC19: 0 | AD19: 0 | AE19: 0 | AF19: 0 | AG19: 0 | AH19: 0 | AI19: 0 | AJ19: 0 | AL19: 7056 | AM19: Five Acre Wood School | AN19: 0 | AO19: 0 | AP19: 0 | AQ19: 0 | AR19: 0 | AS19: 0 | AT19: 0 | AU19: 0 | AV19: 0 | AW19: 0 | AX19: 0 | AY19: 0 | AZ19: 0 | BB19: 7056 | BC19: Five Acre Wood School | BD19: =IF(dfenumber='Excess Element 1 & 2'!BB19,'Excess E1&E2'!$C$4,0) -> 0 | BE19: 0 | BF19: 0 | BG19: 0 | BH19: 0 | BI19: 0 | BJ19: 0 | BK19: 0 | BL19: 0 | BM19: 0 | BN19: 0 | BO19: 0 | BP19: 0 | BQ19: 0 | BT19: 324 | BU19: 51 | BV19: 412 | BW19: 58
B20: 7058 | C20: Stone Bay School | D20: =COUNTIF(Pupils!BT:BT,$B20) -> 0 | E20: =COUNTIF(Pupils!BU:BU,$B20) -> 0 | F20: =COUNTIF(Pupils!BV:BV,$B20) -> 0 | G20: =COUNTIF(Pupils!BW:BW,$B20) -> 0 | H20: =COUNTIF(Pupils!BX:BX,$B20) -> 0 | I20: =COUNTIF(Pupils!BY:BY,$B20) -> 0 | J20: =COUNTIF(Pupils!BZ:BZ,$B20) -> 0 | K20: =COUNTIF(Pupils!CA:CA,$B20) -> 0 | L20: =COUNTIF(Pupils!CB:CB,$B20) -> 0 | M20: =COUNTIF(Pupils!CC:CC,$B20) -> 0 | N20: =COUNTIF(Pupils!CD:CD,$B20) -> 0 | O20: =COUNTIF(Pupils!CE:CE,$B20) -> 0 | Q20: 7058 | R20: Stone Bay School | S20: 60 | T20: 60 | U20: 60 | W20: 7058 | X20: Stone Bay School | Y20: 0 | Z20: 0 | AA20: 0 | AB20: 0 | AC20: 0 | AD20: 0 | AE20: 0 | AF20: 0 | AG20: 0 | AH20: 0 | AI20: 0 | AJ20: 0 | AL20: 7058 | AM20: Stone Bay School | AN20: 0 | AO20: 0 | AP20: 0 | AQ20: 0 | AR20: 0 | AS20: 0 | AT20: 0 | AU20: 0 | AV20: 0 | AW20: 0 | AX20: 0 | AY20: 0 | AZ20: 0 | BB20: 7058 | BC20: Stone Bay School | BD20: =IF(dfenumber='Excess Element 1 & 2'!BB20,'Excess E1&E2'!$C$4,0) -> 0 | BE20: 0 | BF20: 0 | BG20: 0 | BH20: 0 | BI20: 0 | BJ20: 0 | BK20: 0 | BL20: 0 | BM20: 0 | BN20: 0 | BO20: 0 | BP20: 0 | BQ20: 0 | BT20: 45 | BU20: 15 | BV20: 45 | BW20: 15
B21: 7062 | C21: The Orchard School | D21: =COUNTIF(Pupils!BT:BT,$B21) -> 0 | E21: =COUNTIF(Pupils!BU:BU,$B21) -> 0 | F21: =COUNTIF(Pupils!BV:BV,$B21) -> 0 | G21: =COUNTIF(Pupils!BW:BW,$B21) -> 0 | H21: =COUNTIF(Pupils!BX:BX,$B21) -> 0 | I21: =COUNTIF(Pupils!BY:BY,$B21) -> 0 | J21: =COUNTIF(Pupils!BZ:BZ,$B21) -> 0 | K21: =COUNTIF(Pupils!CA:CA,$B21) -> 0 | L21: =COUNTIF(Pupils!CB:CB,$B21) -> 0 | M21: =COUNTIF(Pupils!CC:CC,$B21) -> 0 | N21: =COUNTIF(Pupils!CD:CD,$B21) -> 0 | O21: =COUNTIF(Pupils!CE:CE,$B21) -> 0 | Q21: 7062 | R21: The Orchard School | S21: 83 | T21: 83 | U21: 83 | W21: 7062 | X21: The Orchard School | Y21: 0 | Z21: 0 | AA21: 0 | AB21: 0 | AC21: 0 | AD21: 0 | AE21: 0 | AF21: 0 | AG21: 0 | AH21: 0 | AI21: 0 | AJ21: 0 | AL21: 7062 | AM21: The Orchard School | AN21: 0 | AO21: 0 | AP21: 0 | AQ21: 0 | AR21: 0 | AS21: 0 | AT21: 0 | AU21: 0 | AV21: 0 | AW21: 0 | AX21: 0 | AY21: 0 | AZ21: 0 | BB21: 7062 | BC21: The Orchard School | BD21: =IF(dfenumber='Excess Element 1 & 2'!BB21,'Excess E1&E2'!$C$4,0) -> 0 | BE21: 0 | BF21: 0 | BG21: 0 | BH21: 0 | BI21: 0 | BJ21: 0 | BK21: 0 | BL21: 0 | BM21: 0 | BN21: 0 | BO21: 0 | BP21: 0 | BQ21: 0 | BT21: 83 | BU21: 0 | BV21: 83 | BW21: 0
B22: 7063 | C22: St Nicholas' School | D22: =COUNTIF(Pupils!BT:BT,$B22) -> 0 | E22: =COUNTIF(Pupils!BU:BU,$B22) -> 0 | F22: =COUNTIF(Pupils!BV:BV,$B22) -> 0 | G22: =COUNTIF(Pupils!BW:BW,$B22) -> 0 | H22: =COUNTIF(Pupils!BX:BX,$B22) -> 0 | I22: =COUNTIF(Pupils!BY:BY,$B22) -> 0 | J22: =COUNTIF(Pupils!BZ:BZ,$B22) -> 0 | K22: =COUNTIF(Pupils!CA:CA,$B22) -> 0 | L22: =COUNTIF(Pupils!CB:CB,$B22) -> 0 | M22: =COUNTIF(Pupils!CC:CC,$B22) -> 0 | N22: =COUNTIF(Pupils!CD:CD,$B22) -> 0 | O22: =COUNTIF(Pupils!CE:CE,$B22) -> 0 | Q22: 7063 | R22: St Nicholas' School | S22: 250 | T22: 248 | U22: 272 | W22: 7063 | X22: St Nicholas' School | Y22: 0 | Z22: 0 | AA22: 0 | AB22: 0 | AC22: 0 | AD22: 0 | AE22: 0 | AF22: 0 | AG22: 0 | AH22: 0 | AI22: 0 | AJ22: 0 | AL22: 7063 | AM22: St Nicholas' School | AN22: 0 | AO22: 0 | AP22: 0 | AQ22: 0 | AR22: 0 | AS22: 0 | AT22: 0 | AU22: 0 | AV22: 0 | AW22: 0 | AX22: 0 | AY22: 0 | AZ22: 0 | BB22: 7063 | BC22: St Nicholas' School | BD22: =IF(dfenumber='Excess Element 1 & 2'!BB22,'Excess E1&E2'!$C$4,0) -> 0 | BE22: 0 | BF22: 0 | BG22: 0 | BH22: 0 | BI22: 0 | BJ22: 0 | BK22: 0 | BL22: 0 | BM22: 0 | BN22: 0 | BO22: 0 | BP22: 0 | BQ22: 0 | BT22: 205 | BU22: 45 | BV22: 229 | BW22: 43
B23: 7066 | C23: Milestone School | D23: =COUNTIF(Pupils!BT:BT,$B23) -> 0 | E23: =COUNTIF(Pupils!BU:BU,$B23) -> 0 | F23: =COUNTIF(Pupils!BV:BV,$B23) -> 0 | G23: =COUNTIF(Pupils!BW:BW,$B23) -> 0 | H23: =COUNTIF(Pupils!BX:BX,$B23) -> 0 | I23: =COUNTIF(Pupils!BY:BY,$B23) -> 0 | J23: =COUNTIF(Pupils!BZ:BZ,$B23) -> 0 | K23: =COUNTIF(Pupils!CA:CA,$B23) -> 0 | L23: =COUNTIF(Pupils!CB:CB,$B23) -> 0 | M23: =COUNTIF(Pupils!CC:CC,$B23) -> 0 | N23: =COUNTIF(Pupils!CD:CD,$B23) -> 0 | O23: =COUNTIF(Pupils!CE:CE,$B23) -> 0 | Q23: 7066 | R23: Milestone School | S23: 330 | T23: 330 | U23: 330 | W23: 7066 | X23: Milestone School | Y23: 0 | Z23: 0 | AA23: 0 | AB23: 0 | AC23: 0 | AD23: 0 | AE23: 0 | AF23: 0 | AG23: 0 | AH23: 0 | AI23: 0 | AJ23: 0 | AL23: 7066 | AM23: Milestone School | AN23: 0 | AO23: 0 | AP23: 0 | AQ23: 0 | AR23: 0 | AS23: 0 | AT23: 0 | AU23: 0 | AV23: 0 | AW23: 0 | AX23: 0 | AY23: 0 | AZ23: 0 | BB23: 7066 | BC23: Milestone School | BD23: =IF(dfenumber='Excess Element 1 & 2'!BB23,'Excess E1&E2'!$C$4,0) -> 0 | BE23: 0 | BF23: 0 | BG23: 0 | BH23: 0 | BI23: 0 | BJ23: 0 | BK23: 0 | BL23: 0 | BM23: 0 | BN23: 0 | BO23: 0 | BP23: 0 | BQ23: 0 | BT23: 275 | BU23: 55 | BV23: 275 | BW23: 55
B24: 7067 | C24: Portal House School | D24: =COUNTIF(Pupils!BT:BT,$B24) -> 0 | E24: =COUNTIF(Pupils!BU:BU,$B24) -> 0 | F24: =COUNTIF(Pupils!BV:BV,$B24) -> 0 | G24: =COUNTIF(Pupils!BW:BW,$B24) -> 0 | H24: =COUNTIF(Pupils!BX:BX,$B24) -> 0 | I24: =COUNTIF(Pupils!BY:BY,$B24) -> 0 | J24: =COUNTIF(Pupils!BZ:BZ,$B24) -> 0 | K24: =COUNTIF(Pupils!CA:CA,$B24) -> 0 | L24: =COUNTIF(Pupils!CB:CB,$B24) -> 0 | M24: =COUNTIF(Pupils!CC:CC,$B24) -> 0 | N24: =COUNTIF(Pupils!CD:CD,$B24) -> 0 | O24: =COUNTIF(Pupils!CE:CE,$B24) -> 0 | Q24: 7067 | R24: Portal House School | S24: 60 | T24: 60 | U24: 80 | W24: 7067 | X24: Portal House School | Y24: 0 | Z24: 0 | AA24: 0 | AB24: 0 | AC24: 0 | AD24: 0 | AE24: 0 | AF24: 0 | AG24: 0 | AH24: 0 | AI24: 0 | AJ24: 0 | AL24: 7067 | AM24: Portal House School | AN24: 0 | AO24: 0 | AP24: 0 | AQ24: 0 | AR24: 0 | AS24: 0 | AT24: 0 | AU24: 0 | AV24: 0 | AW24: 0 | AX24: 0 | AY24: 0 | AZ24: 0 | BB24: 7067 | BC24: Portal House School | BD24: =IF(dfenumber='Excess Element 1 & 2'!BB24,'Excess E1&E2'!$C$4,0) -> 0 | BE24: 0 | BF24: 0 | BG24: 0 | BH24: 0 | BI24: 0 | BJ24: 0 | BK24: 0 | BL24: 0 | BM24: 0 | BN24: 0 | BO24: 0 | BP24: 0 | BQ24: 0 | BT24: 60 | BU24: 0 | BV24: 80 | BW24: 0
B25: 7069 | C25: The Wyvern School | D25: =COUNTIF(Pupils!BT:BT,$B25) -> 0 | E25: =COUNTIF(Pupils!BU:BU,$B25) -> 0 | F25: =COUNTIF(Pupils!BV:BV,$B25) -> 0 | G25: =COUNTIF(Pupils!BW:BW,$B25) -> 0 | H25: =COUNTIF(Pupils!BX:BX,$B25) -> 0 | I25: =COUNTIF(Pupils!BY:BY,$B25) -> 0 | J25: =COUNTIF(Pupils!BZ:BZ,$B25) -> 0 | K25: =COUNTIF(Pupils!CA:CA,$B25) -> 0 | L25: =COUNTIF(Pupils!CB:CB,$B25) -> 0 | M25: =COUNTIF(Pupils!CC:CC,$B25) -> 0 | N25: =COUNTIF(Pupils!CD:CD,$B25) -> 0 | O25: =COUNTIF(Pupils!CE:CE,$B25) -> 0 | Q25: 7069 | R25: The Wyvern School | S25: 250 | T25: 250 | U25: 270 | W25: 7069 | X25: The Wyvern School | Y25: 0 | Z25: 0 | AA25: 0 | AB25: 0 | AC25: 0 | AD25: 0 | AE25: 0 | AF25: 0 | AG25: 0 | AH25: 0 | AI25: 0 | AJ25: 0 | AL25: 7069 | AM25: The Wyvern School | AN25: 0 | AO25: 0 | AP25: 0 | AQ25: 0 | AR25: 0 | AS25: 0 | AT25: 0 | AU25: 0 | AV25: 0 | AW25: 0 | AX25: 0 | AY25: 0 | AZ25: 0 | BB25: 7069 | BC25: The Wyvern School | BD25: =IF(dfenumber='Excess Element 1 & 2'!BB25,'Excess E1&E2'!$C$4,0) -> 0 | BE25: 0 | BF25: 0 | BG25: 0 | BH25: 0 | BI25: 0 | BJ25: 0 | BK25: 0 | BL25: 0 | BM25: 0 | BN25: 0 | BO25: 0 | BP25: 0 | BQ25: 0 | BT25: 215 | BU25: 35 | BV25: 235 | BW25: 35
B26: 7070 | C26: Oakley School | D26: =COUNTIF(Pupils!BT:BT,$B26) -> 0 | E26: =COUNTIF(Pupils!BU:BU,$B26) -> 0 | F26: =COUNTIF(Pupils!BV:BV,$B26) -> 0 | G26: =COUNTIF(Pupils!BW:BW,$B26) -> 0 | H26: =COUNTIF(Pupils!BX:BX,$B26) -> 0 | I26: =COUNTIF(Pupils!BY:BY,$B26) -> 0 | J26: =COUNTIF(Pupils!BZ:BZ,$B26) -> 0 | K26: =COUNTIF(Pupils!CA:CA,$B26) -> 0 | L26: =COUNTIF(Pupils!CB:CB,$B26) -> 0 | M26: =COUNTIF(Pupils!CC:CC,$B26) -> 0 | N26: =COUNTIF(Pupils!CD:CD,$B26) -> 0 | O26: =COUNTIF(Pupils!CE:CE,$B26) -> 0 | Q26: 7070 | R26: Oakley School | S26: 194 | T26: 200 | U26: 200 | W26: 7070 | X26: Oakley School | Y26: 0 | Z26: 0 | AA26: 0 | AB26: 0 | AC26: 0 | AD26: 0 | AE26: 0 | AF26: 0 | AG26: 0 | AH26: 0 | AI26: 0 | AJ26: 0 | AL26: 7070 | AM26: Oakley School | AN26: 0 | AO26: 0 | AP26: 0 | AQ26: 0 | AR26: 0 | AS26: 0 | AT26: 0 | AU26: 0 | AV26: 0 | AW26: 0 | AX26: 0 | AY26: 0 | AZ26: 0 | BB26: 7070 | BC26: Oakley School | BD26: =IF(dfenumber='Excess Element 1 & 2'!BB26,'Excess E1&E2'!$C$4,0) -> 0 | BE26: 0 | BF26: 0 | BG26: 0 | BH26: 0 | BI26: 0 | BJ26: 0 | BK26: 0 | BL26: 0 | BM26: 0 | BN26: 0 | BO26: 0 | BP26: 0 | BQ26: 0 | BT26: 158 | BU26: 36 | BV26: 158 | BW26: 42
B27: 7072 | C27: Meadowfield School | D27: =COUNTIF(Pupils!BT:BT,$B27) -> 0 | E27: =COUNTIF(Pupils!BU:BU,$B27) -> 0 | F27: =COUNTIF(Pupils!BV:BV,$B27) -> 0 | G27: =COUNTIF(Pupils!BW:BW,$B27) -> 0 | H27: =COUNTIF(Pupils!BX:BX,$B27) -> 0 | I27: =COUNTIF(Pupils!BY:BY,$B27) -> 0 | J27: =COUNTIF(Pupils!BZ:BZ,$B27) -> 0 | K27: =COUNTIF(Pupils!CA:CA,$B27) -> 0 | L27: =COUNTIF(Pupils!CB:CB,$B27) -> 0 | M27: =COUNTIF(Pupils!CC:CC,$B27) -> 0 | N27: =COUNTIF(Pupils!CD:CD,$B27) -> 0 | O27: =COUNTIF(Pupils!CE:CE,$B27) -> 0 | Q27: 7072 | R27: Meadowfield School | S27: 264 | T27: 264 | U27: 320 | W27: 7072 | X27: Meadowfield School | Y27: 0 | Z27: 0 | AA27: 0 | AB27: 0 | AC27: 0 | AD27: 0 | AE27: 0 | AF27: 0 | AG27: 0 | AH27: 0 | AI27: 0 | AJ27: 0 | AL27: 7072 | AM27: Meadowfield School | AN27: 0 | AO27: 0 | AP27: 0 | AQ27: 0 | AR27: 0 | AS27: 0 | AT27: 0 | AU27: 0 | AV27: 0 | AW27: 0 | AX27: 0 | AY27: 0 | AZ27: 0 | BB27: 7072 | BC27: Meadowfield School | BD27: =IF(dfenumber='Excess Element 1 & 2'!BB27,'Excess E1&E2'!$C$4,0) -> 0 | BE27: 0 | BF27: 0 | BG27: 0 | BH27: 0 | BI27: 0 | BJ27: 0 | BK27: 0 | BL27: 0 | BM27: 0 | BN27: 0 | BO27: 0 | BP27: 0 | BQ27: 0 | BT27: 214 | BU27: 50 | BV27: 270 | BW27: 50
B28: 7073 | C28: Laleham Gap School | D28: =COUNTIF(Pupils!BT:BT,$B28) -> 0 | E28: =COUNTIF(Pupils!BU:BU,$B28) -> 0 | F28: =COUNTIF(Pupils!BV:BV,$B28) -> 0 | G28: =COUNTIF(Pupils!BW:BW,$B28) -> 0 | H28: =COUNTIF(Pupils!BX:BX,$B28) -> 0 | I28: =COUNTIF(Pupils!BY:BY,$B28) -> 0 | J28: =COUNTIF(Pupils!BZ:BZ,$B28) -> 0 | K28: =COUNTIF(Pupils!CA:CA,$B28) -> 0 | L28: =COUNTIF(Pupils!CB:CB,$B28) -> 0 | M28: =COUNTIF(Pupils!CC:CC,$B28) -> 0 | N28: =COUNTIF(Pupils!CD:CD,$B28) -> 0 | O28: =COUNTIF(Pupils!CE:CE,$B28) -> 0 | Q28: 7073 | R28: Laleham Gap School | S28: 196 | T28: 196 | U28: 196 | W28: 7073 | X28: Laleham Gap School | Y28: 0 | Z28: 0 | AA28: 0 | AB28: 0 | AC28: 0 | AD28: 0 | AE28: 0 | AF28: 0 | AG28: 0 | AH28: 0 | AI28: 0 | AJ28: 0 | AL28: 7073 | AM28: Laleham Gap School | AN28: 0 | AO28: 0 | AP28: 0 | AQ28: 0 | AR28: 0 | AS28: 0 | AT28: 0 | AU28: 0 | AV28: 0 | AW28: 0 | AX28: 0 | AY28: 0 | AZ28: 0 | BB28: 7073 | BC28: Laleham Gap School | BD28: =IF(dfenumber='Excess Element 1 & 2'!BB28,'Excess E1&E2'!$C$4,0) -> 0 | BE28: 0 | BF28: 0 | BG28: 0 | BH28: 0 | BI28: 0 | BJ28: 0 | BK28: 0 | BL28: 0 | BM28: 0 | BN28: 0 | BO28: 0 | BP28: 0 | BQ28: 0 | BT28: 196 | BU28: 0 | BV28: 196 | BW28: 0
AN30: =SUM(AN7:AN28) -> 0 | AO30: 0 | AP30: 0 | AQ30: 0 | AR30: 0 | AS30: 0 | AT30: 0 | AU30: 0 | AV30: 0 | AW30: 0 | AX30: 0 | AY30: 0 | AZ30: 0 | BE30: =SUM(BE7:BE28) -> 0 | BF30: 0 | BG30: 0 | BH30: 0 | BI30: 0 | BJ30: 0 | BK30: 0 | BL30: 0 | BM30: 0 | BN30: 0 | BO30: 0 | BP30: 0 | BQ30: 0
BB35: February Excess
B36: DfE | C36: School Name | D36: London Fringe | BB36: 7002 | BC36: Broomhill Bank School | BD36: 4999.98
B37: 7002 | C37: Broomhill Bank School | D37: No | BB37: 7021 | BC37: Valence School | BD37: 1666.66
B38: 7021 | C38: Valence School | D38: Yes | BB38: 7032 | BC38: Bower Grove School | BD38: 13333.28
B39: 7032 | C39: Bower Grove School | D39: No | BB39: 7033 | BC39: St Anthony's School | BD39: 9999.96
B40: 7033 | C40: St Anthony's School | D40: No | BB40: 7039 | BC40: The Ifield School | BD40: 4166.65
B41: 7039 | C41: The Ifield School | D41: No | BB41: 7040 | BC41: Foreland Fields School | BD41: 15833.27
B42: 7040 | C42: The Foreland School | D42: No | BB42: 7041 | BC42: Goldwyn Community Special School | BD42: 1666.66
B43: 7041 | C43: Goldwyn Community Special School | D43: No | BB43: 7043 | BC43: The Beacon Folkestone | BD43: 11666.62
B44: 7043 | C44: The Beacon Folkestone | D44: No | BB44: 7044 | BC44: Rowhill School | BD44: 4999.98
B45: 7044 | C45: Rowhill School | D45: Yes | BB45: 7045 | BC45: Harbour School | BD45: 24999.9
B46: 7045 | C46: Elms School | D46: No | BB46: 7051 | BC46: Nexus School | BD46: 0
B47: 7051 | C47: Nexus School | D47: No | BB47: 7052 | BC47: Grange Park School | BD47: 833.33
B48: 7052 | C48: Grange Park School | D48: No | BB48: 7056 | BC48: Five Acre Wood School | BD48: 47499.81
B49: 7056 | C49: Five Acre Wood School | D49: No | BB49: 7058 | BC49: Stone Bay School | BD49: 0
B50: 7058 | C50: Stone Bay School | D50: No | BB50: 7062 | BC50: The Orchard School | BD50: 9999.96
B51: 7062 | C51: The Orchard School | D51: No | BB51: 7063 | BC51: St Nicholas' School | BD51: 14166.61
B52: 7063 | C52: St Nicholas' School | D52: No | BB52: 7066 | BC52: Milestone School | BD52: 0
B53: 7066 | C53: Milestone School | D53: Yes | BB53: 7067 | BC53: Portal House School | BD53: 1666.66
B54: 7067 | C54: Portal House School | D54: No | BB54: 7069 | BC54: The Wyvern School | BD54: 14166.61
B55: 7069 | C55: The Wyvern School | D55: No | BB55: 7070 | BC55: Oakley School | BD55: 4166.65
B56: 7070 | C56: Oakley School | D56: No | BB56: 7072 | BC56: Meadowfield School | BD56: 14166.61
B57: 7072 | C57: Meadowfield School | D57: No | BB57: 7073 | BC57: Laleham Gap School | BD57: 3333.32
B58: 7073 | C58: Laleham Gap School | D58: No

Sheet Contents
A1: Contents
A3: Guidance has been written to aid the user in populating this template, to access this guidance click on this link User guidance
A4: Pupils | B4: Input pupil details in order to calculate element 3 for 2019-20
A5: Year 1 | B5: This is the summary of all funding streams for 2019-20. The following funding is summarised on this tab, Element 3, Place funding, excess place funding, Pupil Premium (PP) and Universal Infant Free School Meals (UIFSM). It also details the amount of pooled funding that will passed back to the LA.
A6: Other Grants | B6: Various Grants are recorded on this tab that have not been included in Years 1, 2 & 3.
A7: Excess E1 & E2 | B7: This tab provides the detailed calculation of additional place funding for excess places. The total excess place funding is then fed into the Year 1 tab.
A8: Year 2 & 3 | B8: This input sheet is where your schools estimated pupil numbers for 2020-21 (year 2) and 2021-22 (year 3) are input. The numbers in this sheet will determine your element 3 funding for 2020-21 and 2021-22 which will then be shown in the relevant Year 2 and Year 3 tab.
A9: Year 2 | B9: This is the summary of all funding streams for 2020-21. The following funding is summarised on this tab, Element 3, Place funding, Pupil Premium (PP) and Universal Infant Free School Meals (UIFSM). It also details the amount of pooled funding that will passed back to the LA.
A10: Year 3 | B10: This is the summary of all funding streams for 2021-22. The following funding is summarised on this tab, Element 3, Place funding, Pupil Premium (PP) and Universal Infant Free School Meals (UIFSM). It also details the amount of pooled funding that will passed back to the LA.
A11: Monthly Statement | B11: This sheet is the monthly list of pupils funded through the schools advances system and will be populated by the template user.
A12: Reconcilation | B12: This tab, reconciles the information on the pupils tab and the monthly statement.
A13: BPS Summary | B13: This tab will be populated with the outputs from tabs Year 1, 2 and 3 and will be subsequently input into the BPS financial tool.

Sheet Pupils
L1: =SUM(L5:L500) -> 0 | M1: 0 | N1: 0 | O1: 0 | P1: 0 | Q1: 0 | R1: 0 | S1: 0 | T1: 0 | U1: 0 | V1: 0 | W1: 0 | X1: 0
A3: Pupil Key | B3: DfE | C3: School | D3: Pupil Surname | E3: Pupil Forename | F3: Need Type | G3: Placement START Date | H3: Placement END Date | I3: Rate Key | J3: Annual Rate | L3: April (March Pupils) | M3: May (April Pupils) | N3: June (May Pupils) | O3: July (June Pupils) | P3: August (July Pupils) | Q3: September (July Pupils) | R3: October (September Pupils) | S3: November (October Pupils) | T3: December (November Pupils) | U3: January (December Pupils) | V3: February (January Pupils) | W3: March (February Pupils) | X3: Total For Pupil | Z3: April ADVANCE | AB3: May LIVE | AC3: May ADJUSTMENTS | AD3: May ADVANCE | AF3: June LIVE | AG3: June ADJUSTMENTS | AH3: June ADVANCE | AJ3: July LIVE | AK3: July ADJUSTMENTS | AL3: July ADVANCE | AN3: August LIVE | AO3: August ADJUSTMENTS | AP3: August ADVANCE | AR3: September LIVE | AS3: September ADJUSTMENTS | AT3: September ADVANCE | AV3: October LIVE | AW3: October ADJUSTMENTS | AX3: October ADVANCE | AZ3: November LIVE | BA3: November ADJUSTMENTS | BB3: November ADVANCE | BD3: December LIVE | BE3: December ADJUSTMENTS | BF3: December ADVANCE | BH3: January LIVE | BI3: January ADJUSTMENTS | BJ3: January ADVANCE | BL3: February LIVE | BM3: February ADJUSTMENTS | BN3: February ADVANCE | BP3: March LIVE | BQ3: March ADJUSTMENTS | BR3: March ADVANCE | BT3: Excess Pupils Monitoring Area
B5: =dfenumber -> 0 | C5: =IFERROR(VLOOKUP(B5,schoolnames,2,0),0) -> 0 | I5: =B5&F5 -> 0 | J5: =IFERROR(VLOOKUP(I5,rateslookup,2,0),0) -> 0 | K5: =J5 -> 0 | L5: =IF(AND(G5<DATE(2019,4,1),H5>DATE(2019,2,28)),J5/12,0) -> 0 | M5: =IF(AND(G5<DATE(2019,5,1),H5>DATE(2019,3,31)),J5/12,0) -> 0 | N5: =IF(AND(G5<DATE(2019,6,1),H5>DATE(2019,4,30)),J5/12,0) -> 0 | O5: =IF(AND(G5<DATE(2019,7,1),H5>DATE(2019,5,31)),J5/12,0) -> 0 | P5: =IF(AND(G5<DATE(2019,8,1),H5>DATE(2019,6,30)),J5/12,0) -> 0 | Q5: =IF(AND(G5<DATE(2019,8,1),H5>DATE(2019,6,30)),J5/12,0) -> 0 | R5: =IF(AND(G5<DATE(2019,10,1),H5>DATE(2019,8,31)),K5/12,0) -> 0 | S5: =IF(AND(G5<DATE(2019,11,1),H5>DATE(2019,9,30)),K5/12,0) -> 0 | T5: =IF(AND(G5<DATE(2019,12,1),H5>DATE(2019,10,31)),K5/12,0) -> 0 | U5: =IF(AND(G5<DATE(2020,1,1),H5>DATE(2019,11,30)),K5/12,0) -> 0 | V5: =IF(AND(G5<DATE(2020,2,1),H5>DATE(2019,12,31)),K5/12,0) -> 0 | W5: =IF(AND(G5<DATE(2020,3,1),H5>DATE(2020,1,31)),K5/12,0) -> 0 | X5: =SUM(L5:W5) -> 0 | Z5: =L5 -> 0 | AB5: =M5 -> 0 | AC5: =L5-Z5 -> 0 | AD5: =AB5+AC5 -> 0 | AF5: =N5 -> 0 | AG5: =SUM(L5:M5)-Z5-AD5 -> 0 | AH5: =AF5+AG5 -> 0 | AJ5: =O5 -> 0 | AK5: =SUM(L5:N5)-Z5-AD5-AH5 -> 0 | AL5: =AJ5+AK5 -> 0 | AN5: =P5 -> 0 | AO5: =SUM(L5:O5)-Z5-AD5-AH5-AL5 -> 0 | AP5: =AN5+AO5 -> 0 | AR5: =Q5 -> 0 | AS5: =SUM(L5:P5)-Z5-AD5-AH5-AL5-AP5 -> 0 | AT5: =AR5+AS5 -> 0 | AV5: =R5 -> 0 | AW5: =SUM(L5:Q5)-Z5-AD5-AH5-AL5-AP5-AT5 -> 0 | AX5: =AV5+AW5 -> 0 | AZ5: =S5 -> 0 | BA5: =SUM(L5:R5)-Z5-AD5-AH5-AL5-AP5-AT5-AX5 -> 0 | BB5: =AZ5+BA5 -> 0 | BD5: =T5 -> 0 | BE5: =SUM(L5:S5)-Z5-AD5-AH5-AL5-AP5-AT5-AX5-BB5 -> 0 | BF5: =BD5+BE5 -> 0 | BH5: =U5 -> 0 | BI5: =SUM(L5:T5)-Z5-AD5-AH5-AL5-AP5-AT5-AX5-BB5-BF5 -> 0 | BJ5: =BH5+BI5 -> 0 | BL5: =V5 -> 0 | BM5: =SUM(L5:U5)-Z5-AD5-AH5-AL5-AP5-AT5-AX5-BB5-BF5-BJ5 -> 0 | BN5: =BL5+BM5 -> 0 | BP5: =W5 -> 0 | BQ5: =SUM(L5:V5)-Z5-AD5-AH5-AL5-AP5-AT5-AX5-BB5-BF5-BJ5-BN5 -> 0 | BR5: =BP5+BQ5 -> 0 | BT5: =IF(L5>0,$B5,0) -> 0 | BU5: =IF(M5>0,$B5,0) -> 0 | BV5: =IF(N5>0,$B5,0) -> 0 | BW5: =IF(O5>0,$B5,0) -> 0 | BX5: =IF(P5>0,$B5,0) -> 0 | BY5: =IF(Q5>0,$B5,0) -> 0 | BZ5: =IF(R5>0,$B5,0) -> 0 | CA5: =IF(S5>0,$B5,0) -> 0 | CB5: =IF(T5>0,$B5,0) -> 0 | CC5: =IF(U5>0,$B5,0) -> 0 | CD5: =IF(V5>0,$B5,0) -> 0 | CE5: =IF(W5>0,$B5,0) -> 0
B6: 0 | C6: 0 | I6: 0 | J6: 0 | K6: 0 | L6: 0 | M6: 0 | N6: 0 | O6: 0 | P6: 0 | Q6: 0 | R6: 0 | S6: 0 | T6: 0 | U6: 0 | V6: 0 | W6: 0 | X6: 0 | Z6: 0 | AB6: 0 | AC6: 0 | AD6: 0 | AF6: 0 | AG6: 0 | AH6: 0 | AJ6: 0 | AK6: 0 | AL6: 0 | AN6: 0 | AO6: 0 | AP6: 0 | AR6: 0 | AS6: 0 | AT6: 0 | AV6: 0 | AW6: 0 | AX6: 0 | AZ6: 0 | BA6: 0 | BB6: 0 | BD6: 0 | BE6: 0 | BF6: 0 | BH6: 0 | BI6: 0 | BJ6: 0 | BL6: 0 | BM6: 0 | BN6: 0 | BP6: 0 | BQ6: 0 | BR6: 0 | BT6: 0 | BU6: 0 | BV6: 0 | BW6: 0 | BX6: 0 | BY6: 0 | BZ6: 0 | CA6: 0 | CB6: 0 | CC6: 0 | CD6: 0 | CE6: 0
B7: 0 | C7: 0 | I7: 0 | J7: 0 | K7: 0 | L7: 0 | M7: 0 | N7: 0 | O7: 0 | P7: 0 | Q7: 0 | R7: 0 | S7: 0 | T7: 0 | U7: 0 | V7: 0 | W7: 0 | X7: 0 | Z7: 0 | AB7: 0 | AC7: 0 | AD7: 0 | AF7: 0 | AG7: 0 | AH7: 0 | AJ7: 0 | AK7: 0 | AL7: 0 | AN7: 0 | AO7: 0 | AP7: 0 | AR7: 0 | AS7: 0 | AT7: 0 | AV7: 0 | AW7: 0 | AX7: 0 | AZ7: 0 | BA7: 0 | BB7: 0 | BD7: 0 | BE7: 0 | BF7: 0 | BH7: 0 | BI7: 0 | BJ7: 0 | BL7: 0 | BM7: 0 | BN7: 0 | BP7: 0 | BQ7: 0 | BR7: 0 | BT7: 0 | BU7: 0 | BV7: 0 | BW7: 0 | BX7: 0 | BY7: 0 | BZ7: 0 | CA7: 0 | CB7: 0 | CC7: 0 | CD7: 0 | CE7: 0
B8: 0 | C8: 0 | I8: 0 | J8: 0 | K8: 0 | L8: 0 | M8: 0 | N8: 0 | O8: 0 | P8: 0 | Q8: 0 | R8: 0 | S8: 0 | T8: 0 | U8: 0 | V8: 0 | W8: 0 | X8: 0 | Z8: 0 | AB8: 0 | AC8: 0 | AD8: 0 | AF8: 0 | AG8: 0 | AH8: 0 | AJ8: 0 | AK8: 0 | AL8: 0 | AN8: 0 | AO8: 0 | AP8: 0 | AR8: 0 | AS8: 0 | AT8: 0 | AV8: 0 | AW8: 0 | AX8: 0 | AZ8: 0 | BA8: 0 | BB8: 0 | BD8: 0 | BE8: 0 | BF8: 0 | BH8: 0 | BI8: 0 | BJ8: 0 | BL8: 0 | BM8: 0 | BN8: 0 | BP8: 0 | BQ8: 0 | BR8: 0 | BT8: 0 | BU8: 0 | BV8: 0 | BW8: 0 | BX8: 0 | BY8: 0 | BZ8: 0 | CA8: 0 | CB8: 0 | CC8: 0 | CD8: 0 | CE8: 0
B9: 0 | C9: 0 | I9: 0 | J9: 0 | K9: 0 | L9: 0 | M9: 0 | N9: 0 | O9: 0 | P9: 0 | Q9: 0 | R9: 0 | S9: 0 | T9: 0 | U9: 0 | V9: 0 | W9: 0 | X9: 0 | Z9: 0 | AB9: 0 | AC9: 0 | AD9: 0 | AF9: 0 | AG9: 0 | AH9: 0 | AJ9: 0 | AK9: 0 | AL9: 0 | AN9: 0 | AO9: 0 | AP9: 0 | AR9: 0 | AS9: 0 | AT9: 0 | AV9: 0 | AW9: 0 | AX9: 0 | AZ9: 0 | BA9: 0 | BB9: 0 | BD9: 0 | BE9: 0 | BF9: 0 | BH9: 0 | BI9: 0 | BJ9: 0 | BL9: 0 | BM9: 0 | BN9: 0 | BP9: 0 | BQ9: 0 | BR9: 0 | BT9: 0 | BU9: 0 | BV9: 0 | BW9: 0 | BX9: 0 | BY9: 0 | BZ9: 0 | CA9: 0 | CB9: 0 | CC9: 0 | CD9: 0 | CE9: 0
B10: 0 | C10: 0 | I10: 0 | J10: 0 | K10: 0 | L10: 0 | M10: 0 | N10: 0 | O10: 0 | P10: 0 | Q10: 0 | R10: 0 | S10: 0 | T10: 0 | U10: 0 | V10: 0 | W10: 0 | X10: 0 | Z10: 0 | AB10: 0 | AC10: 0 | AD10: 0 | AF10: 0 | AG10: 0 | AH10: 0 | AJ10: 0 | AK10: 0 | AL10: 0 | AN10: 0 | AO10: 0 | AP10: 0 | AR10: 0 | AS10: 0 | AT10: 0 | AV10: 0 | AW10: 0 | AX10: 0 | AZ10: 0 | BA10: 0 | BB10: 0 | BD10: 0 | BE10: 0 | BF10: 0 | BH10: 0 | BI10: 0 | BJ10: 0 | BL10: 0 | BM10: 0 | BN10: 0 | BP10: 0 | BQ10: 0 | BR10: 0 | BT10: 0 | BU10: 0 | BV10: 0 | BW10: 0 | BX10: 0 | BY10: 0 | BZ10: 0 | CA10: 0 | CB10: 0 | CC10: 0 | CD10: 0 | CE10: 0
B11: 0 | C11: 0 | I11: 0 | J11: 0 | K11: 0 | L11: 0 | M11: 0 | N11: 0 | O11: 0 | P11: 0 | Q11: 0 | R11: 0 | S11: 0 | T11: 0 | U11: 0 | V11: 0 | W11: 0 | X11: 0 | Z11: 0 | AB11: 0 | AC11: 0 | AD11: 0 | AF11: 0 | AG11: 0 | AH11: 0 | AJ11: 0 | AK11: 0 | AL11: 0 | AN11: 0 | AO11: 0 | AP11: 0 | AR11: 0 | AS11: 0 | AT11: 0 | AV11: 0 | AW11: 0 | AX11: 0 | AZ11: 0 | BA11: 0 | BB11: 0 | BD11: 0 | BE11: 0 | BF11: 0 | BH11: 0 | BI11: 0 | BJ11: 0 | BL11: 0 | BM11: 0 | BN11: 0 | BP11: 0 | BQ11: 0 | BR11: 0 | BT11: 0 | BU11: 0 | BV11: 0 | BW11: 0 | BX11: 0 | BY11: 0 | BZ11: 0 | CA11: 0 | CB11: 0 | CC11: 0 | CD11: 0 | CE11: 0
B12: 0 | C12: 0 | I12: 0 | J12: 0 | K12: 0 | L12: 0 | M12: 0 | N12: 0 | O12: 0 | P12: 0 | Q12: 0 | R12: 0 | S12: 0 | T12: 0 | U12: 0 | V12: 0 | W12: 0 | X12: 0 | Z12: 0 | AB12: 0 | AC12: 0 | AD12: 0 | AF12: 0 | AG12: 0 | AH12: 0 | AJ12: 0 | AK12: 0 | AL12: 0 | AN12: 0 | AO12: 0 | AP12: 0 | AR12: 0 | AS12: 0 | AT12: 0 | AV12: 0 | AW12: 0 | AX12: 0 | AZ12: 0 | BA12: 0 | BB12: 0 | BD12: 0 | BE12: 0 | BF12: 0 | BH12: 0 | BI12: 0 | BJ12: 0 | BL12: 0 | BM12: 0 | BN12: 0 | BP12: 0 | BQ12: 0 | BR12: 0 | BT12: 0 | BU12: 0 | BV12: 0 | BW12: 0 | BX12: 0 | BY12: 0 | BZ12: 0 | CA12: 0 | CB12: 0 | CC12: 0 | CD12: 0 | CE12: 0
B13: 0 | C13: 0 | I13: 0 | J13: 0 | K13: 0 | L13: 0 | M13: 0 | N13: 0 | O13: 0 | P13: 0 | Q13: 0 | R13: 0 | S13: 0 | T13: 0 | U13: 0 | V13: 0 | W13: 0 | X13: 0 | Z13: 0 | AB13: 0 | AC13: 0 | AD13: 0 | AF13: 0 | AG13: 0 | AH13: 0 | AJ13: 0 | AK13: 0 | AL13: 0 | AN13: 0 | AO13: 0 | AP13: 0 | AR13: 0 | AS13: 0 | AT13: 0 | AV13: 0 | AW13: 0 | AX13: 0 | AZ13: 0 | BA13: 0 | BB13: 0 | BD13: 0 | BE13: 0 | BF13: 0 | BH13: 0 | BI13: 0 | BJ13: 0 | BL13: 0 | BM13: 0 | BN13: 0 | BP13: 0 | BQ13: 0 | BR13: 0 | BT13: 0 | BU13: 0 | BV13: 0 | BW13: 0 | BX13: 0 | BY13: 0 | BZ13: 0 | CA13: 0 | CB13: 0 | CC13: 0 | CD13: 0 | CE13: 0
B14: 0 | C14: 0 | I14: 0 | J14: 0 | K14: 0 | L14: 0 | M14: 0 | N14: 0 | O14: 0 | P14: 0 | Q14: 0 | R14: 0 | S14: 0 | T14: 0 | U14: 0 | V14: 0 | W14: 0 | X14: 0 | Z14: 0 | AB14: 0 | AC14: 0 | AD14: 0 | AF14: 0 | AG14: 0 | AH14: 0 | AJ14: 0 | AK14: 0 | AL14: 0 | AN14: 0 | AO14: 0 | AP14: 0 | AR14: 0 | AS14: 0 | AT14: 0 | AV14: 0 | AW14: 0 | AX14: 0 | AZ14: 0 | BA14: 0 | BB14: 0 | BD14: 0 | BE14: 0 | BF14: 0 | BH14: 0 | BI14: 0 | BJ14: 0 | BL14: 0 | BM14: 0 | BN14: 0 | BP14: 0 | BQ14: 0 | BR14: 0 | BT14: 0 | BU14: 0 | BV14: 0 | BW14: 0 | BX14: 0 | BY14: 0 | BZ14: 0 | CA14: 0 | CB14: 0 | CC14: 0 | CD14: 0 | CE14: 0
B15: 0 | C15: 0 | I15: 0 | J15: 0 | K15: 0 | L15: 0 | M15: 0 | N15: 0 | O15: 0 | P15: 0 | Q15: 0 | R15: 0 | S15: 0 | T15: 0 | U15: 0 | V15: 0 | W15: 0 | X15: 0 | Z15: 0 | AB15: 0 | AC15: 0 | AD15: 0 | AF15: 0 | AG15: 0 | AH15: 0 | AJ15: 0 | AK15: 0 | AL15: 0 | AN15: 0 | AO15: 0 | AP15: 0 | AR15: 0 | AS15: 0 | AT15: 0 | AV15: 0 | AW15: 0 | AX15: 0 | AZ15: 0 | BA15: 0 | BB15: 0 | BD15: 0 | BE15: 0 | BF15: 0 | BH15: 0 | BI15: 0 | BJ15: 0 | BL15: 0 | BM15: 0 | BN15: 0 | BP15: 0 | BQ15: 0 | BR15: 0 | BT15: 0 | BU15: 0 | BV15: 0 | BW15: 0 | BX15: 0 | BY15: 0 | BZ15: 0 | CA15: 0 | CB15: 0 | CC15: 0 | CD15: 0 | CE15: 0
B16: 0 | C16: 0 | I16: 0 | J16: 0 | K16: 0 | L16: 0 | M16: 0 | N16: 0 | O16: 0 | P16: 0 | Q16: 0 | R16: 0 | S16: 0 | T16: 0 | U16: 0 | V16: 0 | W16: 0 | X16: 0 | Z16: 0 | AB16: 0 | AC16: 0 | AD16: 0 | AF16: 0 | AG16: 0 | AH16: 0 | AJ16: 0 | AK16: 0 | AL16: 0 | AN16: 0 | AO16: 0 | AP16: 0 | AR16: 0 | AS16: 0 | AT16: 0 | AV16: 0 | AW16: 0 | AX16: 0 | AZ16: 0 | BA16: 0 | BB16: 0 | BD16: 0 | BE16: 0 | BF16: 0 | BH16: 0 | BI16: 0 | BJ16: 0 | BL16: 0 | BM16: 0 | BN16: 0 | BP16: 0 | BQ16: 0 | BR16: 0 | BT16: 0 | BU16: 0 | BV16: 0 | BW16: 0 | BX16: 0 | BY16: 0 | BZ16: 0 | CA16: 0 | CB16: 0 | CC16: 0 | CD16: 0 | CE16: 0
B17: 0 | C17: 0 | I17: 0 | J17: 0 | K17: 0 | L17: 0 | M17: 0 | N17: 0 | O17: 0 | P17: 0 | Q17: 0 | R17: 0 | S17: 0 | T17: 0 | U17: 0 | V17: 0 | W17: 0 | X17: 0 | Z17: 0 | AB17: 0 | AC17: 0 | AD17: 0 | AF17: 0 | AG17: 0 | AH17: 0 | AJ17: 0 | AK17: 0 | AL17: 0 | AN17: 0 | AO17: 0 | AP17: 0 | AR17: 0 | AS17: 0 | AT17: 0 | AV17: 0 | AW17: 0 | AX17: 0 | AZ17: 0 | BA17: 0 | BB17: 0 | BD17: 0 | BE17: 0 | BF17: 0 | BH17: 0 | BI17: 0 | BJ17: 0 | BL17: 0 | BM17: 0 | BN17: 0 | BP17: 0 | BQ17: 0 | BR17: 0 | BT17: 0 | BU17: 0 | BV17: 0 | BW17: 0 | BX17: 0 | BY17: 0 | BZ17: 0 | CA17: 0 | CB17: 0 | CC17: 0 | CD17: 0 | CE17: 0
B18: 0 | C18: 0 | I18: 0 | J18: 0 | K18: 0 | L18: 0 | M18: 0 | N18: 0 | O18: 0 | P18: 0 | Q18: 0 | R18: 0 | S18: 0 | T18: 0 | U18: 0 | V18: 0 | W18: 0 | X18: 0 | Z18: 0 | AB18: 0 | AC18: 0 | AD18: 0 | AF18: 0 | AG18: 0 | AH18: 0 | AJ18: 0 | AK18: 0 | AL18: 0 | AN18: 0 | AO18: 0 | AP18: 0 | AR18: 0 | AS18: 0 | AT18: 0 | AV18: 0 | AW18: 0 | AX18: 0 | AZ18: 0 | BA18: 0 | BB18: 0 | BD18: 0 | BE18: 0 | BF18: 0 | BH18: 0 | BI18: 0 | BJ18: 0 | BL18: 0 | BM18: 0 | BN18: 0 | BP18: 0 | BQ18: 0 | BR18: 0 | BT18: 0 | BU18: 0 | BV18: 0 | BW18: 0 | BX18: 0 | BY18: 0 | BZ18: 0 | CA18: 0 | CB18: 0 | CC18: 0 | CD18: 0 | CE18: 0
B19: 0 | C19: 0 | I19: 0 | J19: 0 | K19: 0 | L19: 0 | M19: 0 | N19: 0 | O19: 0 | P19: 0 | Q19: 0 | R19: 0 | S19: 0 | T19: 0 | U19: 0 | V19: 0 | W19: 0 | X19: 0 | Z19: 0 | AB19: 0 | AC19: 0 | AD19: 0 | AF19: 0 | AG19: 0 | AH19: 0 | AJ19: 0 | AK19: 0 | AL19: 0 | AN19: 0 | AO19: 0 | AP19: 0 | AR19: 0 | AS19: 0 | AT19: 0 | AV19: 0 | AW19: 0 | AX19: 0 | AZ19: 0 | BA19: 0 | BB19: 0 | BD19: 0 | BE19: 0 | BF19: 0 | BH19: 0 | BI19: 0 | BJ19: 0 | BL19: 0 | BM19: 0 | BN19: 0 | BP19: 0 | BQ19: 0 | BR19: 0 | BT19: 0 | BU19: 0 | BV19: 0 | BW19: 0 | BX19: 0 | BY19: 0 | BZ19: 0 | CA19: 0 | CB19: 0 | CC19: 0 | CD19: 0 | CE19: 0
B20: 0 | C20: 0 | I20: 0 | J20: 0 | K20: 0 | L20: 0 | M20: 0 | N20: 0 | O20: 0 | P20: 0 | Q20: 0 | R20: 0 | S20: 0 | T20: 0 | U20: 0 | V20: 0 | W20: 0 | X20: 0 | Z20: 0 | AB20: 0 | AC20: 0 | AD20: 0 | AF20: 0 | AG20: 0 | AH20: 0 | AJ20: 0 | AK20: 0 | AL20: 0 | AN20: 0 | AO20: 0 | AP20: 0 | AR20: 0 | AS20: 0 | AT20: 0 | AV20: 0 | AW20: 0 | AX20: 0 | AZ20: 0 | BA20: 0 | BB20: 0 | BD20: 0 | BE20: 0 | BF20: 0 | BH20: 0 | BI20: 0 | BJ20: 0 | BL20: 0 | BM20: 0 | BN20: 0 | BP20: 0 | BQ20: 0 | BR20: 0 | BT20: 0 | BU20: 0 | BV20: 0 | BW20: 0 | BX20: 0 | BY20: 0 | BZ20: 0 | CA20: 0 | CB20: 0 | CC20: 0 | CD20: 0 | CE20: 0
B21: 0 | C21: 0 | I21: 0 | J21: 0 | K21: 0 | L21: 0 | M21: 0 | N21: 0 | O21: 0 | P21: 0 | Q21: 0 | R21: 0 | S21: 0 | T21: 0 | U21: 0 | V21: 0 | W21: 0 | X21: 0 | Z21: 0 | AB21: 0 | AC21: 0 | AD21: 0 | AF21: 0 | AG21: 0 | AH21: 0 | AJ21: 0 | AK21: 0 | AL21: 0 | AN21: 0 | AO21: 0 | AP21: 0 | AR21: 0 | AS21: 0 | AT21: 0 | AV21: 0 | AW21: 0 | AX21: 0 | AZ21: 0 | BA21: 0 | BB21: 0 | BD21: 0 | BE21: 0 | BF21: 0 | BH21: 0 | BI21: 0 | BJ21: 0 | BL21: 0 | BM21: 0 | BN21: 0 | BP21: 0 | BQ21: 0 | BR21: 0 | BT21: 0 | BU21: 0 | BV21: 0 | BW21: 0 | BX21: 0 | BY21: 0 | BZ21: 0 | CA21: 0 | CB21: 0 | CC21: 0 | CD21: 0 | CE21: 0
B22: 0 | C22: 0 | I22: 0 | J22: 0 | K22: 0 | L22: 0 | M22: 0 | N22: 0 | O22: 0 | P22: 0 | Q22: 0 | R22: 0 | S22: 0 | T22: 0 | U22: 0 | V22: 0 | W22: 0 | X22: 0 | Z22: 0 | AB22: 0 | AC22: 0 | AD22: 0 | AF22: 0 | AG22: 0 | AH22: 0 | AJ22: 0 | AK22: 0 | AL22: 0 | AN22: 0 | AO22: 0 | AP22: 0 | AR22: 0 | AS22: 0 | AT22: 0 | AV22: 0 | AW22: 0 | AX22: 0 | AZ22: 0 | BA22: 0 | BB22: 0 | BD22: 0 | BE22: 0 | BF22: 0 | BH22: 0 | BI22: 0 | BJ22: 0 | BL22: 0 | BM22: 0 | BN22: 0 | BP22: 0 | BQ22: 0 | BR22: 0 | BT22: 0 | BU22: 0 | BV22: 0 | BW22: 0 | BX22: 0 | BY22: 0 | BZ22: 0 | CA22: 0 | CB22: 0 | CC22: 0 | CD22: 0 | CE22: 0
B23: 0 | C23: 0 | I23: 0 | J23: 0 | K23: 0 | L23: 0 | M23: 0 | N23: 0 | O23: 0 | P23: 0 | Q23: 0 | R23: 0 | S23: 0 | T23: 0 | U23: 0 | V23: 0 | W23: 0 | X23: 0 | Z23: 0 | AB23: 0 | AC23: 0 | AD23: 0 | AF23: 0 | AG23: 0 | AH23: 0 | AJ23: 0 | AK23: 0 | AL23: 0 | AN23: 0 | AO23: 0 | AP23: 0 | AR23: 0 | AS23: 0 | AT23: 0 | AV23: 0 | AW23: 0 | AX23: 0 | AZ23: 0 | BA23: 0 | BB23: 0 | BD23: 0 | BE23: 0 | BF23: 0 | BH23: 0 | BI23: 0 | BJ23: 0 | BL23: 0 | BM23: 0 | BN23: 0 | BP23: 0 | BQ23: 0 | BR23: 0 | BT23: 0 | BU23: 0 | BV23: 0 | BW23: 0 | BX23: 0 | BY23: 0 | BZ23: 0 | CA23: 0 | CB23: 0 | CC23: 0 | CD23: 0 | CE23: 0
B24: 0 | C24: 0 | I24: 0 | J24: 0 | K24: 0 | L24: 0 | M24: 0 | N24: 0 | O24: 0 | P24: 0 | Q24: 0 | R24: 0 | S24: 0 | T24: 0 | U24: 0 | V24: 0 | W24: 0 | X24: 0 | Z24: 0 | AB24: 0 | AC24: 0 | AD24: 0 | AF24: 0 | AG24: 0 | AH24: 0 | AJ24: 0 | AK24: 0 | AL24: 0 | AN24: 0 | AO24: 0 | AP24: 0 | AR24: 0 | AS24: 0 | AT24: 0 | AV24: 0 | AW24: 0 | AX24: 0 | AZ24: 0 | BA24: 0 | BB24: 0 | BD24: 0 | BE24: 0 | BF24: 0 | BH24: 0 | BI24: 0 | BJ24: 0 | BL24: 0 | BM24: 0 | BN24: 0 | BP24: 0 | BQ24: 0 | BR24: 0 | BT24: 0 | BU24: 0 | BV24: 0 | BW24: 0 | BX24: 0 | BY24: 0 | BZ24: 0 | CA24: 0 | CB24: 0 | CC24: 0 | CD24: 0 | CE24: 0
B25: 0 | C25: 0 | I25: 0 | J25: 0 | K25: 0 | L25: 0 | M25: 0 | N25: 0 | O25: 0 | P25: 0 | Q25: 0 | R25: 0 | S25: 0 | T25: 0 | U25: 0 | V25: 0 | W25: 0 | X25: 0 | Z25: 0 | AB25: 0 | AC25: 0 | AD25: 0 | AF25: 0 | AG25: 0 | AH25: 0 | AJ25: 0 | AK25: 0 | AL25: 0 | AN25: 0 | AO25: 0 | AP25: 0 | AR25: 0 | AS25: 0 | AT25: 0 | AV25: 0 | AW25: 0 | AX25: 0 | AZ25: 0 | BA25: 0 | BB25: 0 | BD25: 0 | BE25: 0 | BF25: 0 | BH25: 0 | BI25: 0 | BJ25: 0 | BL25: 0 | BM25: 0 | BN25: 0 | BP25: 0 | BQ25: 0 | BR25: 0 | BT25: 0 | BU25: 0 | BV25: 0 | BW25: 0 | BX25: 0 | BY25: 0 | BZ25: 0 | CA25: 0 | CB25: 0 | CC25: 0 | CD25: 0 | CE25: 0
B26: 0 | C26: 0 | I26: 0 | J26: 0 | K26: 0 | L26: 0 | M26: 0 | N26: 0 | O26: 0 | P26: 0 | Q26: 0 | R26: 0 | S26: 0 | T26: 0 | U26: 0 | V26: 0 | W26: 0 | X26: 0 | Z26: 0 | AB26: 0 | AC26: 0 | AD26: 0 | AF26: 0 | AG26: 0 | AH26: 0 | AJ26: 0 | AK26: 0 | AL26: 0 | AN26: 0 | AO26: 0 | AP26: 0 | AR26: 0 | AS26: 0 | AT26: 0 | AV26: 0 | AW26: 0 | AX26: 0 | AZ26: 0 | BA26: 0 | BB26: 0 | BD26: 0 | BE26: 0 | BF26: 0 | BH26: 0 | BI26: 0 | BJ26: 0 | BL26: 0 | BM26: 0 | BN26: 0 | BP26: 0 | BQ26: 0 | BR26: 0 | BT26: 0 | BU26: 0 | BV26: 0 | BW26: 0 | BX26: 0 | BY26: 0 | BZ26: 0 | CA26: 0 | CB26: 0 | CC26: 0 | CD26: 0 | CE26: 0
B27: 0 | C27: 0 | I27: 0 | J27: 0 | K27: 0 | L27: 0 | M27: 0 | N27: 0 | O27: 0 | P27: 0 | Q27: 0 | R27: 0 | S27: 0 | T27: 0 | U27: 0 | V27: 0 | W27: 0 | X27: 0 | Z27: 0 | AB27: 0 | AC27: 0 | AD27: 0 | AF27: 0 | AG27: 0 | AH27: 0 | AJ27: 0 | AK27: 0 | AL27: 0 | AN27: 0 | AO27: 0 | AP27: 0 | AR27: 0 | AS27: 0 | AT27: 0 | AV27: 0 | AW27: 0 | AX27: 0 | AZ27: 0 | BA27: 0 | BB27: 0 | BD27: 0 | BE27: 0 | BF27: 0 | BH27: 0 | BI27: 0 | BJ27: 0 | BL27: 0 | BM27: 0 | BN27: 0 | BP27: 0 | BQ27: 0 | BR27: 0 | BT27: 0 | BU27: 0 | BV27: 0 | BW27: 0 | BX27: 0 | BY27: 0 | BZ27: 0 | CA27: 0 | CB27: 0 | CC27: 0 | CD27: 0 | CE27: 0
B28: 0 | C28: 0 | I28: 0 | J28: 0 | K28: 0 | L28: 0 | M28: 0 | N28: 0 | O28: 0 | P28: 0 | Q28: 0 | R28: 0 | S28: 0 | T28: 0 | U28: 0 | V28: 0 | W28: 0 | X28: 0 | Z28: 0 | AB28: 0 | AC28: 0 | AD28: 0 | AF28: 0 | AG28: 0 | AH28: 0 | AJ28: 0 | AK28: 0 | AL28: 0 | AN28: 0 | AO28: 0 | AP28: 0 | AR28: 0 | AS28: 0 | AT28: 0 | AV28: 0 | AW28: 0 | AX28: 0 | AZ28: 0 | BA28: 0 | BB28: 0 | BD28: 0 | BE28: 0 | BF28: 0 | BH28: 0 | BI28: 0 | BJ28: 0 | BL28: 0 | BM28: 0 | BN28: 0 | BP28: 0 | BQ28: 0 | BR28: 0 | BT28: 0 | BU28: 0 | BV28: 0 | BW28: 0 | BX28: 0 | BY28: 0 | BZ28: 0 | CA28: 0 | CB28: 0 | CC28: 0 | CD28: 0 | CE28: 0
B29: 0 | C29: 0 | I29: 0 | J29: 0 | K29: 0 | L29: 0 | M29: 0 | N29: 0 | O29: 0 | P29: 0 | Q29: 0 | R29: 0 | S29: 0 | T29: 0 | U29: 0 | V29: 0 | W29: 0 | X29: 0 | Z29: 0 | AB29: 0 | AC29: 0 | AD29: 0 | AF29: 0 | AG29: 0 | AH29: 0 | AJ29: 0 | AK29: 0 | AL29: 0 | AN29: 0 | AO29: 0 | AP29: 0 | AR29: 0 | AS29: 0 | AT29: 0 | AV29: 0 | AW29: 0 | AX29: 0 | AZ29: 0 | BA29: 0 | BB29: 0 | BD29: 0 | BE29: 0 | BF29: 0 | BH29: 0 | BI29: 0 | BJ29: 0 | BL29: 0 | BM29: 0 | BN29: 0 | BP29: 0 | BQ29: 0 | BR29: 0 | BT29: 0 | BU29: 0 | BV29: 0 | BW29: 0 | BX29: 0 | BY29: 0 | BZ29: 0 | CA29: 0 | CB29: 0 | CC29: 0 | CD29: 0 | CE29: 0
B30: 0 | C30: 0 | I30: 0 | J30: 0 | K30: 0 | L30: 0 | M30: 0 | N30: 0 | O30: 0 | P30: 0 | Q30: 0 | R30: 0 | S30: 0 | T30: 0 | U30: 0 | V30: 0 | W30: 0 | X30: 0 | Z30: 0 | AB30: 0 | AC30: 0 | AD30: 0 | AF30: 0 | AG30: 0 | AH30: 0 | AJ30: 0 | AK30: 0 | AL30: 0 | AN30: 0 | AO30: 0 | AP30: 0 | AR30: 0 | AS30: 0 | AT30: 0 | AV30: 0 | AW30: 0 | AX30: 0 | AZ30: 0 | BA30: 0 | BB30: 0 | BD30: 0 | BE30: 0 | BF30: 0 | BH30: 0 | BI30: 0 | BJ30: 0 | BL30: 0 | BM30: 0 | BN30: 0 | BP30: 0 | BQ30: 0 | BR30: 0 | BT30: 0 | BU30: 0 | BV30: 0 | BW30: 0 | BX30: 0 | BY30: 0 | BZ30: 0 | CA30: 0 | CB30: 0 | CC30: 0 | CD30: 0 | CE30: 0
B31: 0 | C31: 0 | I31: 0 | J31: 0 | K31: 0 | L31: 0 | M31: 0 | N31: 0 | O31: 0 | P31: 0 | Q31: 0 | R31: 0 | S31: 0 | T31: 0 | U31: 0 | V31: 0 | W31: 0 | X31: 0 | Z31: 0 | AB31: 0 | AC31: 0 | AD31: 0 | AF31: 0 | AG31: 0 | AH31: 0 | AJ31: 0 | AK31: 0 | AL31: 0 | AN31: 0 | AO31: 0 | AP31: 0 | AR31: 0 | AS31: 0 | AT31: 0 | AV31: 0 | AW31: 0 | AX31: 0 | AZ31: 0 | BA31: 0 | BB31: 0 | BD31: 0 | BE31: 0 | BF31: 0 | BH31: 0 | BI31: 0 | BJ31: 0 | BL31: 0 | BM31: 0 | BN31: 0 | BP31: 0 | BQ31: 0 | BR31: 0 | BT31: 0 | BU31: 0 | BV31: 0 | BW31: 0 | BX31: 0 | BY31: 0 | BZ31: 0 | CA31: 0 | CB31: 0 | CC31: 0 | CD31: 0 | CE31: 0
B32: 0 | C32: 0 | I32: 0 | J32: 0 | K32: 0 | L32: 0 | M32: 0 | N32: 0 | O32: 0 | P32: 0 | Q32: 0 | R32: 0 | S32: 0 | T32: 0 | U32: 0 | V32: 0 | W32: 0 | X32: 0 | Z32: 0 | AB32: 0 | AC32: 0 | AD32: 0 | AF32: 0 | AG32: 0 | AH32: 0 | AJ32: 0 | AK32: 0 | AL32: 0 | AN32: 0 | AO32: 0 | AP32: 0 | AR32: 0 | AS32: 0 | AT32: 0 | AV32: 0 | AW32: 0 | AX32: 0 | AZ32: 0 | BA32: 0 | BB32: 0 | BD32: 0 | BE32: 0 | BF32: 0 | BH32: 0 | BI32: 0 | BJ32: 0 | BL32: 0 | BM32: 0 | BN32: 0 | BP32: 0 | BQ32: 0 | BR32: 0 | BT32: 0 | BU32: 0 | BV32: 0 | BW32: 0 | BX32: 0 | BY32: 0 | BZ32: 0 | CA32: 0 | CB32: 0 | CC32: 0 | CD32: 0 | CE32: 0
B33: 0 | C33: 0 | I33: 0 | J33: 0 | K33: 0 | L33: 0 | M33: 0 | N33: 0 | O33: 0 | P33: 0 | Q33: 0 | R33: 0 | S33: 0 | T33: 0 | U33: 0 | V33: 0 | W33: 0 | X33: 0 | Z33: 0 | AB33: 0 | AC33: 0 | AD33: 0 | AF33: 0 | AG33: 0 | AH33: 0 | AJ33: 0 | AK33: 0 | AL33: 0 | AN33: 0 | AO33: 0 | AP33: 0 | AR33: 0 | AS33: 0 | AT33: 0 | AV33: 0 | AW33: 0 | AX33: 0 | AZ33: 0 | BA33: 0 | BB33: 0 | BD33: 0 | BE33: 0 | BF33: 0 | BH33: 0 | BI33: 0 | BJ33: 0 | BL33: 0 | BM33: 0 | BN33: 0 | BP33: 0 | BQ33: 0 | BR33: 0 | BT33: 0 | BU33: 0 | BV33: 0 | BW33: 0 | BX33: 0 | BY33: 0 | BZ33: 0 | CA33: 0 | CB33: 0 | CC33: 0 | CD33: 0 | CE33: 0
B34: 0 | C34: 0 | I34: 0 | J34: 0 | K34: 0 | L34: 0 | M34: 0 | N34: 0 | O34: 0 | P34: 0 | Q34: 0 | R34: 0 | S34: 0 | T34: 0 | U34: 0 | V34: 0 | W34: 0 | X34: 0 | Z34: 0 | AB34: 0 | AC34: 0 | AD34: 0 | AF34: 0 | AG34: 0 | AH34: 0 | AJ34: 0 | AK34: 0 | AL34: 0 | AN34: 0 | AO34: 0 | AP34: 0 | AR34: 0 | AS34: 0 | AT34: 0 | AV34: 0 | AW34: 0 | AX34: 0 | AZ34: 0 | BA34: 0 | BB34: 0 | BD34: 0 | BE34: 0 | BF34: 0 | BH34: 0 | BI34: 0 | BJ34: 0 | BL34: 0 | BM34: 0 | BN34: 0 | BP34: 0 | BQ34: 0 | BR34: 0 | BT34: 0 | BU34: 0 | BV34: 0 | BW34: 0 | BX34: 0 | BY34: 0 | BZ34: 0 | CA34: 0 | CB34: 0 | CC34: 0 | CD34: 0 | CE34: 0
B35: 0 | C35: 0 | I35: 0 | J35: 0 | K35: 0 | L35: 0 | M35: 0 | N35: 0 | O35: 0 | P35: 0 | Q35: 0 | R35: 0 | S35: 0 | T35: 0 | U35: 0 | V35: 0 | W35: 0 | X35: 0 | Z35: 0 | AB35: 0 | AC35: 0 | AD35: 0 | AF35: 0 | AG35: 0 | AH35: 0 | AJ35: 0 | AK35: 0 | AL35: 0 | AN35: 0 | AO35: 0 | AP35: 0 | AR35: 0 | AS35: 0 | AT35: 0 | AV35: 0 | AW35: 0 | AX35: 0 | AZ35: 0 | BA35: 0 | BB35: 0 | BD35: 0 | BE35: 0 | BF35: 0 | BH35: 0 | BI35: 0 | BJ35: 0 | BL35: 0 | BM35: 0 | BN35: 0 | BP35: 0 | BQ35: 0 | BR35: 0 | BT35: 0 | BU35: 0 | BV35: 0 | BW35: 0 | BX35: 0 | BY35: 0 | BZ35: 0 | CA35: 0 | CB35: 0 | CC35: 0 | CD35: 0 | CE35: 0
B36: 0 | C36: 0 | I36: 0 | J36: 0 | K36: 0 | L36: 0 | M36: 0 | N36: 0 | O36: 0 | P36: 0 | Q36: 0 | R36: 0 | S36: 0 | T36: 0 | U36: 0 | V36: 0 | W36: 0 | X36: 0 | Z36: 0 | AB36: 0 | AC36: 0 | AD36: 0 | AF36: 0 | AG36: 0 | AH36: 0 | AJ36: 0 | AK36: 0 | AL36: 0 | AN36: 0 | AO36: 0 | AP36: 0 | AR36: 0 | AS36: 0 | AT36: 0 | AV36: 0 | AW36: 0 | AX36: 0 | AZ36: 0 | BA36: 0 | BB36: 0 | BD36: 0 | BE36: 0 | BF36: 0 | BH36: 0 | BI36: 0 | BJ36: 0 | BL36: 0 | BM36: 0 | BN36: 0 | BP36: 0 | BQ36: 0 | BR36: 0 | BT36: 0 | BU36: 0 | BV36: 0 | BW36: 0 | BX36: 0 | BY36: 0 | BZ36: 0 | CA36: 0 | CB36: 0 | CC36: 0 | CD36: 0 | CE36: 0
B37: 0 | C37: 0 | I37: 0 | J37: 0 | K37: 0 | L37: 0 | M37: 0 | N37: 0 | O37: 0 | P37: 0 | Q37: 0 | R37: 0 | S37: 0 | T37: 0 | U37: 0 | V37: 0 | W37: 0 | X37: 0 | Z37: 0 | AB37: 0 | AC37: 0 | AD37: 0 | AF37: 0 | AG37: 0 | AH37: 0 | AJ37: 0 | AK37: 0 | AL37: 0 | AN37: 0 | AO37: 0 | AP37: 0 | AR37: 0 | AS37: 0 | AT37: 0 | AV37: 0 | AW37: 0 | AX37: 0 | AZ37: 0 | BA37: 0 | BB37: 0 | BD37: 0 | BE37: 0 | BF37: 0 | BH37: 0 | BI37: 0 | BJ37: 0 | BL37: 0 | BM37: 0 | BN37: 0 | BP37: 0 | BQ37: 0 | BR37: 0 | BT37: 0 | BU37: 0 | BV37: 0 | BW37: 0 | BX37: 0 | BY37: 0 | BZ37: 0 | CA37: 0 | CB37: 0 | CC37: 0 | CD37: 0 | CE37: 0
B38: 0 | C38: 0 | I38: 0 | J38: 0 | K38: 0 | L38: 0 | M38: 0 | N38: 0 | O38: 0 | P38: 0 | Q38: 0 | R38: 0 | S38: 0 | T38: 0 | U38: 0 | V38: 0 | W38: 0 | X38: 0 | Z38: 0 | AB38: 0 | AC38: 0 | AD38: 0 | AF38: 0 | AG38: 0 | AH38: 0 | AJ38: 0 | AK38: 0 | AL38: 0 | AN38: 0 | AO38: 0 | AP38: 0 | AR38: 0 | AS38: 0 | AT38: 0 | AV38: 0 | AW38: 0 | AX38: 0 | AZ38: 0 | BA38: 0 | BB38: 0 | BD38: 0 | BE38: 0 | BF38: 0 | BH38: 0 | BI38: 0 | BJ38: 0 | BL38: 0 | BM38: 0 | BN38: 0 | BP38: 0 | BQ38: 0 | BR38: 0 | BT38: 0 | BU38: 0 | BV38: 0 | BW38: 0 | BX38: 0 | BY38: 0 | BZ38: 0 | CA38: 0 | CB38: 0 | CC38: 0 | CD38: 0 | CE38: 0
B39: 0 | C39: 0 | I39: 0 | J39: 0 | K39: 0 | L39: 0 | M39: 0 | N39: 0 | O39: 0 | P39: 0 | Q39: 0 | R39: 0 | S39: 0 | T39: 0 | U39: 0 | V39: 0 | W39: 0 | X39: 0 | Z39: 0 | AB39: 0 | AC39: 0 | AD39: 0 | AF39: 0 | AG39: 0 | AH39: 0 | AJ39: 0 | AK39: 0 | AL39: 0 | AN39: 0 | AO39: 0 | AP39: 0 | AR39: 0 | AS39: 0 | AT39: 0 | AV39: 0 | AW39: 0 | AX39: 0 | AZ39: 0 | BA39: 0 | BB39: 0 | BD39: 0 | BE39: 0 | BF39: 0 | BH39: 0 | BI39: 0 | BJ39: 0 | BL39: 0 | BM39: 0 | BN39: 0 | BP39: 0 | BQ39: 0 | BR39: 0 | BT39: 0 | BU39: 0 | BV39: 0 | BW39: 0 | BX39: 0 | BY39: 0 | BZ39: 0 | CA39: 0 | CB39: 0 | CC39: 0 | CD39: 0 | CE39: 0
B40: 0 | C40: 0 | I40: 0 | J40: 0 | K40: 0 | L40: 0 | M40: 0 | N40: 0 | O40: 0 | P40: 0 | Q40: 0 | R40: 0 | S40: 0 | T40: 0 | U40: 0 | V40: 0 | W40: 0 | X40: 0 | Z40: 0 | AB40: 0 | AC40: 0 | AD40: 0 | AF40: 0 | AG40: 0 | AH40: 0 | AJ40: 0 | AK40: 0 | AL40: 0 | AN40: 0 | AO40: 0 | AP40: 0 | AR40: 0 | AS40: 0 | AT40: 0 | AV40: 0 | AW40: 0 | AX40: 0 | AZ40: 0 | BA40: 0 | BB40: 0 | BD40: 0 | BE40: 0 | BF40: 0 | BH40: 0 | BI40: 0 | BJ40: 0 | BL40: 0 | BM40: 0 | BN40: 0 | BP40: 0 | BQ40: 0 | BR40: 0 | BT40: 0 | BU40: 0 | BV40: 0 | BW40: 0 | BX40: 0 | BY40: 0 | BZ40: 0 | CA40: 0 | CB40: 0 | CC40: 0 | CD40: 0 | CE40: 0
B41: 0 | C41: 0 | I41: 0 | J41: 0 | K41: 0 | L41: 0 | M41: 0 | N41: 0 | O41: 0 | P41: 0 | Q41: 0 | R41: 0 | S41: 0 | T41: 0 | U41: 0 | V41: 0 | W41: 0 | X41: 0 | Z41: 0 | AB41: 0 | AC41: 0 | AD41: 0 | AF41: 0 | AG41: 0 | AH41: 0 | AJ41: 0 | AK41: 0 | AL41: 0 | AN41: 0 | AO41: 0 | AP41: 0 | AR41: 0 | AS41: 0 | AT41: 0 | AV41: 0 | AW41: 0 | AX41: 0 | AZ41: 0 | BA41: 0 | BB41: 0 | BD41: 0 | BE41: 0 | BF41: 0 | BH41: 0 | BI41: 0 | BJ41: 0 | BL41: 0 | BM41: 0 | BN41: 0 | BP41: 0 | BQ41: 0 | BR41: 0 | BT41: 0 | BU41: 0 | BV41: 0 | BW41: 0 | BX41: 0 | BY41: 0 | BZ41: 0 | CA41: 0 | CB41: 0 | CC41: 0 | CD41: 0 | CE41: 0
B42: 0 | C42: 0 | I42: 0 | J42: 0 | K42: 0 | L42: 0 | M42: 0 | N42: 0 | O42: 0 | P42: 0 | Q42: 0 | R42: 0 | S42: 0 | T42: 0 | U42: 0 | V42: 0 | W42: 0 | X42: 0 | Z42: 0 | AB42: 0 | AC42: 0 | AD42: 0 | AF42: 0 | AG42: 0 | AH42: 0 | AJ42: 0 | AK42: 0 | AL42: 0 | AN42: 0 | AO42: 0 | AP42: 0 | AR42: 0 | AS42: 0 | AT42: 0 | AV42: 0 | AW42: 0 | AX42: 0 | AZ42: 0 | BA42: 0 | BB42: 0 | BD42: 0 | BE42: 0 | BF42: 0 | BH42: 0 | BI42: 0 | BJ42: 0 | BL42: 0 | BM42: 0 | BN42: 0 | BP42: 0 | BQ42: 0 | BR42: 0 | BT42: 0 | BU42: 0 | BV42: 0 | BW42: 0 | BX42: 0 | BY42: 0 | BZ42: 0 | CA42: 0 | CB42: 0 | CC42: 0 | CD42: 0 | CE42: 0
B43: 0 | C43: 0 | I43: 0 | J43: 0 | K43: 0 | L43: 0 | M43: 0 | N43: 0 | O43: 0 | P43: 0 | Q43: 0 | R43: 0 | S43: 0 | T43: 0 | U43: 0 | V43: 0 | W43: 0 | X43: 0 | Z43: 0 | AB43: 0 | AC43: 0 | AD43: 0 | AF43: 0 | AG43: 0 | AH43: 0 | AJ43: 0 | AK43: 0 | AL43: 0 | AN43: 0 | AO43: 0 | AP43: 0 | AR43: 0 | AS43: 0 | AT43: 0 | AV43: 0 | AW43: 0 | AX43: 0 | AZ43: 0 | BA43: 0 | BB43: 0 | BD43: 0 | BE43: 0 | BF43: 0 | BH43: 0 | BI43: 0 | BJ43: 0 | BL43: 0 | BM43: 0 | BN43: 0 | BP43: 0 | BQ43: 0 | BR43: 0 | BT43: 0 | BU43: 0 | BV43: 0 | BW43: 0 | BX43: 0 | BY43: 0 | BZ43: 0 | CA43: 0 | CB43: 0 | CC43: 0 | CD43: 0 | CE43: 0
B44: 0 | C44: 0 | I44: 0 | J44: 0 | K44: 0 | L44: 0 | M44: 0 | N44: 0 | O44: 0 | P44: 0 | Q44: 0 | R44: 0 | S44: 0 | T44: 0 | U44: 0 | V44: 0 | W44: 0 | X44: 0 | Z44: 0 | AB44: 0 | AC44: 0 | AD44: 0 | AF44: 0 | AG44: 0 | AH44: 0 | AJ44: 0 | AK44: 0 | AL44: 0 | AN44: 0 | AO44: 0 | AP44: 0 | AR44: 0 | AS44: 0 | AT44: 0 | AV44: 0 | AW44: 0 | AX44: 0 | AZ44: 0 | BA44: 0 | BB44: 0 | BD44: 0 | BE44: 0 | BF44: 0 | BH44: 0 | BI44: 0 | BJ44: 0 | BL44: 0 | BM44: 0 | BN44: 0 | BP44: 0 | BQ44: 0 | BR44: 0 | BT44: 0 | BU44: 0 | BV44: 0 | BW44: 0 | BX44: 0 | BY44: 0 | BZ44: 0 | CA44: 0 | CB44: 0 | CC44: 0 | CD44: 0 | CE44: 0
B45: 0 | C45: 0 | I45: 0 | J45: 0 | K45: 0 | L45: 0 | M45: 0 | N45: 0 | O45: 0 | P45: 0 | Q45: 0 | R45: 0 | S45: 0 | T45: 0 | U45: 0 | V45: 0 | W45: 0 | X45: 0 | Z45: 0 | AB45: 0 | AC45: 0 | AD45: 0 | AF45: 0 | AG45: 0 | AH45: 0 | AJ45: 0 | AK45: 0 | AL45: 0 | AN45: 0 | AO45: 0 | AP45: 0 | AR45: 0 | AS45: 0 | AT45: 0 | AV45: 0 | AW45: 0 | AX45: 0 | AZ45: 0 | BA45: 0 | BB45: 0 | BD45: 0 | BE45: 0 | BF45: 0 | BH45: 0 | BI45: 0 | BJ45: 0 | BL45: 0 | BM45: 0 | BN45: 0 | BP45: 0 | BQ45: 0 | BR45: 0 | BT45: 0 | BU45: 0 | BV45: 0 | BW45: 0 | BX45: 0 | BY45: 0 | BZ45: 0 | CA45: 0 | CB45: 0 | CC45: 0 | CD45: 0 | CE45: 0
B46: 0 | C46: 0 | I46: 0 | J46: 0 | K46: 0 | L46: 0 | M46: 0 | N46: 0 | O46: 0 | P46: 0 | Q46: 0 | R46: 0 | S46: 0 | T46: 0 | U46: 0 | V46: 0 | W46: 0 | X46: 0 | Z46: 0 | AB46: 0 | AC46: 0 | AD46: 0 | AF46: 0 | AG46: 0 | AH46: 0 | AJ46: 0 | AK46: 0 | AL46: 0 | AN46: 0 | AO46: 0 | AP46: 0 | AR46: 0 | AS46: 0 | AT46: 0 | AV46: 0 | AW46: 0 | AX46: 0 | AZ46: 0 | BA46: 0 | BB46: 0 | BD46: 0 | BE46: 0 | BF46: 0 | BH46: 0 | BI46: 0 | BJ46: 0 | BL46: 0 | BM46: 0 | BN46: 0 | BP46: 0 | BQ46: 0 | BR46: 0 | BT46: 0 | BU46: 0 | BV46: 0 | BW46: 0 | BX46: 0 | BY46: 0 | BZ46: 0 | CA46: 0 | CB46: 0 | CC46: 0 | CD46: 0 | CE46: 0
B47: 0 | C47: 0 | I47: 0 | J47: 0 | K47: 0 | L47: 0 | M47: 0 | N47: 0 | O47: 0 | P47: 0 | Q47: 0 | R47: 0 | S47: 0 | T47: 0 | U47: 0 | V47: 0 | W47: 0 | X47: 0 | Z47: 0 | AB47: 0 | AC47: 0 | AD47: 0 | AF47: 0 | AG47: 0 | AH47: 0 | AJ47: 0 | AK47: 0 | AL47: 0 | AN47: 0 | AO47: 0 | AP47: 0 | AR47: 0 | AS47: 0 | AT47: 0 | AV47: 0 | AW47: 0 | AX47: 0 | AZ47: 0 | BA47: 0 | BB47: 0 | BD47: 0 | BE47: 0 | BF47: 0 | BH47: 0 | BI47: 0 | BJ47: 0 | BL47: 0 | BM47: 0 | BN47: 0 | BP47: 0 | BQ47: 0 | BR47: 0 | BT47: 0 | BU47: 0 | BV47: 0 | BW47: 0 | BX47: 0 | BY47: 0 | BZ47: 0 | CA47: 0 | CB47: 0 | CC47: 0 | CD47: 0 | CE47: 0
B48: 0 | C48: 0 | I48: 0 | J48: 0 | K48: 0 | L48: 0 | M48: 0 | N48: 0 | O48: 0 | P48: 0 | Q48: 0 | R48: 0 | S48: 0 | T48: 0 | U48: 0 | V48: 0 | W48: 0 | X48: 0 | Z48: 0 | AB48: 0 | AC48: 0 | AD48: 0 | AF48: 0 | AG48: 0 | AH48: 0 | AJ48: 0 | AK48: 0 | AL48: 0 | AN48: 0 | AO48: 0 | AP48: 0 | AR48: 0 | AS48: 0 | AT48: 0 | AV48: 0 | AW48: 0 | AX48: 0 | AZ48: 0 | BA48: 0 | BB48: 0 | BD48: 0 | BE48: 0 | BF48: 0 | BH48: 0 | BI48: 0 | BJ48: 0 | BL48: 0 | BM48: 0 | BN48: 0 | BP48: 0 | BQ48: 0 | BR48: 0 | BT48: 0 | BU48: 0 | BV48: 0 | BW48: 0 | BX48: 0 | BY48: 0 | BZ48: 0 | CA48: 0 | CB48: 0 | CC48: 0 | CD48: 0 | CE48: 0
B49: 0 | C49: 0 | I49: 0 | J49: 0 | K49: 0 | L49: 0 | M49: 0 | N49: 0 | O49: 0 | P49: 0 | Q49: 0 | R49: 0 | S49: 0 | T49: 0 | U49: 0 | V49: 0 | W49: 0 | X49: 0 | Z49: 0 | AB49: 0 | AC49: 0 | AD49: 0 | AF49: 0 | AG49: 0 | AH49: 0 | AJ49: 0 | AK49: 0 | AL49: 0 | AN49: 0 | AO49: 0 | AP49: 0 | AR49: 0 | AS49: 0 | AT49: 0 | AV49: 0 | AW49: 0 | AX49: 0 | AZ49: 0 | BA49: 0 | BB49: 0 | BD49: 0 | BE49: 0 | BF49: 0 | BH49: 0 | BI49: 0 | BJ49: 0 | BL49: 0 | BM49: 0 | BN49: 0 | BP49: 0 | BQ49: 0 | BR49: 0 | BT49: 0 | BU49: 0 | BV49: 0 | BW49: 0 | BX49: 0 | BY49: 0 | BZ49: 0 | CA49: 0 | CB49: 0 | CC49: 0 | CD49: 0 | CE49: 0
B50: 0 | C50: 0 | I50: 0 | J50: 0 | K50: 0 | L50: 0 | M50: 0 | N50: 0 | O50: 0 | P50: 0 | Q50: 0 | R50: 0 | S50: 0 | T50: 0 | U50: 0 | V50: 0 | W50: 0 | X50: 0 | Z50: 0 | AB50: 0 | AC50: 0 | AD50: 0 | AF50: 0 | AG50: 0 | AH50: 0 | AJ50: 0 | AK50: 0 | AL50: 0 | AN50: 0 | AO50: 0 | AP50: 0 | AR50: 0 | AS50: 0 | AT50: 0 | AV50: 0 | AW50: 0 | AX50: 0 | AZ50: 0 | BA50: 0 | BB50: 0 | BD50: 0 | BE50: 0 | BF50: 0 | BH50: 0 | BI50: 0 | BJ50: 0 | BL50: 0 | BM50: 0 | BN50: 0 | BP50: 0 | BQ50: 0 | BR50: 0 | BT50: 0 | BU50: 0 | BV50: 0 | BW50: 0 | BX50: 0 | BY50: 0 | BZ50: 0 | CA50: 0 | CB50: 0 | CC50: 0 | CD50: 0 | CE50: 0
B51: 0 | C51: 0 | I51: 0 | J51: 0 | K51: 0 | L51: 0 | M51: 0 | N51: 0 | O51: 0 | P51: 0 | Q51: 0 | R51: 0 | S51: 0 | T51: 0 | U51: 0 | V51: 0 | W51: 0 | X51: 0 | Z51: 0 | AB51: 0 | AC51: 0 | AD51: 0 | AF51: 0 | AG51: 0 | AH51: 0 | AJ51: 0 | AK51: 0 | AL51: 0 | AN51: 0 | AO51: 0 | AP51: 0 | AR51: 0 | AS51: 0 | AT51: 0 | AV51: 0 | AW51: 0 | AX51: 0 | AZ51: 0 | BA51: 0 | BB51: 0 | BD51: 0 | BE51: 0 | BF51: 0 | BH51: 0 | BI51: 0 | BJ51: 0 | BL51: 0 | BM51: 0 | BN51: 0 | BP51: 0 | BQ51: 0 | BR51: 0 | BT51: 0 | BU51: 0 | BV51: 0 | BW51: 0 | BX51: 0 | BY51: 0 | BZ51: 0 | CA51: 0 | CB51: 0 | CC51: 0 | CD51: 0 | CE51: 0
B52: 0 | C52: 0 | I52: 0 | J52: 0 | K52: 0 | L52: 0 | M52: 0 | N52: 0 | O52: 0 | P52: 0 | Q52: 0 | R52: 0 | S52: 0 | T52: 0 | U52: 0 | V52: 0 | W52: 0 | X52: 0 | Z52: 0 | AB52: 0 | AC52: 0 | AD52: 0 | AF52: 0 | AG52: 0 | AH52: 0 | AJ52: 0 | AK52: 0 | AL52: 0 | AN52: 0 | AO52: 0 | AP52: 0 | AR52: 0 | AS52: 0 | AT52: 0 | AV52: 0 | AW52: 0 | AX52: 0 | AZ52: 0 | BA52: 0 | BB52: 0 | BD52: 0 | BE52: 0 | BF52: 0 | BH52: 0 | BI52: 0 | BJ52: 0 | BL52: 0 | BM52: 0 | BN52: 0 | BP52: 0 | BQ52: 0 | BR52: 0 | BT52: 0 | BU52: 0 | BV52: 0 | BW52: 0 | BX52: 0 | BY52: 0 | BZ52: 0 | CA52: 0 | CB52: 0 | CC52: 0 | CD52: 0 | CE52: 0
B53: 0 | C53: 0 | I53: 0 | J53: 0 | K53: 0 | L53: 0 | M53: 0 | N53: 0 | O53: 0 | P53: 0 | Q53: 0 | R53: 0 | S53: 0 | T53: 0 | U53: 0 | V53: 0 | W53: 0 | X53: 0 | Z53: 0 | AB53: 0 | AC53: 0 | AD53: 0 | AF53: 0 | AG53: 0 | AH53: 0 | AJ53: 0 | AK53: 0 | AL53: 0 | AN53: 0 | AO53: 0 | AP53: 0 | AR53: 0 | AS53: 0 | AT53: 0 | AV53: 0 | AW53: 0 | AX53: 0 | AZ53: 0 | BA53: 0 | BB53: 0 | BD53: 0 | BE53: 0 | BF53: 0 | BH53: 0 | BI53: 0 | BJ53: 0 | BL53: 0 | BM53: 0 | BN53: 0 | BP53: 0 | BQ53: 0 | BR53: 0 | BT53: 0 | BU53: 0 | BV53: 0 | BW53: 0 | BX53: 0 | BY53: 0 | BZ53: 0 | CA53: 0 | CB53: 0 | CC53: 0 | CD53: 0 | CE53: 0
B54: 0 | C54: 0 | I54: 0 | J54: 0 | K54: 0 | L54: 0 | M54: 0 | N54: 0 | O54: 0 | P54: 0 | Q54: 0 | R54: 0 | S54: 0 | T54: 0 | U54: 0 | V54: 0 | W54: 0 | X54: 0 | Z54: 0 | AB54: 0 | AC54: 0 | AD54: 0 | AF54: 0 | AG54: 0 | AH54: 0 | AJ54: 0 | AK54: 0 | AL54: 0 | AN54: 0 | AO54: 0 | AP54: 0 | AR54: 0 | AS54: 0 | AT54: 0 | AV54: 0 | AW54: 0 | AX54: 0 | AZ54: 0 | BA54: 0 | BB54: 0 | BD54: 0 | BE54: 0 | BF54: 0 | BH54: 0 | BI54: 0 | BJ54: 0 | BL54: 0 | BM54: 0 | BN54: 0 | BP54: 0 | BQ54: 0 | BR54: 0 | BT54: 0 | BU54: 0 | BV54: 0 | BW54: 0 | BX54: 0 | BY54: 0 | BZ54: 0 | CA54: 0 | CB54: 0 | CC54: 0 | CD54: 0 | CE54: 0
B55: 0 | C55: 0 | I55: 0 | J55: 0 | K55: 0 | L55: 0 | M55: 0 | N55: 0 | O55: 0 | P55: 0 | Q55: 0 | R55: 0 | S55: 0 | T55: 0 | U55: 0 | V55: 0 | W55: 0 | X55: 0 | Z55: 0 | AB55: 0 | AC55: 0 | AD55: 0 | AF55: 0 | AG55: 0 | AH55: 0 | AJ55: 0 | AK55: 0 | AL55: 0 | AN55: 0 | AO55: 0 | AP55: 0 | AR55: 0 | AS55: 0 | AT55: 0 | AV55: 0 | AW55: 0 | AX55: 0 | AZ55: 0 | BA55: 0 | BB55: 0 | BD55: 0 | BE55: 0 | BF55: 0 | BH55: 0 | BI55: 0 | BJ55: 0 | BL55: 0 | BM55: 0 | BN55: 0 | BP55: 0 | BQ55: 0 | BR55: 0 | BT55: 0 | BU55: 0 | BV55: 0 | BW55: 0 | BX55: 0 | BY55: 0 | BZ55: 0 | CA55: 0 | CB55: 0 | CC55: 0 | CD55: 0 | CE55: 0
B56: 0 | C56: 0 | I56: 0 | J56: 0 | K56: 0 | L56: 0 | M56: 0 | N56: 0 | O56: 0 | P56: 0 | Q56: 0 | R56: 0 | S56: 0 | T56: 0 | U56: 0 | V56: 0 | W56: 0 | X56: 0 | Z56: 0 | AB56: 0 | AC56: 0 | AD56: 0 | AF56: 0 | AG56: 0 | AH56: 0 | AJ56: 0 | AK56: 0 | AL56: 0 | AN56: 0 | AO56: 0 | AP56: 0 | AR56: 0 | AS56: 0 | AT56: 0 | AV56: 0 | AW56: 0 | AX56: 0 | AZ56: 0 | BA56: 0 | BB56: 0 | BD56: 0 | BE56: 0 | BF56: 0 | BH56: 0 | BI56: 0 | BJ56: 0 | BL56: 0 | BM56: 0 | BN56: 0 | BP56: 0 | BQ56: 0 | BR56: 0 | BT56: 0 | BU56: 0 | BV56: 0 | BW56: 0 | BX56: 0 | BY56: 0 | BZ56: 0 | CA56: 0 | CB56: 0 | CC56: 0 | CD56: 0 | CE56: 0
B57: 0 | C57: 0 | I57: 0 | J57: 0 | K57: 0 | L57: 0 | M57: 0 | N57: 0 | O57: 0 | P57: 0 | Q57: 0 | R57: 0 | S57: 0 | T57: 0 | U57: 0 | V57: 0 | W57: 0 | X57: 0 | Z57: 0 | AB57: 0 | AC57: 0 | AD57: 0 | AF57: 0 | AG57: 0 | AH57: 0 | AJ57: 0 | AK57: 0 | AL57: 0 | AN57: 0 | AO57: 0 | AP57: 0 | AR57: 0 | AS57: 0 | AT57: 0 | AV57: 0 | AW57: 0 | AX57: 0 | AZ57: 0 | BA57: 0 | BB57: 0 | BD57: 0 | BE57: 0 | BF57: 0 | BH57: 0 | BI57: 0 | BJ57: 0 | BL57: 0 | BM57: 0 | BN57: 0 | BP57: 0 | BQ57: 0 | BR57: 0 | BT57: 0 | BU57: 0 | BV57: 0 | BW57: 0 | BX57: 0 | BY57: 0 | BZ57: 0 | CA57: 0 | CB57: 0 | CC57: 0 | CD57: 0 | CE57: 0
B58: 0 | C58: 0 | I58: 0 | J58: 0 | K58: 0 | L58: 0 | M58: 0 | N58: 0 | O58: 0 | P58: 0 | Q58: 0 | R58: 0 | S58: 0 | T58: 0 | U58: 0 | V58: 0 | W58: 0 | X58: 0 | Z58: 0 | AB58: 0 | AC58: 0 | AD58: 0 | AF58: 0 | AG58: 0 | AH58: 0 | AJ58: 0 | AK58: 0 | AL58: 0 | AN58: 0 | AO58: 0 | AP58: 0 | AR58: 0 | AS58: 0 | AT58: 0 | AV58: 0 | AW58: 0 | AX58: 0 | AZ58: 0 | BA58: 0 | BB58: 0 | BD58: 0 | BE58: 0 | BF58: 0 | BH58: 0 | BI58: 0 | BJ58: 0 | BL58: 0 | BM58: 0 | BN58: 0 | BP58: 0 | BQ58: 0 | BR58: 0 | BT58: 0 | BU58: 0 | BV58: 0 | BW58: 0 | BX58: 0 | BY58: 0 | BZ58: 0 | CA58: 0 | CB58: 0 | CC58: 0 | CD58: 0 | CE58: 0
B59: 0 | C59: 0 | I59: 0 | J59: 0 | K59: 0 | L59: 0 | M59: 0 | N59: 0 | O59: 0 | P59: 0 | Q59: 0 | R59: 0 | S59: 0 | T59: 0 | U59: 0 | V59: 0 | W59: 0 | X59: 0 | Z59: 0 | AB59: 0 | AC59: 0 | AD59: 0 | AF59: 0 | AG59: 0 | AH59: 0 | AJ59: 0 | AK59: 0 | AL59: 0 | AN59: 0 | AO59: 0 | AP59: 0 | AR59: 0 | AS59: 0 | AT59: 0 | AV59: 0 | AW59: 0 | AX59: 0 | AZ59: 0 | BA59: 0 | BB59: 0 | BD59: 0 | BE59: 0 | BF59: 0 | BH59: 0 | BI59: 0 | BJ59: 0 | BL59: 0 | BM59: 0 | BN59: 0 | BP59: 0 | BQ59: 0 | BR59: 0 | BT59: 0 | BU59: 0 | BV59: 0 | BW59: 0 | BX59: 0 | BY59: 0 | BZ59: 0 | CA59: 0 | CB59: 0 | CC59: 0 | CD59: 0 | CE59: 0
B60: 0 | C60: 0 | I60: 0 | J60: 0 | K60: 0 | L60: 0 | M60: 0 | N60: 0 | O60: 0 | P60: 0 | Q60: 0 | R60: 0 | S60: 0 | T60: 0 | U60: 0 | V60: 0 | W60: 0 | X60: 0 | Z60: 0 | AB60: 0 | AC60: 0 | AD60: 0 | AF60: 0 | AG60: 0 | AH60: 0 | AJ60: 0 | AK60: 0 | AL60: 0 | AN60: 0 | AO60: 0 | AP60: 0 | AR60: 0 | AS60: 0 | AT60: 0 | AV60: 0 | AW60: 0 | AX60: 0 | AZ60: 0 | BA60: 0 | BB60: 0 | BD60: 0 | BE60: 0 | BF60: 0 | BH60: 0 | BI60: 0 | BJ60: 0 | BL60: 0 | BM60: 0 | BN60: 0 | BP60: 0 | BQ60: 0 | BR60: 0 | BT60: 0 | BU60: 0 | BV60: 0 | BW60: 0 | BX60: 0 | BY60: 0 | BZ60: 0 | CA60: 0 | CB60: 0 | CC60: 0 | CD60: 0 | CE60: 0
B61: 0 | C61: 0 | I61: 0 | J61: 0 | K61: 0 | L61: 0 | M61: 0 | N61: 0 | O61: 0 | P61: 0 | Q61: 0 | R61: 0 | S61: 0 | T61: 0 | U61: 0 | V61: 0 | W61: 0 | X61: 0 | Z61: 0 | AB61: 0 | AC61: 0 | AD61: 0 | AF61: 0 | AG61: 0 | AH61: 0 | AJ61: 0 | AK61: 0 | AL61: 0 | AN61: 0 | AO61: 0 | AP61: 0 | AR61: 0 | AS61: 0 | AT61: 0 | AV61: 0 | AW61: 0 | AX61: 0 | AZ61: 0 | BA61: 0 | BB61: 0 | BD61: 0 | BE61: 0 | BF61: 0 | BH61: 0 | BI61: 0 | BJ61: 0 | BL61: 0 | BM61: 0 | BN61: 0 | BP61: 0 | BQ61: 0 | BR61: 0 | BT61: 0 | BU61: 0 | BV61: 0 | BW61: 0 | BX61: 0 | BY61: 0 | BZ61: 0 | CA61: 0 | CB61: 0 | CC61: 0 | CD61: 0 | CE61: 0
B62: 0 | C62: 0 | I62: 0 | J62: 0 | K62: 0 | L62: 0 | M62: 0 | N62: 0 | O62: 0 | P62: 0 | Q62: 0 | R62: 0 | S62: 0 | T62: 0 | U62: 0 | V62: 0 | W62: 0 | X62: 0 | Z62: 0 | AB62: 0 | AC62: 0 | AD62: 0 | AF62: 0 | AG62: 0 | AH62: 0 | AJ62: 0 | AK62: 0 | AL62: 0 | AN62: 0 | AO62: 0 | AP62: 0 | AR62: 0 | AS62: 0 | AT62: 0 | AV62: 0 | AW62: 0 | AX62: 0 | AZ62: 0 | BA62: 0 | BB62: 0 | BD62: 0 | BE62: 0 | BF62: 0 | BH62: 0 | BI62: 0 | BJ62: 0 | BL62: 0 | BM62: 0 | BN62: 0 | BP62: 0 | BQ62: 0 | BR62: 0 | BT62: 0 | BU62: 0 | BV62: 0 | BW62: 0 | BX62: 0 | BY62: 0 | BZ62: 0 | CA62: 0 | CB62: 0 | CC62: 0 | CD62: 0 | CE62: 0
B63: 0 | C63: 0 | I63: 0 | J63: 0 | K63: 0 | L63: 0 | M63: 0 | N63: 0 | O63: 0 | P63: 0 | Q63: 0 | R63: 0 | S63: 0 | T63: 0 | U63: 0 | V63: 0 | W63: 0 | X63: 0 | Z63: 0 | AB63: 0 | AC63: 0 | AD63: 0 | AF63: 0 | AG63: 0 | AH63: 0 | AJ63: 0 | AK63: 0 | AL63: 0 | AN63: 0 | AO63: 0 | AP63: 0 | AR63: 0 | AS63: 0 | AT63: 0 | AV63: 0 | AW63: 0 | AX63: 0 | AZ63: 0 | BA63: 0 | BB63: 0 | BD63: 0 | BE63: 0 | BF63: 0 | BH63: 0 | BI63: 0 | BJ63: 0 | BL63: 0 | BM63: 0 | BN63: 0 | BP63: 0 | BQ63: 0 | BR63: 0 | BT63: 0 | BU63: 0 | BV63: 0 | BW63: 0 | BX63: 0 | BY63: 0 | BZ63: 0 | CA63: 0 | CB63: 0 | CC63: 0 | CD63: 0 | CE63: 0
B64: 0 | C64: 0 | I64: 0 | J64: 0 | K64: 0 | L64: 0 | M64: 0 | N64: 0 | O64: 0 | P64: 0 | Q64: 0 | R64: 0 | S64: 0 | T64: 0 | U64: 0 | V64: 0 | W64: 0 | X64: 0 | Z64: 0 | AB64: 0 | AC64: 0 | AD64: 0 | AF64: 0 | AG64: 0 | AH64: 0 | AJ64: 0 | AK64: 0 | AL64: 0 | AN64: 0 | AO64: 0 | AP64: 0 | AR64: 0 | AS64: 0 | AT64: 0 | AV64: 0 | AW64: 0 | AX64: 0 | AZ64: 0 | BA64: 0 | BB64: 0 | BD64: 0 | BE64: 0 | BF64: 0 | BH64: 0 | BI64: 0 | BJ64: 0 | BL64: 0 | BM64: 0 | BN64: 0 | BP64: 0 | BQ64: 0 | BR64: 0 | BT64: 0 | BU64: 0 | BV64: 0 | BW64: 0 | BX64: 0 | BY64: 0 | BZ64: 0 | CA64: 0 | CB64: 0 | CC64: 0 | CD64: 0 | CE64: 0
B65: 0 | C65: 0 | I65: 0 | J65: 0 | K65: 0 | L65: 0 | M65: 0 | N65: 0 | O65: 0 | P65: 0 | Q65: 0 | R65: 0 | S65: 0 | T65: 0 | U65: 0 | V65: 0 | W65: 0 | X65: 0 | Z65: 0 | AB65: 0 | AC65: 0 | AD65: 0 | AF65: 0 | AG65: 0 | AH65: 0 | AJ65: 0 | AK65: 0 | AL65: 0 | AN65: 0 | AO65: 0 | AP65: 0 | AR65: 0 | AS65: 0 | AT65: 0 | AV65: 0 | AW65: 0 | AX65: 0 | AZ65: 0 | BA65: 0 | BB65: 0 | BD65: 0 | BE65: 0 | BF65: 0 | BH65: 0 | BI65: 0 | BJ65: 0 | BL65: 0 | BM65: 0 | BN65: 0 | BP65: 0 | BQ65: 0 | BR65: 0 | BT65: 0 | BU65: 0 | BV65: 0 | BW65: 0 | BX65: 0 | BY65: 0 | BZ65: 0 | CA65: 0 | CB65: 0 | CC65: 0 | CD65: 0 | CE65: 0
B66: 0 | C66: 0 | I66: 0 | J66: 0 | K66: 0 | L66: 0 | M66: 0 | N66: 0 | O66: 0 | P66: 0 | Q66: 0 | R66: 0 | S66: 0 | T66: 0 | U66: 0 | V66: 0 | W66: 0 | X66: 0 | Z66: 0 | AB66: 0 | AC66: 0 | AD66: 0 | AF66: 0 | AG66: 0 | AH66: 0 | AJ66: 0 | AK66: 0 | AL66: 0 | AN66: 0 | AO66: 0 | AP66: 0 | AR66: 0 | AS66: 0 | AT66: 0 | AV66: 0 | AW66: 0 | AX66: 0 | AZ66: 0 | BA66: 0 | BB66: 0 | BD66: 0 | BE66: 0 | BF66: 0 | BH66: 0 | BI66: 0 | BJ66: 0 | BL66: 0 | BM66: 0 | BN66: 0 | BP66: 0 | BQ66: 0 | BR66: 0 | BT66: 0 | BU66: 0 | BV66: 0 | BW66: 0 | BX66: 0 | BY66: 0 | BZ66: 0 | CA66: 0 | CB66: 0 | CC66: 0 | CD66: 0 | CE66: 0
B67: 0 | C67: 0 | I67: 0 | J67: 0 | K67: 0 | L67: 0 | M67: 0 | N67: 0 | O67: 0 | P67: 0 | Q67: 0 | R67: 0 | S67: 0 | T67: 0 | U67: 0 | V67: 0 | W67: 0 | X67: 0 | Z67: 0 | AB67: 0 | AC67: 0 | AD67: 0 | AF67: 0 | AG67: 0 | AH67: 0 | AJ67: 0 | AK67: 0 | AL67: 0 | AN67: 0 | AO67: 0 | AP67: 0 | AR67: 0 | AS67: 0 | AT67: 0 | AV67: 0 | AW67: 0 | AX67: 0 | AZ67: 0 | BA67: 0 | BB67: 0 | BD67: 0 | BE67: 0 | BF67: 0 | BH67: 0 | BI67: 0 | BJ67: 0 | BL67: 0 | BM67: 0 | BN67: 0 | BP67: 0 | BQ67: 0 | BR67: 0 | BT67: 0 | BU67: 0 | BV67: 0 | BW67: 0 | BX67: 0 | BY67: 0 | BZ67: 0 | CA67: 0 | CB67: 0 | CC67: 0 | CD67: 0 | CE67: 0
B68: 0 | C68: 0 | I68: 0 | J68: 0 | K68: 0 | L68: 0 | M68: 0 | N68: 0 | O68: 0 | P68: 0 | Q68: 0 | R68: 0 | S68: 0 | T68: 0 | U68: 0 | V68: 0 | W68: 0 | X68: 0 | Z68: 0 | AB68: 0 | AC68: 0 | AD68: 0 | AF68: 0 | AG68: 0 | AH68: 0 | AJ68: 0 | AK68: 0 | AL68: 0 | AN68: 0 | AO68: 0 | AP68: 0 | AR68: 0 | AS68: 0 | AT68: 0 | AV68: 0 | AW68: 0 | AX68: 0 | AZ68: 0 | BA68: 0 | BB68: 0 | BD68: 0 | BE68: 0 | BF68: 0 | BH68: 0 | BI68: 0 | BJ68: 0 | BL68: 0 | BM68: 0 | BN68: 0 | BP68: 0 | BQ68: 0 | BR68: 0 | BT68: 0 | BU68: 0 | BV68: 0 | BW68: 0 | BX68: 0 | BY68: 0 | BZ68: 0 | CA68: 0 | CB68: 0 | CC68: 0 | CD68: 0 | CE68: 0
B69: =dfenumber -> 0 | C69: =IFERROR(VLOOKUP(B69,schoolnames,2,0),0) -> 0 | I69: =B69&F69 -> 0 | J69: =IFERROR(VLOOKUP(I69,rateslookup,2,0),0) -> 0 | K69: =J69 -> 0 | L69: =IF(AND(G69<DATE(2019,4,1),H69>DATE(2019,2,28)),J69/12,0) -> 0 | M69: =IF(AND(G69<DATE(2019,5,1),H69>DATE(2019,3,31)),J69/12,0) -> 0 | N69: =IF(AND(G69<DATE(2019,6,1),H69>DATE(2019,4,30)),J69/12,0) -> 0 | O69: =IF(AND(G69<DATE(2019,7,1),H69>DATE(2019,5,31)),J69/12,0) -> 0 | P69: =IF(AND(G69<DATE(2019,8,1),H69>DATE(2019,6,30)),J69/12,0) -> 0 | Q69: =IF(AND(G69<DATE(2019,8,1),H69>DATE(2019,6,30)),J69/12,0) -> 0 | R69: =IF(AND(G69<DATE(2019,10,1),H69>DATE(2019,8,31)),K69/12,0) -> 0 | S69: =IF(AND(G69<DATE(2019,11,1),H69>DATE(2019,9,30)),K69/12,0) -> 0 | T69: =IF(AND(G69<DATE(2019,12,1),H69>DATE(2019,10,31)),K69/12,0) -> 0 | U69: =IF(AND(G69<DATE(2020,1,1),H69>DATE(2019,11,30)),K69/12,0) -> 0 | V69: =IF(AND(G69<DATE(2020,2,1),H69>DATE(2019,12,31)),K69/12,0) -> 0 | W69: =IF(AND(G69<DATE(2020,3,1),H69>DATE(2020,1,31)),K69/12,0) -> 0 | X69: =SUM(L69:W69) -> 0 | Z69: =L69 -> 0 | AB69: =M69 -> 0 | AC69: =L69-Z69 -> 0 | AD69: =AB69+AC69 -> 0 | AF69: =N69 -> 0 | AG69: =SUM(L69:M69)-Z69-AD69 -> 0 | AH69: =AF69+AG69 -> 0 | AJ69: =O69 -> 0 | AK69: =SUM(L69:N69)-Z69-AD69-AH69 -> 0 | AL69: =AJ69+AK69 -> 0 | AN69: =P69 -> 0 | AO69: =SUM(L69:O69)-Z69-AD69-AH69-AL69 -> 0 | AP69: =AN69+AO69 -> 0 | AR69: =Q69 -> 0 | AS69: =SUM(L69:P69)-Z69-AD69-AH69-AL69-AP69 -> 0 | AT69: =AR69+AS69 -> 0 | AV69: =R69 -> 0 | AW69: =SUM(L69:Q69)-Z69-AD69-AH69-AL69-AP69-AT69 -> 0 | AX69: =AV69+AW69 -> 0 | AZ69: =S69 -> 0 | BA69: =SUM(L69:R69)-Z69-AD69-AH69-AL69-AP69-AT69-AX69 -> 0 | BB69: =AZ69+BA69 -> 0 | BD69: =T69 -> 0 | BE69: =SUM(L69:S69)-Z69-AD69-AH69-AL69-AP69-AT69-AX69-BB69 -> 0 | BF69: =BD69+BE69 -> 0 | BH69: =U69 -> 0 | BI69: =SUM(L69:T69)-Z69-AD69-AH69-AL69-AP69-AT69-AX69-BB69-BF69 -> 0 | BJ69: =BH69+BI69 -> 0 | BL69: =V69 -> 0 | BM69: =SUM(L69:U69)-Z69-AD69-AH69-AL69-AP69-AT69-AX69-BB69-BF69-BJ69 -> 0 | BN69: =BL69+BM69 -> 0 | BP69: =W69 -> 0 | BQ69: =SUM(L69:V69)-Z69-AD69-AH69-AL69-AP69-AT69-AX69-BB69-BF69-BJ69-BN69 -> 0 | BR69: =BP69+BQ69 -> 0 | BT69: =IF(L69>0,$B69,0) -> 0 | BU69: =IF(M69>0,$B69,0) -> 0 | BV69: =IF(N69>0,$B69,0) -> 0 | BW69: =IF(O69>0,$B69,0) -> 0 | BX69: =IF(P69>0,$B69,0) -> 0 | BY69: =IF(Q69>0,$B69,0) -> 0 | BZ69: =IF(R69>0,$B69,0) -> 0 | CA69: =IF(S69>0,$B69,0) -> 0 | CB69: =IF(T69>0,$B69,0) -> 0 | CC69: =IF(U69>0,$B69,0) -> 0 | CD69: =IF(V69>0,$B69,0) -> 0 | CE69: =IF(W69>0,$B69,0) -> 0
B70: 0 | C70: 0 | I70: 0 | J70: 0 | K70: 0 | L70: 0 | M70: 0 | N70: 0 | O70: 0 | P70: 0 | Q70: 0 | R70: 0 | S70: 0 | T70: 0 | U70: 0 | V70: 0 | W70: 0 | X70: 0 | Z70: 0 | AB70: 0 | AC70: 0 | AD70: 0 | AF70: 0 | AG70: 0 | AH70: 0 | AJ70: 0 | AK70: 0 | AL70: 0 | AN70: 0 | AO70: 0 | AP70: 0 | AR70: 0 | AS70: 0 | AT70: 0 | AV70: 0 | AW70: 0 | AX70: 0 | AZ70: 0 | BA70: 0 | BB70: 0 | BD70: 0 | BE70: 0 | BF70: 0 | BH70: 0 | BI70: 0 | BJ70: 0 | BL70: 0 | BM70: 0 | BN70: 0 | BP70: 0 | BQ70: 0 | BR70: 0 | BT70: 0 | BU70: 0 | BV70: 0 | BW70: 0 | BX70: 0 | BY70: 0 | BZ70: 0 | CA70: 0 | CB70: 0 | CC70: 0 | CD70: 0 | CE70: 0
B71: 0 | C71: 0 | I71: 0 | J71: 0 | K71: 0 | L71: 0 | M71: 0 | N71: 0 | O71: 0 | P71: 0 | Q71: 0 | R71: 0 | S71: 0 | T71: 0 | U71: 0 | V71: 0 | W71: 0 | X71: 0 | Z71: 0 | AB71: 0 | AC71: 0 | AD71: 0 | AF71: 0 | AG71: 0 | AH71: 0 | AJ71: 0 | AK71: 0 | AL71: 0 | AN71: 0 | AO71: 0 | AP71: 0 | AR71: 0 | AS71: 0 | AT71: 0 | AV71: 0 | AW71: 0 | AX71: 0 | AZ71: 0 | BA71: 0 | BB71: 0 | BD71: 0 | BE71: 0 | BF71: 0 | BH71: 0 | BI71: 0 | BJ71: 0 | BL71: 0 | BM71: 0 | BN71: 0 | BP71: 0 | BQ71: 0 | BR71: 0 | BT71: 0 | BU71: 0 | BV71: 0 | BW71: 0 | BX71: 0 | BY71: 0 | BZ71: 0 | CA71: 0 | CB71: 0 | CC71: 0 | CD71: 0 | CE71: 0
B72: 0 | C72: 0 | I72: 0 | J72: 0 | K72: 0 | L72: 0 | M72: 0 | N72: 0 | O72: 0 | P72: 0 | Q72: 0 | R72: 0 | S72: 0 | T72: 0 | U72: 0 | V72: 0 | W72: 0 | X72: 0 | Z72: 0 | AB72: 0 | AC72: 0 | AD72: 0 | AF72: 0 | AG72: 0 | AH72: 0 | AJ72: 0 | AK72: 0 | AL72: 0 | AN72: 0 | AO72: 0 | AP72: 0 | AR72: 0 | AS72: 0 | AT72: 0 | AV72: 0 | AW72: 0 | AX72: 0 | AZ72: 0 | BA72: 0 | BB72: 0 | BD72: 0 | BE72: 0 | BF72: 0 | BH72: 0 | BI72: 0 | BJ72: 0 | BL72: 0 | BM72: 0 | BN72: 0 | BP72: 0 | BQ72: 0 | BR72: 0 | BT72: 0 | BU72: 0 | BV72: 0 | BW72: 0 | BX72: 0 | BY72: 0 | BZ72: 0 | CA72: 0 | CB72: 0 | CC72: 0 | CD72: 0 | CE72: 0
B73: 0 | C73: 0 | I73: 0 | J73: 0 | K73: 0 | L73: 0 | M73: 0 | N73: 0 | O73: 0 | P73: 0 | Q73: 0 | R73: 0 | S73: 0 | T73: 0 | U73: 0 | V73: 0 | W73: 0 | X73: 0 | Z73: 0 | AB73: 0 | AC73: 0 | AD73: 0 | AF73: 0 | AG73: 0 | AH73: 0 | AJ73: 0 | AK73: 0 | AL73: 0 | AN73: 0 | AO73: 0 | AP73: 0 | AR73: 0 | AS73: 0 | AT73: 0 | AV73: 0 | AW73: 0 | AX73: 0 | AZ73: 0 | BA73: 0 | BB73: 0 | BD73: 0 | BE73: 0 | BF73: 0 | BH73: 0 | BI73: 0 | BJ73: 0 | BL73: 0 | BM73: 0 | BN73: 0 | BP73: 0 | BQ73: 0 | BR73: 0 | BT73: 0 | BU73: 0 | BV73: 0 | BW73: 0 | BX73: 0 | BY73: 0 | BZ73: 0 | CA73: 0 | CB73: 0 | CC73: 0 | CD73: 0 | CE73: 0
B74: 0 | C74: 0 | I74: 0 | J74: 0 | K74: 0 | L74: 0 | M74: 0 | N74: 0 | O74: 0 | P74: 0 | Q74: 0 | R74: 0 | S74: 0 | T74: 0 | U74: 0 | V74: 0 | W74: 0 | X74: 0 | Z74: 0 | AB74: 0 | AC74: 0 | AD74: 0 | AF74: 0 | AG74: 0 | AH74: 0 | AJ74: 0 | AK74: 0 | AL74: 0 | AN74: 0 | AO74: 0 | AP74: 0 | AR74: 0 | AS74: 0 | AT74: 0 | AV74: 0 | AW74: 0 | AX74: 0 | AZ74: 0 | BA74: 0 | BB74: 0 | BD74: 0 | BE74: 0 | BF74: 0 | BH74: 0 | BI74: 0 | BJ74: 0 | BL74: 0 | BM74: 0 | BN74: 0 | BP74: 0 | BQ74: 0 | BR74: 0 | BT74: 0 | BU74: 0 | BV74: 0 | BW74: 0 | BX74: 0 | BY74: 0 | BZ74: 0 | CA74: 0 | CB74: 0 | CC74: 0 | CD74: 0 | CE74: 0
B75: 0 | C75: 0 | I75: 0 | J75: 0 | K75: 0 | L75: 0 | M75: 0 | N75: 0 | O75: 0 | P75: 0 | Q75: 0 | R75: 0 | S75: 0 | T75: 0 | U75: 0 | V75: 0 | W75: 0 | X75: 0 | Z75: 0 | AB75: 0 | AC75: 0 | AD75: 0 | AF75: 0 | AG75: 0 | AH75: 0 | AJ75: 0 | AK75: 0 | AL75: 0 | AN75: 0 | AO75: 0 | AP75: 0 | AR75: 0 | AS75: 0 | AT75: 0 | AV75: 0 | AW75: 0 | AX75: 0 | AZ75: 0 | BA75: 0 | BB75: 0 | BD75: 0 | BE75: 0 | BF75: 0 | BH75: 0 | BI75: 0 | BJ75: 0 | BL75: 0 | BM75: 0 | BN75: 0 | BP75: 0 | BQ75: 0 | BR75: 0 | BT75: 0 | BU75: 0 | BV75: 0 | BW75: 0 | BX75: 0 | BY75: 0 | BZ75: 0 | CA75: 0 | CB75: 0 | CC75: 0 | CD75: 0 | CE75: 0
B76: 0 | C76: 0 | I76: 0 | J76: 0 | K76: 0 | L76: 0 | M76: 0 | N76: 0 | O76: 0 | P76: 0 | Q76: 0 | R76: 0 | S76: 0 | T76: 0 | U76: 0 | V76: 0 | W76: 0 | X76: 0 | Z76: 0 | AB76: 0 | AC76: 0 | AD76: 0 | AF76: 0 | AG76: 0 | AH76: 0 | AJ76: 0 | AK76: 0 | AL76: 0 | AN76: 0 | AO76: 0 | AP76: 0 | AR76: 0 | AS76: 0 | AT76: 0 | AV76: 0 | AW76: 0 | AX76: 0 | AZ76: 0 | BA76: 0 | BB76: 0 | BD76: 0 | BE76: 0 | BF76: 0 | BH76: 0 | BI76: 0 | BJ76: 0 | BL76: 0 | BM76: 0 | BN76: 0 | BP76: 0 | BQ76: 0 | BR76: 0 | BT76: 0 | BU76: 0 | BV76: 0 | BW76: 0 | BX76: 0 | BY76: 0 | BZ76: 0 | CA76: 0 | CB76: 0 | CC76: 0 | CD76: 0 | CE76: 0
B77: 0 | C77: 0 | I77: 0 | J77: 0 | K77: 0 | L77: 0 | M77: 0 | N77: 0 | O77: 0 | P77: 0 | Q77: 0 | R77: 0 | S77: 0 | T77: 0 | U77: 0 | V77: 0 | W77: 0 | X77: 0 | Z77: 0 | AB77: 0 | AC77: 0 | AD77: 0 | AF77: 0 | AG77: 0 | AH77: 0 | AJ77: 0 | AK77: 0 | AL77: 0 | AN77: 0 | AO77: 0 | AP77: 0 | AR77: 0 | AS77: 0 | AT77: 0 | AV77: 0 | AW77: 0 | AX77: 0 | AZ77: 0 | BA77: 0 | BB77: 0 | BD77: 0 | BE77: 0 | BF77: 0 | BH77: 0 | BI77: 0 | BJ77: 0 | BL77: 0 | BM77: 0 | BN77: 0 | BP77: 0 | BQ77: 0 | BR77: 0 | BT77: 0 | BU77: 0 | BV77: 0 | BW77: 0 | BX77: 0 | BY77: 0 | BZ77: 0 | CA77: 0 | CB77: 0 | CC77: 0 | CD77: 0 | CE77: 0
B78: 0 | C78: 0 | I78: 0 | J78: 0 | K78: 0 | L78: 0 | M78: 0 | N78: 0 | O78: 0 | P78: 0 | Q78: 0 | R78: 0 | S78: 0 | T78: 0 | U78: 0 | V78: 0 | W78: 0 | X78: 0 | Z78: 0 | AB78: 0 | AC78: 0 | AD78: 0 | AF78: 0 | AG78: 0 | AH78: 0 | AJ78: 0 | AK78: 0 | AL78: 0 | AN78: 0 | AO78: 0 | AP78: 0 | AR78: 0 | AS78: 0 | AT78: 0 | AV78: 0 | AW78: 0 | AX78: 0 | AZ78: 0 | BA78: 0 | BB78: 0 | BD78: 0 | BE78: 0 | BF78: 0 | BH78: 0 | BI78: 0 | BJ78: 0 | BL78: 0 | BM78: 0 | BN78: 0 | BP78: 0 | BQ78: 0 | BR78: 0 | BT78: 0 | BU78: 0 | BV78: 0 | BW78: 0 | BX78: 0 | BY78: 0 | BZ78: 0 | CA78: 0 | CB78: 0 | CC78: 0 | CD78: 0 | CE78: 0
B79: 0 | C79: 0 | I79: 0 | J79: 0 | K79: 0 | L79: 0 | M79: 0 | N79: 0 | O79: 0 | P79: 0 | Q79: 0 | R79: 0 | S79: 0 | T79: 0 | U79: 0 | V79: 0 | W79: 0 | X79: 0 | Z79: 0 | AB79: 0 | AC79: 0 | AD79: 0 | AF79: 0 | AG79: 0 | AH79: 0 | AJ79: 0 | AK79: 0 | AL79: 0 | AN79: 0 | AO79: 0 | AP79: 0 | AR79: 0 | AS79: 0 | AT79: 0 | AV79: 0 | AW79: 0 | AX79: 0 | AZ79: 0 | BA79: 0 | BB79: 0 | BD79: 0 | BE79: 0 | BF79: 0 | BH79: 0 | BI79: 0 | BJ79: 0 | BL79: 0 | BM79: 0 | BN79: 0 | BP79: 0 | BQ79: 0 | BR79: 0 | BT79: 0 | BU79: 0 | BV79: 0 | BW79: 0 | BX79: 0 | BY79: 0 | BZ79: 0 | CA79: 0 | CB79: 0 | CC79: 0 | CD79: 0 | CE79: 0
B80: 0 | C80: 0 | I80: 0 | J80: 0 | K80: 0 | L80: 0 | M80: 0 | N80: 0 | O80: 0 | P80: 0 | Q80: 0 | R80: 0 | S80: 0 | T80: 0 | U80: 0 | V80: 0 | W80: 0 | X80: 0 | Z80: 0 | AB80: 0 | AC80: 0 | AD80: 0 | AF80: 0 | AG80: 0 | AH80: 0 | AJ80: 0 | AK80: 0 | AL80: 0 | AN80: 0 | AO80: 0 | AP80: 0 | AR80: 0 | AS80: 0 | AT80: 0 | AV80: 0 | AW80: 0 | AX80: 0 | AZ80: 0 | BA80: 0 | BB80: 0 | BD80: 0 | BE80: 0 | BF80: 0 | BH80: 0 | BI80: 0 | BJ80: 0 | BL80: 0 | BM80: 0 | BN80: 0 | BP80: 0 | BQ80: 0 | BR80: 0 | BT80: 0 | BU80: 0 | BV80: 0 | BW80: 0 | BX80: 0 | BY80: 0 | BZ80: 0 | CA80: 0 | CB80: 0 | CC80: 0 | CD80: 0 | CE80: 0
B81: 0 | C81: 0 | I81: 0 | J81: 0 | K81: 0 | L81: 0 | M81: 0 | N81: 0 | O81: 0 | P81: 0 | Q81: 0 | R81: 0 | S81: 0 | T81: 0 | U81: 0 | V81: 0 | W81: 0 | X81: 0 | Z81: 0 | AB81: 0 | AC81: 0 | AD81: 0 | AF81: 0 | AG81: 0 | AH81: 0 | AJ81: 0 | AK81: 0 | AL81: 0 | AN81: 0 | AO81: 0 | AP81: 0 | AR81: 0 | AS81: 0 | AT81: 0 | AV81: 0 | AW81: 0 | AX81: 0 | AZ81: 0 | BA81: 0 | BB81: 0 | BD81: 0 | BE81: 0 | BF81: 0 | BH81: 0 | BI81: 0 | BJ81: 0 | BL81: 0 | BM81: 0 | BN81: 0 | BP81: 0 | BQ81: 0 | BR81: 0 | BT81: 0 | BU81: 0 | BV81: 0 | BW81: 0 | BX81: 0 | BY81: 0 | BZ81: 0 | CA81: 0 | CB81: 0 | CC81: 0 | CD81: 0 | CE81: 0
B82: 0 | C82: 0 | I82: 0 | J82: 0 | K82: 0 | L82: 0 | M82: 0 | N82: 0 | O82: 0 | P82: 0 | Q82: 0 | R82: 0 | S82: 0 | T82: 0 | U82: 0 | V82: 0 | W82: 0 | X82: 0 | Z82: 0 | AB82: 0 | AC82: 0 | AD82: 0 | AF82: 0 | AG82: 0 | AH82: 0 | AJ82: 0 | AK82: 0 | AL82: 0 | AN82: 0 | AO82: 0 | AP82: 0 | AR82: 0 | AS82: 0 | AT82: 0 | AV82: 0 | AW82: 0 | AX82: 0 | AZ82: 0 | BA82: 0 | BB82: 0 | BD82: 0 | BE82: 0 | BF82: 0 | BH82: 0 | BI82: 0 | BJ82: 0 | BL82: 0 | BM82: 0 | BN82: 0 | BP82: 0 | BQ82: 0 | BR82: 0 | BT82: 0 | BU82: 0 | BV82: 0 | BW82: 0 | BX82: 0 | BY82: 0 | BZ82: 0 | CA82: 0 | CB82: 0 | CC82: 0 | CD82: 0 | CE82: 0
B83: 0 | C83: 0 | I83: 0 | J83: 0 | K83: 0 | L83: 0 | M83: 0 | N83: 0 | O83: 0 | P83: 0 | Q83: 0 | R83: 0 | S83: 0 | T83: 0 | U83: 0 | V83: 0 | W83: 0 | X83: 0 | Z83: 0 | AB83: 0 | AC83: 0 | AD83: 0 | AF83: 0 | AG83: 0 | AH83: 0 | AJ83: 0 | AK83: 0 | AL83: 0 | AN83: 0 | AO83: 0 | AP83: 0 | AR83: 0 | AS83: 0 | AT83: 0 | AV83: 0 | AW83: 0 | AX83: 0 | AZ83: 0 | BA83: 0 | BB83: 0 | BD83: 0 | BE83: 0 | BF83: 0 | BH83: 0 | BI83: 0 | BJ83: 0 | BL83: 0 | BM83: 0 | BN83: 0 | BP83: 0 | BQ83: 0 | BR83: 0 | BT83: 0 | BU83: 0 | BV83: 0 | BW83: 0 | BX83: 0 | BY83: 0 | BZ83: 0 | CA83: 0 | CB83: 0 | CC83: 0 | CD83: 0 | CE83: 0
B84: 0 | C84: 0 | I84: 0 | J84: 0 | K84: 0 | L84: 0 | M84: 0 | N84: 0 | O84: 0 | P84: 0 | Q84: 0 | R84: 0 | S84: 0 | T84: 0 | U84: 0 | V84: 0 | W84: 0 | X84: 0 | Z84: 0 | AB84: 0 | AC84: 0 | AD84: 0 | AF84: 0 | AG84: 0 | AH84: 0 | AJ84: 0 | AK84: 0 | AL84: 0 | AN84: 0 | AO84: 0 | AP84: 0 | AR84: 0 | AS84: 0 | AT84: 0 | AV84: 0 | AW84: 0 | AX84: 0 | AZ84: 0 | BA84: 0 | BB84: 0 | BD84: 0 | BE84: 0 | BF84: 0 | BH84: 0 | BI84: 0 | BJ84: 0 | BL84: 0 | BM84: 0 | BN84: 0 | BP84: 0 | BQ84: 0 | BR84: 0 | BT84: 0 | BU84: 0 | BV84: 0 | BW84: 0 | BX84: 0 | BY84: 0 | BZ84: 0 | CA84: 0 | CB84: 0 | CC84: 0 | CD84: 0 | CE84: 0
B85: 0 | C85: 0 | I85: 0 | J85: 0 | K85: 0 | L85: 0 | M85: 0 | N85: 0 | O85: 0 | P85: 0 | Q85: 0 | R85: 0 | S85: 0 | T85: 0 | U85: 0 | V85: 0 | W85: 0 | X85: 0 | Z85: 0 | AB85: 0 | AC85: 0 | AD85: 0 | AF85: 0 | AG85: 0 | AH85: 0 | AJ85: 0 | AK85: 0 | AL85: 0 | AN85: 0 | AO85: 0 | AP85: 0 | AR85: 0 | AS85: 0 | AT85: 0 | AV85: 0 | AW85: 0 | AX85: 0 | AZ85: 0 | BA85: 0 | BB85: 0 | BD85: 0 | BE85: 0 | BF85: 0 | BH85: 0 | BI85: 0 | BJ85: 0 | BL85: 0 | BM85: 0 | BN85: 0 | BP85: 0 | BQ85: 0 | BR85: 0 | BT85: 0 | BU85: 0 | BV85: 0 | BW85: 0 | BX85: 0 | BY85: 0 | BZ85: 0 | CA85: 0 | CB85: 0 | CC85: 0 | CD85: 0 | CE85: 0
B86: 0 | C86: 0 | I86: 0 | J86: 0 | K86: 0 | L86: 0 | M86: 0 | N86: 0 | O86: 0 | P86: 0 | Q86: 0 | R86: 0 | S86: 0 | T86: 0 | U86: 0 | V86: 0 | W86: 0 | X86: 0 | Z86: 0 | AB86: 0 | AC86: 0 | AD86: 0 | AF86: 0 | AG86: 0 | AH86: 0 | AJ86: 0 | AK86: 0 | AL86: 0 | AN86: 0 | AO86: 0 | AP86: 0 | AR86: 0 | AS86: 0 | AT86: 0 | AV86: 0 | AW86: 0 | AX86: 0 | AZ86: 0 | BA86: 0 | BB86: 0 | BD86: 0 | BE86: 0 | BF86: 0 | BH86: 0 | BI86: 0 | BJ86: 0 | BL86: 0 | BM86: 0 | BN86: 0 | BP86: 0 | BQ86: 0 | BR86: 0 | BT86: 0 | BU86: 0 | BV86: 0 | BW86: 0 | BX86: 0 | BY86: 0 | BZ86: 0 | CA86: 0 | CB86: 0 | CC86: 0 | CD86: 0 | CE86: 0
B87: 0 | C87: 0 | I87: 0 | J87: 0 | K87: 0 | L87: 0 | M87: 0 | N87: 0 | O87: 0 | P87: 0 | Q87: 0 | R87: 0 | S87: 0 | T87: 0 | U87: 0 | V87: 0 | W87: 0 | X87: 0 | Z87: 0 | AB87: 0 | AC87: 0 | AD87: 0 | AF87: 0 | AG87: 0 | AH87: 0 | AJ87: 0 | AK87: 0 | AL87: 0 | AN87: 0 | AO87: 0 | AP87: 0 | AR87: 0 | AS87: 0 | AT87: 0 | AV87: 0 | AW87: 0 | AX87: 0 | AZ87: 0 | BA87: 0 | BB87: 0 | BD87: 0 | BE87: 0 | BF87: 0 | BH87: 0 | BI87: 0 | BJ87: 0 | BL87: 0 | BM87: 0 | BN87: 0 | BP87: 0 | BQ87: 0 | BR87: 0 | BT87: 0 | BU87: 0 | BV87: 0 | BW87: 0 | BX87: 0 | BY87: 0 | BZ87: 0 | CA87: 0 | CB87: 0 | CC87: 0 | CD87: 0 | CE87: 0
B88: 0 | C88: 0 | I88: 0 | J88: 0 | K88: 0 | L88: 0 | M88: 0 | N88: 0 | O88: 0 | P88: 0 | Q88: 0 | R88: 0 | S88: 0 | T88: 0 | U88: 0 | V88: 0 | W88: 0 | X88: 0 | Z88: 0 | AB88: 0 | AC88: 0 | AD88: 0 | AF88: 0 | AG88: 0 | AH88: 0 | AJ88: 0 | AK88: 0 | AL88: 0 | AN88: 0 | AO88: 0 | AP88: 0 | AR88: 0 | AS88: 0 | AT88: 0 | AV88: 0 | AW88: 0 | AX88: 0 | AZ88: 0 | BA88: 0 | BB88: 0 | BD88: 0 | BE88: 0 | BF88: 0 | BH88: 0 | BI88: 0 | BJ88: 0 | BL88: 0 | BM88: 0 | BN88: 0 | BP88: 0 | BQ88: 0 | BR88: 0 | BT88: 0 | BU88: 0 | BV88: 0 | BW88: 0 | BX88: 0 | BY88: 0 | BZ88: 0 | CA88: 0 | CB88: 0 | CC88: 0 | CD88: 0 | CE88: 0
B89: 0 | C89: 0 | I89: 0 | J89: 0 | K89: 0 | L89: 0 | M89: 0 | N89: 0 | O89: 0 | P89: 0 | Q89: 0 | R89: 0 | S89: 0 | T89: 0 | U89: 0 | V89: 0 | W89: 0 | X89: 0 | Z89: 0 | AB89: 0 | AC89: 0 | AD89: 0 | AF89: 0 | AG89: 0 | AH89: 0 | AJ89: 0 | AK89: 0 | AL89: 0 | AN89: 0 | AO89: 0 | AP89: 0 | AR89: 0 | AS89: 0 | AT89: 0 | AV89: 0 | AW89: 0 | AX89: 0 | AZ89: 0 | BA89: 0 | BB89: 0 | BD89: 0 | BE89: 0 | BF89: 0 | BH89: 0 | BI89: 0 | BJ89: 0 | BL89: 0 | BM89: 0 | BN89: 0 | BP89: 0 | BQ89: 0 | BR89: 0 | BT89: 0 | BU89: 0 | BV89: 0 | BW89: 0 | BX89: 0 | BY89: 0 | BZ89: 0 | CA89: 0 | CB89: 0 | CC89: 0 | CD89: 0 | CE89: 0
B90: 0 | C90: 0 | I90: 0 | J90: 0 | K90: 0 | L90: 0 | M90: 0 | N90: 0 | O90: 0 | P90: 0 | Q90: 0 | R90: 0 | S90: 0 | T90: 0 | U90: 0 | V90: 0 | W90: 0 | X90: 0 | Z90: 0 | AB90: 0 | AC90: 0 | AD90: 0 | AF90: 0 | AG90: 0 | AH90: 0 | AJ90: 0 | AK90: 0 | AL90: 0 | AN90: 0 | AO90: 0 | AP90: 0 | AR90: 0 | AS90: 0 | AT90: 0 | AV90: 0 | AW90: 0 | AX90: 0 | AZ90: 0 | BA90: 0 | BB90: 0 | BD90: 0 | BE90: 0 | BF90: 0 | BH90: 0 | BI90: 0 | BJ90: 0 | BL90: 0 | BM90: 0 | BN90: 0 | BP90: 0 | BQ90: 0 | BR90: 0 | BT90: 0 | BU90: 0 | BV90: 0 | BW90: 0 | BX90: 0 | BY90: 0 | BZ90: 0 | CA90: 0 | CB90: 0 | CC90: 0 | CD90: 0 | CE90: 0
B91: 0 | C91: 0 | I91: 0 | J91: 0 | K91: 0 | L91: 0 | M91: 0 | N91: 0 | O91: 0 | P91: 0 | Q91: 0 | R91: 0 | S91: 0 | T91: 0 | U91: 0 | V91: 0 | W91: 0 | X91: 0 | Z91: 0 | AB91: 0 | AC91: 0 | AD91: 0 | AF91: 0 | AG91: 0 | AH91: 0 | AJ91: 0 | AK91: 0 | AL91: 0 | AN91: 0 | AO91: 0 | AP91: 0 | AR91: 0 | AS91: 0 | AT91: 0 | AV91: 0 | AW91: 0 | AX91: 0 | AZ91: 0 | BA91: 0 | BB91: 0 | BD91: 0 | BE91: 0 | BF91: 0 | BH91: 0 | BI91: 0 | BJ91: 0 | BL91: 0 | BM91: 0 | BN91: 0 | BP91: 0 | BQ91: 0 | BR91: 0 | BT91: 0 | BU91: 0 | BV91: 0 | BW91: 0 | BX91: 0 | BY91: 0 | BZ91: 0 | CA91: 0 | CB91: 0 | CC91: 0 | CD91: 0 | CE91: 0
B92: 0 | C92: 0 | I92: 0 | J92: 0 | K92: 0 | L92: 0 | M92: 0 | N92: 0 | O92: 0 | P92: 0 | Q92: 0 | R92: 0 | S92: 0 | T92: 0 | U92: 0 | V92: 0 | W92: 0 | X92: 0 | Z92: 0 | AB92: 0 | AC92: 0 | AD92: 0 | AF92: 0 | AG92: 0 | AH92: 0 | AJ92: 0 | AK92: 0 | AL92: 0 | AN92: 0 | AO92: 0 | AP92: 0 | AR92: 0 | AS92: 0 | AT92: 0 | AV92: 0 | AW92: 0 | AX92: 0 | AZ92: 0 | BA92: 0 | BB92: 0 | BD92: 0 | BE92: 0 | BF92: 0 | BH92: 0 | BI92: 0 | BJ92: 0 | BL92: 0 | BM92: 0 | BN92: 0 | BP92: 0 | BQ92: 0 | BR92: 0 | BT92: 0 | BU92: 0 | BV92: 0 | BW92: 0 | BX92: 0 | BY92: 0 | BZ92: 0 | CA92: 0 | CB92: 0 | CC92: 0 | CD92: 0 | CE92: 0
B93: 0 | C93: 0 | I93: 0 | J93: 0 | K93: 0 | L93: 0 | M93: 0 | N93: 0 | O93: 0 | P93: 0 | Q93: 0 | R93: 0 | S93: 0 | T93: 0 | U93: 0 | V93: 0 | W93: 0 | X93: 0 | Z93: 0 | AB93: 0 | AC93: 0 | AD93: 0 | AF93: 0 | AG93: 0 | AH93: 0 | AJ93: 0 | AK93: 0 | AL93: 0 | AN93: 0 | AO93: 0 | AP93: 0 | AR93: 0 | AS93: 0 | AT93: 0 | AV93: 0 | AW93: 0 | AX93: 0 | AZ93: 0 | BA93: 0 | BB93: 0 | BD93: 0 | BE93: 0 | BF93: 0 | BH93: 0 | BI93: 0 | BJ93: 0 | BL93: 0 | BM93: 0 | BN93: 0 | BP93: 0 | BQ93: 0 | BR93: 0 | BT93: 0 | BU93: 0 | BV93: 0 | BW93: 0 | BX93: 0 | BY93: 0 | BZ93: 0 | CA93: 0 | CB93: 0 | CC93: 0 | CD93: 0 | CE93: 0
B94: 0 | C94: 0 | I94: 0 | J94: 0 | K94: 0 | L94: 0 | M94: 0 | N94: 0 | O94: 0 | P94: 0 | Q94: 0 | R94: 0 | S94: 0 | T94: 0 | U94: 0 | V94: 0 | W94: 0 | X94: 0 | Z94: 0 | AB94: 0 | AC94: 0 | AD94: 0 | AF94: 0 | AG94: 0 | AH94: 0 | AJ94: 0 | AK94: 0 | AL94: 0 | AN94: 0 | AO94: 0 | AP94: 0 | AR94: 0 | AS94: 0 | AT94: 0 | AV94: 0 | AW94: 0 | AX94: 0 | AZ94: 0 | BA94: 0 | BB94: 0 | BD94: 0 | BE94: 0 | BF94: 0 | BH94: 0 | BI94: 0 | BJ94: 0 | BL94: 0 | BM94: 0 | BN94: 0 | BP94: 0 | BQ94: 0 | BR94: 0 | BT94: 0 | BU94: 0 | BV94: 0 | BW94: 0 | BX94: 0 | BY94: 0 | BZ94: 0 | CA94: 0 | CB94: 0 | CC94: 0 | CD94: 0 | CE94: 0
B95: 0 | C95: 0 | I95: 0 | J95: 0 | K95: 0 | L95: 0 | M95: 0 | N95: 0 | O95: 0 | P95: 0 | Q95: 0 | R95: 0 | S95: 0 | T95: 0 | U95: 0 | V95: 0 | W95: 0 | X95: 0 | Z95: 0 | AB95: 0 | AC95: 0 | AD95: 0 | AF95: 0 | AG95: 0 | AH95: 0 | AJ95: 0 | AK95: 0 | AL95: 0 | AN95: 0 | AO95: 0 | AP95: 0 | AR95: 0 | AS95: 0 | AT95: 0 | AV95: 0 | AW95: 0 | AX95: 0 | AZ95: 0 | BA95: 0 | BB95: 0 | BD95: 0 | BE95: 0 | BF95: 0 | BH95: 0 | BI95: 0 | BJ95: 0 | BL95: 0 | BM95: 0 | BN95: 0 | BP95: 0 | BQ95: 0 | BR95: 0 | BT95: 0 | BU95: 0 | BV95: 0 | BW95: 0 | BX95: 0 | BY95: 0 | BZ95: 0 | CA95: 0 | CB95: 0 | CC95: 0 | CD95: 0 | CE95: 0
B96: 0 | C96: 0 | I96: 0 | J96: 0 | K96: 0 | L96: 0 | M96: 0 | N96: 0 | O96: 0 | P96: 0 | Q96: 0 | R96: 0 | S96: 0 | T96: 0 | U96: 0 | V96: 0 | W96: 0 | X96: 0 | Z96: 0 | AB96: 0 | AC96: 0 | AD96: 0 | AF96: 0 | AG96: 0 | AH96: 0 | AJ96: 0 | AK96: 0 | AL96: 0 | AN96: 0 | AO96: 0 | AP96: 0 | AR96: 0 | AS96: 0 | AT96: 0 | AV96: 0 | AW96: 0 | AX96: 0 | AZ96: 0 | BA96: 0 | BB96: 0 | BD96: 0 | BE96: 0 | BF96: 0 | BH96: 0 | BI96: 0 | BJ96: 0 | BL96: 0 | BM96: 0 | BN96: 0 | BP96: 0 | BQ96: 0 | BR96: 0 | BT96: 0 | BU96: 0 | BV96: 0 | BW96: 0 | BX96: 0 | BY96: 0 | BZ96: 0 | CA96: 0 | CB96: 0 | CC96: 0 | CD96: 0 | CE96: 0
B97: 0 | C97: 0 | I97: 0 | J97: 0 | K97: 0 | L97: 0 | M97: 0 | N97: 0 | O97: 0 | P97: 0 | Q97: 0 | R97: 0 | S97: 0 | T97: 0 | U97: 0 | V97: 0 | W97: 0 | X97: 0 | Z97: 0 | AB97: 0 | AC97: 0 | AD97: 0 | AF97: 0 | AG97: 0 | AH97: 0 | AJ97: 0 | AK97: 0 | AL97: 0 | AN97: 0 | AO97: 0 | AP97: 0 | AR97: 0 | AS97: 0 | AT97: 0 | AV97: 0 | AW97: 0 | AX97: 0 | AZ97: 0 | BA97: 0 | BB97: 0 | BD97: 0 | BE97: 0 | BF97: 0 | BH97: 0 | BI97: 0 | BJ97: 0 | BL97: 0 | BM97: 0 | BN97: 0 | BP97: 0 | BQ97: 0 | BR97: 0 | BT97: 0 | BU97: 0 | BV97: 0 | BW97: 0 | BX97: 0 | BY97: 0 | BZ97: 0 | CA97: 0 | CB97: 0 | CC97: 0 | CD97: 0 | CE97: 0
B98: 0 | C98: 0 | I98: 0 | J98: 0 | K98: 0 | L98: 0 | M98: 0 | N98: 0 | O98: 0 | P98: 0 | Q98: 0 | R98: 0 | S98: 0 | T98: 0 | U98: 0 | V98: 0 | W98: 0 | X98: 0 | Z98: 0 | AB98: 0 | AC98: 0 | AD98: 0 | AF98: 0 | AG98: 0 | AH98: 0 | AJ98: 0 | AK98: 0 | AL98: 0 | AN98: 0 | AO98: 0 | AP98: 0 | AR98: 0 | AS98: 0 | AT98: 0 | AV98: 0 | AW98: 0 | AX98: 0 | AZ98: 0 | BA98: 0 | BB98: 0 | BD98: 0 | BE98: 0 | BF98: 0 | BH98: 0 | BI98: 0 | BJ98: 0 | BL98: 0 | BM98: 0 | BN98: 0 | BP98: 0 | BQ98: 0 | BR98: 0 | BT98: 0 | BU98: 0 | BV98: 0 | BW98: 0 | BX98: 0 | BY98: 0 | BZ98: 0 | CA98: 0 | CB98: 0 | CC98: 0 | CD98: 0 | CE98: 0
B99: 0 | C99: 0 | I99: 0 | J99: 0 | K99: 0 | L99: 0 | M99: 0 | N99: 0 | O99: 0 | P99: 0 | Q99: 0 | R99: 0 | S99: 0 | T99: 0 | U99: 0 | V99: 0 | W99: 0 | X99: 0 | Z99: 0 | AB99: 0 | AC99: 0 | AD99: 0 | AF99: 0 | AG99: 0 | AH99: 0 | AJ99: 0 | AK99: 0 | AL99: 0 | AN99: 0 | AO99: 0 | AP99: 0 | AR99: 0 | AS99: 0 | AT99: 0 | AV99: 0 | AW99: 0 | AX99: 0 | AZ99: 0 | BA99: 0 | BB99: 0 | BD99: 0 | BE99: 0 | BF99: 0 | BH99: 0 | BI99: 0 | BJ99: 0 | BL99: 0 | BM99: 0 | BN99: 0 | BP99: 0 | BQ99: 0 | BR99: 0 | BT99: 0 | BU99: 0 | BV99: 0 | BW99: 0 | BX99: 0 | BY99: 0 | BZ99: 0 | CA99: 0 | CB99: 0 | CC99: 0 | CD99: 0 | CE99: 0
B100: 0 | C100: 0 | I100: 0 | J100: 0 | K100: 0 | L100: 0 | M100: 0 | N100: 0 | O100: 0 | P100: 0 | Q100: 0 | R100: 0 | S100: 0 | T100: 0 | U100: 0 | V100: 0 | W100: 0 | X100: 0 | Z100: 0 | AB100: 0 | AC100: 0 | AD100: 0 | AF100: 0 | AG100: 0 | AH100: 0 | AJ100: 0 | AK100: 0 | AL100: 0 | AN100: 0 | AO100: 0 | AP100: 0 | AR100: 0 | AS100: 0 | AT100: 0 | AV100: 0 | AW100: 0 | AX100: 0 | AZ100: 0 | BA100: 0 | BB100: 0 | BD100: 0 | BE100: 0 | BF100: 0 | BH100: 0 | BI100: 0 | BJ100: 0 | BL100: 0 | BM100: 0 | BN100: 0 | BP100: 0 | BQ100: 0 | BR100: 0 | BT100: 0 | BU100: 0 | BV100: 0 | BW100: 0 | BX100: 0 | BY100: 0 | BZ100: 0 | CA100: 0 | CB100: 0 | CC100: 0 | CD100: 0 | CE100: 0
B101: 0 | C101: 0 | I101: 0 | J101: 0 | K101: 0 | L101: 0 | M101: 0 | N101: 0 | O101: 0 | P101: 0 | Q101: 0 | R101: 0 | S101: 0 | T101: 0 | U101: 0 | V101: 0 | W101: 0 | X101: 0 | Z101: 0 | AB101: 0 | AC101: 0 | AD101: 0 | AF101: 0 | AG101: 0 | AH101: 0 | AJ101: 0 | AK101: 0 | AL101: 0 | AN101: 0 | AO101: 0 | AP101: 0 | AR101: 0 | AS101: 0 | AT101: 0 | AV101: 0 | AW101: 0 | AX101: 0 | AZ101: 0 | BA101: 0 | BB101: 0 | BD101: 0 | BE101: 0 | BF101: 0 | BH101: 0 | BI101: 0 | BJ101: 0 | BL101: 0 | BM101: 0 | BN101: 0 | BP101: 0 | BQ101: 0 | BR101: 0 | BT101: 0 | BU101: 0 | BV101: 0 | BW101: 0 | BX101: 0 | BY101: 0 | BZ101: 0 | CA101: 0 | CB101: 0 | CC101: 0 | CD101: 0 | CE101: 0
B102: 0 | C102: 0 | I102: 0 | J102: 0 | K102: 0 | L102: 0 | M102: 0 | N102: 0 | O102: 0 | P102: 0 | Q102: 0 | R102: 0 | S102: 0 | T102: 0 | U102: 0 | V102: 0 | W102: 0 | X102: 0 | Z102: 0 | AB102: 0 | AC102: 0 | AD102: 0 | AF102: 0 | AG102: 0 | AH102: 0 | AJ102: 0 | AK102: 0 | AL102: 0 | AN102: 0 | AO102: 0 | AP102: 0 | AR102: 0 | AS102: 0 | AT102: 0 | AV102: 0 | AW102: 0 | AX102: 0 | AZ102: 0 | BA102: 0 | BB102: 0 | BD102: 0 | BE102: 0 | BF102: 0 | BH102: 0 | BI102: 0 | BJ102: 0 | BL102: 0 | BM102: 0 | BN102: 0 | BP102: 0 | BQ102: 0 | BR102: 0 | BT102: 0 | BU102: 0 | BV102: 0 | BW102: 0 | BX102: 0 | BY102: 0 | BZ102: 0 | CA102: 0 | CB102: 0 | CC102: 0 | CD102: 0 | CE102: 0
B103: 0 | C103: 0 | I103: 0 | J103: 0 | K103: 0 | L103: 0 | M103: 0 | N103: 0 | O103: 0 | P103: 0 | Q103: 0 | R103: 0 | S103: 0 | T103: 0 | U103: 0 | V103: 0 | W103: 0 | X103: 0 | Z103: 0 | AB103: 0 | AC103: 0 | AD103: 0 | AF103: 0 | AG103: 0 | AH103: 0 | AJ103: 0 | AK103: 0 | AL103: 0 | AN103: 0 | AO103: 0 | AP103: 0 | AR103: 0 | AS103: 0 | AT103: 0 | AV103: 0 | AW103: 0 | AX103: 0 | AZ103: 0 | BA103: 0 | BB103: 0 | BD103: 0 | BE103: 0 | BF103: 0 | BH103: 0 | BI103: 0 | BJ103: 0 | BL103: 0 | BM103: 0 | BN103: 0 | BP103: 0 | BQ103: 0 | BR103: 0 | BT103: 0 | BU103: 0 | BV103: 0 | BW103: 0 | BX103: 0 | BY103: 0 | BZ103: 0 | CA103: 0 | CB103: 0 | CC103: 0 | CD103: 0 | CE103: 0
B104: 0 | C104: 0 | I104: 0 | J104: 0 | K104: 0 | L104: 0 | M104: 0 | N104: 0 | O104: 0 | P104: 0 | Q104: 0 | R104: 0 | S104: 0 | T104: 0 | U104: 0 | V104: 0 | W104: 0 | X104: 0 | Z104: 0 | AB104: 0 | AC104: 0 | AD104: 0 | AF104: 0 | AG104: 0 | AH104: 0 | AJ104: 0 | AK104: 0 | AL104: 0 | AN104: 0 | AO104: 0 | AP104: 0 | AR104: 0 | AS104: 0 | AT104: 0 | AV104: 0 | AW104: 0 | AX104: 0 | AZ104: 0 | BA104: 0 | BB104: 0 | BD104: 0 | BE104: 0 | BF104: 0 | BH104: 0 | BI104: 0 | BJ104: 0 | BL104: 0 | BM104: 0 | BN104: 0 | BP104: 0 | BQ104: 0 | BR104: 0 | BT104: 0 | BU104: 0 | BV104: 0 | BW104: 0 | BX104: 0 | BY104: 0 | BZ104: 0 | CA104: 0 | CB104: 0 | CC104: 0 | CD104: 0 | CE104: 0
B105: 0 | C105: 0 | I105: 0 | J105: 0 | K105: 0 | L105: 0 | M105: 0 | N105: 0 | O105: 0 | P105: 0 | Q105: 0 | R105: 0 | S105: 0 | T105: 0 | U105: 0 | V105: 0 | W105: 0 | X105: 0 | Z105: 0 | AB105: 0 | AC105: 0 | AD105: 0 | AF105: 0 | AG105: 0 | AH105: 0 | AJ105: 0 | AK105: 0 | AL105: 0 | AN105: 0 | AO105: 0 | AP105: 0 | AR105: 0 | AS105: 0 | AT105: 0 | AV105: 0 | AW105: 0 | AX105: 0 | AZ105: 0 | BA105: 0 | BB105: 0 | BD105: 0 | BE105: 0 | BF105: 0 | BH105: 0 | BI105: 0 | BJ105: 0 | BL105: 0 | BM105: 0 | BN105: 0 | BP105: 0 | BQ105: 0 | BR105: 0 | BT105: 0 | BU105: 0 | BV105: 0 | BW105: 0 | BX105: 0 | BY105: 0 | BZ105: 0 | CA105: 0 | CB105: 0 | CC105: 0 | CD105: 0 | CE105: 0
B106: 0 | C106: 0 | I106: 0 | J106: 0 | K106: 0 | L106: 0 | M106: 0 | N106: 0 | O106: 0 | P106: 0 | Q106: 0 | R106: 0 | S106: 0 | T106: 0 | U106: 0 | V106: 0 | W106: 0 | X106: 0 | Z106: 0 | AB106: 0 | AC106: 0 | AD106: 0 | AF106: 0 | AG106: 0 | AH106: 0 | AJ106: 0 | AK106: 0 | AL106: 0 | AN106: 0 | AO106: 0 | AP106: 0 | AR106: 0 | AS106: 0 | AT106: 0 | AV106: 0 | AW106: 0 | AX106: 0 | AZ106: 0 | BA106: 0 | BB106: 0 | BD106: 0 | BE106: 0 | BF106: 0 | BH106: 0 | BI106: 0 | BJ106: 0 | BL106: 0 | BM106: 0 | BN106: 0 | BP106: 0 | BQ106: 0 | BR106: 0 | BT106: 0 | BU106: 0 | BV106: 0 | BW106: 0 | BX106: 0 | BY106: 0 | BZ106: 0 | CA106: 0 | CB106: 0 | CC106: 0 | CD106: 0 | CE106: 0
B107: 0 | C107: 0 | I107: 0 | J107: 0 | K107: 0 | L107: 0 | M107: 0 | N107: 0 | O107: 0 | P107: 0 | Q107: 0 | R107: 0 | S107: 0 | T107: 0 | U107: 0 | V107: 0 | W107: 0 | X107: 0 | Z107: 0 | AB107: 0 | AC107: 0 | AD107: 0 | AF107: 0 | AG107: 0 | AH107: 0 | AJ107: 0 | AK107: 0 | AL107: 0 | AN107: 0 | AO107: 0 | AP107: 0 | AR107: 0 | AS107: 0 | AT107: 0 | AV107: 0 | AW107: 0 | AX107: 0 | AZ107: 0 | BA107: 0 | BB107: 0 | BD107: 0 | BE107: 0 | BF107: 0 | BH107: 0 | BI107: 0 | BJ107: 0 | BL107: 0 | BM107: 0 | BN107: 0 | BP107: 0 | BQ107: 0 | BR107: 0 | BT107: 0 | BU107: 0 | BV107: 0 | BW107: 0 | BX107: 0 | BY107: 0 | BZ107: 0 | CA107: 0 | CB107: 0 | CC107: 0 | CD107: 0 | CE107: 0
B108: 0 | C108: 0 | I108: 0 | J108: 0 | K108: 0 | L108: 0 | M108: 0 | N108: 0 | O108: 0 | P108: 0 | Q108: 0 | R108: 0 | S108: 0 | T108: 0 | U108: 0 | V108: 0 | W108: 0 | X108: 0 | Z108: 0 | AB108: 0 | AC108: 0 | AD108: 0 | AF108: 0 | AG108: 0 | AH108: 0 | AJ108: 0 | AK108: 0 | AL108: 0 | AN108: 0 | AO108: 0 | AP108: 0 | AR108: 0 | AS108: 0 | AT108: 0 | AV108: 0 | AW108: 0 | AX108: 0 | AZ108: 0 | BA108: 0 | BB108: 0 | BD108: 0 | BE108: 0 | BF108: 0 | BH108: 0 | BI108: 0 | BJ108: 0 | BL108: 0 | BM108: 0 | BN108: 0 | BP108: 0 | BQ108: 0 | BR108: 0 | BT108: 0 | BU108: 0 | BV108: 0 | BW108: 0 | BX108: 0 | BY108: 0 | BZ108: 0 | CA108: 0 | CB108: 0 | CC108: 0 | CD108: 0 | CE108: 0
B109: 0 | C109: 0 | I109: 0 | J109: 0 | K109: 0 | L109: 0 | M109: 0 | N109: 0 | O109: 0 | P109: 0 | Q109: 0 | R109: 0 | S109: 0 | T109: 0 | U109: 0 | V109: 0 | W109: 0 | X109: 0 | Z109: 0 | AB109: 0 | AC109: 0 | AD109: 0 | AF109: 0 | AG109: 0 | AH109: 0 | AJ109: 0 | AK109: 0 | AL109: 0 | AN109: 0 | AO109: 0 | AP109: 0 | AR109: 0 | AS109: 0 | AT109: 0 | AV109: 0 | AW109: 0 | AX109: 0 | AZ109: 0 | BA109: 0 | BB109: 0 | BD109: 0 | BE109: 0 | BF109: 0 | BH109: 0 | BI109: 0 | BJ109: 0 | BL109: 0 | BM109: 0 | BN109: 0 | BP109: 0 | BQ109: 0 | BR109: 0 | BT109: 0 | BU109: 0 | BV109: 0 | BW109: 0 | BX109: 0 | BY109: 0 | BZ109: 0 | CA109: 0 | CB109: 0 | CC109: 0 | CD109: 0 | CE109: 0
B110: 0 | C110: 0 | I110: 0 | J110: 0 | K110: 0 | L110: 0 | M110: 0 | N110: 0 | O110: 0 | P110: 0 | Q110: 0 | R110: 0 | S110: 0 | T110: 0 | U110: 0 | V110: 0 | W110: 0 | X110: 0 | Z110: 0 | AB110: 0 | AC110: 0 | AD110: 0 | AF110: 0 | AG110: 0 | AH110: 0 | AJ110: 0 | AK110: 0 | AL110: 0 | AN110: 0 | AO110: 0 | AP110: 0 | AR110: 0 | AS110: 0 | AT110: 0 | AV110: 0 | AW110: 0 | AX110: 0 | AZ110: 0 | BA110: 0 | BB110: 0 | BD110: 0 | BE110: 0 | BF110: 0 | BH110: 0 | BI110: 0 | BJ110: 0 | BL110: 0 | BM110: 0 | BN110: 0 | BP110: 0 | BQ110: 0 | BR110: 0 | BT110: 0 | BU110: 0 | BV110: 0 | BW110: 0 | BX110: 0 | BY110: 0 | BZ110: 0 | CA110: 0 | CB110: 0 | CC110: 0 | CD110: 0 | CE110: 0
B111: 0 | C111: 0 | I111: 0 | J111: 0 | K111: 0 | L111: 0 | M111: 0 | N111: 0 | O111: 0 | P111: 0 | Q111: 0 | R111: 0 | S111: 0 | T111: 0 | U111: 0 | V111: 0 | W111: 0 | X111: 0 | Z111: 0 | AB111: 0 | AC111: 0 | AD111: 0 | AF111: 0 | AG111: 0 | AH111: 0 | AJ111: 0 | AK111: 0 | AL111: 0 | AN111: 0 | AO111: 0 | AP111: 0 | AR111: 0 | AS111: 0 | AT111: 0 | AV111: 0 | AW111: 0 | AX111: 0 | AZ111: 0 | BA111: 0 | BB111: 0 | BD111: 0 | BE111: 0 | BF111: 0 | BH111: 0 | BI111: 0 | BJ111: 0 | BL111: 0 | BM111: 0 | BN111: 0 | BP111: 0 | BQ111: 0 | BR111: 0 | BT111: 0 | BU111: 0 | BV111: 0 | BW111: 0 | BX111: 0 | BY111: 0 | BZ111: 0 | CA111: 0 | CB111: 0 | CC111: 0 | CD111: 0 | CE111: 0
B112: 0 | C112: 0 | I112: 0 | J112: 0 | K112: 0 | L112: 0 | M112: 0 | N112: 0 | O112: 0 | P112: 0 | Q112: 0 | R112: 0 | S112: 0 | T112: 0 | U112: 0 | V112: 0 | W112: 0 | X112: 0 | Z112: 0 | AB112: 0 | AC112: 0 | AD112: 0 | AF112: 0 | AG112: 0 | AH112: 0 | AJ112: 0 | AK112: 0 | AL112: 0 | AN112: 0 | AO112: 0 | AP112: 0 | AR112: 0 | AS112: 0 | AT112: 0 | AV112: 0 | AW112: 0 | AX112: 0 | AZ112: 0 | BA112: 0 | BB112: 0 | BD112: 0 | BE112: 0 | BF112: 0 | BH112: 0 | BI112: 0 | BJ112: 0 | BL112: 0 | BM112: 0 | BN112: 0 | BP112: 0 | BQ112: 0 | BR112: 0 | BT112: 0 | BU112: 0 | BV112: 0 | BW112: 0 | BX112: 0 | BY112: 0 | BZ112: 0 | CA112: 0 | CB112: 0 | CC112: 0 | CD112: 0 | CE112: 0
B113: 0 | C113: 0 | I113: 0 | J113: 0 | K113: 0 | L113: 0 | M113: 0 | N113: 0 | O113: 0 | P113: 0 | Q113: 0 | R113: 0 | S113: 0 | T113: 0 | U113: 0 | V113: 0 | W113: 0 | X113: 0 | Z113: 0 | AB113: 0 | AC113: 0 | AD113: 0 | AF113: 0 | AG113: 0 | AH113: 0 | AJ113: 0 | AK113: 0 | AL113: 0 | AN113: 0 | AO113: 0 | AP113: 0 | AR113: 0 | AS113: 0 | AT113: 0 | AV113: 0 | AW113: 0 | AX113: 0 | AZ113: 0 | BA113: 0 | BB113: 0 | BD113: 0 | BE113: 0 | BF113: 0 | BH113: 0 | BI113: 0 | BJ113: 0 | BL113: 0 | BM113: 0 | BN113: 0 | BP113: 0 | BQ113: 0 | BR113: 0 | BT113: 0 | BU113: 0 | BV113: 0 | BW113: 0 | BX113: 0 | BY113: 0 | BZ113: 0 | CA113: 0 | CB113: 0 | CC113: 0 | CD113: 0 | CE113: 0
B114: 0 | C114: 0 | I114: 0 | J114: 0 | K114: 0 | L114: 0 | M114: 0 | N114: 0 | O114: 0 | P114: 0 | Q114: 0 | R114: 0 | S114: 0 | T114: 0 | U114: 0 | V114: 0 | W114: 0 | X114: 0 | Z114: 0 | AB114: 0 | AC114: 0 | AD114: 0 | AF114: 0 | AG114: 0 | AH114: 0 | AJ114: 0 | AK114: 0 | AL114: 0 | AN114: 0 | AO114: 0 | AP114: 0 | AR114: 0 | AS114: 0 | AT114: 0 | AV114: 0 | AW114: 0 | AX114: 0 | AZ114: 0 | BA114: 0 | BB114: 0 | BD114: 0 | BE114: 0 | BF114: 0 | BH114: 0 | BI114: 0 | BJ114: 0 | BL114: 0 | BM114: 0 | BN114: 0 | BP114: 0 | BQ114: 0 | BR114: 0 | BT114: 0 | BU114: 0 | BV114: 0 | BW114: 0 | BX114: 0 | BY114: 0 | BZ114: 0 | CA114: 0 | CB114: 0 | CC114: 0 | CD114: 0 | CE114: 0
B115: 0 | C115: 0 | I115: 0 | J115: 0 | K115: 0 | L115: 0 | M115: 0 | N115: 0 | O115: 0 | P115: 0 | Q115: 0 | R115: 0 | S115: 0 | T115: 0 | U115: 0 | V115: 0 | W115: 0 | X115: 0 | Z115: 0 | AB115: 0 | AC115: 0 | AD115: 0 | AF115: 0 | AG115: 0 | AH115: 0 | AJ115: 0 | AK115: 0 | AL115: 0 | AN115: 0 | AO115: 0 | AP115: 0 | AR115: 0 | AS115: 0 | AT115: 0 | AV115: 0 | AW115: 0 | AX115: 0 | AZ115: 0 | BA115: 0 | BB115: 0 | BD115: 0 | BE115: 0 | BF115: 0 | BH115: 0 | BI115: 0 | BJ115: 0 | BL115: 0 | BM115: 0 | BN115: 0 | BP115: 0 | BQ115: 0 | BR115: 0 | BT115: 0 | BU115: 0 | BV115: 0 | BW115: 0 | BX115: 0 | BY115: 0 | BZ115: 0 | CA115: 0 | CB115: 0 | CC115: 0 | CD115: 0 | CE115: 0
B116: 0 | C116: 0 | I116: 0 | J116: 0 | K116: 0 | L116: 0 | M116: 0 | N116: 0 | O116: 0 | P116: 0 | Q116: 0 | R116: 0 | S116: 0 | T116: 0 | U116: 0 | V116: 0 | W116: 0 | X116: 0 | Z116: 0 | AB116: 0 | AC116: 0 | AD116: 0 | AF116: 0 | AG116: 0 | AH116: 0 | AJ116: 0 | AK116: 0 | AL116: 0 | AN116: 0 | AO116: 0 | AP116: 0 | AR116: 0 | AS116: 0 | AT116: 0 | AV116: 0 | AW116: 0 | AX116: 0 | AZ116: 0 | BA116: 0 | BB116: 0 | BD116: 0 | BE116: 0 | BF116: 0 | BH116: 0 | BI116: 0 | BJ116: 0 | BL116: 0 | BM116: 0 | BN116: 0 | BP116: 0 | BQ116: 0 | BR116: 0 | BT116: 0 | BU116: 0 | BV116: 0 | BW116: 0 | BX116: 0 | BY116: 0 | BZ116: 0 | CA116: 0 | CB116: 0 | CC116: 0 | CD116: 0 | CE116: 0
B117: 0 | C117: 0 | I117: 0 | J117: 0 | K117: 0 | L117: 0 | M117: 0 | N117: 0 | O117: 0 | P117: 0 | Q117: 0 | R117: 0 | S117: 0 | T117: 0 | U117: 0 | V117: 0 | W117: 0 | X117: 0 | Z117: 0 | AB117: 0 | AC117: 0 | AD117: 0 | AF117: 0 | AG117: 0 | AH117: 0 | AJ117: 0 | AK117: 0 | AL117: 0 | AN117: 0 | AO117: 0 | AP117: 0 | AR117: 0 | AS117: 0 | AT117: 0 | AV117: 0 | AW117: 0 | AX117: 0 | AZ117: 0 | BA117: 0 | BB117: 0 | BD117: 0 | BE117: 0 | BF117: 0 | BH117: 0 | BI117: 0 | BJ117: 0 | BL117: 0 | BM117: 0 | BN117: 0 | BP117: 0 | BQ117: 0 | BR117: 0 | BT117: 0 | BU117: 0 | BV117: 0 | BW117: 0 | BX117: 0 | BY117: 0 | BZ117: 0 | CA117: 0 | CB117: 0 | CC117: 0 | CD117: 0 | CE117: 0
B118: 0 | C118: 0 | I118: 0 | J118: 0 | K118: 0 | L118: 0 | M118: 0 | N118: 0 | O118: 0 | P118: 0 | Q118: 0 | R118: 0 | S118: 0 | T118: 0 | U118: 0 | V118: 0 | W118: 0 | X118: 0 | Z118: 0 | AB118: 0 | AC118: 0 | AD118: 0 | AF118: 0 | AG118: 0 | AH118: 0 | AJ118: 0 | AK118: 0 | AL118: 0 | AN118: 0 | AO118: 0 | AP118: 0 | AR118: 0 | AS118: 0 | AT118: 0 | AV118: 0 | AW118: 0 | AX118: 0 | AZ118: 0 | BA118: 0 | BB118: 0 | BD118: 0 | BE118: 0 | BF118: 0 | BH118: 0 | BI118: 0 | BJ118: 0 | BL118: 0 | BM118: 0 | BN118: 0 | BP118: 0 | BQ118: 0 | BR118: 0 | BT118: 0 | BU118: 0 | BV118: 0 | BW118: 0 | BX118: 0 | BY118: 0 | BZ118: 0 | CA118: 0 | CB118: 0 | CC118: 0 | CD118: 0 | CE118: 0
B119: 0 | C119: 0 | I119: 0 | J119: 0 | K119: 0 | L119: 0 | M119: 0 | N119: 0 | O119: 0 | P119: 0 | Q119: 0 | R119: 0 | S119: 0 | T119: 0 | U119: 0 | V119: 0 | W119: 0 | X119: 0 | Z119: 0 | AB119: 0 | AC119: 0 | AD119: 0 | AF119: 0 | AG119: 0 | AH119: 0 | AJ119: 0 | AK119: 0 | AL119: 0 | AN119: 0 | AO119: 0 | AP119: 0 | AR119: 0 | AS119: 0 | AT119: 0 | AV119: 0 | AW119: 0 | AX119: 0 | AZ119: 0 | BA119: 0 | BB119: 0 | BD119: 0 | BE119: 0 | BF119: 0 | BH119: 0 | BI119: 0 | BJ119: 0 | BL119: 0 | BM119: 0 | BN119: 0 | BP119: 0 | BQ119: 0 | BR119: 0 | BT119: 0 | BU119: 0 | BV119: 0 | BW119: 0 | BX119: 0 | BY119: 0 | BZ119: 0 | CA119: 0 | CB119: 0 | CC119: 0 | CD119: 0 | CE119: 0
B120: 0 | C120: 0 | I120: 0 | J120: 0 | K120: 0 | L120: 0 | M120: 0 | N120: 0 | O120: 0 | P120: 0 | Q120: 0 | R120: 0 | S120: 0 | T120: 0 | U120: 0 | V120: 0 | W120: 0 | X120: 0 | Z120: 0 | AB120: 0 | AC120: 0 | AD120: 0 | AF120: 0 | AG120: 0 | AH120: 0 | AJ120: 0 | AK120: 0 | AL120: 0 | AN120: 0 | AO120: 0 | AP120: 0 | AR120: 0 | AS120: 0 | AT120: 0 | AV120: 0 | AW120: 0 | AX120: 0 | AZ120: 0 | BA120: 0 | BB120: 0 | BD120: 0 | BE120: 0 | BF120: 0 | BH120: 0 | BI120: 0 | BJ120: 0 | BL120: 0 | BM120: 0 | BN120: 0 | BP120: 0 | BQ120: 0 | BR120: 0 | BT120: 0 | BU120: 0 | BV120: 0 | BW120: 0 | BX120: 0 | BY120: 0 | BZ120: 0 | CA120: 0 | CB120: 0 | CC120: 0 | CD120: 0 | CE120: 0
B121: 0 | C121: 0 | I121: 0 | J121: 0 | K121: 0 | L121: 0 | M121: 0 | N121: 0 | O121: 0 | P121: 0 | Q121: 0 | R121: 0 | S121: 0 | T121: 0 | U121: 0 | V121: 0 | W121: 0 | X121: 0 | Z121: 0 | AB121: 0 | AC121: 0 | AD121: 0 | AF121: 0 | AG121: 0 | AH121: 0 | AJ121: 0 | AK121: 0 | AL121: 0 | AN121: 0 | AO121: 0 | AP121: 0 | AR121: 0 | AS121: 0 | AT121: 0 | AV121: 0 | AW121: 0 | AX121: 0 | AZ121: 0 | BA121: 0 | BB121: 0 | BD121: 0 | BE121: 0 | BF121: 0 | BH121: 0 | BI121: 0 | BJ121: 0 | BL121: 0 | BM121: 0 | BN121: 0 | BP121: 0 | BQ121: 0 | BR121: 0 | BT121: 0 | BU121: 0 | BV121: 0 | BW121: 0 | BX121: 0 | BY121: 0 | BZ121: 0 | CA121: 0 | CB121: 0 | CC121: 0 | CD121: 0 | CE121: 0
B122: 0 | C122: 0 | I122: 0 | J122: 0 | K122: 0 | L122: 0 | M122: 0 | N122: 0 | O122: 0 | P122: 0 | Q122: 0 | R122: 0 | S122: 0 | T122: 0 | U122: 0 | V122: 0 | W122: 0 | X122: 0 | Z122: 0 | AB122: 0 | AC122: 0 | AD122: 0 | AF122: 0 | AG122: 0 | AH122: 0 | AJ122: 0 | AK122: 0 | AL122: 0 | AN122: 0 | AO122: 0 | AP122: 0 | AR122: 0 | AS122: 0 | AT122: 0 | AV122: 0 | AW122: 0 | AX122: 0 | AZ122: 0 | BA122: 0 | BB122: 0 | BD122: 0 | BE122: 0 | BF122: 0 | BH122: 0 | BI122: 0 | BJ122: 0 | BL122: 0 | BM122: 0 | BN122: 0 | BP122: 0 | BQ122: 0 | BR122: 0 | BT122: 0 | BU122: 0 | BV122: 0 | BW122: 0 | BX122: 0 | BY122: 0 | BZ122: 0 | CA122: 0 | CB122: 0 | CC122: 0 | CD122: 0 | CE122: 0
B123: 0 | C123: 0 | I123: 0 | J123: 0 | K123: 0 | L123: 0 | M123: 0 | N123: 0 | O123: 0 | P123: 0 | Q123: 0 | R123: 0 | S123: 0 | T123: 0 | U123: 0 | V123: 0 | W123: 0 | X123: 0 | Z123: 0 | AB123: 0 | AC123: 0 | AD123: 0 | AF123: 0 | AG123: 0 | AH123: 0 | AJ123: 0 | AK123: 0 | AL123: 0 | AN123: 0 | AO123: 0 | AP123: 0 | AR123: 0 | AS123: 0 | AT123: 0 | AV123: 0 | AW123: 0 | AX123: 0 | AZ123: 0 | BA123: 0 | BB123: 0 | BD123: 0 | BE123: 0 | BF123: 0 | BH123: 0 | BI123: 0 | BJ123: 0 | BL123: 0 | BM123: 0 | BN123: 0 | BP123: 0 | BQ123: 0 | BR123: 0 | BT123: 0 | BU123: 0 | BV123: 0 | BW123: 0 | BX123: 0 | BY123: 0 | BZ123: 0 | CA123: 0 | CB123: 0 | CC123: 0 | CD123: 0 | CE123: 0
B124: 0 | C124: 0 | I124: 0 | J124: 0 | K124: 0 | L124: 0 | M124: 0 | N124: 0 | O124: 0 | P124: 0 | Q124: 0 | R124: 0 | S124: 0 | T124: 0 | U124: 0 | V124: 0 | W124: 0 | X124: 0 | Z124: 0 | AB124: 0 | AC124: 0 | AD124: 0 | AF124: 0 | AG124: 0 | AH124: 0 | AJ124: 0 | AK124: 0 | AL124: 0 | AN124: 0 | AO124: 0 | AP124: 0 | AR124: 0 | AS124: 0 | AT124: 0 | AV124: 0 | AW124: 0 | AX124: 0 | AZ124: 0 | BA124: 0 | BB124: 0 | BD124: 0 | BE124: 0 | BF124: 0 | BH124: 0 | BI124: 0 | BJ124: 0 | BL124: 0 | BM124: 0 | BN124: 0 | BP124: 0 | BQ124: 0 | BR124: 0 | BT124: 0 | BU124: 0 | BV124: 0 | BW124: 0 | BX124: 0 | BY124: 0 | BZ124: 0 | CA124: 0 | CB124: 0 | CC124: 0 | CD124: 0 | CE124: 0
B125: 0 | C125: 0 | I125: 0 | J125: 0 | K125: 0 | L125: 0 | M125: 0 | N125: 0 | O125: 0 | P125: 0 | Q125: 0 | R125: 0 | S125: 0 | T125: 0 | U125: 0 | V125: 0 | W125: 0 | X125: 0 | Z125: 0 | AB125: 0 | AC125: 0 | AD125: 0 | AF125: 0 | AG125: 0 | AH125: 0 | AJ125: 0 | AK125: 0 | AL125: 0 | AN125: 0 | AO125: 0 | AP125: 0 | AR125: 0 | AS125: 0 | AT125: 0 | AV125: 0 | AW125: 0 | AX125: 0 | AZ125: 0 | BA125: 0 | BB125: 0 | BD125: 0 | BE125: 0 | BF125: 0 | BH125: 0 | BI125: 0 | BJ125: 0 | BL125: 0 | BM125: 0 | BN125: 0 | BP125: 0 | BQ125: 0 | BR125: 0 | BT125: 0 | BU125: 0 | BV125: 0 | BW125: 0 | BX125: 0 | BY125: 0 | BZ125: 0 | CA125: 0 | CB125: 0 | CC125: 0 | CD125: 0 | CE125: 0
B126: 0 | C126: 0 | I126: 0 | J126: 0 | K126: 0 | L126: 0 | M126: 0 | N126: 0 | O126: 0 | P126: 0 | Q126: 0 | R126: 0 | S126: 0 | T126: 0 | U126: 0 | V126: 0 | W126: 0 | X126: 0 | Z126: 0 | AB126: 0 | AC126: 0 | AD126: 0 | AF126: 0 | AG126: 0 | AH126: 0 | AJ126: 0 | AK126: 0 | AL126: 0 | AN126: 0 | AO126: 0 | AP126: 0 | AR126: 0 | AS126: 0 | AT126: 0 | AV126: 0 | AW126: 0 | AX126: 0 | AZ126: 0 | BA126: 0 | BB126: 0 | BD126: 0 | BE126: 0 | BF126: 0 | BH126: 0 | BI126: 0 | BJ126: 0 | BL126: 0 | BM126: 0 | BN126: 0 | BP126: 0 | BQ126: 0 | BR126: 0 | BT126: 0 | BU126: 0 | BV126: 0 | BW126: 0 | BX126: 0 | BY126: 0 | BZ126: 0 | CA126: 0 | CB126: 0 | CC126: 0 | CD126: 0 | CE126: 0
B127: 0 | C127: 0 | I127: 0 | J127: 0 | K127: 0 | L127: 0 | M127: 0 | N127: 0 | O127: 0 | P127: 0 | Q127: 0 | R127: 0 | S127: 0 | T127: 0 | U127: 0 | V127: 0 | W127: 0 | X127: 0 | Z127: 0 | AB127: 0 | AC127: 0 | AD127: 0 | AF127: 0 | AG127: 0 | AH127: 0 | AJ127: 0 | AK127: 0 | AL127: 0 | AN127: 0 | AO127: 0 | AP127: 0 | AR127: 0 | AS127: 0 | AT127: 0 | AV127: 0 | AW127: 0 | AX127: 0 | AZ127: 0 | BA127: 0 | BB127: 0 | BD127: 0 | BE127: 0 | BF127: 0 | BH127: 0 | BI127: 0 | BJ127: 0 | BL127: 0 | BM127: 0 | BN127: 0 | BP127: 0 | BQ127: 0 | BR127: 0 | BT127: 0 | BU127: 0 | BV127: 0 | BW127: 0 | BX127: 0 | BY127: 0 | BZ127: 0 | CA127: 0 | CB127: 0 | CC127: 0 | CD127: 0 | CE127: 0
B128: 0 | C128: 0 | I128: 0 | J128: 0 | K128: 0 | L128: 0 | M128: 0 | N128: 0 | O128: 0 | P128: 0 | Q128: 0 | R128: 0 | S128: 0 | T128: 0 | U128: 0 | V128: 0 | W128: 0 | X128: 0 | Z128: 0 | AB128: 0 | AC128: 0 | AD128: 0 | AF128: 0 | AG128: 0 | AH128: 0 | AJ128: 0 | AK128: 0 | AL128: 0 | AN128: 0 | AO128: 0 | AP128: 0 | AR128: 0 | AS128: 0 | AT128: 0 | AV128: 0 | AW128: 0 | AX128: 0 | AZ128: 0 | BA128: 0 | BB128: 0 | BD128: 0 | BE128: 0 | BF128: 0 | BH128: 0 | BI128: 0 | BJ128: 0 | BL128: 0 | BM128: 0 | BN128: 0 | BP128: 0 | BQ128: 0 | BR128: 0 | BT128: 0 | BU128: 0 | BV128: 0 | BW128: 0 | BX128: 0 | BY128: 0 | BZ128: 0 | CA128: 0 | CB128: 0 | CC128: 0 | CD128: 0 | CE128: 0
B129: 0 | C129: 0 | I129: 0 | J129: 0 | K129: 0 | L129: 0 | M129: 0 | N129: 0 | O129: 0 | P129: 0 | Q129: 0 | R129: 0 | S129: 0 | T129: 0 | U129: 0 | V129: 0 | W129: 0 | X129: 0 | Z129: 0 | AB129: 0 | AC129: 0 | AD129: 0 | AF129: 0 | AG129: 0 | AH129: 0 | AJ129: 0 | AK129: 0 | AL129: 0 | AN129: 0 | AO129: 0 | AP129: 0 | AR129: 0 | AS129: 0 | AT129: 0 | AV129: 0 | AW129: 0 | AX129: 0 | AZ129: 0 | BA129: 0 | BB129: 0 | BD129: 0 | BE129: 0 | BF129: 0 | BH129: 0 | BI129: 0 | BJ129: 0 | BL129: 0 | BM129: 0 | BN129: 0 | BP129: 0 | BQ129: 0 | BR129: 0 | BT129: 0 | BU129: 0 | BV129: 0 | BW129: 0 | BX129: 0 | BY129: 0 | BZ129: 0 | CA129: 0 | CB129: 0 | CC129: 0 | CD129: 0 | CE129: 0
B130: 0 | C130: 0 | I130: 0 | J130: 0 | K130: 0 | L130: 0 | M130: 0 | N130: 0 | O130: 0 | P130: 0 | Q130: 0 | R130: 0 | S130: 0 | T130: 0 | U130: 0 | V130: 0 | W130: 0 | X130: 0 | Z130: 0 | AB130: 0 | AC130: 0 | AD130: 0 | AF130: 0 | AG130: 0 | AH130: 0 | AJ130: 0 | AK130: 0 | AL130: 0 | AN130: 0 | AO130: 0 | AP130: 0 | AR130: 0 | AS130: 0 | AT130: 0 | AV130: 0 | AW130: 0 | AX130: 0 | AZ130: 0 | BA130: 0 | BB130: 0 | BD130: 0 | BE130: 0 | BF130: 0 | BH130: 0 | BI130: 0 | BJ130: 0 | BL130: 0 | BM130: 0 | BN130: 0 | BP130: 0 | BQ130: 0 | BR130: 0 | BT130: 0 | BU130: 0 | BV130: 0 | BW130: 0 | BX130: 0 | BY130: 0 | BZ130: 0 | CA130: 0 | CB130: 0 | CC130: 0 | CD130: 0 | CE130: 0
B131: 0 | C131: 0 | I131: 0 | J131: 0 | K131: 0 | L131: 0 | M131: 0 | N131: 0 | O131: 0 | P131: 0 | Q131: 0 | R131: 0 | S131: 0 | T131: 0 | U131: 0 | V131: 0 | W131: 0 | X131: 0 | Z131: 0 | AB131: 0 | AC131: 0 | AD131: 0 | AF131: 0 | AG131: 0 | AH131: 0 | AJ131: 0 | AK131: 0 | AL131: 0 | AN131: 0 | AO131: 0 | AP131: 0 | AR131: 0 | AS131: 0 | AT131: 0 | AV131: 0 | AW131: 0 | AX131: 0 | AZ131: 0 | BA131: 0 | BB131: 0 | BD131: 0 | BE131: 0 | BF131: 0 | BH131: 0 | BI131: 0 | BJ131: 0 | BL131: 0 | BM131: 0 | BN131: 0 | BP131: 0 | BQ131: 0 | BR131: 0 | BT131: 0 | BU131: 0 | BV131: 0 | BW131: 0 | BX131: 0 | BY131: 0 | BZ131: 0 | CA131: 0 | CB131: 0 | CC131: 0 | CD131: 0 | CE131: 0
B132: 0 | C132: 0 | I132: 0 | J132: 0 | K132: 0 | L132: 0 | M132: 0 | N132: 0 | O132: 0 | P132: 0 | Q132: 0 | R132: 0 | S132: 0 | T132: 0 | U132: 0 | V132: 0 | W132: 0 | X132: 0 | Z132: 0 | AB132: 0 | AC132: 0 | AD132: 0 | AF132: 0 | AG132: 0 | AH132: 0 | AJ132: 0 | AK132: 0 | AL132: 0 | AN132: 0 | AO132: 0 | AP132: 0 | AR132: 0 | AS132: 0 | AT132: 0 | AV132: 0 | AW132: 0 | AX132: 0 | AZ132: 0 | BA132: 0 | BB132: 0 | BD132: 0 | BE132: 0 | BF132: 0 | BH132: 0 | BI132: 0 | BJ132: 0 | BL132: 0 | BM132: 0 | BN132: 0 | BP132: 0 | BQ132: 0 | BR132: 0 | BT132: 0 | BU132: 0 | BV132: 0 | BW132: 0 | BX132: 0 | BY132: 0 | BZ132: 0 | CA132: 0 | CB132: 0 | CC132: 0 | CD132: 0 | CE132: 0
B133: =dfenumber -> 0 | C133: =IFERROR(VLOOKUP(B133,schoolnames,2,0),0) -> 0 | I133: =B133&F133 -> 0 | J133: =IFERROR(VLOOKUP(I133,rateslookup,2,0),0) -> 0 | K133: =J133 -> 0 | L133: =IF(AND(G133<DATE(2019,4,1),H133>DATE(2019,2,28)),J133/12,0) -> 0 | M133: =IF(AND(G133<DATE(2019,5,1),H133>DATE(2019,3,31)),J133/12,0) -> 0 | N133: =IF(AND(G133<DATE(2019,6,1),H133>DATE(2019,4,30)),J133/12,0) -> 0 | O133: =IF(AND(G133<DATE(2019,7,1),H133>DATE(2019,5,31)),J133/12,0) -> 0 | P133: =IF(AND(G133<DATE(2019,8,1),H133>DATE(2019,6,30)),J133/12,0) -> 0 | Q133: =IF(AND(G133<DATE(2019,8,1),H133>DATE(2019,6,30)),J133/12,0) -> 0 | R133: =IF(AND(G133<DATE(2019,10,1),H133>DATE(2019,8,31)),K133/12,0) -> 0 | S133: =IF(AND(G133<DATE(2019,11,1),H133>DATE(2019,9,30)),K133/12,0) -> 0 | T133: =IF(AND(G133<DATE(2019,12,1),H133>DATE(2019,10,31)),K133/12,0) -> 0 | U133: =IF(AND(G133<DATE(2020,1,1),H133>DATE(2019,11,30)),K133/12,0) -> 0 | V133: =IF(AND(G133<DATE(2020,2,1),H133>DATE(2019,12,31)),K133/12,0) -> 0 | W133: =IF(AND(G133<DATE(2020,3,1),H133>DATE(2020,1,31)),K133/12,0) -> 0 | X133: =SUM(L133:W133) -> 0 | Z133: =L133 -> 0 | AB133: =M133 -> 0 | AC133: =L133-Z133 -> 0 | AD133: =AB133+AC133 -> 0 | AF133: =N133 -> 0 | AG133: =SUM(L133:M133)-Z133-AD133 -> 0 | AH133: =AF133+AG133 -> 0 | AJ133: =O133 -> 0 | AK133: =SUM(L133:N133)-Z133-AD133-AH133 -> 0 | AL133: =AJ133+AK133 -> 0 | AN133: =P133 -> 0 | AO133: =SUM(L133:O133)-Z133-AD133-AH133-AL133 -> 0 | AP133: =AN133+AO133 -> 0 | AR133: =Q133 -> 0 | AS133: =SUM(L133:P133)-Z133-AD133-AH133-AL133-AP133 -> 0 | AT133: =AR133+AS133 -> 0 | AV133: =R133 -> 0 | AW133: =SUM(L133:Q133)-Z133-AD133-AH133-AL133-AP133-AT133 -> 0 | AX133: =AV133+AW133 -> 0 | AZ133: =S133 -> 0 | BA133: =SUM(L133:R133)-Z133-AD133-AH133-AL133-AP133-AT133-AX133 -> 0 | BB133: =AZ133+BA133 -> 0 | BD133: =T133 -> 0 | BE133: =SUM(L133:S133)-Z133-AD133-AH133-AL133-AP133-AT133-AX133-BB133 -> 0 | BF133: =BD133+BE133 -> 0 | BH133: =U133 -> 0 | BI133: =SUM(L133:T133)-Z133-AD133-AH133-AL133-AP133-AT133-AX133-BB133-BF133 -> 0 | BJ133: =BH133+BI133 -> 0 | BL133: =V133 -> 0 | BM133: =SUM(L133:U133)-Z133-AD133-AH133-AL133-AP133-AT133-AX133-BB133-BF133-BJ133 -> 0 | BN133: =BL133+BM133 -> 0 | BP133: =W133 -> 0 | BQ133: =SUM(L133:V133)-Z133-AD133-AH133-AL133-AP133-AT133-AX133-BB133-BF133-BJ133-BN133 -> 0 | BR133: =BP133+BQ133 -> 0 | BT133: =IF(L133>0,$B133,0) -> 0 | BU133: =IF(M133>0,$B133,0) -> 0 | BV133: =IF(N133>0,$B133,0) -> 0 | BW133: =IF(O133>0,$B133,0) -> 0 | BX133: =IF(P133>0,$B133,0) -> 0 | BY133: =IF(Q133>0,$B133,0) -> 0 | BZ133: =IF(R133>0,$B133,0) -> 0 | CA133: =IF(S133>0,$B133,0) -> 0 | CB133: =IF(T133>0,$B133,0) -> 0 | CC133: =IF(U133>0,$B133,0) -> 0 | CD133: =IF(V133>0,$B133,0) -> 0 | CE133: =IF(W133>0,$B133,0) -> 0
B134: 0 | C134: 0 | I134: 0 | J134: 0 | K134: 0 | L134: 0 | M134: 0 | N134: 0 | O134: 0 | P134: 0 | Q134: 0 | R134: 0 | S134: 0 | T134: 0 | U134: 0 | V134: 0 | W134: 0 | X134: 0 | Z134: 0 | AB134: 0 | AC134: 0 | AD134: 0 | AF134: 0 | AG134: 0 | AH134: 0 | AJ134: 0 | AK134: 0 | AL134: 0 | AN134: 0 | AO134: 0 | AP134: 0 | AR134: 0 | AS134: 0 | AT134: 0 | AV134: 0 | AW134: 0 | AX134: 0 | AZ134: 0 | BA134: 0 | BB134: 0 | BD134: 0 | BE134: 0 | BF134: 0 | BH134: 0 | BI134: 0 | BJ134: 0 | BL134: 0 | BM134: 0 | BN134: 0 | BP134: 0 | BQ134: 0 | BR134: 0 | BT134: 0 | BU134: 0 | BV134: 0 | BW134: 0 | BX134: 0 | BY134: 0 | BZ134: 0 | CA134: 0 | CB134: 0 | CC134: 0 | CD134: 0 | CE134: 0
B135: 0 | C135: 0 | I135: 0 | J135: 0 | K135: 0 | L135: 0 | M135: 0 | N135: 0 | O135: 0 | P135: 0 | Q135: 0 | R135: 0 | S135: 0 | T135: 0 | U135: 0 | V135: 0 | W135: 0 | X135: 0 | Z135: 0 | AB135: 0 | AC135: 0 | AD135: 0 | AF135: 0 | AG135: 0 | AH135: 0 | AJ135: 0 | AK135: 0 | AL135: 0 | AN135: 0 | AO135: 0 | AP135: 0 | AR135: 0 | AS135: 0 | AT135: 0 | AV135: 0 | AW135: 0 | AX135: 0 | AZ135: 0 | BA135: 0 | BB135: 0 | BD135: 0 | BE135: 0 | BF135: 0 | BH135: 0 | BI135: 0 | BJ135: 0 | BL135: 0 | BM135: 0 | BN135: 0 | BP135: 0 | BQ135: 0 | BR135: 0 | BT135: 0 | BU135: 0 | BV135: 0 | BW135: 0 | BX135: 0 | BY135: 0 | BZ135: 0 | CA135: 0 | CB135: 0 | CC135: 0 | CD135: 0 | CE135: 0
B136: 0 | C136: 0 | I136: 0 | J136: 0 | K136: 0 | L136: 0 | M136: 0 | N136: 0 | O136: 0 | P136: 0 | Q136: 0 | R136: 0 | S136: 0 | T136: 0 | U136: 0 | V136: 0 | W136: 0 | X136: 0 | Z136: 0 | AB136: 0 | AC136: 0 | AD136: 0 | AF136: 0 | AG136: 0 | AH136: 0 | AJ136: 0 | AK136: 0 | AL136: 0 | AN136: 0 | AO136: 0 | AP136: 0 | AR136: 0 | AS136: 0 | AT136: 0 | AV136: 0 | AW136: 0 | AX136: 0 | AZ136: 0 | BA136: 0 | BB136: 0 | BD136: 0 | BE136: 0 | BF136: 0 | BH136: 0 | BI136: 0 | BJ136: 0 | BL136: 0 | BM136: 0 | BN136: 0 | BP136: 0 | BQ136: 0 | BR136: 0 | BT136: 0 | BU136: 0 | BV136: 0 | BW136: 0 | BX136: 0 | BY136: 0 | BZ136: 0 | CA136: 0 | CB136: 0 | CC136: 0 | CD136: 0 | CE136: 0
B137: 0 | C137: 0 | I137: 0 | J137: 0 | K137: 0 | L137: 0 | M137: 0 | N137: 0 | O137: 0 | P137: 0 | Q137: 0 | R137: 0 | S137: 0 | T137: 0 | U137: 0 | V137: 0 | W137: 0 | X137: 0 | Z137: 0 | AB137: 0 | AC137: 0 | AD137: 0 | AF137: 0 | AG137: 0 | AH137: 0 | AJ137: 0 | AK137: 0 | AL137: 0 | AN137: 0 | AO137: 0 | AP137: 0 | AR137: 0 | AS137: 0 | AT137: 0 | AV137: 0 | AW137: 0 | AX137: 0 | AZ137: 0 | BA137: 0 | BB137: 0 | BD137: 0 | BE137: 0 | BF137: 0 | BH137: 0 | BI137: 0 | BJ137: 0 | BL137: 0 | BM137: 0 | BN137: 0 | BP137: 0 | BQ137: 0 | BR137: 0 | BT137: 0 | BU137: 0 | BV137: 0 | BW137: 0 | BX137: 0 | BY137: 0 | BZ137: 0 | CA137: 0 | CB137: 0 | CC137: 0 | CD137: 0 | CE137: 0
B138: 0 | C138: 0 | I138: 0 | J138: 0 | K138: 0 | L138: 0 | M138: 0 | N138: 0 | O138: 0 | P138: 0 | Q138: 0 | R138: 0 | S138: 0 | T138: 0 | U138: 0 | V138: 0 | W138: 0 | X138: 0 | Z138: 0 | AB138: 0 | AC138: 0 | AD138: 0 | AF138: 0 | AG138: 0 | AH138: 0 | AJ138: 0 | AK138: 0 | AL138: 0 | AN138: 0 | AO138: 0 | AP138: 0 | AR138: 0 | AS138: 0 | AT138: 0 | AV138: 0 | AW138: 0 | AX138: 0 | AZ138: 0 | BA138: 0 | BB138: 0 | BD138: 0 | BE138: 0 | BF138: 0 | BH138: 0 | BI138: 0 | BJ138: 0 | BL138: 0 | BM138: 0 | BN138: 0 | BP138: 0 | BQ138: 0 | BR138: 0 | BT138: 0 | BU138: 0 | BV138: 0 | BW138: 0 | BX138: 0 | BY138: 0 | BZ138: 0 | CA138: 0 | CB138: 0 | CC138: 0 | CD138: 0 | CE138: 0
B139: 0 | C139: 0 | I139: 0 | J139: 0 | K139: 0 | L139: 0 | M139: 0 | N139: 0 | O139: 0 | P139: 0 | Q139: 0 | R139: 0 | S139: 0 | T139: 0 | U139: 0 | V139: 0 | W139: 0 | X139: 0 | Z139: 0 | AB139: 0 | AC139: 0 | AD139: 0 | AF139: 0 | AG139: 0 | AH139: 0 | AJ139: 0 | AK139: 0 | AL139: 0 | AN139: 0 | AO139: 0 | AP139: 0 | AR139: 0 | AS139: 0 | AT139: 0 | AV139: 0 | AW139: 0 | AX139: 0 | AZ139: 0 | BA139: 0 | BB139: 0 | BD139: 0 | BE139: 0 | BF139: 0 | BH139: 0 | BI139: 0 | BJ139: 0 | BL139: 0 | BM139: 0 | BN139: 0 | BP139: 0 | BQ139: 0 | BR139: 0 | BT139: 0 | BU139: 0 | BV139: 0 | BW139: 0 | BX139: 0 | BY139: 0 | BZ139: 0 | CA139: 0 | CB139: 0 | CC139: 0 | CD139: 0 | CE139: 0
B140: 0 | C140: 0 | I140: 0 | J140: 0 | K140: 0 | L140: 0 | M140: 0 | N140: 0 | O140: 0 | P140: 0 | Q140: 0 | R140: 0 | S140: 0 | T140: 0 | U140: 0 | V140: 0 | W140: 0 | X140: 0 | Z140: 0 | AB140: 0 | AC140: 0 | AD140: 0 | AF140: 0 | AG140: 0 | AH140: 0 | AJ140: 0 | AK140: 0 | AL140: 0 | AN140: 0 | AO140: 0 | AP140: 0 | AR140: 0 | AS140: 0 | AT140: 0 | AV140: 0 | AW140: 0 | AX140: 0 | AZ140: 0 | BA140: 0 | BB140: 0 | BD140: 0 | BE140: 0 | BF140: 0 | BH140: 0 | BI140: 0 | BJ140: 0 | BL140: 0 | BM140: 0 | BN140: 0 | BP140: 0 | BQ140: 0 | BR140: 0 | BT140: 0 | BU140: 0 | BV140: 0 | BW140: 0 | BX140: 0 | BY140: 0 | BZ140: 0 | CA140: 0 | CB140: 0 | CC140: 0 | CD140: 0 | CE140: 0
B141: 0 | C141: 0 | I141: 0 | J141: 0 | K141: 0 | L141: 0 | M141: 0 | N141: 0 | O141: 0 | P141: 0 | Q141: 0 | R141: 0 | S141: 0 | T141: 0 | U141: 0 | V141: 0 | W141: 0 | X141: 0 | Z141: 0 | AB141: 0 | AC141: 0 | AD141: 0 | AF141: 0 | AG141: 0 | AH141: 0 | AJ141: 0 | AK141: 0 | AL141: 0 | AN141: 0 | AO141: 0 | AP141: 0 | AR141: 0 | AS141: 0 | AT141: 0 | AV141: 0 | AW141: 0 | AX141: 0 | AZ141: 0 | BA141: 0 | BB141: 0 | BD141: 0 | BE141: 0 | BF141: 0 | BH141: 0 | BI141: 0 | BJ141: 0 | BL141: 0 | BM141: 0 | BN141: 0 | BP141: 0 | BQ141: 0 | BR141: 0 | BT141: 0 | BU141: 0 | BV141: 0 | BW141: 0 | BX141: 0 | BY141: 0 | BZ141: 0 | CA141: 0 | CB141: 0 | CC141: 0 | CD141: 0 | CE141: 0
B142: 0 | C142: 0 | I142: 0 | J142: 0 | K142: 0 | L142: 0 | M142: 0 | N142: 0 | O142: 0 | P142: 0 | Q142: 0 | R142: 0 | S142: 0 | T142: 0 | U142: 0 | V142: 0 | W142: 0 | X142: 0 | Z142: 0 | AB142: 0 | AC142: 0 | AD142: 0 | AF142: 0 | AG142: 0 | AH142: 0 | AJ142: 0 | AK142: 0 | AL142: 0 | AN142: 0 | AO142: 0 | AP142: 0 | AR142: 0 | AS142: 0 | AT142: 0 | AV142: 0 | AW142: 0 | AX142: 0 | AZ142: 0 | BA142: 0 | BB142: 0 | BD142: 0 | BE142: 0 | BF142: 0 | BH142: 0 | BI142: 0 | BJ142: 0 | BL142: 0 | BM142: 0 | BN142: 0 | BP142: 0 | BQ142: 0 | BR142: 0 | BT142: 0 | BU142: 0 | BV142: 0 | BW142: 0 | BX142: 0 | BY142: 0 | BZ142: 0 | CA142: 0 | CB142: 0 | CC142: 0 | CD142: 0 | CE142: 0
B143: 0 | C143: 0 | I143: 0 | J143: 0 | K143: 0 | L143: 0 | M143: 0 | N143: 0 | O143: 0 | P143: 0 | Q143: 0 | R143: 0 | S143: 0 | T143: 0 | U143: 0 | V143: 0 | W143: 0 | X143: 0 | Z143: 0 | AB143: 0 | AC143: 0 | AD143: 0 | AF143: 0 | AG143: 0 | AH143: 0 | AJ143: 0 | AK143: 0 | AL143: 0 | AN143: 0 | AO143: 0 | AP143: 0 | AR143: 0 | AS143: 0 | AT143: 0 | AV143: 0 | AW143: 0 | AX143: 0 | AZ143: 0 | BA143: 0 | BB143: 0 | BD143: 0 | BE143: 0 | BF143: 0 | BH143: 0 | BI143: 0 | BJ143: 0 | BL143: 0 | BM143: 0 | BN143: 0 | BP143: 0 | BQ143: 0 | BR143: 0 | BT143: 0 | BU143: 0 | BV143: 0 | BW143: 0 | BX143: 0 | BY143: 0 | BZ143: 0 | CA143: 0 | CB143: 0 | CC143: 0 | CD143: 0 | CE143: 0
B144: 0 | C144: 0 | I144: 0 | J144: 0 | K144: 0 | L144: 0 | M144: 0 | N144: 0 | O144: 0 | P144: 0 | Q144: 0 | R144: 0 | S144: 0 | T144: 0 | U144: 0 | V144: 0 | W144: 0 | X144: 0 | Z144: 0 | AB144: 0 | AC144: 0 | AD144: 0 | AF144: 0 | AG144: 0 | AH144: 0 | AJ144: 0 | AK144: 0 | AL144: 0 | AN144: 0 | AO144: 0 | AP144: 0 | AR144: 0 | AS144: 0 | AT144: 0 | AV144: 0 | AW144: 0 | AX144: 0 | AZ144: 0 | BA144: 0 | BB144: 0 | BD144: 0 | BE144: 0 | BF144: 0 | BH144: 0 | BI144: 0 | BJ144: 0 | BL144: 0 | BM144: 0 | BN144: 0 | BP144: 0 | BQ144: 0 | BR144: 0 | BT144: 0 | BU144: 0 | BV144: 0 | BW144: 0 | BX144: 0 | BY144: 0 | BZ144: 0 | CA144: 0 | CB144: 0 | CC144: 0 | CD144: 0 | CE144: 0
B145: 0 | C145: 0 | I145: 0 | J145: 0 | K145: 0 | L145: 0 | M145: 0 | N145: 0 | O145: 0 | P145: 0 | Q145: 0 | R145: 0 | S145: 0 | T145: 0 | U145: 0 | V145: 0 | W145: 0 | X145: 0 | Z145: 0 | AB145: 0 | AC145: 0 | AD145: 0 | AF145: 0 | AG145: 0 | AH145: 0 | AJ145: 0 | AK145: 0 | AL145: 0 | AN145: 0 | AO145: 0 | AP145: 0 | AR145: 0 | AS145: 0 | AT145: 0 | AV145: 0 | AW145: 0 | AX145: 0 | AZ145: 0 | BA145: 0 | BB145: 0 | BD145: 0 | BE145: 0 | BF145: 0 | BH145: 0 | BI145: 0 | BJ145: 0 | BL145: 0 | BM145: 0 | BN145: 0 | BP145: 0 | BQ145: 0 | BR145: 0 | BT145: 0 | BU145: 0 | BV145: 0 | BW145: 0 | BX145: 0 | BY145: 0 | BZ145: 0 | CA145: 0 | CB145: 0 | CC145: 0 | CD145: 0 | CE145: 0
B146: 0 | C146: 0 | I146: 0 | J146: 0 | K146: 0 | L146: 0 | M146: 0 | N146: 0 | O146: 0 | P146: 0 | Q146: 0 | R146: 0 | S146: 0 | T146: 0 | U146: 0 | V146: 0 | W146: 0 | X146: 0 | Z146: 0 | AB146: 0 | AC146: 0 | AD146: 0 | AF146: 0 | AG146: 0 | AH146: 0 | AJ146: 0 | AK146: 0 | AL146: 0 | AN146: 0 | AO146: 0 | AP146: 0 | AR146: 0 | AS146: 0 | AT146: 0 | AV146: 0 | AW146: 0 | AX146: 0 | AZ146: 0 | BA146: 0 | BB146: 0 | BD146: 0 | BE146: 0 | BF146: 0 | BH146: 0 | BI146: 0 | BJ146: 0 | BL146: 0 | BM146: 0 | BN146: 0 | BP146: 0 | BQ146: 0 | BR146: 0 | BT146: 0 | BU146: 0 | BV146: 0 | BW146: 0 | BX146: 0 | BY146: 0 | BZ146: 0 | CA146: 0 | CB146: 0 | CC146: 0 | CD146: 0 | CE146: 0
B147: 0 | C147: 0 | I147: 0 | J147: 0 | K147: 0 | L147: 0 | M147: 0 | N147: 0 | O147: 0 | P147: 0 | Q147: 0 | R147: 0 | S147: 0 | T147: 0 | U147: 0 | V147: 0 | W147: 0 | X147: 0 | Z147: 0 | AB147: 0 | AC147: 0 | AD147: 0 | AF147: 0 | AG147: 0 | AH147: 0 | AJ147: 0 | AK147: 0 | AL147: 0 | AN147: 0 | AO147: 0 | AP147: 0 | AR147: 0 | AS147: 0 | AT147: 0 | AV147: 0 | AW147: 0 | AX147: 0 | AZ147: 0 | BA147: 0 | BB147: 0 | BD147: 0 | BE147: 0 | BF147: 0 | BH147: 0 | BI147: 0 | BJ147: 0 | BL147: 0 | BM147: 0 | BN147: 0 | BP147: 0 | BQ147: 0 | BR147: 0 | BT147: 0 | BU147: 0 | BV147: 0 | BW147: 0 | BX147: 0 | BY147: 0 | BZ147: 0 | CA147: 0 | CB147: 0 | CC147: 0 | CD147: 0 | CE147: 0
B148: 0 | C148: 0 | I148: 0 | J148: 0 | K148: 0 | L148: 0 | M148: 0 | N148: 0 | O148: 0 | P148: 0 | Q148: 0 | R148: 0 | S148: 0 | T148: 0 | U148: 0 | V148: 0 | W148: 0 | X148: 0 | Z148: 0 | AB148: 0 | AC148: 0 | AD148: 0 | AF148: 0 | AG148: 0 | AH148: 0 | AJ148: 0 | AK148: 0 | AL148: 0 | AN148: 0 | AO148: 0 | AP148: 0 | AR148: 0 | AS148: 0 | AT148: 0 | AV148: 0 | AW148: 0 | AX148: 0 | AZ148: 0 | BA148: 0 | BB148: 0 | BD148: 0 | BE148: 0 | BF148: 0 | BH148: 0 | BI148: 0 | BJ148: 0 | BL148: 0 | BM148: 0 | BN148: 0 | BP148: 0 | BQ148: 0 | BR148: 0 | BT148: 0 | BU148: 0 | BV148: 0 | BW148: 0 | BX148: 0 | BY148: 0 | BZ148: 0 | CA148: 0 | CB148: 0 | CC148: 0 | CD148: 0 | CE148: 0
B149: 0 | C149: 0 | I149: 0 | J149: 0 | K149: 0 | L149: 0 | M149: 0 | N149: 0 | O149: 0 | P149: 0 | Q149: 0 | R149: 0 | S149: 0 | T149: 0 | U149: 0 | V149: 0 | W149: 0 | X149: 0 | Z149: 0 | AB149: 0 | AC149: 0 | AD149: 0 | AF149: 0 | AG149: 0 | AH149: 0 | AJ149: 0 | AK149: 0 | AL149: 0 | AN149: 0 | AO149: 0 | AP149: 0 | AR149: 0 | AS149: 0 | AT149: 0 | AV149: 0 | AW149: 0 | AX149: 0 | AZ149: 0 | BA149: 0 | BB149: 0 | BD149: 0 | BE149: 0 | BF149: 0 | BH149: 0 | BI149: 0 | BJ149: 0 | BL149: 0 | BM149: 0 | BN149: 0 | BP149: 0 | BQ149: 0 | BR149: 0 | BT149: 0 | BU149: 0 | BV149: 0 | BW149: 0 | BX149: 0 | BY149: 0 | BZ149: 0 | CA149: 0 | CB149: 0 | CC149: 0 | CD149: 0 | CE149: 0
B150: 0 | C150: 0 | I150: 0 | J150: 0 | K150: 0 | L150: 0 | M150: 0 | N150: 0 | O150: 0 | P150: 0 | Q150: 0 | R150: 0 | S150: 0 | T150: 0 | U150: 0 | V150: 0 | W150: 0 | X150: 0 | Z150: 0 | AB150: 0 | AC150: 0 | AD150: 0 | AF150: 0 | AG150: 0 | AH150: 0 | AJ150: 0 | AK150: 0 | AL150: 0 | AN150: 0 | AO150: 0 | AP150: 0 | AR150: 0 | AS150: 0 | AT150: 0 | AV150: 0 | AW150: 0 | AX150: 0 | AZ150: 0 | BA150: 0 | BB150: 0 | BD150: 0 | BE150: 0 | BF150: 0 | BH150: 0 | BI150: 0 | BJ150: 0 | BL150: 0 | BM150: 0 | BN150: 0 | BP150: 0 | BQ150: 0 | BR150: 0 | BT150: 0 | BU150: 0 | BV150: 0 | BW150: 0 | BX150: 0 | BY150: 0 | BZ150: 0 | CA150: 0 | CB150: 0 | CC150: 0 | CD150: 0 | CE150: 0
B151: 0 | C151: 0 | I151: 0 | J151: 0 | K151: 0 | L151: 0 | M151: 0 | N151: 0 | O151: 0 | P151: 0 | Q151: 0 | R151: 0 | S151: 0 | T151: 0 | U151: 0 | V151: 0 | W151: 0 | X151: 0 | Z151: 0 | AB151: 0 | AC151: 0 | AD151: 0 | AF151: 0 | AG151: 0 | AH151: 0 | AJ151: 0 | AK151: 0 | AL151: 0 | AN151: 0 | AO151: 0 | AP151: 0 | AR151: 0 | AS151: 0 | AT151: 0 | AV151: 0 | AW151: 0 | AX151: 0 | AZ151: 0 | BA151: 0 | BB151: 0 | BD151: 0 | BE151: 0 | BF151: 0 | BH151: 0 | BI151: 0 | BJ151: 0 | BL151: 0 | BM151: 0 | BN151: 0 | BP151: 0 | BQ151: 0 | BR151: 0 | BT151: 0 | BU151: 0 | BV151: 0 | BW151: 0 | BX151: 0 | BY151: 0 | BZ151: 0 | CA151: 0 | CB151: 0 | CC151: 0 | CD151: 0 | CE151: 0
B152: 0 | C152: 0 | I152: 0 | J152: 0 | K152: 0 | L152: 0 | M152: 0 | N152: 0 | O152: 0 | P152: 0 | Q152: 0 | R152: 0 | S152: 0 | T152: 0 | U152: 0 | V152: 0 | W152: 0 | X152: 0 | Z152: 0 | AB152: 0 | AC152: 0 | AD152: 0 | AF152: 0 | AG152: 0 | AH152: 0 | AJ152: 0 | AK152: 0 | AL152: 0 | AN152: 0 | AO152: 0 | AP152: 0 | AR152: 0 | AS152: 0 | AT152: 0 | AV152: 0 | AW152: 0 | AX152: 0 | AZ152: 0 | BA152: 0 | BB152: 0 | BD152: 0 | BE152: 0 | BF152: 0 | BH152: 0 | BI152: 0 | BJ152: 0 | BL152: 0 | BM152: 0 | BN152: 0 | BP152: 0 | BQ152: 0 | BR152: 0 | BT152: 0 | BU152: 0 | BV152: 0 | BW152: 0 | BX152: 0 | BY152: 0 | BZ152: 0 | CA152: 0 | CB152: 0 | CC152: 0 | CD152: 0 | CE152: 0
B153: 0 | C153: 0 | I153: 0 | J153: 0 | K153: 0 | L153: 0 | M153: 0 | N153: 0 | O153: 0 | P153: 0 | Q153: 0 | R153: 0 | S153: 0 | T153: 0 | U153: 0 | V153: 0 | W153: 0 | X153: 0 | Z153: 0 | AB153: 0 | AC153: 0 | AD153: 0 | AF153: 0 | AG153: 0 | AH153: 0 | AJ153: 0 | AK153: 0 | AL153: 0 | AN153: 0 | AO153: 0 | AP153: 0 | AR153: 0 | AS153: 0 | AT153: 0 | AV153: 0 | AW153: 0 | AX153: 0 | AZ153: 0 | BA153: 0 | BB153: 0 | BD153: 0 | BE153: 0 | BF153: 0 | BH153: 0 | BI153: 0 | BJ153: 0 | BL153: 0 | BM153: 0 | BN153: 0 | BP153: 0 | BQ153: 0 | BR153: 0 | BT153: 0 | BU153: 0 | BV153: 0 | BW153: 0 | BX153: 0 | BY153: 0 | BZ153: 0 | CA153: 0 | CB153: 0 | CC153: 0 | CD153: 0 | CE153: 0
B154: 0 | C154: 0 | I154: 0 | J154: 0 | K154: 0 | L154: 0 | M154: 0 | N154: 0 | O154: 0 | P154: 0 | Q154: 0 | R154: 0 | S154: 0 | T154: 0 | U154: 0 | V154: 0 | W154: 0 | X154: 0 | Z154: 0 | AB154: 0 | AC154: 0 | AD154: 0 | AF154: 0 | AG154: 0 | AH154: 0 | AJ154: 0 | AK154: 0 | AL154: 0 | AN154: 0 | AO154: 0 | AP154: 0 | AR154: 0 | AS154: 0 | AT154: 0 | AV154: 0 | AW154: 0 | AX154: 0 | AZ154: 0 | BA154: 0 | BB154: 0 | BD154: 0 | BE154: 0 | BF154: 0 | BH154: 0 | BI154: 0 | BJ154: 0 | BL154: 0 | BM154: 0 | BN154: 0 | BP154: 0 | BQ154: 0 | BR154: 0 | BT154: 0 | BU154: 0 | BV154: 0 | BW154: 0 | BX154: 0 | BY154: 0 | BZ154: 0 | CA154: 0 | CB154: 0 | CC154: 0 | CD154: 0 | CE154: 0
B155: 0 | C155: 0 | I155: 0 | J155: 0 | K155: 0 | L155: 0 | M155: 0 | N155: 0 | O155: 0 | P155: 0 | Q155: 0 | R155: 0 | S155: 0 | T155: 0 | U155: 0 | V155: 0 | W155: 0 | X155: 0 | Z155: 0 | AB155: 0 | AC155: 0 | AD155: 0 | AF155: 0 | AG155: 0 | AH155: 0 | AJ155: 0 | AK155: 0 | AL155: 0 | AN155: 0 | AO155: 0 | AP155: 0 | AR155: 0 | AS155: 0 | AT155: 0 | AV155: 0 | AW155: 0 | AX155: 0 | AZ155: 0 | BA155: 0 | BB155: 0 | BD155: 0 | BE155: 0 | BF155: 0 | BH155: 0 | BI155: 0 | BJ155: 0 | BL155: 0 | BM155: 0 | BN155: 0 | BP155: 0 | BQ155: 0 | BR155: 0 | BT155: 0 | BU155: 0 | BV155: 0 | BW155: 0 | BX155: 0 | BY155: 0 | BZ155: 0 | CA155: 0 | CB155: 0 | CC155: 0 | CD155: 0 | CE155: 0
B156: 0 | C156: 0 | I156: 0 | J156: 0 | K156: 0 | L156: 0 | M156: 0 | N156: 0 | O156: 0 | P156: 0 | Q156: 0 | R156: 0 | S156: 0 | T156: 0 | U156: 0 | V156: 0 | W156: 0 | X156: 0 | Z156: 0 | AB156: 0 | AC156: 0 | AD156: 0 | AF156: 0 | AG156: 0 | AH156: 0 | AJ156: 0 | AK156: 0 | AL156: 0 | AN156: 0 | AO156: 0 | AP156: 0 | AR156: 0 | AS156: 0 | AT156: 0 | AV156: 0 | AW156: 0 | AX156: 0 | AZ156: 0 | BA156: 0 | BB156: 0 | BD156: 0 | BE156: 0 | BF156: 0 | BH156: 0 | BI156: 0 | BJ156: 0 | BL156: 0 | BM156: 0 | BN156: 0 | BP156: 0 | BQ156: 0 | BR156: 0 | BT156: 0 | BU156: 0 | BV156: 0 | BW156: 0 | BX156: 0 | BY156: 0 | BZ156: 0 | CA156: 0 | CB156: 0 | CC156: 0 | CD156: 0 | CE156: 0
B157: 0 | C157: 0 | I157: 0 | J157: 0 | K157: 0 | L157: 0 | M157: 0 | N157: 0 | O157: 0 | P157: 0 | Q157: 0 | R157: 0 | S157: 0 | T157: 0 | U157: 0 | V157: 0 | W157: 0 | X157: 0 | Z157: 0 | AB157: 0 | AC157: 0 | AD157: 0 | AF157: 0 | AG157: 0 | AH157: 0 | AJ157: 0 | AK157: 0 | AL157: 0 | AN157: 0 | AO157: 0 | AP157: 0 | AR157: 0 | AS157: 0 | AT157: 0 | AV157: 0 | AW157: 0 | AX157: 0 | AZ157: 0 | BA157: 0 | BB157: 0 | BD157: 0 | BE157: 0 | BF157: 0 | BH157: 0 | BI157: 0 | BJ157: 0 | BL157: 0 | BM157: 0 | BN157: 0 | BP157: 0 | BQ157: 0 | BR157: 0 | BT157: 0 | BU157: 0 | BV157: 0 | BW157: 0 | BX157: 0 | BY157: 0 | BZ157: 0 | CA157: 0 | CB157: 0 | CC157: 0 | CD157: 0 | CE157: 0
B158: 0 | C158: 0 | I158: 0 | J158: 0 | K158: 0 | L158: 0 | M158: 0 | N158: 0 | O158: 0 | P158: 0 | Q158: 0 | R158: 0 | S158: 0 | T158: 0 | U158: 0 | V158: 0 | W158: 0 | X158: 0 | Z158: 0 | AB158: 0 | AC158: 0 | AD158: 0 | AF158: 0 | AG158: 0 | AH158: 0 | AJ158: 0 | AK158: 0 | AL158: 0 | AN158: 0 | AO158: 0 | AP158: 0 | AR158: 0 | AS158: 0 | AT158: 0 | AV158: 0 | AW158: 0 | AX158: 0 | AZ158: 0 | BA158: 0 | BB158: 0 | BD158: 0 | BE158: 0 | BF158: 0 | BH158: 0 | BI158: 0 | BJ158: 0 | BL158: 0 | BM158: 0 | BN158: 0 | BP158: 0 | BQ158: 0 | BR158: 0 | BT158: 0 | BU158: 0 | BV158: 0 | BW158: 0 | BX158: 0 | BY158: 0 | BZ158: 0 | CA158: 0 | CB158: 0 | CC158: 0 | CD158: 0 | CE158: 0
B159: 0 | C159: 0 | I159: 0 | J159: 0 | K159: 0 | L159: 0 | M159: 0 | N159: 0 | O159: 0 | P159: 0 | Q159: 0 | R159: 0 | S159: 0 | T159: 0 | U159: 0 | V159: 0 | W159: 0 | X159: 0 | Z159: 0 | AB159: 0 | AC159: 0 | AD159: 0 | AF159: 0 | AG159: 0 | AH159: 0 | AJ159: 0 | AK159: 0 | AL159: 0 | AN159: 0 | AO159: 0 | AP159: 0 | AR159: 0 | AS159: 0 | AT159: 0 | AV159: 0 | AW159: 0 | AX159: 0 | AZ159: 0 | BA159: 0 | BB159: 0 | BD159: 0 | BE159: 0 | BF159: 0 | BH159: 0 | BI159: 0 | BJ159: 0 | BL159: 0 | BM159: 0 | BN159: 0 | BP159: 0 | BQ159: 0 | BR159: 0 | BT159: 0 | BU159: 0 | BV159: 0 | BW159: 0 | BX159: 0 | BY159: 0 | BZ159: 0 | CA159: 0 | CB159: 0 | CC159: 0 | CD159: 0 | CE159: 0
B160: 0 | C160: 0 | I160: 0 | J160: 0 | K160: 0 | L160: 0 | M160: 0 | N160: 0 | O160: 0 | P160: 0 | Q160: 0 | R160: 0 | S160: 0 | T160: 0 | U160: 0 | V160: 0 | W160: 0 | X160: 0 | Z160: 0 | AB160: 0 | AC160: 0 | AD160: 0 | AF160: 0 | AG160: 0 | AH160: 0 | AJ160: 0 | AK160: 0 | AL160: 0 | AN160: 0 | AO160: 0 | AP160: 0 | AR160: 0 | AS160: 0 | AT160: 0 | AV160: 0 | AW160: 0 | AX160: 0 | AZ160: 0 | BA160: 0 | BB160: 0 | BD160: 0 | BE160: 0 | BF160: 0 | BH160: 0 | BI160: 0 | BJ160: 0 | BL160: 0 | BM160: 0 | BN160: 0 | BP160: 0 | BQ160: 0 | BR160: 0 | BT160: 0 | BU160: 0 | BV160: 0 | BW160: 0 | BX160: 0 | BY160: 0 | BZ160: 0 | CA160: 0 | CB160: 0 | CC160: 0 | CD160: 0 | CE160: 0
B161: 0 | C161: 0 | I161: 0 | J161: 0 | K161: 0 | L161: 0 | M161: 0 | N161: 0 | O161: 0 | P161: 0 | Q161: 0 | R161: 0 | S161: 0 | T161: 0 | U161: 0 | V161: 0 | W161: 0 | X161: 0 | Z161: 0 | AB161: 0 | AC161: 0 | AD161: 0 | AF161: 0 | AG161: 0 | AH161: 0 | AJ161: 0 | AK161: 0 | AL161: 0 | AN161: 0 | AO161: 0 | AP161: 0 | AR161: 0 | AS161: 0 | AT161: 0 | AV161: 0 | AW161: 0 | AX161: 0 | AZ161: 0 | BA161: 0 | BB161: 0 | BD161: 0 | BE161: 0 | BF161: 0 | BH161: 0 | BI161: 0 | BJ161: 0 | BL161: 0 | BM161: 0 | BN161: 0 | BP161: 0 | BQ161: 0 | BR161: 0 | BT161: 0 | BU161: 0 | BV161: 0 | BW161: 0 | BX161: 0 | BY161: 0 | BZ161: 0 | CA161: 0 | CB161: 0 | CC161: 0 | CD161: 0 | CE161: 0
B162: 0 | C162: 0 | I162: 0 | J162: 0 | K162: 0 | L162: 0 | M162: 0 | N162: 0 | O162: 0 | P162: 0 | Q162: 0 | R162: 0 | S162: 0 | T162: 0 | U162: 0 | V162: 0 | W162: 0 | X162: 0 | Z162: 0 | AB162: 0 | AC162: 0 | AD162: 0 | AF162: 0 | AG162: 0 | AH162: 0 | AJ162: 0 | AK162: 0 | AL162: 0 | AN162: 0 | AO162: 0 | AP162: 0 | AR162: 0 | AS162: 0 | AT162: 0 | AV162: 0 | AW162: 0 | AX162: 0 | AZ162: 0 | BA162: 0 | BB162: 0 | BD162: 0 | BE162: 0 | BF162: 0 | BH162: 0 | BI162: 0 | BJ162: 0 | BL162: 0 | BM162: 0 | BN162: 0 | BP162: 0 | BQ162: 0 | BR162: 0 | BT162: 0 | BU162: 0 | BV162: 0 | BW162: 0 | BX162: 0 | BY162: 0 | BZ162: 0 | CA162: 0 | CB162: 0 | CC162: 0 | CD162: 0 | CE162: 0
B163: 0 | C163: 0 | I163: 0 | J163: 0 | K163: 0 | L163: 0 | M163: 0 | N163: 0 | O163: 0 | P163: 0 | Q163: 0 | R163: 0 | S163: 0 | T163: 0 | U163: 0 | V163: 0 | W163: 0 | X163: 0 | Z163: 0 | AB163: 0 | AC163: 0 | AD163: 0 | AF163: 0 | AG163: 0 | AH163: 0 | AJ163: 0 | AK163: 0 | AL163: 0 | AN163: 0 | AO163: 0 | AP163: 0 | AR163: 0 | AS163: 0 | AT163: 0 | AV163: 0 | AW163: 0 | AX163: 0 | AZ163: 0 | BA163: 0 | BB163: 0 | BD163: 0 | BE163: 0 | BF163: 0 | BH163: 0 | BI163: 0 | BJ163: 0 | BL163: 0 | BM163: 0 | BN163: 0 | BP163: 0 | BQ163: 0 | BR163: 0 | BT163: 0 | BU163: 0 | BV163: 0 | BW163: 0 | BX163: 0 | BY163: 0 | BZ163: 0 | CA163: 0 | CB163: 0 | CC163: 0 | CD163: 0 | CE163: 0
B164: 0 | C164: 0 | I164: 0 | J164: 0 | K164: 0 | L164: 0 | M164: 0 | N164: 0 | O164: 0 | P164: 0 | Q164: 0 | R164: 0 | S164: 0 | T164: 0 | U164: 0 | V164: 0 | W164: 0 | X164: 0 | Z164: 0 | AB164: 0 | AC164: 0 | AD164: 0 | AF164: 0 | AG164: 0 | AH164: 0 | AJ164: 0 | AK164: 0 | AL164: 0 | AN164: 0 | AO164: 0 | AP164: 0 | AR164: 0 | AS164: 0 | AT164: 0 | AV164: 0 | AW164: 0 | AX164: 0 | AZ164: 0 | BA164: 0 | BB164: 0 | BD164: 0 | BE164: 0 | BF164: 0 | BH164: 0 | BI164: 0 | BJ164: 0 | BL164: 0 | BM164: 0 | BN164: 0 | BP164: 0 | BQ164: 0 | BR164: 0 | BT164: 0 | BU164: 0 | BV164: 0 | BW164: 0 | BX164: 0 | BY164: 0 | BZ164: 0 | CA164: 0 | CB164: 0 | CC164: 0 | CD164: 0 | CE164: 0
B165: 0 | C165: 0 | I165: 0 | J165: 0 | K165: 0 | L165: 0 | M165: 0 | N165: 0 | O165: 0 | P165: 0 | Q165: 0 | R165: 0 | S165: 0 | T165: 0 | U165: 0 | V165: 0 | W165: 0 | X165: 0 | Z165: 0 | AB165: 0 | AC165: 0 | AD165: 0 | AF165: 0 | AG165: 0 | AH165: 0 | AJ165: 0 | AK165: 0 | AL165: 0 | AN165: 0 | AO165: 0 | AP165: 0 | AR165: 0 | AS165: 0 | AT165: 0 | AV165: 0 | AW165: 0 | AX165: 0 | AZ165: 0 | BA165: 0 | BB165: 0 | BD165: 0 | BE165: 0 | BF165: 0 | BH165: 0 | BI165: 0 | BJ165: 0 | BL165: 0 | BM165: 0 | BN165: 0 | BP165: 0 | BQ165: 0 | BR165: 0 | BT165: 0 | BU165: 0 | BV165: 0 | BW165: 0 | BX165: 0 | BY165: 0 | BZ165: 0 | CA165: 0 | CB165: 0 | CC165: 0 | CD165: 0 | CE165: 0
B166: 0 | C166: 0 | I166: 0 | J166: 0 | K166: 0 | L166: 0 | M166: 0 | N166: 0 | O166: 0 | P166: 0 | Q166: 0 | R166: 0 | S166: 0 | T166: 0 | U166: 0 | V166: 0 | W166: 0 | X166: 0 | Z166: 0 | AB166: 0 | AC166: 0 | AD166: 0 | AF166: 0 | AG166: 0 | AH166: 0 | AJ166: 0 | AK166: 0 | AL166: 0 | AN166: 0 | AO166: 0 | AP166: 0 | AR166: 0 | AS166: 0 | AT166: 0 | AV166: 0 | AW166: 0 | AX166: 0 | AZ166: 0 | BA166: 0 | BB166: 0 | BD166: 0 | BE166: 0 | BF166: 0 | BH166: 0 | BI166: 0 | BJ166: 0 | BL166: 0 | BM166: 0 | BN166: 0 | BP166: 0 | BQ166: 0 | BR166: 0 | BT166: 0 | BU166: 0 | BV166: 0 | BW166: 0 | BX166: 0 | BY166: 0 | BZ166: 0 | CA166: 0 | CB166: 0 | CC166: 0 | CD166: 0 | CE166: 0
B167: 0 | C167: 0 | I167: 0 | J167: 0 | K167: 0 | L167: 0 | M167: 0 | N167: 0 | O167: 0 | P167: 0 | Q167: 0 | R167: 0 | S167: 0 | T167: 0 | U167: 0 | V167: 0 | W167: 0 | X167: 0 | Z167: 0 | AB167: 0 | AC167: 0 | AD167: 0 | AF167: 0 | AG167: 0 | AH167: 0 | AJ167: 0 | AK167: 0 | AL167: 0 | AN167: 0 | AO167: 0 | AP167: 0 | AR167: 0 | AS167: 0 | AT167: 0 | AV167: 0 | AW167: 0 | AX167: 0 | AZ167: 0 | BA167: 0 | BB167: 0 | BD167: 0 | BE167: 0 | BF167: 0 | BH167: 0 | BI167: 0 | BJ167: 0 | BL167: 0 | BM167: 0 | BN167: 0 | BP167: 0 | BQ167: 0 | BR167: 0 | BT167: 0 | BU167: 0 | BV167: 0 | BW167: 0 | BX167: 0 | BY167: 0 | BZ167: 0 | CA167: 0 | CB167: 0 | CC167: 0 | CD167: 0 | CE167: 0
B168: 0 | C168: 0 | I168: 0 | J168: 0 | K168: 0 | L168: 0 | M168: 0 | N168: 0 | O168: 0 | P168: 0 | Q168: 0 | R168: 0 | S168: 0 | T168: 0 | U168: 0 | V168: 0 | W168: 0 | X168: 0 | Z168: 0 | AB168: 0 | AC168: 0 | AD168: 0 | AF168: 0 | AG168: 0 | AH168: 0 | AJ168: 0 | AK168: 0 | AL168: 0 | AN168: 0 | AO168: 0 | AP168: 0 | AR168: 0 | AS168: 0 | AT168: 0 | AV168: 0 | AW168: 0 | AX168: 0 | AZ168: 0 | BA168: 0 | BB168: 0 | BD168: 0 | BE168: 0 | BF168: 0 | BH168: 0 | BI168: 0 | BJ168: 0 | BL168: 0 | BM168: 0 | BN168: 0 | BP168: 0 | BQ168: 0 | BR168: 0 | BT168: 0 | BU168: 0 | BV168: 0 | BW168: 0 | BX168: 0 | BY168: 0 | BZ168: 0 | CA168: 0 | CB168: 0 | CC168: 0 | CD168: 0 | CE168: 0
B169: 0 | C169: 0 | I169: 0 | J169: 0 | K169: 0 | L169: 0 | M169: 0 | N169: 0 | O169: 0 | P169: 0 | Q169: 0 | R169: 0 | S169: 0 | T169: 0 | U169: 0 | V169: 0 | W169: 0 | X169: 0 | Z169: 0 | AB169: 0 | AC169: 0 | AD169: 0 | AF169: 0 | AG169: 0 | AH169: 0 | AJ169: 0 | AK169: 0 | AL169: 0 | AN169: 0 | AO169: 0 | AP169: 0 | AR169: 0 | AS169: 0 | AT169: 0 | AV169: 0 | AW169: 0 | AX169: 0 | AZ169: 0 | BA169: 0 | BB169: 0 | BD169: 0 | BE169: 0 | BF169: 0 | BH169: 0 | BI169: 0 | BJ169: 0 | BL169: 0 | BM169: 0 | BN169: 0 | BP169: 0 | BQ169: 0 | BR169: 0 | BT169: 0 | BU169: 0 | BV169: 0 | BW169: 0 | BX169: 0 | BY169: 0 | BZ169: 0 | CA169: 0 | CB169: 0 | CC169: 0 | CD169: 0 | CE169: 0
B170: 0 | C170: 0 | I170: 0 | J170: 0 | K170: 0 | L170: 0 | M170: 0 | N170: 0 | O170: 0 | P170: 0 | Q170: 0 | R170: 0 | S170: 0 | T170: 0 | U170: 0 | V170: 0 | W170: 0 | X170: 0 | Z170: 0 | AB170: 0 | AC170: 0 | AD170: 0 | AF170: 0 | AG170: 0 | AH170: 0 | AJ170: 0 | AK170: 0 | AL170: 0 | AN170: 0 | AO170: 0 | AP170: 0 | AR170: 0 | AS170: 0 | AT170: 0 | AV170: 0 | AW170: 0 | AX170: 0 | AZ170: 0 | BA170: 0 | BB170: 0 | BD170: 0 | BE170: 0 | BF170: 0 | BH170: 0 | BI170: 0 | BJ170: 0 | BL170: 0 | BM170: 0 | BN170: 0 | BP170: 0 | BQ170: 0 | BR170: 0 | BT170: 0 | BU170: 0 | BV170: 0 | BW170: 0 | BX170: 0 | BY170: 0 | BZ170: 0 | CA170: 0 | CB170: 0 | CC170: 0 | CD170: 0 | CE170: 0
B171: 0 | C171: 0 | I171: 0 | J171: 0 | K171: 0 | L171: 0 | M171: 0 | N171: 0 | O171: 0 | P171: 0 | Q171: 0 | R171: 0 | S171: 0 | T171: 0 | U171: 0 | V171: 0 | W171: 0 | X171: 0 | Z171: 0 | AB171: 0 | AC171: 0 | AD171: 0 | AF171: 0 | AG171: 0 | AH171: 0 | AJ171: 0 | AK171: 0 | AL171: 0 | AN171: 0 | AO171: 0 | AP171: 0 | AR171: 0 | AS171: 0 | AT171: 0 | AV171: 0 | AW171: 0 | AX171: 0 | AZ171: 0 | BA171: 0 | BB171: 0 | BD171: 0 | BE171: 0 | BF171: 0 | BH171: 0 | BI171: 0 | BJ171: 0 | BL171: 0 | BM171: 0 | BN171: 0 | BP171: 0 | BQ171: 0 | BR171: 0 | BT171: 0 | BU171: 0 | BV171: 0 | BW171: 0 | BX171: 0 | BY171: 0 | BZ171: 0 | CA171: 0 | CB171: 0 | CC171: 0 | CD171: 0 | CE171: 0
B172: 0 | C172: 0 | I172: 0 | J172: 0 | K172: 0 | L172: 0 | M172: 0 | N172: 0 | O172: 0 | P172: 0 | Q172: 0 | R172: 0 | S172: 0 | T172: 0 | U172: 0 | V172: 0 | W172: 0 | X172: 0 | Z172: 0 | AB172: 0 | AC172: 0 | AD172: 0 | AF172: 0 | AG172: 0 | AH172: 0 | AJ172: 0 | AK172: 0 | AL172: 0 | AN172: 0 | AO172: 0 | AP172: 0 | AR172: 0 | AS172: 0 | AT172: 0 | AV172: 0 | AW172: 0 | AX172: 0 | AZ172: 0 | BA172: 0 | BB172: 0 | BD172: 0 | BE172: 0 | BF172: 0 | BH172: 0 | BI172: 0 | BJ172: 0 | BL172: 0 | BM172: 0 | BN172: 0 | BP172: 0 | BQ172: 0 | BR172: 0 | BT172: 0 | BU172: 0 | BV172: 0 | BW172: 0 | BX172: 0 | BY172: 0 | BZ172: 0 | CA172: 0 | CB172: 0 | CC172: 0 | CD172: 0 | CE172: 0
B173: 0 | C173: 0 | I173: 0 | J173: 0 | K173: 0 | L173: 0 | M173: 0 | N173: 0 | O173: 0 | P173: 0 | Q173: 0 | R173: 0 | S173: 0 | T173: 0 | U173: 0 | V173: 0 | W173: 0 | X173: 0 | Z173: 0 | AB173: 0 | AC173: 0 | AD173: 0 | AF173: 0 | AG173: 0 | AH173: 0 | AJ173: 0 | AK173: 0 | AL173: 0 | AN173: 0 | AO173: 0 | AP173: 0 | AR173: 0 | AS173: 0 | AT173: 0 | AV173: 0 | AW173: 0 | AX173: 0 | AZ173: 0 | BA173: 0 | BB173: 0 | BD173: 0 | BE173: 0 | BF173: 0 | BH173: 0 | BI173: 0 | BJ173: 0 | BL173: 0 | BM173: 0 | BN173: 0 | BP173: 0 | BQ173: 0 | BR173: 0 | BT173: 0 | BU173: 0 | BV173: 0 | BW173: 0 | BX173: 0 | BY173: 0 | BZ173: 0 | CA173: 0 | CB173: 0 | CC173: 0 | CD173: 0 | CE173: 0
B174: 0 | C174: 0 | I174: 0 | J174: 0 | K174: 0 | L174: 0 | M174: 0 | N174: 0 | O174: 0 | P174: 0 | Q174: 0 | R174: 0 | S174: 0 | T174: 0 | U174: 0 | V174: 0 | W174: 0 | X174: 0 | Z174: 0 | AB174: 0 | AC174: 0 | AD174: 0 | AF174: 0 | AG174: 0 | AH174: 0 | AJ174: 0 | AK174: 0 | AL174: 0 | AN174: 0 | AO174: 0 | AP174: 0 | AR174: 0 | AS174: 0 | AT174: 0 | AV174: 0 | AW174: 0 | AX174: 0 | AZ174: 0 | BA174: 0 | BB174: 0 | BD174: 0 | BE174: 0 | BF174: 0 | BH174: 0 | BI174: 0 | BJ174: 0 | BL174: 0 | BM174: 0 | BN174: 0 | BP174: 0 | BQ174: 0 | BR174: 0 | BT174: 0 | BU174: 0 | BV174: 0 | BW174: 0 | BX174: 0 | BY174: 0 | BZ174: 0 | CA174: 0 | CB174: 0 | CC174: 0 | CD174: 0 | CE174: 0
B175: 0 | C175: 0 | I175: 0 | J175: 0 | K175: 0 | L175: 0 | M175: 0 | N175: 0 | O175: 0 | P175: 0 | Q175: 0 | R175: 0 | S175: 0 | T175: 0 | U175: 0 | V175: 0 | W175: 0 | X175: 0 | Z175: 0 | AB175: 0 | AC175: 0 | AD175: 0 | AF175: 0 | AG175: 0 | AH175: 0 | AJ175: 0 | AK175: 0 | AL175: 0 | AN175: 0 | AO175: 0 | AP175: 0 | AR175: 0 | AS175: 0 | AT175: 0 | AV175: 0 | AW175: 0 | AX175: 0 | AZ175: 0 | BA175: 0 | BB175: 0 | BD175: 0 | BE175: 0 | BF175: 0 | BH175: 0 | BI175: 0 | BJ175: 0 | BL175: 0 | BM175: 0 | BN175: 0 | BP175: 0 | BQ175: 0 | BR175: 0 | BT175: 0 | BU175: 0 | BV175: 0 | BW175: 0 | BX175: 0 | BY175: 0 | BZ175: 0 | CA175: 0 | CB175: 0 | CC175: 0 | CD175: 0 | CE175: 0
B176: 0 | C176: 0 | I176: 0 | J176: 0 | K176: 0 | L176: 0 | M176: 0 | N176: 0 | O176: 0 | P176: 0 | Q176: 0 | R176: 0 | S176: 0 | T176: 0 | U176: 0 | V176: 0 | W176: 0 | X176: 0 | Z176: 0 | AB176: 0 | AC176: 0 | AD176: 0 | AF176: 0 | AG176: 0 | AH176: 0 | AJ176: 0 | AK176: 0 | AL176: 0 | AN176: 0 | AO176: 0 | AP176: 0 | AR176: 0 | AS176: 0 | AT176: 0 | AV176: 0 | AW176: 0 | AX176: 0 | AZ176: 0 | BA176: 0 | BB176: 0 | BD176: 0 | BE176: 0 | BF176: 0 | BH176: 0 | BI176: 0 | BJ176: 0 | BL176: 0 | BM176: 0 | BN176: 0 | BP176: 0 | BQ176: 0 | BR176: 0 | BT176: 0 | BU176: 0 | BV176: 0 | BW176: 0 | BX176: 0 | BY176: 0 | BZ176: 0 | CA176: 0 | CB176: 0 | CC176: 0 | CD176: 0 | CE176: 0
B177: 0 | C177: 0 | I177: 0 | J177: 0 | K177: 0 | L177: 0 | M177: 0 | N177: 0 | O177: 0 | P177: 0 | Q177: 0 | R177: 0 | S177: 0 | T177: 0 | U177: 0 | V177: 0 | W177: 0 | X177: 0 | Z177: 0 | AB177: 0 | AC177: 0 | AD177: 0 | AF177: 0 | AG177: 0 | AH177: 0 | AJ177: 0 | AK177: 0 | AL177: 0 | AN177: 0 | AO177: 0 | AP177: 0 | AR177: 0 | AS177: 0 | AT177: 0 | AV177: 0 | AW177: 0 | AX177: 0 | AZ177: 0 | BA177: 0 | BB177: 0 | BD177: 0 | BE177: 0 | BF177: 0 | BH177: 0 | BI177: 0 | BJ177: 0 | BL177: 0 | BM177: 0 | BN177: 0 | BP177: 0 | BQ177: 0 | BR177: 0 | BT177: 0 | BU177: 0 | BV177: 0 | BW177: 0 | BX177: 0 | BY177: 0 | BZ177: 0 | CA177: 0 | CB177: 0 | CC177: 0 | CD177: 0 | CE177: 0
B178: 0 | C178: 0 | I178: 0 | J178: 0 | K178: 0 | L178: 0 | M178: 0 | N178: 0 | O178: 0 | P178: 0 | Q178: 0 | R178: 0 | S178: 0 | T178: 0 | U178: 0 | V178: 0 | W178: 0 | X178: 0 | Z178: 0 | AB178: 0 | AC178: 0 | AD178: 0 | AF178: 0 | AG178: 0 | AH178: 0 | AJ178: 0 | AK178: 0 | AL178: 0 | AN178: 0 | AO178: 0 | AP178: 0 | AR178: 0 | AS178: 0 | AT178: 0 | AV178: 0 | AW178: 0 | AX178: 0 | AZ178: 0 | BA178: 0 | BB178: 0 | BD178: 0 | BE178: 0 | BF178: 0 | BH178: 0 | BI178: 0 | BJ178: 0 | BL178: 0 | BM178: 0 | BN178: 0 | BP178: 0 | BQ178: 0 | BR178: 0 | BT178: 0 | BU178: 0 | BV178: 0 | BW178: 0 | BX178: 0 | BY178: 0 | BZ178: 0 | CA178: 0 | CB178: 0 | CC178: 0 | CD178: 0 | CE178: 0
B179: 0 | C179: 0 | I179: 0 | J179: 0 | K179: 0 | L179: 0 | M179: 0 | N179: 0 | O179: 0 | P179: 0 | Q179: 0 | R179: 0 | S179: 0 | T179: 0 | U179: 0 | V179: 0 | W179: 0 | X179: 0 | Z179: 0 | AB179: 0 | AC179: 0 | AD179: 0 | AF179: 0 | AG179: 0 | AH179: 0 | AJ179: 0 | AK179: 0 | AL179: 0 | AN179: 0 | AO179: 0 | AP179: 0 | AR179: 0 | AS179: 0 | AT179: 0 | AV179: 0 | AW179: 0 | AX179: 0 | AZ179: 0 | BA179: 0 | BB179: 0 | BD179: 0 | BE179: 0 | BF179: 0 | BH179: 0 | BI179: 0 | BJ179: 0 | BL179: 0 | BM179: 0 | BN179: 0 | BP179: 0 | BQ179: 0 | BR179: 0 | BT179: 0 | BU179: 0 | BV179: 0 | BW179: 0 | BX179: 0 | BY179: 0 | BZ179: 0 | CA179: 0 | CB179: 0 | CC179: 0 | CD179: 0 | CE179: 0
B180: 0 | C180: 0 | I180: 0 | J180: 0 | K180: 0 | L180: 0 | M180: 0 | N180: 0 | O180: 0 | P180: 0 | Q180: 0 | R180: 0 | S180: 0 | T180: 0 | U180: 0 | V180: 0 | W180: 0 | X180: 0 | Z180: 0 | AB180: 0 | AC180: 0 | AD180: 0 | AF180: 0 | AG180: 0 | AH180: 0 | AJ180: 0 | AK180: 0 | AL180: 0 | AN180: 0 | AO180: 0 | AP180: 0 | AR180: 0 | AS180: 0 | AT180: 0 | AV180: 0 | AW180: 0 | AX180: 0 | AZ180: 0 | BA180: 0 | BB180: 0 | BD180: 0 | BE180: 0 | BF180: 0 | BH180: 0 | BI180: 0 | BJ180: 0 | BL180: 0 | BM180: 0 | BN180: 0 | BP180: 0 | BQ180: 0 | BR180: 0 | BT180: 0 | BU180: 0 | BV180: 0 | BW180: 0 | BX180: 0 | BY180: 0 | BZ180: 0 | CA180: 0 | CB180: 0 | CC180: 0 | CD180: 0 | CE180: 0
B181: 0 | C181: 0 | I181: 0 | J181: 0 | K181: 0 | L181: 0 | M181: 0 | N181: 0 | O181: 0 | P181: 0 | Q181: 0 | R181: 0 | S181: 0 | T181: 0 | U181: 0 | V181: 0 | W181: 0 | X181: 0 | Z181: 0 | AB181: 0 | AC181: 0 | AD181: 0 | AF181: 0 | AG181: 0 | AH181: 0 | AJ181: 0 | AK181: 0 | AL181: 0 | AN181: 0 | AO181: 0 | AP181: 0 | AR181: 0 | AS181: 0 | AT181: 0 | AV181: 0 | AW181: 0 | AX181: 0 | AZ181: 0 | BA181: 0 | BB181: 0 | BD181: 0 | BE181: 0 | BF181: 0 | BH181: 0 | BI181: 0 | BJ181: 0 | BL181: 0 | BM181: 0 | BN181: 0 | BP181: 0 | BQ181: 0 | BR181: 0 | BT181: 0 | BU181: 0 | BV181: 0 | BW181: 0 | BX181: 0 | BY181: 0 | BZ181: 0 | CA181: 0 | CB181: 0 | CC181: 0 | CD181: 0 | CE181: 0
B182: 0 | C182: 0 | I182: 0 | J182: 0 | K182: 0 | L182: 0 | M182: 0 | N182: 0 | O182: 0 | P182: 0 | Q182: 0 | R182: 0 | S182: 0 | T182: 0 | U182: 0 | V182: 0 | W182: 0 | X182: 0 | Z182: 0 | AB182: 0 | AC182: 0 | AD182: 0 | AF182: 0 | AG182: 0 | AH182: 0 | AJ182: 0 | AK182: 0 | AL182: 0 | AN182: 0 | AO182: 0 | AP182: 0 | AR182: 0 | AS182: 0 | AT182: 0 | AV182: 0 | AW182: 0 | AX182: 0 | AZ182: 0 | BA182: 0 | BB182: 0 | BD182: 0 | BE182: 0 | BF182: 0 | BH182: 0 | BI182: 0 | BJ182: 0 | BL182: 0 | BM182: 0 | BN182: 0 | BP182: 0 | BQ182: 0 | BR182: 0 | BT182: 0 | BU182: 0 | BV182: 0 | BW182: 0 | BX182: 0 | BY182: 0 | BZ182: 0 | CA182: 0 | CB182: 0 | CC182: 0 | CD182: 0 | CE182: 0
B183: 0 | C183: 0 | I183: 0 | J183: 0 | K183: 0 | L183: 0 | M183: 0 | N183: 0 | O183: 0 | P183: 0 | Q183: 0 | R183: 0 | S183: 0 | T183: 0 | U183: 0 | V183: 0 | W183: 0 | X183: 0 | Z183: 0 | AB183: 0 | AC183: 0 | AD183: 0 | AF183: 0 | AG183: 0 | AH183: 0 | AJ183: 0 | AK183: 0 | AL183: 0 | AN183: 0 | AO183: 0 | AP183: 0 | AR183: 0 | AS183: 0 | AT183: 0 | AV183: 0 | AW183: 0 | AX183: 0 | AZ183: 0 | BA183: 0 | BB183: 0 | BD183: 0 | BE183: 0 | BF183: 0 | BH183: 0 | BI183: 0 | BJ183: 0 | BL183: 0 | BM183: 0 | BN183: 0 | BP183: 0 | BQ183: 0 | BR183: 0 | BT183: 0 | BU183: 0 | BV183: 0 | BW183: 0 | BX183: 0 | BY183: 0 | BZ183: 0 | CA183: 0 | CB183: 0 | CC183: 0 | CD183: 0 | CE183: 0
B184: 0 | C184: 0 | I184: 0 | J184: 0 | K184: 0 | L184: 0 | M184: 0 | N184: 0 | O184: 0 | P184: 0 | Q184: 0 | R184: 0 | S184: 0 | T184: 0 | U184: 0 | V184: 0 | W184: 0 | X184: 0 | Z184: 0 | AB184: 0 | AC184: 0 | AD184: 0 | AF184: 0 | AG184: 0 | AH184: 0 | AJ184: 0 | AK184: 0 | AL184: 0 | AN184: 0 | AO184: 0 | AP184: 0 | AR184: 0 | AS184: 0 | AT184: 0 | AV184: 0 | AW184: 0 | AX184: 0 | AZ184: 0 | BA184: 0 | BB184: 0 | BD184: 0 | BE184: 0 | BF184: 0 | BH184: 0 | BI184: 0 | BJ184: 0 | BL184: 0 | BM184: 0 | BN184: 0 | BP184: 0 | BQ184: 0 | BR184: 0 | BT184: 0 | BU184: 0 | BV184: 0 | BW184: 0 | BX184: 0 | BY184: 0 | BZ184: 0 | CA184: 0 | CB184: 0 | CC184: 0 | CD184: 0 | CE184: 0
B185: 0 | C185: 0 | I185: 0 | J185: 0 | K185: 0 | L185: 0 | M185: 0 | N185: 0 | O185: 0 | P185: 0 | Q185: 0 | R185: 0 | S185: 0 | T185: 0 | U185: 0 | V185: 0 | W185: 0 | X185: 0 | Z185: 0 | AB185: 0 | AC185: 0 | AD185: 0 | AF185: 0 | AG185: 0 | AH185: 0 | AJ185: 0 | AK185: 0 | AL185: 0 | AN185: 0 | AO185: 0 | AP185: 0 | AR185: 0 | AS185: 0 | AT185: 0 | AV185: 0 | AW185: 0 | AX185: 0 | AZ185: 0 | BA185: 0 | BB185: 0 | BD185: 0 | BE185: 0 | BF185: 0 | BH185: 0 | BI185: 0 | BJ185: 0 | BL185: 0 | BM185: 0 | BN185: 0 | BP185: 0 | BQ185: 0 | BR185: 0 | BT185: 0 | BU185: 0 | BV185: 0 | BW185: 0 | BX185: 0 | BY185: 0 | BZ185: 0 | CA185: 0 | CB185: 0 | CC185: 0 | CD185: 0 | CE185: 0
B186: 0 | C186: 0 | I186: 0 | J186: 0 | K186: 0 | L186: 0 | M186: 0 | N186: 0 | O186: 0 | P186: 0 | Q186: 0 | R186: 0 | S186: 0 | T186: 0 | U186: 0 | V186: 0 | W186: 0 | X186: 0 | Z186: 0 | AB186: 0 | AC186: 0 | AD186: 0 | AF186: 0 | AG186: 0 | AH186: 0 | AJ186: 0 | AK186: 0 | AL186: 0 | AN186: 0 | AO186: 0 | AP186: 0 | AR186: 0 | AS186: 0 | AT186: 0 | AV186: 0 | AW186: 0 | AX186: 0 | AZ186: 0 | BA186: 0 | BB186: 0 | BD186: 0 | BE186: 0 | BF186: 0 | BH186: 0 | BI186: 0 | BJ186: 0 | BL186: 0 | BM186: 0 | BN186: 0 | BP186: 0 | BQ186: 0 | BR186: 0 | BT186: 0 | BU186: 0 | BV186: 0 | BW186: 0 | BX186: 0 | BY186: 0 | BZ186: 0 | CA186: 0 | CB186: 0 | CC186: 0 | CD186: 0 | CE186: 0
B187: 0 | C187: 0 | I187: 0 | J187: 0 | K187: 0 | L187: 0 | M187: 0 | N187: 0 | O187: 0 | P187: 0 | Q187: 0 | R187: 0 | S187: 0 | T187: 0 | U187: 0 | V187: 0 | W187: 0 | X187: 0 | Z187: 0 | AB187: 0 | AC187: 0 | AD187: 0 | AF187: 0 | AG187: 0 | AH187: 0 | AJ187: 0 | AK187: 0 | AL187: 0 | AN187: 0 | AO187: 0 | AP187: 0 | AR187: 0 | AS187: 0 | AT187: 0 | AV187: 0 | AW187: 0 | AX187: 0 | AZ187: 0 | BA187: 0 | BB187: 0 | BD187: 0 | BE187: 0 | BF187: 0 | BH187: 0 | BI187: 0 | BJ187: 0 | BL187: 0 | BM187: 0 | BN187: 0 | BP187: 0 | BQ187: 0 | BR187: 0 | BT187: 0 | BU187: 0 | BV187: 0 | BW187: 0 | BX187: 0 | BY187: 0 | BZ187: 0 | CA187: 0 | CB187: 0 | CC187: 0 | CD187: 0 | CE187: 0
B188: 0 | C188: 0 | I188: 0 | J188: 0 | K188: 0 | L188: 0 | M188: 0 | N188: 0 | O188: 0 | P188: 0 | Q188: 0 | R188: 0 | S188: 0 | T188: 0 | U188: 0 | V188: 0 | W188: 0 | X188: 0 | Z188: 0 | AB188: 0 | AC188: 0 | AD188: 0 | AF188: 0 | AG188: 0 | AH188: 0 | AJ188: 0 | AK188: 0 | AL188: 0 | AN188: 0 | AO188: 0 | AP188: 0 | AR188: 0 | AS188: 0 | AT188: 0 | AV188: 0 | AW188: 0 | AX188: 0 | AZ188: 0 | BA188: 0 | BB188: 0 | BD188: 0 | BE188: 0 | BF188: 0 | BH188: 0 | BI188: 0 | BJ188: 0 | BL188: 0 | BM188: 0 | BN188: 0 | BP188: 0 | BQ188: 0 | BR188: 0 | BT188: 0 | BU188: 0 | BV188: 0 | BW188: 0 | BX188: 0 | BY188: 0 | BZ188: 0 | CA188: 0 | CB188: 0 | CC188: 0 | CD188: 0 | CE188: 0
B189: 0 | C189: 0 | I189: 0 | J189: 0 | K189: 0 | L189: 0 | M189: 0 | N189: 0 | O189: 0 | P189: 0 | Q189: 0 | R189: 0 | S189: 0 | T189: 0 | U189: 0 | V189: 0 | W189: 0 | X189: 0 | Z189: 0 | AB189: 0 | AC189: 0 | AD189: 0 | AF189: 0 | AG189: 0 | AH189: 0 | AJ189: 0 | AK189: 0 | AL189: 0 | AN189: 0 | AO189: 0 | AP189: 0 | AR189: 0 | AS189: 0 | AT189: 0 | AV189: 0 | AW189: 0 | AX189: 0 | AZ189: 0 | BA189: 0 | BB189: 0 | BD189: 0 | BE189: 0 | BF189: 0 | BH189: 0 | BI189: 0 | BJ189: 0 | BL189: 0 | BM189: 0 | BN189: 0 | BP189: 0 | BQ189: 0 | BR189: 0 | BT189: 0 | BU189: 0 | BV189: 0 | BW189: 0 | BX189: 0 | BY189: 0 | BZ189: 0 | CA189: 0 | CB189: 0 | CC189: 0 | CD189: 0 | CE189: 0
B190: 0 | C190: 0 | I190: 0 | J190: 0 | K190: 0 | L190: 0 | M190: 0 | N190: 0 | O190: 0 | P190: 0 | Q190: 0 | R190: 0 | S190: 0 | T190: 0 | U190: 0 | V190: 0 | W190: 0 | X190: 0 | Z190: 0 | AB190: 0 | AC190: 0 | AD190: 0 | AF190: 0 | AG190: 0 | AH190: 0 | AJ190: 0 | AK190: 0 | AL190: 0 | AN190: 0 | AO190: 0 | AP190: 0 | AR190: 0 | AS190: 0 | AT190: 0 | AV190: 0 | AW190: 0 | AX190: 0 | AZ190: 0 | BA190: 0 | BB190: 0 | BD190: 0 | BE190: 0 | BF190: 0 | BH190: 0 | BI190: 0 | BJ190: 0 | BL190: 0 | BM190: 0 | BN190: 0 | BP190: 0 | BQ190: 0 | BR190: 0 | BT190: 0 | BU190: 0 | BV190: 0 | BW190: 0 | BX190: 0 | BY190: 0 | BZ190: 0 | CA190: 0 | CB190: 0 | CC190: 0 | CD190: 0 | CE190: 0
B191: 0 | C191: 0 | I191: 0 | J191: 0 | K191: 0 | L191: 0 | M191: 0 | N191: 0 | O191: 0 | P191: 0 | Q191: 0 | R191: 0 | S191: 0 | T191: 0 | U191: 0 | V191: 0 | W191: 0 | X191: 0 | Z191: 0 | AB191: 0 | AC191: 0 | AD191: 0 | AF191: 0 | AG191: 0 | AH191: 0 | AJ191: 0 | AK191: 0 | AL191: 0 | AN191: 0 | AO191: 0 | AP191: 0 | AR191: 0 | AS191: 0 | AT191: 0 | AV191: 0 | AW191: 0 | AX191: 0 | AZ191: 0 | BA191: 0 | BB191: 0 | BD191: 0 | BE191: 0 | BF191: 0 | BH191: 0 | BI191: 0 | BJ191: 0 | BL191: 0 | BM191: 0 | BN191: 0 | BP191: 0 | BQ191: 0 | BR191: 0 | BT191: 0 | BU191: 0 | BV191: 0 | BW191: 0 | BX191: 0 | BY191: 0 | BZ191: 0 | CA191: 0 | CB191: 0 | CC191: 0 | CD191: 0 | CE191: 0
B192: 0 | C192: 0 | I192: 0 | J192: 0 | K192: 0 | L192: 0 | M192: 0 | N192: 0 | O192: 0 | P192: 0 | Q192: 0 | R192: 0 | S192: 0 | T192: 0 | U192: 0 | V192: 0 | W192: 0 | X192: 0 | Z192: 0 | AB192: 0 | AC192: 0 | AD192: 0 | AF192: 0 | AG192: 0 | AH192: 0 | AJ192: 0 | AK192: 0 | AL192: 0 | AN192: 0 | AO192: 0 | AP192: 0 | AR192: 0 | AS192: 0 | AT192: 0 | AV192: 0 | AW192: 0 | AX192: 0 | AZ192: 0 | BA192: 0 | BB192: 0 | BD192: 0 | BE192: 0 | BF192: 0 | BH192: 0 | BI192: 0 | BJ192: 0 | BL192: 0 | BM192: 0 | BN192: 0 | BP192: 0 | BQ192: 0 | BR192: 0 | BT192: 0 | BU192: 0 | BV192: 0 | BW192: 0 | BX192: 0 | BY192: 0 | BZ192: 0 | CA192: 0 | CB192: 0 | CC192: 0 | CD192: 0 | CE192: 0
B193: 0 | C193: 0 | I193: 0 | J193: 0 | K193: 0 | L193: 0 | M193: 0 | N193: 0 | O193: 0 | P193: 0 | Q193: 0 | R193: 0 | S193: 0 | T193: 0 | U193: 0 | V193: 0 | W193: 0 | X193: 0 | Z193: 0 | AB193: 0 | AC193: 0 | AD193: 0 | AF193: 0 | AG193: 0 | AH193: 0 | AJ193: 0 | AK193: 0 | AL193: 0 | AN193: 0 | AO193: 0 | AP193: 0 | AR193: 0 | AS193: 0 | AT193: 0 | AV193: 0 | AW193: 0 | AX193: 0 | AZ193: 0 | BA193: 0 | BB193: 0 | BD193: 0 | BE193: 0 | BF193: 0 | BH193: 0 | BI193: 0 | BJ193: 0 | BL193: 0 | BM193: 0 | BN193: 0 | BP193: 0 | BQ193: 0 | BR193: 0 | BT193: 0 | BU193: 0 | BV193: 0 | BW193: 0 | BX193: 0 | BY193: 0 | BZ193: 0 | CA193: 0 | CB193: 0 | CC193: 0 | CD193: 0 | CE193: 0
B194: 0 | C194: 0 | I194: 0 | J194: 0 | K194: 0 | L194: 0 | M194: 0 | N194: 0 | O194: 0 | P194: 0 | Q194: 0 | R194: 0 | S194: 0 | T194: 0 | U194: 0 | V194: 0 | W194: 0 | X194: 0 | Z194: 0 | AB194: 0 | AC194: 0 | AD194: 0 | AF194: 0 | AG194: 0 | AH194: 0 | AJ194: 0 | AK194: 0 | AL194: 0 | AN194: 0 | AO194: 0 | AP194: 0 | AR194: 0 | AS194: 0 | AT194: 0 | AV194: 0 | AW194: 0 | AX194: 0 | AZ194: 0 | BA194: 0 | BB194: 0 | BD194: 0 | BE194: 0 | BF194: 0 | BH194: 0 | BI194: 0 | BJ194: 0 | BL194: 0 | BM194: 0 | BN194: 0 | BP194: 0 | BQ194: 0 | BR194: 0 | BT194: 0 | BU194: 0 | BV194: 0 | BW194: 0 | BX194: 0 | BY194: 0 | BZ194: 0 | CA194: 0 | CB194: 0 | CC194: 0 | CD194: 0 | CE194: 0
B195: 0 | C195: 0 | I195: 0 | J195: 0 | K195: 0 | L195: 0 | M195: 0 | N195: 0 | O195: 0 | P195: 0 | Q195: 0 | R195: 0 | S195: 0 | T195: 0 | U195: 0 | V195: 0 | W195: 0 | X195: 0 | Z195: 0 | AB195: 0 | AC195: 0 | AD195: 0 | AF195: 0 | AG195: 0 | AH195: 0 | AJ195: 0 | AK195: 0 | AL195: 0 | AN195: 0 | AO195: 0 | AP195: 0 | AR195: 0 | AS195: 0 | AT195: 0 | AV195: 0 | AW195: 0 | AX195: 0 | AZ195: 0 | BA195: 0 | BB195: 0 | BD195: 0 | BE195: 0 | BF195: 0 | BH195: 0 | BI195: 0 | BJ195: 0 | BL195: 0 | BM195: 0 | BN195: 0 | BP195: 0 | BQ195: 0 | BR195: 0 | BT195: 0 | BU195: 0 | BV195: 0 | BW195: 0 | BX195: 0 | BY195: 0 | BZ195: 0 | CA195: 0 | CB195: 0 | CC195: 0 | CD195: 0 | CE195: 0
B196: 0 | C196: 0 | I196: 0 | J196: 0 | K196: 0 | L196: 0 | M196: 0 | N196: 0 | O196: 0 | P196: 0 | Q196: 0 | R196: 0 | S196: 0 | T196: 0 | U196: 0 | V196: 0 | W196: 0 | X196: 0 | Z196: 0 | AB196: 0 | AC196: 0 | AD196: 0 | AF196: 0 | AG196: 0 | AH196: 0 | AJ196: 0 | AK196: 0 | AL196: 0 | AN196: 0 | AO196: 0 | AP196: 0 | AR196: 0 | AS196: 0 | AT196: 0 | AV196: 0 | AW196: 0 | AX196: 0 | AZ196: 0 | BA196: 0 | BB196: 0 | BD196: 0 | BE196: 0 | BF196: 0 | BH196: 0 | BI196: 0 | BJ196: 0 | BL196: 0 | BM196: 0 | BN196: 0 | BP196: 0 | BQ196: 0 | BR196: 0 | BT196: 0 | BU196: 0 | BV196: 0 | BW196: 0 | BX196: 0 | BY196: 0 | BZ196: 0 | CA196: 0 | CB196: 0 | CC196: 0 | CD196: 0 | CE196: 0
B197: =dfenumber -> 0 | C197: =IFERROR(VLOOKUP(B197,schoolnames,2,0),0) -> 0 | I197: =B197&F197 -> 0 | J197: =IFERROR(VLOOKUP(I197,rateslookup,2,0),0) -> 0 | K197: =J197 -> 0 | L197: =IF(AND(G197<DATE(2019,4,1),H197>DATE(2019,2,28)),J197/12,0) -> 0 | M197: =IF(AND(G197<DATE(2019,5,1),H197>DATE(2019,3,31)),J197/12,0) -> 0 | N197: =IF(AND(G197<DATE(2019,6,1),H197>DATE(2019,4,30)),J197/12,0) -> 0 | O197: =IF(AND(G197<DATE(2019,7,1),H197>DATE(2019,5,31)),J197/12,0) -> 0 | P197: =IF(AND(G197<DATE(2019,8,1),H197>DATE(2019,6,30)),J197/12,0) -> 0 | Q197: =IF(AND(G197<DATE(2019,8,1),H197>DATE(2019,6,30)),J197/12,0) -> 0 | R197: =IF(AND(G197<DATE(2019,10,1),H197>DATE(2019,8,31)),K197/12,0) -> 0 | S197: =IF(AND(G197<DATE(2019,11,1),H197>DATE(2019,9,30)),K197/12,0) -> 0 | T197: =IF(AND(G197<DATE(2019,12,1),H197>DATE(2019,10,31)),K197/12,0) -> 0 | U197: =IF(AND(G197<DATE(2020,1,1),H197>DATE(2019,11,30)),K197/12,0) -> 0 | V197: =IF(AND(G197<DATE(2020,2,1),H197>DATE(2019,12,31)),K197/12,0) -> 0 | W197: =IF(AND(G197<DATE(2020,3,1),H197>DATE(2020,1,31)),K197/12,0) -> 0 | X197: =SUM(L197:W197) -> 0 | Z197: =L197 -> 0 | AB197: =M197 -> 0 | AC197: =L197-Z197 -> 0 | AD197: =AB197+AC197 -> 0 | AF197: =N197 -> 0 | AG197: =SUM(L197:M197)-Z197-AD197 -> 0 | AH197: =AF197+AG197 -> 0 | AJ197: =O197 -> 0 | AK197: =SUM(L197:N197)-Z197-AD197-AH197 -> 0 | AL197: =AJ197+AK197 -> 0 | AN197: =P197 -> 0 | AO197: =SUM(L197:O197)-Z197-AD197-AH197-AL197 -> 0 | AP197: =AN197+AO197 -> 0 | AR197: =Q197 -> 0 | AS197: =SUM(L197:P197)-Z197-AD197-AH197-AL197-AP197 -> 0 | AT197: =AR197+AS197 -> 0 | AV197: =R197 -> 0 | AW197: =SUM(L197:Q197)-Z197-AD197-AH197-AL197-AP197-AT197 -> 0 | AX197: =AV197+AW197 -> 0 | AZ197: =S197 -> 0 | BA197: =SUM(L197:R197)-Z197-AD197-AH197-AL197-AP197-AT197-AX197 -> 0 | BB197: =AZ197+BA197 -> 0 | BD197: =T197 -> 0 | BE197: =SUM(L197:S197)-Z197-AD197-AH197-AL197-AP197-AT197-AX197-BB197 -> 0 | BF197: =BD197+BE197 -> 0 | BH197: =U197 -> 0 | BI197: =SUM(L197:T197)-Z197-AD197-AH197-AL197-AP197-AT197-AX197-BB197-BF197 -> 0 | BJ197: =BH197+BI197 -> 0 | BL197: =V197 -> 0 | BM197: =SUM(L197:U197)-Z197-AD197-AH197-AL197-AP197-AT197-AX197-BB197-BF197-BJ197 -> 0 | BN197: =BL197+BM197 -> 0 | BP197: =W197 -> 0 | BQ197: =SUM(L197:V197)-Z197-AD197-AH197-AL197-AP197-AT197-AX197-BB197-BF197-BJ197-BN197 -> 0 | BR197: =BP197+BQ197 -> 0 | BT197: =IF(L197>0,$B197,0) -> 0 | BU197: =IF(M197>0,$B197,0) -> 0 | BV197: =IF(N197>0,$B197,0) -> 0 | BW197: =IF(O197>0,$B197,0) -> 0 | BX197: =IF(P197>0,$B197,0) -> 0 | BY197: =IF(Q197>0,$B197,0) -> 0 | BZ197: =IF(R197>0,$B197,0) -> 0 | CA197: =IF(S197>0,$B197,0) -> 0 | CB197: =IF(T197>0,$B197,0) -> 0 | CC197: =IF(U197>0,$B197,0) -> 0 | CD197: =IF(V197>0,$B197,0) -> 0 | CE197: =IF(W197>0,$B197,0) -> 0
B198: 0 | C198: 0 | I198: 0 | J198: 0 | K198: 0 | L198: 0 | M198: 0 | N198: 0 | O198: 0 | P198: 0 | Q198: 0 | R198: 0 | S198: 0 | T198: 0 | U198: 0 | V198: 0 | W198: 0 | X198: 0 | Z198: 0 | AB198: 0 | AC198: 0 | AD198: 0 | AF198: 0 | AG198: 0 | AH198: 0 | AJ198: 0 | AK198: 0 | AL198: 0 | AN198: 0 | AO198: 0 | AP198: 0 | AR198: 0 | AS198: 0 | AT198: 0 | AV198: 0 | AW198: 0 | AX198: 0 | AZ198: 0 | BA198: 0 | BB198: 0 | BD198: 0 | BE198: 0 | BF198: 0 | BH198: 0 | BI198: 0 | BJ198: 0 | BL198: 0 | BM198: 0 | BN198: 0 | BP198: 0 | BQ198: 0 | BR198: 0 | BT198: 0 | BU198: 0 | BV198: 0 | BW198: 0 | BX198: 0 | BY198: 0 | BZ198: 0 | CA198: 0 | CB198: 0 | CC198: 0 | CD198: 0 | CE198: 0
B199: 0 | C199: 0 | I199: 0 | J199: 0 | K199: 0 | L199: 0 | M199: 0 | N199: 0 | O199: 0 | P199: 0 | Q199: 0 | R199: 0 | S199: 0 | T199: 0 | U199: 0 | V199: 0 | W199: 0 | X199: 0 | Z199: 0 | AB199: 0 | AC199: 0 | AD199: 0 | AF199: 0 | AG199: 0 | AH199: 0 | AJ199: 0 | AK199: 0 | AL199: 0 | AN199: 0 | AO199: 0 | AP199: 0 | AR199: 0 | AS199: 0 | AT199: 0 | AV199: 0 | AW199: 0 | AX199: 0 | AZ199: 0 | BA199: 0 | BB199: 0 | BD199: 0 | BE199: 0 | BF199: 0 | BH199: 0 | BI199: 0 | BJ199: 0 | BL199: 0 | BM199: 0 | BN199: 0 | BP199: 0 | BQ199: 0 | BR199: 0 | BT199: 0 | BU199: 0 | BV199: 0 | BW199: 0 | BX199: 0 | BY199: 0 | BZ199: 0 | CA199: 0 | CB199: 0 | CC199: 0 | CD199: 0 | CE199: 0
B200: 0 | C200: 0 | I200: 0 | J200: 0 | K200: 0 | L200: 0 | M200: 0 | N200: 0 | O200: 0 | P200: 0 | Q200: 0 | R200: 0 | S200: 0 | T200: 0 | U200: 0 | V200: 0 | W200: 0 | X200: 0 | Z200: 0 | AB200: 0 | AC200: 0 | AD200: 0 | AF200: 0 | AG200: 0 | AH200: 0 | AJ200: 0 | AK200: 0 | AL200: 0 | AN200: 0 | AO200: 0 | AP200: 0 | AR200: 0 | AS200: 0 | AT200: 0 | AV200: 0 | AW200: 0 | AX200: 0 | AZ200: 0 | BA200: 0 | BB200: 0 | BD200: 0 | BE200: 0 | BF200: 0 | BH200: 0 | BI200: 0 | BJ200: 0 | BL200: 0 | BM200: 0 | BN200: 0 | BP200: 0 | BQ200: 0 | BR200: 0 | BT200: 0 | BU200: 0 | BV200: 0 | BW200: 0 | BX200: 0 | BY200: 0 | BZ200: 0 | CA200: 0 | CB200: 0 | CC200: 0 | CD200: 0 | CE200: 0
B201: 0 | C201: 0 | I201: 0 | J201: 0 | K201: 0 | L201: 0 | M201: 0 | N201: 0 | O201: 0 | P201: 0 | Q201: 0 | R201: 0 | S201: 0 | T201: 0 | U201: 0 | V201: 0 | W201: 0 | X201: 0 | Z201: 0 | AB201: 0 | AC201: 0 | AD201: 0 | AF201: 0 | AG201: 0 | AH201: 0 | AJ201: 0 | AK201: 0 | AL201: 0 | AN201: 0 | AO201: 0 | AP201: 0 | AR201: 0 | AS201: 0 | AT201: 0 | AV201: 0 | AW201: 0 | AX201: 0 | AZ201: 0 | BA201: 0 | BB201: 0 | BD201: 0 | BE201: 0 | BF201: 0 | BH201: 0 | BI201: 0 | BJ201: 0 | BL201: 0 | BM201: 0 | BN201: 0 | BP201: 0 | BQ201: 0 | BR201: 0 | BT201: 0 | BU201: 0 | BV201: 0 | BW201: 0 | BX201: 0 | BY201: 0 | BZ201: 0 | CA201: 0 | CB201: 0 | CC201: 0 | CD201: 0 | CE201: 0
B202: 0 | C202: 0 | I202: 0 | J202: 0 | K202: 0 | L202: 0 | M202: 0 | N202: 0 | O202: 0 | P202: 0 | Q202: 0 | R202: 0 | S202: 0 | T202: 0 | U202: 0 | V202: 0 | W202: 0 | X202: 0 | Z202: 0 | AB202: 0 | AC202: 0 | AD202: 0 | AF202: 0 | AG202: 0 | AH202: 0 | AJ202: 0 | AK202: 0 | AL202: 0 | AN202: 0 | AO202: 0 | AP202: 0 | AR202: 0 | AS202: 0 | AT202: 0 | AV202: 0 | AW202: 0 | AX202: 0 | AZ202: 0 | BA202: 0 | BB202: 0 | BD202: 0 | BE202: 0 | BF202: 0 | BH202: 0 | BI202: 0 | BJ202: 0 | BL202: 0 | BM202: 0 | BN202: 0 | BP202: 0 | BQ202: 0 | BR202: 0 | BT202: 0 | BU202: 0 | BV202: 0 | BW202: 0 | BX202: 0 | BY202: 0 | BZ202: 0 | CA202: 0 | CB202: 0 | CC202: 0 | CD202: 0 | CE202: 0
... 298 more rows

Sheet Year 1
H2: DFE number:
I5: =IFERROR(VLOOKUP(dfenumber,'Excess Element 1 & 2'!B7:C28,2,0),"") -> 
B12: Place Plus Funding 2019/2020
C14: Pre-16
G15: Places | H15: Rate | I15: Total
D16: Element 1 | F16: Apr to Aug | G16: =IFERROR(VLOOKUP(dfenumber,'Excess Element 1 & 2'!BB7:BW28,19,0),0) -> 0 | H16: =4000*(5/12) -> 1666.666667 | I16: =G16*H16 -> 0
F17: Sep to Mar | G17: =IFERROR(VLOOKUP(dfenumber,'Excess Element 1 & 2'!BB7:BW28,21,0),0) -> 0 | H17: =4000*(7/12) -> 2333.333333 | I17: =G17*H17 -> 0
I18: =SUM(I16:I17) -> 0
D20: Element 2 | F20: Apr to Aug | G20: =G16 -> 0 | H20: =6000*(5/12) -> 2500 | I20: 0
F21: Sep to Mar | G21: =G17 -> 0 | H21: =6000*(7/12) -> 3500 | I21: 0
I22: =SUM(I20:I21) -> 0
H24: =SUM(H16:H21) -> 10000 | I24: =SUM(I18+I22) -> 0
C26: Post-16 | G26: Places | H26: Rate | I26: Total
D27: Element 1 | F27: Apr to Jul | G27: =IFERROR(VLOOKUP(dfenumber,'Excess Element 1 & 2'!BB7:BW28,20,0),0) -> 0 | H27: =4000*(4/12) -> 1333.333333 | I27: =G27*H27 -> 0
F28: Aug to Mar | G28: =IFERROR(VLOOKUP(dfenumber,'Excess Element 1 & 2'!BB7:BW28,22,0),0) -> 0 | H28: =4000*(8/12) -> 2666.666667 | I28: =G28*H28 -> 0
I29: =SUM(I27:I28) -> 0
D31: Element 2 | F31: Apr to Jul | G31: =G27 -> 0 | H31: =6000*(4/12) -> 2000 | I31: =G31*H31 -> 0
F32: Aug to Mar | G32: =G28 -> 0 | H32: =6000*(8/12) -> 4000 | I32: =G32*H32 -> 0
I33: =SUM(I31:I32) -> 0
H35: =SUM(H27:H32) -> 10000 | I35: =SUM(I29+I33) -> 0
C37: Excess Element 1 & 2 Funding | I37: =IFERROR(VLOOKUP(dfenumber,'Excess Element 1 & 2'!BB7:BQ28,16,0),0) -> 0
C39: Element 3 | I39: Total
H40: April | I40: =SUM(Pupils!$L$5:$L$500) -> 0
H41: May | I41: =SUM(Pupils!$M$5:$M$500) -> 0
H42: June | I42: =SUM(Pupils!$N$5:$N$500) -> 0
H43: July | I43: =SUM(Pupils!$O$5:$O$500) -> 0
H44: August | I44: =SUM(Pupils!$P$5:$P$500) -> 0
H45: September | I45: =SUM(Pupils!$Q$5:$Q$500) -> 0
H46: October | I46: =SUM(Pupils!$R$5:$R$500) -> 0
H47: November | I47: =SUM(Pupils!$S$5:$S$500) -> 0
H48: December | I48: =SUM(Pupils!$T$5:$T$500) -> 0
H49: January | I49: =SUM(Pupils!$U$5:$U$500) -> 0
H50: February | I50: =SUM(Pupils!$V$5:$V$500) -> 0
H51: March | I51: =SUM(Pupils!$W$5:$W$500) -> 0
I52: =SUM(I40:I51) -> 0
C54: Total Place Plus Funding 2019/20 | I54: =SUM(I52,I35,I24,I37) -> 0
B57: Estimated Pupil Premium (PP)
G58: Units | H58: Rate | I58: Total
C59: Free School Meals Ever 6 Primary (January census) | H59: 1320 | I59: =G59*H59 -> 0
C60: Free School Meals Ever 6 Secondary (January census) | H60: 935 | I60: =G60*H60 -> 0
C61: Adopted (Post-LAC) pupils (January census) | H61: 2300 | I61: =G61*H61 -> 0
C62: Children in Care (CiC)
C63: Service Children Ever 6 (January census) | H63: 300 | I63: =G63*H63 -> 0
C65: Total Pupil Premium | I65: =SUM(I59:I63) -> 0
B67: Universal Infant Free School Meals
C69: April to August 2019
C71: October 2018 Taken meals years 1 & 2
C72: January 2019 Taken meals years 1 & 2
C73: October 2018 Taken meals year R
C74: January 2019 Taken meals year R
C75: Qualifying pupils | I75: =((I71+I72)/2)+MAX(I74,((I73+I74)/2)) -> 0
C76: *190 meals (qualifying pupils X 190) | I76: =I75*190 -> 0
C77: Rate per meal | I77: 2.3
C78: Full Year allocation (September 2018 to August 2019) | I78: =I77*I76 -> 0
C80: Remaining Allocation for 2018/19 academic year (April to August 2019) | I80: =I78*(5/12) -> 0
C83: September 2019 to March 2020 ESTIMATE
C84: The DfE have not yet confirmed how this period will be calculated. However, we have assumed this is on the same basis as 2018/19 guidance.
C85: October 2019 Taken meals (ESTIMATE) years 1 & 2
C86: January 2020 Taken meals (ESTIMATE) years 1 & 2
C87: October 2019 Taken meals (ESTIMATE) year R
C88: January 2020 Taken meals (ESTIMATE) year R
C89: Qualifying pupils | I89: =((I85+I86)/2)+MAX(I88,((I87+I88)/2)) -> 0
C90: *190 meals (qualifying pupils X 190) | I90: =I89*190 -> 0
C91: Rate per meal | I91: 2.3
C92: Full Year allocation (September 2019 to August 2020) | I92: =I91*I90 -> 0
C94: Estimated Allocation for 2019/20 academic year (September to March 2020) | I94: =I92*(7/12) -> 0
C96: Estimated total funding in financial year 2019/20 | I96: =I80+I94 -> 0
C98: Special Nursery (Observation and Assessment Centre)
C100: Other Grants | I100: ='Other Grants'!$D$14 -> 0
C102: Overall total estimated funding 2019/20 | I102: =SUM(I54,I65,I96,I98,I100) -> 0
B105: Pooled Funding Arrangement
G106: Rate | H106: Places
C107: Schools in financial difficulties | G107: 16.95 | H107: =(G16*(5/12))+(G17*(7/12))+(G27*(4/12))+(G28*(8/12)) -> 0 | I107: =G107*H107 -> 0
C108: Free School Meals Eligibility | G108: 0.57 | H108: =H107 -> 0 | I108: =G108*H108 -> 0
C109: Licences and Subscriptions (SIMS) | G109: 3.63 | H109: =H108 -> 0 | I109: 0
C110: Trade Union Duties | G110: 1.85 | H110: 0 | I110: 0
C111: Schools Personnel Service | G111: 0.8 | H111: 0 | I111: 0
I113: =SUM(I107:I111) -> 0

Sheet Other Grants
P1: I01
P2: I02
B3: Other Grants | P3: I03
P4: I04
H5: Teachers Pay Increase 2018 Calculation | P5: I05
B6: Grant | C6: Code | D6: 2019/20 | E6: 2020/21 | F6: 2021/22 | H6: Period | I6: Rate | J6: Place No. | K6: Total | P6: I06
A7: 1 | B7: Teachers Pay Increase 2018 (TPG) | C7: I01 | D7: =SUM(K7+K8) -> 0 | E7: =K9+K10 -> 0 | F7: =K11+K12 -> 0 | H7: Apr - Aug 2019 | I7: =IFERROR(IF(VLOOKUP(dfenumber,'Excess Element 1 & 2'!$B$36:$D$58,3,FALSE)="Yes",48.31,46.89),0) -> 0 | J7: =SUM('Year 1'!G16+'Year 1'!G27) -> 0 | K7: =I7*J7 -> 0 | P7: I07
A8: 2 | B8: PE & Sport Premium Grant | C8: I18 | H8: Sep 19 - Mar 2020 | I8: =IFERROR(SUM(IF(VLOOKUP(dfenumber,'Excess Element 1 & 2'!$B$36:$D$58,3,FALSE)="Yes",116.89,113.46)/12)*7,0) -> 0 | J8: =SUM('Year 1'!G17+'Year 1'!G28) -> 0 | K8: =I8*J8 -> 0 | P8: I08
A9: 3 | B9: Free School Meals Supplementary Grant | C9: I18 | H9: Apr - Aug 2020 | I9: =IFERROR(SUM(IF(VLOOKUP(dfenumber,'Excess Element 1 & 2'!$B$36:$D$58,3,FALSE)="Yes",116.89,113.46)/12)*5,0) -> 0 | J9: =J8 -> 0 | K9: =I9*J9 -> 0 | P9: I09
A10: 4 | B10: Year 7 Catch Up | C10: I06 | H10: Sep 20 - Mar 2021 | I10: =I8 -> 0 | J10: =J8 -> 0 | K10: =I10*J10 -> 0 | P10: I10
A11: 5 | H11: Apr - Aug 2020 | I11: =I9 -> 0 | J11: =J9 -> 0 | K11: =I11*J11 -> 0 | P11: I11
A12: 6 | H12: Sep 21 - Mar 2022 | I12: =I8 -> 0 | J12: =J8 -> 0 | K12: 0 | P12: I12
A13: 7 | P13: I13
C14: Total | D14: =SUM(D7:D13) -> 0 | E14: =SUM(E7:E13) -> 0 | F14: 0 | H14: Figures above are estimated and based on published rates as at 28th February 2019 | P14: I14
P15: I15
P16: I16
P17: I17
P18: I18

Sheet Excess E1&E2
B1: =dfenumber -> 0
B2: Year 1 Excess Element 1 and 2
B4: Protected Cash Advance | C4: =IFERROR(VLOOKUP(dfenumber,'Excess Element 1 & 2'!BB36:BD58,3,0),0) -> 0
C6: April 2019 - March 2020
C7: April | D7: May | E7: June | F7: July | G7: August | H7: September | I7: October | J7: November | K7: December | L7: January | M7: February | N7: March | O7: Total
B8: Places - Pre-16 | C8: =IFERROR(VLOOKUP($B$1,'Excess Element 1 & 2'!$BB:$BZ,19,0),0) -> 0 | D8: =IFERROR(VLOOKUP($B$1,'Excess Element 1 & 2'!$BB:$BZ,19,0),0) -> 0 | E8: =IFERROR(VLOOKUP($B$1,'Excess Element 1 & 2'!$BB:$BZ,19,0),0) -> 0 | F8: =IFERROR(VLOOKUP($B$1,'Excess Element 1 & 2'!$BB:$BZ,19,0),0) -> 0 | G8: =IFERROR(VLOOKUP($B$1,'Excess Element 1 & 2'!$BB:$BZ,19,0),0) -> 0 | H8: =IFERROR(VLOOKUP($B$1,'Excess Element 1 & 2'!$BB:$BZ,19,0),0) -> 0 | I8: =IFERROR(VLOOKUP($B$1,'Excess Element 1 & 2'!$BB:$BZ,21,0),0) -> 0 | J8: =IFERROR(VLOOKUP($B$1,'Excess Element 1 & 2'!$BB:$BZ,21,0),0) -> 0 | K8: =IFERROR(VLOOKUP($B$1,'Excess Element 1 & 2'!$BB:$BZ,21,0),0) -> 0 | L8: =IFERROR(VLOOKUP($B$1,'Excess Element 1 & 2'!$BB:$BZ,21,0),0) -> 0 | M8: =IFERROR(VLOOKUP($B$1,'Excess Element 1 & 2'!$BB:$BZ,21,0),0) -> 0 | N8: =IFERROR(VLOOKUP($B$1,'Excess Element 1 & 2'!$BB:$BZ,21,0),0) -> 0
B9: Places - Post-16 | C9: =IFERROR(VLOOKUP($B$1,'Excess Element 1 & 2'!$BB:$BZ,20,0),0) -> 0 | D9: =IFERROR(VLOOKUP($B$1,'Excess Element 1 & 2'!$BB:$BZ,20,0),0) -> 0 | E9: =IFERROR(VLOOKUP($B$1,'Excess Element 1 & 2'!$BB:$BZ,20,0),0) -> 0 | F9: =IFERROR(VLOOKUP($B$1,'Excess Element 1 & 2'!$BB:$BZ,20,0),0) -> 0 | G9: =IFERROR(VLOOKUP($B$1,'Excess Element 1 & 2'!$BB:$BZ,20,0),0) -> 0 | H9: =IFERROR(VLOOKUP($B$1,'Excess Element 1 & 2'!$BB:$BZ,22,0),0) -> 0 | I9: =IFERROR(VLOOKUP($B$1,'Excess Element 1 & 2'!$BB:$BZ,22,0),0) -> 0 | J9: =IFERROR(VLOOKUP($B$1,'Excess Element 1 & 2'!$BB:$BZ,22,0),0) -> 0 | K9: =IFERROR(VLOOKUP($B$1,'Excess Element 1 & 2'!$BB:$BZ,22,0),0) -> 0 | L9: =IFERROR(VLOOKUP($B$1,'Excess Element 1 & 2'!$BB:$BZ,22,0),0) -> 0 | M9: =IFERROR(VLOOKUP($B$1,'Excess Element 1 & 2'!$BB:$BZ,22,0),0) -> 0 | N9: =IFERROR(VLOOKUP($B$1,'Excess Element 1 & 2'!$BB:$BZ,22,0),0) -> 0
B10: Total Commissioned Places | C10: =SUM(C8:C9) -> 0 | D10: =SUM(D8:D9) -> 0 | E10: 0 | F10: 0 | G10: =SUM(G8:G9) -> 0 | H10: 0 | I10: 0 | J10: 0 | K10: 0 | L10: 0 | M10: 0 | N10: 0
B12: Actual | C12: =IFERROR(VLOOKUP($B$1,'Excess Element 1 & 2'!$B:$BW,3,0),0) -> 0 | D12: =IFERROR(IFERROR(VLOOKUP($B$1,'Excess Element 1 & 2'!$B:$BW,4,0),0),0) -> 0 | E12: =IFERROR(VLOOKUP($B$1,'Excess Element 1 & 2'!$B:$BW,5,0),0) -> 0 | F12: =IFERROR(VLOOKUP($B$1,'Excess Element 1 & 2'!$B:$BW,6,0),0) -> 0 | G12: =IFERROR(VLOOKUP($B$1,'Excess Element 1 & 2'!$B:$BW,7,0),0) -> 0 | H12: =IFERROR(VLOOKUP($B$1,'Excess Element 1 & 2'!$B:$BW,8,0),0) -> 0 | I12: =IFERROR(VLOOKUP($B$1,'Excess Element 1 & 2'!$B:$BW,9,0),0) -> 0 | J12: =IFERROR(VLOOKUP($B$1,'Excess Element 1 & 2'!$B:$BW,10,0),0) -> 0 | K12: =IFERROR(VLOOKUP($B$1,'Excess Element 1 & 2'!$B:$BW,11,0),0) -> 0 | L12: =IFERROR(VLOOKUP($B$1,'Excess Element 1 & 2'!$B:$BW,12,0),0) -> 0 | M12: =IFERROR(VLOOKUP($B$1,'Excess Element 1 & 2'!$B:$BW,13,0),0) -> 0 | N12: =IFERROR(VLOOKUP($B$1,'Excess Element 1 & 2'!$B:$BW,14,0),0) -> 0
B13: Excess places | C13: =-IF(C10-C12<0,(C10-C12),0) -> 0 | D13: =-IF(D10-D12<0,(D10-D12),0) -> 0 | E13: 0 | F13: 0 | G13: 0 | H13: 0 | I13: 0 | J13: 0 | K13: 0 | L13: 0 | M13: 0 | N13: 0
B14: Excess place unit cost (£) | C14: 833.33 | D14: 833.33 | E14: 833.33 | F14: 833.33 | G14: 833.33 | H14: 833.33 | I14: 833.33 | J14: 833.33 | K14: 833.33 | L14: 833.33 | M14: 833.33 | N14: 833.37 | O14: =SUM(C14:N14) -> 10000
B15: Excess places Total (£) | C15: =C13*C14 -> 0 | D15: =D13*D14 -> 0 | E15: 0 | F15: 0 | G15: 0 | H15: 0 | I15: 0 | J15: 0 | K15: 0 | L15: 0 | M15: 0 | N15: 0 | O15: =SUM(C15:N15) -> 0
B16: Protection period | C16: March to July actuals | I16: September to February actuals
B17: Protected balance (£) | C17: =IFERROR(VLOOKUP($B$1,'Excess Element 1 & 2'!$BB:$BP,4,0),0) -> 0 | D17: =IFERROR(VLOOKUP($B$1,'Excess Element 1 & 2'!$BB:$BP,5,0),0) -> 0 | E17: =IFERROR(VLOOKUP($B$1,'Excess Element 1 & 2'!$BB:$BP,6,0),0) -> 0 | F17: =IFERROR(VLOOKUP($B$1,'Excess Element 1 & 2'!$BB:$BP,7,0),0) -> 0 | G17: =IFERROR(VLOOKUP($B$1,'Excess Element 1 & 2'!$BB:$BP,8,0),0) -> 0 | H17: =IFERROR(VLOOKUP($B$1,'Excess Element 1 & 2'!$BB:$BP,9,0),0) -> 0 | I17: =I15 -> 0 | J17: =MAX(I15,J15) -> 0 | K17: =MAX(I15,J15,K15) -> 0 | L17: =MAX(I15,J15,K15,L15) -> 0 | M17: =MAX(I15,J15,K15,L15,M15) -> 0 | N17: =MAX(I15,J15,K15,L15,M15,N15) -> 0 | O17: =SUM(C17:N17) -> 0

Sheet Year 2 & 3 Pupils
B3: Year 2 Element 3 pupil data
B4: * Each month's pupil numbers generates funding in the following month
C5: March 2020 - February 2021
B6: Need Type | C6: March | D6: April | E6: May | F6: June | G6: July | H6: August | I6: September | J6: October | K6: November | L6: December | M6: January | N6: February | O6: FTE Pupils
B7: MLD&SLCN | C7: =COUNTIFS(Pupils!H:H,">"&DATE(2020,3,31),Pupils!F:F,"="&B7) -> 0 | H7: =G7 -> 0 | O7: =(C7+D7+E7+F7+G7+H7+I7+J7+K7+L7+M7+N7)/12 -> 0
B8: BESD | C8: =COUNTIFS(Pupils!H:H,">"&DATE(2020,3,31),Pupils!F:F,"="&B8) -> 0 | H8: =G8 -> 0 | O8: =(C8+D8+E8+F8+G8+H8+I8+J8+K8+L8+M8+N8)/12 -> 0
B9: SLD | C9: =COUNTIFS(Pupils!H:H,">"&DATE(2020,3,31),Pupils!F:F,"="&B9) -> 0 | H9: 0 | O9: 0
B10: PD&PMLD | C10: =COUNTIFS(Pupils!H:H,">"&DATE(2020,3,31),Pupils!F:F,"="&B10) -> 0 | H10: 0 | O10: 0
B11: ASD | C11: =COUNTIFS(Pupils!H:H,">"&DATE(2020,3,31),Pupils!F:F,"="&B11) -> 0 | H11: 0 | O11: 0
B12: WeekdayMLD&SLCN | C12: =COUNTIFS(Pupils!H:H,">"&DATE(2020,3,31),Pupils!F:F,"="&B12) -> 0 | H12: 0 | O12: 0
B13: WeekdayBESD | C13: =COUNTIFS(Pupils!H:H,">"&DATE(2020,3,31),Pupils!F:F,"="&B13) -> 0 | H13: 0 | O13: 0
B14: WeekdaySLD | C14: =COUNTIFS(Pupils!H:H,">"&DATE(2020,3,31),Pupils!F:F,"="&B14) -> 0 | H14: 0 | O14: 0
B15: WeekdayPD&PMLD | C15: =COUNTIFS(Pupils!H:H,">"&DATE(2020,3,31),Pupils!F:F,"="&B15) -> 0 | H15: 0 | O15: 0
B16: WeekdayASD | C16: =COUNTIFS(Pupils!H:H,">"&DATE(2020,3,31),Pupils!F:F,"="&B16) -> 0 | H16: 0 | O16: 0
B17: WeekendPD&PMLD | C17: =COUNTIFS(Pupils!H:H,">"&DATE(2020,3,31),Pupils!F:F,"="&B17) -> 0 | H17: 0 | O17: 0
B18: WeekendASD | C18: =COUNTIFS(Pupils!H:H,">"&DATE(2020,3,31),Pupils!F:F,"="&B18) -> 0 | H18: 0 | O18: 0
C19: =SUM(C7:C18) -> 0 | D19: =SUM(D7:D18) -> 0 | E19: 0 | F19: 0 | G19: 0 | H19: 0 | I19: 0 | J19: 0 | K19: 0 | L19: 0 | M19: 0 | N19: 0
B22: Year 3 Element 3 pupil data
B23: * Each month's pupil numbers generates funding in the following month
C24: March 2021 - February 2022
B25: Need Type | C25: March | D25: April | E25: May | F25: June | G25: July | H25: August | I25: September | J25: October | K25: November | L25: December | M25: January | N25: February | O25: FTE Pupils
B26: MLD&SLCN | H26: =G26 -> 0 | O26: =(C26+D26+E26+F26+G26+H26+I26+J26+K26+L26+M26+N26)/12 -> 0
B27: BESD | H27: =G27 -> 0 | O27: =(C27+D27+E27+F27+G27+H27+I27+J27+K27+L27+M27+N27)/12 -> 0
B28: SLD | H28: 0 | O28: 0
B29: PD&PMLD | H29: 0 | O29: 0
B30: ASD | H30: 0 | O30: 0
B31: WeekdayMLD&SLCN | H31: 0 | O31: 0
B32: WeekdayBESD | H32: 0 | O32: 0
B33: WeekdaySLD | H33: 0 | O33: 0
B34: WeekdayPD&PMLD | H34: 0 | O34: 0
B35: WeekdayASD | H35: 0 | O35: 0
B36: WeekendPD&PMLD | H36: 0 | O36: 0
B37: WeekendASD | H37: 0 | O37: 0
C38: =SUM(C26:C37) -> 0 | D38: =SUM(D26:D37) -> 0 | E38: =SUM(E26:E37) -> 0 | F38: =SUM(F26:F37) -> 0 | G38: =SUM(G26:G37) -> 0 | H38: =SUM(H26:H37) -> 0 | I38: =SUM(I26:I37) -> 0 | J38: =SUM(J26:J37) -> 0 | K38: =SUM(K26:K37) -> 0 | L38: =SUM(L26:L37) -> 0 | M38: =SUM(M26:M37) -> 0 | N38: =SUM(N26:N37) -> 0

Sheet Year 2
H2: DFE number: | I2: =dfenumber -> 0
I5: =IFERROR(VLOOKUP(dfenumber,'Excess Element 1 & 2'!B7:C28,2,0),"") -> 
B12: Place Plus Funding 2020/21
C14: Pre-16
G15: Places | H15: Rate | I15: Total
D16: Element 1 | F16: Apr to Aug | G16: ='Year 1'!G17 -> 0 | H16: =4000*(5/12) -> 1666.666667 | I16: =G16*H16 -> 0
F17: Sep to Mar | G17: =G16 -> 0 | H17: =4000*(7/12) -> 2333.333333 | I17: =G17*H17 -> 0
I18: =SUM(I16:I17) -> 0
D20: Element 2 | F20: Apr to Aug | G20: =G16 -> 0 | H20: =6000*(5/12) -> 2500 | I20: 0
F21: Sep to Mar | G21: =G17 -> 0 | H21: =6000*(7/12) -> 3500 | I21: 0
I22: =SUM(I20:I21) -> 0
H24: =SUM(H16:H21) -> 10000 | I24: =I18+I22 -> 0
C26: Post-16
G27: Places | H27: Rate | I27: Total
D28: Element 1 | F28: Apr to Jul | G28: ='Year 1'!G28 -> 0 | H28: =4000*(4/12) -> 1333.333333 | I28: =G28*H28 -> 0
F29: Aug to Mar | G29: =G28 -> 0 | H29: =4000*(8/12) -> 2666.666667 | I29: =G29*H29 -> 0
I30: =SUM(I28:I29) -> 0
D32: Element 2 | F32: Apr to Jul | G32: =G28 -> 0 | H32: =6000*(4/12) -> 2000 | I32: 0
F33: Aug to Mar | G33: =G29 -> 0 | H33: =6000*(8/12) -> 4000 | I33: 0
I34: =SUM(I32:I33) -> 0
H36: =SUM(H28:H33) -> 10000 | I36: =I30+I34 -> 0
C38: Element 3
G39: Pupils | H39: Rate | I39: Total
E40: MLD&SLCN | G40: ='Year 2 & 3 Pupils'!O7 -> 0 | H40: =IF(ISERROR(VLOOKUP(dfenumber&E40,Summary!$E$33:$G$172,3,0)),0,VLOOKUP(dfenumber&E40,Summary!$E$33:$G$172,3,0)) -> 0 | I40: =G40*H40 -> 0
E41: BESD | G41: ='Year 2 & 3 Pupils'!O8 -> 0 | H41: =IF(ISERROR(VLOOKUP(dfenumber&E41,Summary!$E$33:$G$172,3,0)),0,VLOOKUP(dfenumber&E41,Summary!$E$33:$G$172,3,0)) -> 0 | I41: =G41*H41 -> 0
E42: SLD | G42: ='Year 2 & 3 Pupils'!O9 -> 0 | H42: =IF(ISERROR(VLOOKUP(dfenumber&E42,Summary!$E$33:$G$172,3,0)),0,VLOOKUP(dfenumber&E42,Summary!$E$33:$G$172,3,0)) -> 0 | I42: 0
E43: PD&PMLD | G43: ='Year 2 & 3 Pupils'!O10 -> 0 | H43: =IF(ISERROR(VLOOKUP(dfenumber&E43,Summary!$E$33:$G$172,3,0)),0,VLOOKUP(dfenumber&E43,Summary!$E$33:$G$172,3,0)) -> 0 | I43: 0
E44: ASD | G44: ='Year 2 & 3 Pupils'!O11 -> 0 | H44: =IF(ISERROR(VLOOKUP(dfenumber&E44,Summary!$E$33:$G$172,3,0)),0,VLOOKUP(dfenumber&E44,Summary!$E$33:$G$172,3,0)) -> 0 | I44: 0
E45: WeekdayMLD&SLCN | G45: ='Year 2 & 3 Pupils'!O12 -> 0 | H45: =IF(ISERROR(VLOOKUP(dfenumber&E45,Summary!$E$33:$G$172,3,0)),0,VLOOKUP(dfenumber&E45,Summary!$E$33:$G$172,3,0)) -> 0 | I45: 0
E46: WeekdayBESD | G46: ='Year 2 & 3 Pupils'!O13 -> 0 | H46: =IF(ISERROR(VLOOKUP(dfenumber&E46,Summary!$E$33:$G$172,3,0)),0,VLOOKUP(dfenumber&E46,Summary!$E$33:$G$172,3,0)) -> 0 | I46: 0
E47: WeekdaySLD | G47: ='Year 2 & 3 Pupils'!O14 -> 0 | H47: =IF(ISERROR(VLOOKUP(dfenumber&E47,Summary!$E$33:$G$172,3,0)),0,VLOOKUP(dfenumber&E47,Summary!$E$33:$G$172,3,0)) -> 0 | I47: 0
E48: WeekdayPD&PMLD | G48: ='Year 2 & 3 Pupils'!O15 -> 0 | H48: =IF(ISERROR(VLOOKUP(dfenumber&E48,Summary!$E$33:$G$172,3,0)),0,VLOOKUP(dfenumber&E48,Summary!$E$33:$G$172,3,0)) -> 0 | I48: 0
E49: WeekdayASD | G49: ='Year 2 & 3 Pupils'!O16 -> 0 | H49: =IF(ISERROR(VLOOKUP(dfenumber&E49,Summary!$E$33:$G$172,3,0)),0,VLOOKUP(dfenumber&E49,Summary!$E$33:$G$172,3,0)) -> 0 | I49: 0
E50: WeekendPD&PMLD | G50: ='Year 2 & 3 Pupils'!O17 -> 0 | H50: =IF(ISERROR(VLOOKUP(dfenumber&E50,Summary!$E$33:$G$172,3,0)),0,VLOOKUP(dfenumber&E50,Summary!$E$33:$G$172,3,0)) -> 0 | I50: 0
E51: WeekendASD | G51: ='Year 2 & 3 Pupils'!O18 -> 0 | H51: =IF(ISERROR(VLOOKUP(dfenumber&E51,Summary!$E$33:$G$172,3,0)),0,VLOOKUP(dfenumber&E51,Summary!$E$33:$G$172,3,0)) -> 0 | I51: 0
I52: =SUM(I40:I51) -> 0
C54: Total Place Plus Funding 2020/21 | I54: =I36+I24+I52 -> 0
B57: Estimated Pupil Premium (PP)
G58: Units | H58: Rate | I58: Total
C59: Free School Meals Ever 6 Primary (January census) | H59: 1320 | I59: =G59*H59 -> 0
C60: Free School Meals Ever 6 Secondary (January census) | H60: 935 | I60: =G60*H60 -> 0
C61: Adopted (Post-LAC) pupils (January census) | H61: 2300 | I61: =G61*H61 -> 0
C62: Children in Care (CiC)
C63: Service Children Ever 6 (January census) | H63: 300 | I63: =G63*H63 -> 0
C65: Total Pupil Premium | I65: =SUM(I59:I63) -> 0
B67: Universal Infant Free School Meals (ESTIMATE)
C68: The DfE have not yet confirmed how this period will be calculated. However, we have assumed this is on the same basis as 2018/19 guidance.
C69: April to August 2020
C71: Remaining payment (see Year 1) | I71: ='Year 1'!I92-'Year 1'!I94 -> 0
C73: September 2020 to March 2021
C75: October 2020 Taken meals years 1 & 2
C76: January 2021 Taken meals years 1 & 2
C77: October 2020 Taken meals year R
C78: January 2021 Taken meals year R
C79: Qualifying pupils | I79: =((I75+I76)/2)+MAX(I78,((I77+I78)/2)) -> 0
C80: *190 meals (qualifying pupils X 190) | I80: =I79*190 -> 0
C81: Rate per meal | I81: 2.3
C82: Full Year allocation (September 2020 to August 2021) | I82: =I81*I80 -> 0
C84: Estimated Allocation for 2020/21 academic year (September to March 2021) | I84: =I82*(7/12) -> 0
C86: Estimated total funding in financial year 2020/21 | I86: =I71+I84 -> 0
C88: Special Nursery (Observation and Assessment Centre)
C90: Other Grants | I90: ='Other Grants'!$E$14 -> 0
C92: Overall total estimated funding 2020-21 | I92: =SUM(I54,I65,I86,I88,I90) -> 0
B95: Pooled Funding Arrangement
G96: Rate | H96: Places
C97: Schools in financial difficulties | G97: 16.95 | H97: =(G16*(5/12))+(G17*(7/12))+(G28*(4/12))+(G29*(8/12)) -> 0 | I97: =G97*H97 -> 0
C98: Free School Meals Eligibility | G98: 0.57 | H98: =H97 -> 0 | I98: =G98*H98 -> 0
C99: Licences and Subscriptions (SIMS) | G99: 3.63 | H99: =H98 -> 0 | I99: 0
C100: Trade Union Duties | G100: 1.85 | H100: 0 | I100: 0
C101: Schools Personnel Service | G101: 0.8 | H101: 0 | I101: 0
I103: =SUM(I97:I101) -> 0

Sheet Year 3
H2: DFE number: | I2: =dfenumber -> 0
I5: =IFERROR(VLOOKUP(dfenumber,'Excess Element 1 & 2'!B7:C28,2,0),"") -> 
B12: Place Plus Funding 2021/22
C14: Pre-16
G15: Places | H15: Rate | I15: Total
D16: Element 1 | F16: Apr to Aug | G16: ='Year 2'!G17 -> 0 | H16: 1666.666667 | I16: =G16*H16 -> 0
F17: Sep to Mar | G17: =G16 -> 0 | H17: 2333.333333 | I17: =G17*H17 -> 0
I18: =SUM(I16:I17) -> 0
D20: Element 2 | F20: Apr to Aug | G20: =G16 -> 0 | H20: 2500 | I20: =G20*H20 -> 0
F21: Sep to Mar | G21: =G17 -> 0 | H21: 3500 | I21: =G21*H21 -> 0
I22: =SUM(I20:I21) -> 0
H24: =SUM(H16:H21) -> 10000 | I24: =I18+I22 -> 0
C26: Post-16
G27: Places | H27: Rate | I27: Total
D28: Element 1 | F28: Apr to Jul | G28: ='Year 2'!G29 -> 0 | H28: 1333.333333 | I28: =G28*H28 -> 0
F29: Aug to Mar | G29: =G28 -> 0 | H29: 2666.666667 | I29: 0
I30: =SUM(I28:I29) -> 0
D32: Element 2 | F32: Apr to Jul | G32: =G28 -> 0 | H32: 2000 | I32: 0
F33: Aug to Mar | G33: =G29 -> 0 | H33: 4000 | I33: 0
I34: =SUM(I32:I33) -> 0
H36: =SUM(H28:H33) -> 10000 | I36: =I30+I34 -> 0
C38: Element 3
G39: Pupils | H39: Rate | I39: Total
E40: MLD&SLCN | G40: ='Year 2 & 3 Pupils'!O26 -> 0 | H40: =IF(ISERROR(VLOOKUP(dfenumber&E40,Summary!$E$33:$G$172,3,0)),0,VLOOKUP(dfenumber&E40,Summary!$E$33:$G$172,3,0)) -> 0 | I40: =G40*H40 -> 0
E41: BESD | G41: ='Year 2 & 3 Pupils'!O27 -> 0 | H41: =IF(ISERROR(VLOOKUP(dfenumber&E41,Summary!$E$33:$G$172,3,0)),0,VLOOKUP(dfenumber&E41,Summary!$E$33:$G$172,3,0)) -> 0 | I41: =G41*H41 -> 0
E42: SLD | G42: ='Year 2 & 3 Pupils'!O28 -> 0 | H42: =IF(ISERROR(VLOOKUP(dfenumber&E42,Summary!$E$33:$G$172,3,0)),0,VLOOKUP(dfenumber&E42,Summary!$E$33:$G$172,3,0)) -> 0 | I42: 0
E43: PD&PMLD | G43: ='Year 2 & 3 Pupils'!O29 -> 0 | H43: =IF(ISERROR(VLOOKUP(dfenumber&E43,Summary!$E$33:$G$172,3,0)),0,VLOOKUP(dfenumber&E43,Summary!$E$33:$G$172,3,0)) -> 0 | I43: 0
E44: ASD | G44: ='Year 2 & 3 Pupils'!O30 -> 0 | H44: =IF(ISERROR(VLOOKUP(dfenumber&E44,Summary!$E$33:$G$172,3,0)),0,VLOOKUP(dfenumber&E44,Summary!$E$33:$G$172,3,0)) -> 0 | I44: 0
E45: WeekdayMLD&SLCN | G45: ='Year 2 & 3 Pupils'!O31 -> 0 | H45: =IF(ISERROR(VLOOKUP(dfenumber&E45,Summary!$E$33:$G$172,3,0)),0,VLOOKUP(dfenumber&E45,Summary!$E$33:$G$172,3,0)) -> 0 | I45: 0
E46: WeekdayBESD | G46: ='Year 2 & 3 Pupils'!O32 -> 0 | H46: =IF(ISERROR(VLOOKUP(dfenumber&E46,Summary!$E$33:$G$172,3,0)),0,VLOOKUP(dfenumber&E46,Summary!$E$33:$G$172,3,0)) -> 0 | I46: 0
E47: WeekdaySLD | G47: ='Year 2 & 3 Pupils'!O33 -> 0 | H47: =IF(ISERROR(VLOOKUP(dfenumber&E47,Summary!$E$33:$G$172,3,0)),0,VLOOKUP(dfenumber&E47,Summary!$E$33:$G$172,3,0)) -> 0 | I47: 0
E48: WeekdayPD&PMLD | G48: ='Year 2 & 3 Pupils'!O34 -> 0 | H48: =IF(ISERROR(VLOOKUP(dfenumber&E48,Summary!$E$33:$G$172,3,0)),0,VLOOKUP(dfenumber&E48,Summary!$E$33:$G$172,3,0)) -> 0 | I48: 0
E49: WeekdayASD | G49: ='Year 2 & 3 Pupils'!O35 -> 0 | H49: =IF(ISERROR(VLOOKUP(dfenumber&E49,Summary!$E$33:$G$172,3,0)),0,VLOOKUP(dfenumber&E49,Summary!$E$33:$G$172,3,0)) -> 0 | I49: 0
E50: WeekendPD&PMLD | G50: ='Year 2 & 3 Pupils'!O36 -> 0 | H50: =IF(ISERROR(VLOOKUP(dfenumber&E50,Summary!$E$33:$G$172,3,0)),0,VLOOKUP(dfenumber&E50,Summary!$E$33:$G$172,3,0)) -> 0 | I50: 0
E51: WeekendASD | G51: ='Year 2 & 3 Pupils'!O37 -> 0 | H51: =IF(ISERROR(VLOOKUP(dfenumber&E51,Summary!$E$33:$G$172,3,0)),0,VLOOKUP(dfenumber&E51,Summary!$E$33:$G$172,3,0)) -> 0 | I51: 0
I52: =SUM(I40:I51) -> 0
C54: Total Place Plus Funding 2021/22 | I54: =I36+I24+I52 -> 0
B57: Estimated Pupil Premium (PP)
G58: Units | H58: Rate | I58: Total
C59: Free School Meals Ever 6 Primary (January census) | H59: 1320 | I59: =G59*H59 -> 0
C60: Free School Meals Ever 6 Secondary (January census) | H60: 935 | I60: =G60*H60 -> 0
C61: Adopted (Post-LAC) pupils (January census) | H61: 2300 | I61: =G61*H61 -> 0
C62: Children in Care (CiC)
C63: Service Children Ever 6 (January census) | H63: 300 | I63: =G63*H63 -> 0
C65: Total Pupil Premium | I65: =SUM(I59:I63) -> 0
B67: Universal Infant Free School Meals (ESTIMATE)
C68: The DfE have not yet confirmed how this period will be calculated. However, we have assumed this is on the same basis as 2018/19 guidance.
C69: April to August 2021
C71: Remaining payment (see Year 2) | I71: ='Year 2'!I82-'Year 2'!I84 -> 0
C73: September 2021 to March 2022
C75: October 2021 Taken meals years 1 & 2
C76: January 2022 Taken meals years 1 & 2
C77: October 2021 Taken meals year R
C78: January 2022 Taken meals year R
C79: Qualifying pupils | I79: =((I75+I76)/2)+MAX(I78,((I77+I78)/2)) -> 0
C80: *190 meals (qualifying pupils X 190) | I80: =I79*190 -> 0
C81: Rate per meal | I81: 2.3
C82: Full Year allocation (September 2021 to August 2022) | I82: =I81*I80 -> 0
C84: Estimated Allocation for 2021/22 academic year (September to March 2022) | I84: =I82*(7/12) -> 0
C86: Estimated total funding in financial year 2021/22 | I86: =I71+I84 -> 0
C88: Special Nursery (Observation and Assessment Centre)
C90: Other Grants | I90: ='Other Grants'!$F$14 -> 0
C92: Overall total estimated funding 2021/22 | I92: =SUM(I54,I65,I86,I88,I90) -> 0
B95: Pooled Funding Arrangement
G96: Rate | H96: Places
C97: Schools in financial difficulties | G97: 16.95 | H97: =(G16*(5/12))+(G17*(7/12))+(G28*(4/12))+(G29*(8/12)) -> 0 | I97: =G97*H97 -> 0
C98: Free School Meals Eligibility | G98: 0.57 | H98: =H97 -> 0 | I98: =G98*H98 -> 0
C99: Licences and Subscriptions (SIMS) | G99: 3.63 | H99: =H98 -> 0 | I99: 0
C100: Trade Union Duties | G100: 1.85 | H100: 0 | I100: 0
C101: Schools Personnel Service | G101: 0.8 | H101: 0 | I101: 0
I103: =SUM(I97:I101) -> 0

Sheet Monthly Statement

Sheet Reconciliation
A1: Select statement month: | F1: Number of pupils entered on Pupils tab by school: | G1: =COUNTA(Pupils!D5:D500) -> 0
F2: Number of pupils on reconciliation sheet: | G2: =COUNTIF(A6:A403,"<>0") -> 0 | H2: April | K2: May | N2: June | Q2: July | T2: August | W2: September | Z2: October | AC2: November | AF2: December | AI2: January | AL2: February | AO2: March
B3: =IF(A3=0,"",IF(OR(A3="January",A3="February",A3="March"),2020,2019)) ->  | C3: =IF(A3="April",1, IF(A3="May",2, IF(A3="June",3, IF(A3="July",4, IF(A3="August",5, IF(A3="September",6, IF(A3="October",7, IF(A3="November",8, IF(A3="December",9, IF(A3="January",10, IF(A3="February",11, IF(A3="March",12,)))))))))))) -> 0 | F3: Number of pupils on latest statement: | G3: =COUNTA('Monthly Statement'!B2:B500) -> 0 | H3: =SUM(H6:H500) -> 0 | I3: =SUM(I6:I500) -> 0 | J3: =IF($C$3>0,SUM(I3-H3),0) -> 0 | K3: =SUM(K6:K500) -> 0 | L3: =SUM(L6:L500) -> 0 | M3: =IF($C$3>1,SUM(L3-K3),0) -> 0 | N3: =SUM(N6:N500) -> 0 | O3: =SUM(O6:O500) -> 0 | P3: =IF($C$3>2,SUM(O3-N3),0) -> 0 | Q3: =SUM(Q6:Q500) -> 0 | R3: =SUM(R6:R500) -> 0 | S3: =IF($C$3>3,SUM(R3-Q3),0) -> 0 | T3: =SUM(T6:T500) -> 0 | U3: =SUM(U6:U500) -> 0 | V3: =IF($C$3>4,SUM(U3-T3),0) -> 0 | W3: =SUM(W6:W500) -> 0 | X3: =SUM(X6:X500) -> 0 | Y3: =IF($C$3>5,SUM(X3-W3),0) -> 0 | Z3: =SUM(Z6:Z500) -> 0 | AA3: =SUM(AA6:AA500) -> 0 | AB3: =IF($C$3>6,SUM(AA3-Z3),0) -> 0 | AC3: =SUM(AC6:AC500) -> 0 | AD3: =SUM(AD6:AD500) -> 0 | AE3: =IF($C$3>7,SUM(AD3-AC3),0) -> 0 | AF3: =SUM(AF6:AF500) -> 0 | AG3: =SUM(AG6:AG500) -> 0 | AH3: =IF($C$3>8,SUM(AG3-AF3),0) -> 0 | AI3: =SUM(AI6:AI500) -> 0 | AJ3: =SUM(AJ6:AJ500) -> 0 | AK3: =IF($C$3>9,SUM(AJ3-AI3),0) -> 0 | AL3: =SUM(AL6:AL500) -> 0 | AM3: =SUM(AM6:AM500) -> 0 | AN3: =IF($C$3>10,SUM(AM3-AL3),0) -> 0 | AO3: =SUM(AO6:AO500) -> 0 | AP3: =SUM(AP6:AP500) -> 0 | AQ3: =IF($C$3>11,SUM(AP3-AO3),0) -> 0
A5: Pupil Key | B5: Pupil Surname | C5: Pupil Forename | D5: Need Type | E5: Placement START Date | F5: Placement END Date | G5: Variance to date | H5: Forecast | I5: Actual | J5: Variance | K5: Forecast | L5: Actual | M5: Variance | N5: Forecast | O5: Actual | P5: Variance | Q5: Forecast | R5: Actual | S5: Variance | T5: Forecast | U5: Actual | V5: Variance | W5: Forecast | X5: Actual | Y5: Variance | Z5: Forecast | AA5: Actual | AB5: Variance | AC5: Forecast | AD5: Actual | AE5: Variance | AF5: Forecast | AG5: Actual | AH5: Variance | AI5: Forecast | AJ5: Actual | AK5: Variance | AL5: Forecast | AM5: Actual | AN5: Variance | AO5: Forecast | AP5: Actual | AQ5: Variance
A6: ='Monthly Statement'!A2 -> 0 | B6: =IFERROR(VLOOKUP(A6,'Monthly Statement'!A:Y,4,0),"") ->  | C6: =IFERROR(VLOOKUP(A6,'Monthly Statement'!A:Y,5,0),"") ->  | D6: =IFERROR(VLOOKUP(A6,'Monthly Statement'!A:Y,7,0),"") ->  | E6: =IFERROR(VLOOKUP(A6,'Monthly Statement'!A:Y,9,0),"") ->  | F6: =IFERROR(VLOOKUP(A6,'Monthly Statement'!A:Y,10,0),"") ->  | G6: =J6+M6+P6+S6+V6+Y6+AB6+AE6+AH6+AK6+AN6+AQ6 -> 0 | H6: =IFERROR(VLOOKUP(A6,Pupils!$A$5:$W$500,12,0),0) -> 0 | I6: =IFERROR(VLOOKUP($A6,'Monthly Statement'!$A$2:$ZZ$500,14,0),0) -> 0 | J6: =IF($C$3>0,ROUND(SUM(I6-H6),2),0) -> 0 | K6: =IFERROR(VLOOKUP(A6,Pupils!$A$5:$W$500,13,0),0) -> 0 | L6: =IFERROR(VLOOKUP($A6,'Monthly Statement'!$A$2:$ZZ$500,15,0),0) -> 0 | M6: =IF($C$3>1,ROUND(SUM(L6-K6),2),0) -> 0 | N6: =IFERROR(VLOOKUP(A6,Pupils!$A$5:$W$500,14,0),0) -> 0 | O6: =IFERROR(VLOOKUP($A6,'Monthly Statement'!$A$2:$ZZ$500,16,0),0) -> 0 | P6: =IF($C$3>2,ROUND(SUM(O6-N6),2),0) -> 0 | Q6: =IFERROR(VLOOKUP(A6,Pupils!$A$5:$W$500,15,0),0) -> 0 | R6: =IFERROR(VLOOKUP($A6,'Monthly Statement'!$A$2:$ZZ$500,17,0),0) -> 0 | S6: =IF($C$3>3,ROUND(SUM(R6-Q6),2),0) -> 0 | T6: =IFERROR(VLOOKUP(A6,Pupils!$A$5:$W$500,16,0),0) -> 0 | U6: =IFERROR(VLOOKUP($A6,'Monthly Statement'!$A$2:$ZZ$500,18,0),0) -> 0 | V6: =IF($C$3>4,ROUND(SUM(U6-T6),2),0) -> 0 | W6: =IFERROR(VLOOKUP(A6,Pupils!$A$5:$W$500,17,0),0) -> 0 | X6: =IFERROR(VLOOKUP($A6,'Monthly Statement'!$A$2:$ZZ$500,19,0),0) -> 0 | Y6: =IF($C$3>5,ROUND(SUM(X6-W6),2),0) -> 0 | Z6: =IFERROR(VLOOKUP(A6,Pupils!$A$5:$W$500,18,0),0) -> 0 | AA6: =IFERROR(VLOOKUP($A6,'Monthly Statement'!$A$2:$ZZ$500,20,0),0) -> 0 | AB6: =IF($C$3>6,ROUND(SUM(AA6-Z6),2),0) -> 0 | AC6: =IFERROR(VLOOKUP(A6,Pupils!$A$5:$W$500,19,0),0) -> 0 | AD6: =IFERROR(VLOOKUP($A6,'Monthly Statement'!$A$2:$ZZ$500,21,0),0) -> 0 | AE6: =IF($C$3>7,ROUND(SUM(AD6-AC6),2),0) -> 0 | AF6: =IFERROR(VLOOKUP(A6,Pupils!$A$5:$W$500,20,0),0) -> 0 | AG6: =IFERROR(VLOOKUP($A6,'Monthly Statement'!$A$2:$ZZ$500,22,0),0) -> 0 | AH6: =IF($C$3>8,ROUND(SUM(AG6-AF6),2),0) -> 0 | AI6: =IFERROR(VLOOKUP(A6,Pupils!$A$5:$W$500,21,0),0) -> 0 | AJ6: =IFERROR(VLOOKUP($A6,'Monthly Statement'!$A$2:$ZZ$500,23,0),0) -> 0 | AK6: =IF($C$3>9,ROUND(SUM(AJ6-AI6),2),0) -> 0 | AL6: =IFERROR(VLOOKUP(A6,Pupils!$A$5:$W$500,22,0),0) -> 0 | AM6: =IFERROR(VLOOKUP($A6,'Monthly Statement'!$A$2:$ZZ$500,24,0),0) -> 0 | AN6: =IF($C$3>10,ROUND(SUM(AM6-AL6),2),0) -> 0 | AO6: =IFERROR(VLOOKUP(A6,Pupils!$A$5:$W$500,23,0),0) -> 0 | AP6: =IFERROR(VLOOKUP($A6,'Monthly Statement'!$A$2:$ZZ$500,25,0),0) -> 0 | AQ6: =IF($C$3>11,ROUND(SUM(AP6-AO6),2),0) -> 0
A7: ='Monthly Statement'!A3 -> 0 | B7: =IFERROR(VLOOKUP(A7,'Monthly Statement'!A:Y,4,0),"") ->  | C7: =IFERROR(VLOOKUP(A7,'Monthly Statement'!A:Y,5,0),"") ->  | D7: =IFERROR(VLOOKUP(A7,'Monthly Statement'!A:Y,7,0),"") ->  | E7: =IFERROR(VLOOKUP(A7,'Monthly Statement'!A:Y,9,0),"") ->  | F7: =IFERROR(VLOOKUP(A7,'Monthly Statement'!A:Y,10,0),"") ->  | G7: =J7+M7+P7+S7+V7+Y7+AB7+AE7+AH7+AK7+AN7+AQ7 -> 0 | H7: =IFERROR(VLOOKUP(A7,Pupils!$A$5:$W$500,12,0),0) -> 0 | I7: =IFERROR(VLOOKUP($A7,'Monthly Statement'!$A$2:$ZZ$500,14,0),0) -> 0 | J7: =IF($C$3>0,ROUND(SUM(I7-H7),2),0) -> 0 | K7: =IFERROR(VLOOKUP(A7,Pupils!$A$5:$W$500,13,0),0) -> 0 | L7: =IFERROR(VLOOKUP($A7,'Monthly Statement'!$A$2:$ZZ$500,15,0),0) -> 0 | M7: =IF($C$3>1,ROUND(SUM(L7-K7),2),0) -> 0 | N7: =IFERROR(VLOOKUP(A7,Pupils!$A$5:$W$500,14,0),0) -> 0 | O7: =IFERROR(VLOOKUP($A7,'Monthly Statement'!$A$2:$ZZ$500,16,0),0) -> 0 | P7: =IF($C$3>2,ROUND(SUM(O7-N7),2),0) -> 0 | Q7: =IFERROR(VLOOKUP(A7,Pupils!$A$5:$W$500,15,0),0) -> 0 | R7: =IFERROR(VLOOKUP($A7,'Monthly Statement'!$A$2:$ZZ$500,17,0),0) -> 0 | S7: =IF($C$3>3,ROUND(SUM(R7-Q7),2),0) -> 0 | T7: =IFERROR(VLOOKUP(A7,Pupils!$A$5:$W$500,16,0),0) -> 0 | U7: =IFERROR(VLOOKUP($A7,'Monthly Statement'!$A$2:$ZZ$500,18,0),0) -> 0 | V7: =IF($C$3>4,ROUND(SUM(U7-T7),2),0) -> 0 | W7: =IFERROR(VLOOKUP(A7,Pupils!$A$5:$W$500,17,0),0) -> 0 | X7: =IFERROR(VLOOKUP($A7,'Monthly Statement'!$A$2:$ZZ$500,19,0),0) -> 0 | Y7: =IF($C$3>5,ROUND(SUM(X7-W7),2),0) -> 0 | Z7: =IFERROR(VLOOKUP(A7,Pupils!$A$5:$W$500,18,0),0) -> 0 | AA7: =IFERROR(VLOOKUP($A7,'Monthly Statement'!$A$2:$ZZ$500,20,0),0) -> 0 | AB7: =IF($C$3>6,ROUND(SUM(AA7-Z7),2),0) -> 0 | AC7: =IFERROR(VLOOKUP(A7,Pupils!$A$5:$W$500,19,0),0) -> 0 | AD7: =IFERROR(VLOOKUP($A7,'Monthly Statement'!$A$2:$ZZ$500,21,0),0) -> 0 | AE7: =IF($C$3>7,ROUND(SUM(AD7-AC7),2),0) -> 0 | AF7: =IFERROR(VLOOKUP(A7,Pupils!$A$5:$W$500,20,0),0) -> 0 | AG7: =IFERROR(VLOOKUP($A7,'Monthly Statement'!$A$2:$ZZ$500,22,0),0) -> 0 | AH7: =IF($C$3>8,ROUND(SUM(AG7-AF7),2),0) -> 0 | AI7: =IFERROR(VLOOKUP(A7,Pupils!$A$5:$W$500,21,0),0) -> 0 | AJ7: =IFERROR(VLOOKUP($A7,'Monthly Statement'!$A$2:$ZZ$500,23,0),0) -> 0 | AK7: =IF($C$3>9,ROUND(SUM(AJ7-AI7),2),0) -> 0 | AL7: =IFERROR(VLOOKUP(A7,Pupils!$A$5:$W$500,22,0),0) -> 0 | AM7: =IFERROR(VLOOKUP($A7,'Monthly Statement'!$A$2:$ZZ$500,24,0),0) -> 0 | AN7: =IF($C$3>10,ROUND(SUM(AM7-AL7),2),0) -> 0 | AO7: =IFERROR(VLOOKUP(A7,Pupils!$A$5:$W$500,23,0),0) -> 0 | AP7: =IFERROR(VLOOKUP($A7,'Monthly Statement'!$A$2:$ZZ$500,25,0),0) -> 0 | AQ7: =IF($C$3>11,ROUND(SUM(AP7-AO7),2),0) -> 0
A8: ='Monthly Statement'!A4 -> 0 | B8: =IFERROR(VLOOKUP(A8,'Monthly Statement'!A:Y,4,0),"") ->  | C8: =IFERROR(VLOOKUP(A8,'Monthly Statement'!A:Y,5,0),"") ->  | D8: =IFERROR(VLOOKUP(A8,'Monthly Statement'!A:Y,7,0),"") ->  | E8: =IFERROR(VLOOKUP(A8,'Monthly Statement'!A:Y,9,0),"") ->  | F8: =IFERROR(VLOOKUP(A8,'Monthly Statement'!A:Y,10,0),"") ->  | G8: 0 | H8: =IFERROR(VLOOKUP(A8,Pupils!$A$5:$W$500,12,0),0) -> 0 | I8: =IFERROR(VLOOKUP($A8,'Monthly Statement'!$A$2:$ZZ$500,14,0),0) -> 0 | J8: 0 | K8: =IFERROR(VLOOKUP(A8,Pupils!$A$5:$W$500,13,0),0) -> 0 | L8: =IFERROR(VLOOKUP($A8,'Monthly Statement'!$A$2:$ZZ$500,15,0),0) -> 0 | M8: 0 | N8: =IFERROR(VLOOKUP(A8,Pupils!$A$5:$W$500,14,0),0) -> 0 | O8: =IFERROR(VLOOKUP($A8,'Monthly Statement'!$A$2:$ZZ$500,16,0),0) -> 0 | P8: 0 | Q8: =IFERROR(VLOOKUP(A8,Pupils!$A$5:$W$500,15,0),0) -> 0 | R8: =IFERROR(VLOOKUP($A8,'Monthly Statement'!$A$2:$ZZ$500,17,0),0) -> 0 | S8: 0 | T8: =IFERROR(VLOOKUP(A8,Pupils!$A$5:$W$500,16,0),0) -> 0 | U8: =IFERROR(VLOOKUP($A8,'Monthly Statement'!$A$2:$ZZ$500,18,0),0) -> 0 | V8: 0 | W8: =IFERROR(VLOOKUP(A8,Pupils!$A$5:$W$500,17,0),0) -> 0 | X8: =IFERROR(VLOOKUP($A8,'Monthly Statement'!$A$2:$ZZ$500,19,0),0) -> 0 | Y8: 0 | Z8: =IFERROR(VLOOKUP(A8,Pupils!$A$5:$W$500,18,0),0) -> 0 | AA8: =IFERROR(VLOOKUP($A8,'Monthly Statement'!$A$2:$ZZ$500,20,0),0) -> 0 | AB8: 0 | AC8: =IFERROR(VLOOKUP(A8,Pupils!$A$5:$W$500,19,0),0) -> 0 | AD8: =IFERROR(VLOOKUP($A8,'Monthly Statement'!$A$2:$ZZ$500,21,0),0) -> 0 | AE8: 0 | AF8: =IFERROR(VLOOKUP(A8,Pupils!$A$5:$W$500,20,0),0) -> 0 | AG8: =IFERROR(VLOOKUP($A8,'Monthly Statement'!$A$2:$ZZ$500,22,0),0) -> 0 | AH8: 0 | AI8: =IFERROR(VLOOKUP(A8,Pupils!$A$5:$W$500,21,0),0) -> 0 | AJ8: =IFERROR(VLOOKUP($A8,'Monthly Statement'!$A$2:$ZZ$500,23,0),0) -> 0 | AK8: 0 | AL8: =IFERROR(VLOOKUP(A8,Pupils!$A$5:$W$500,22,0),0) -> 0 | AM8: =IFERROR(VLOOKUP($A8,'Monthly Statement'!$A$2:$ZZ$500,24,0),0) -> 0 | AN8: 0 | AO8: =IFERROR(VLOOKUP(A8,Pupils!$A$5:$W$500,23,0),0) -> 0 | AP8: =IFERROR(VLOOKUP($A8,'Monthly Statement'!$A$2:$ZZ$500,25,0),0) -> 0 | AQ8: 0
A9: ='Monthly Statement'!A5 -> 0 | B9: =IFERROR(VLOOKUP(A9,'Monthly Statement'!A:Y,4,0),"") ->  | C9: =IFERROR(VLOOKUP(A9,'Monthly Statement'!A:Y,5,0),"") ->  | D9: =IFERROR(VLOOKUP(A9,'Monthly Statement'!A:Y,7,0),"") ->  | E9: =IFERROR(VLOOKUP(A9,'Monthly Statement'!A:Y,9,0),"") ->  | F9: =IFERROR(VLOOKUP(A9,'Monthly Statement'!A:Y,10,0),"") ->  | G9: 0 | H9: =IFERROR(VLOOKUP(A9,Pupils!$A$5:$W$500,12,0),0) -> 0 | I9: =IFERROR(VLOOKUP($A9,'Monthly Statement'!$A$2:$ZZ$500,14,0),0) -> 0 | J9: 0 | K9: =IFERROR(VLOOKUP(A9,Pupils!$A$5:$W$500,13,0),0) -> 0 | L9: =IFERROR(VLOOKUP($A9,'Monthly Statement'!$A$2:$ZZ$500,15,0),0) -> 0 | M9: 0 | N9: =IFERROR(VLOOKUP(A9,Pupils!$A$5:$W$500,14,0),0) -> 0 | O9: =IFERROR(VLOOKUP($A9,'Monthly Statement'!$A$2:$ZZ$500,16,0),0) -> 0 | P9: 0 | Q9: =IFERROR(VLOOKUP(A9,Pupils!$A$5:$W$500,15,0),0) -> 0 | R9: =IFERROR(VLOOKUP($A9,'Monthly Statement'!$A$2:$ZZ$500,17,0),0) -> 0 | S9: 0 | T9: =IFERROR(VLOOKUP(A9,Pupils!$A$5:$W$500,16,0),0) -> 0 | U9: =IFERROR(VLOOKUP($A9,'Monthly Statement'!$A$2:$ZZ$500,18,0),0) -> 0 | V9: 0 | W9: =IFERROR(VLOOKUP(A9,Pupils!$A$5:$W$500,17,0),0) -> 0 | X9: =IFERROR(VLOOKUP($A9,'Monthly Statement'!$A$2:$ZZ$500,19,0),0) -> 0 | Y9: 0 | Z9: =IFERROR(VLOOKUP(A9,Pupils!$A$5:$W$500,18,0),0) -> 0 | AA9: =IFERROR(VLOOKUP($A9,'Monthly Statement'!$A$2:$ZZ$500,20,0),0) -> 0 | AB9: 0 | AC9: =IFERROR(VLOOKUP(A9,Pupils!$A$5:$W$500,19,0),0) -> 0 | AD9: =IFERROR(VLOOKUP($A9,'Monthly Statement'!$A$2:$ZZ$500,21,0),0) -> 0 | AE9: 0 | AF9: =IFERROR(VLOOKUP(A9,Pupils!$A$5:$W$500,20,0),0) -> 0 | AG9: =IFERROR(VLOOKUP($A9,'Monthly Statement'!$A$2:$ZZ$500,22,0),0) -> 0 | AH9: 0 | AI9: =IFERROR(VLOOKUP(A9,Pupils!$A$5:$W$500,21,0),0) -> 0 | AJ9: =IFERROR(VLOOKUP($A9,'Monthly Statement'!$A$2:$ZZ$500,23,0),0) -> 0 | AK9: 0 | AL9: =IFERROR(VLOOKUP(A9,Pupils!$A$5:$W$500,22,0),0) -> 0 | AM9: =IFERROR(VLOOKUP($A9,'Monthly Statement'!$A$2:$ZZ$500,24,0),0) -> 0 | AN9: 0 | AO9: =IFERROR(VLOOKUP(A9,Pupils!$A$5:$W$500,23,0),0) -> 0 | AP9: =IFERROR(VLOOKUP($A9,'Monthly Statement'!$A$2:$ZZ$500,25,0),0) -> 0 | AQ9: 0
A10: ='Monthly Statement'!A6 -> 0 | B10: =IFERROR(VLOOKUP(A10,'Monthly Statement'!A:Y,4,0),"") ->  | C10: =IFERROR(VLOOKUP(A10,'Monthly Statement'!A:Y,5,0),"") ->  | D10: =IFERROR(VLOOKUP(A10,'Monthly Statement'!A:Y,7,0),"") ->  | E10: =IFERROR(VLOOKUP(A10,'Monthly Statement'!A:Y,9,0),"") ->  | F10: =IFERROR(VLOOKUP(A10,'Monthly Statement'!A:Y,10,0),"") ->  | G10: 0 | H10: =IFERROR(VLOOKUP(A10,Pupils!$A$5:$W$500,12,0),0) -> 0 | I10: =IFERROR(VLOOKUP($A10,'Monthly Statement'!$A$2:$ZZ$500,14,0),0) -> 0 | J10: 0 | K10: =IFERROR(VLOOKUP(A10,Pupils!$A$5:$W$500,13,0),0) -> 0 | L10: =IFERROR(VLOOKUP($A10,'Monthly Statement'!$A$2:$ZZ$500,15,0),0) -> 0 | M10: 0 | N10: =IFERROR(VLOOKUP(A10,Pupils!$A$5:$W$500,14,0),0) -> 0 | O10: =IFERROR(VLOOKUP($A10,'Monthly Statement'!$A$2:$ZZ$500,16,0),0) -> 0 | P10: 0 | Q10: =IFERROR(VLOOKUP(A10,Pupils!$A$5:$W$500,15,0),0) -> 0 | R10: =IFERROR(VLOOKUP($A10,'Monthly Statement'!$A$2:$ZZ$500,17,0),0) -> 0 | S10: 0 | T10: =IFERROR(VLOOKUP(A10,Pupils!$A$5:$W$500,16,0),0) -> 0 | U10: =IFERROR(VLOOKUP($A10,'Monthly Statement'!$A$2:$ZZ$500,18,0),0) -> 0 | V10: 0 | W10: =IFERROR(VLOOKUP(A10,Pupils!$A$5:$W$500,17,0),0) -> 0 | X10: =IFERROR(VLOOKUP($A10,'Monthly Statement'!$A$2:$ZZ$500,19,0),0) -> 0 | Y10: 0 | Z10: =IFERROR(VLOOKUP(A10,Pupils!$A$5:$W$500,18,0),0) -> 0 | AA10: =IFERROR(VLOOKUP($A10,'Monthly Statement'!$A$2:$ZZ$500,20,0),0) -> 0 | AB10: 0 | AC10: =IFERROR(VLOOKUP(A10,Pupils!$A$5:$W$500,19,0),0) -> 0 | AD10: =IFERROR(VLOOKUP($A10,'Monthly Statement'!$A$2:$ZZ$500,21,0),0) -> 0 | AE10: 0 | AF10: =IFERROR(VLOOKUP(A10,Pupils!$A$5:$W$500,20,0),0) -> 0 | AG10: =IFERROR(VLOOKUP($A10,'Monthly Statement'!$A$2:$ZZ$500,22,0),0) -> 0 | AH10: 0 | AI10: =IFERROR(VLOOKUP(A10,Pupils!$A$5:$W$500,21,0),0) -> 0 | AJ10: =IFERROR(VLOOKUP($A10,'Monthly Statement'!$A$2:$ZZ$500,23,0),0) -> 0 | AK10: 0 | AL10: =IFERROR(VLOOKUP(A10,Pupils!$A$5:$W$500,22,0),0) -> 0 | AM10: =IFERROR(VLOOKUP($A10,'Monthly Statement'!$A$2:$ZZ$500,24,0),0) -> 0 | AN10: 0 | AO10: =IFERROR(VLOOKUP(A10,Pupils!$A$5:$W$500,23,0),0) -> 0 | AP10: =IFERROR(VLOOKUP($A10,'Monthly Statement'!$A$2:$ZZ$500,25,0),0) -> 0 | AQ10: 0
A11: ='Monthly Statement'!A7 -> 0 | B11: =IFERROR(VLOOKUP(A11,'Monthly Statement'!A:Y,4,0),"") ->  | C11: =IFERROR(VLOOKUP(A11,'Monthly Statement'!A:Y,5,0),"") ->  | D11: =IFERROR(VLOOKUP(A11,'Monthly Statement'!A:Y,7,0),"") ->  | E11: =IFERROR(VLOOKUP(A11,'Monthly Statement'!A:Y,9,0),"") ->  | F11: =IFERROR(VLOOKUP(A11,'Monthly Statement'!A:Y,10,0),"") ->  | G11: 0 | H11: =IFERROR(VLOOKUP(A11,Pupils!$A$5:$W$500,12,0),0) -> 0 | I11: =IFERROR(VLOOKUP($A11,'Monthly Statement'!$A$2:$ZZ$500,14,0),0) -> 0 | J11: 0 | K11: =IFERROR(VLOOKUP(A11,Pupils!$A$5:$W$500,13,0),0) -> 0 | L11: =IFERROR(VLOOKUP($A11,'Monthly Statement'!$A$2:$ZZ$500,15,0),0) -> 0 | M11: 0 | N11: =IFERROR(VLOOKUP(A11,Pupils!$A$5:$W$500,14,0),0) -> 0 | O11: =IFERROR(VLOOKUP($A11,'Monthly Statement'!$A$2:$ZZ$500,16,0),0) -> 0 | P11: 0 | Q11: =IFERROR(VLOOKUP(A11,Pupils!$A$5:$W$500,15,0),0) -> 0 | R11: =IFERROR(VLOOKUP($A11,'Monthly Statement'!$A$2:$ZZ$500,17,0),0) -> 0 | S11: 0 | T11: =IFERROR(VLOOKUP(A11,Pupils!$A$5:$W$500,16,0),0) -> 0 | U11: =IFERROR(VLOOKUP($A11,'Monthly Statement'!$A$2:$ZZ$500,18,0),0) -> 0 | V11: 0 | W11: =IFERROR(VLOOKUP(A11,Pupils!$A$5:$W$500,17,0),0) -> 0 | X11: =IFERROR(VLOOKUP($A11,'Monthly Statement'!$A$2:$ZZ$500,19,0),0) -> 0 | Y11: 0 | Z11: =IFERROR(VLOOKUP(A11,Pupils!$A$5:$W$500,18,0),0) -> 0 | AA11: =IFERROR(VLOOKUP($A11,'Monthly Statement'!$A$2:$ZZ$500,20,0),0) -> 0 | AB11: 0 | AC11: =IFERROR(VLOOKUP(A11,Pupils!$A$5:$W$500,19,0),0) -> 0 | AD11: =IFERROR(VLOOKUP($A11,'Monthly Statement'!$A$2:$ZZ$500,21,0),0) -> 0 | AE11: 0 | AF11: =IFERROR(VLOOKUP(A11,Pupils!$A$5:$W$500,20,0),0) -> 0 | AG11: =IFERROR(VLOOKUP($A11,'Monthly Statement'!$A$2:$ZZ$500,22,0),0) -> 0 | AH11: 0 | AI11: =IFERROR(VLOOKUP(A11,Pupils!$A$5:$W$500,21,0),0) -> 0 | AJ11: =IFERROR(VLOOKUP($A11,'Monthly Statement'!$A$2:$ZZ$500,23,0),0) -> 0 | AK11: 0 | AL11: =IFERROR(VLOOKUP(A11,Pupils!$A$5:$W$500,22,0),0) -> 0 | AM11: =IFERROR(VLOOKUP($A11,'Monthly Statement'!$A$2:$ZZ$500,24,0),0) -> 0 | AN11: 0 | AO11: =IFERROR(VLOOKUP(A11,Pupils!$A$5:$W$500,23,0),0) -> 0 | AP11: =IFERROR(VLOOKUP($A11,'Monthly Statement'!$A$2:$ZZ$500,25,0),0) -> 0 | AQ11: 0
A12: ='Monthly Statement'!A8 -> 0 | B12: =IFERROR(VLOOKUP(A12,'Monthly Statement'!A:Y,4,0),"") ->  | C12: =IFERROR(VLOOKUP(A12,'Monthly Statement'!A:Y,5,0),"") ->  | D12: =IFERROR(VLOOKUP(A12,'Monthly Statement'!A:Y,7,0),"") ->  | E12: =IFERROR(VLOOKUP(A12,'Monthly Statement'!A:Y,9,0),"") ->  | F12: =IFERROR(VLOOKUP(A12,'Monthly Statement'!A:Y,10,0),"") ->  | G12: 0 | H12: =IFERROR(VLOOKUP(A12,Pupils!$A$5:$W$500,12,0),0) -> 0 | I12: =IFERROR(VLOOKUP($A12,'Monthly Statement'!$A$2:$ZZ$500,14,0),0) -> 0 | J12: 0 | K12: =IFERROR(VLOOKUP(A12,Pupils!$A$5:$W$500,13,0),0) -> 0 | L12: =IFERROR(VLOOKUP($A12,'Monthly Statement'!$A$2:$ZZ$500,15,0),0) -> 0 | M12: 0 | N12: =IFERROR(VLOOKUP(A12,Pupils!$A$5:$W$500,14,0),0) -> 0 | O12: =IFERROR(VLOOKUP($A12,'Monthly Statement'!$A$2:$ZZ$500,16,0),0) -> 0 | P12: 0 | Q12: =IFERROR(VLOOKUP(A12,Pupils!$A$5:$W$500,15,0),0) -> 0 | R12: =IFERROR(VLOOKUP($A12,'Monthly Statement'!$A$2:$ZZ$500,17,0),0) -> 0 | S12: 0 | T12: =IFERROR(VLOOKUP(A12,Pupils!$A$5:$W$500,16,0),0) -> 0 | U12: =IFERROR(VLOOKUP($A12,'Monthly Statement'!$A$2:$ZZ$500,18,0),0) -> 0 | V12: 0 | W12: =IFERROR(VLOOKUP(A12,Pupils!$A$5:$W$500,17,0),0) -> 0 | X12: =IFERROR(VLOOKUP($A12,'Monthly Statement'!$A$2:$ZZ$500,19,0),0) -> 0 | Y12: 0 | Z12: =IFERROR(VLOOKUP(A12,Pupils!$A$5:$W$500,18,0),0) -> 0 | AA12: =IFERROR(VLOOKUP($A12,'Monthly Statement'!$A$2:$ZZ$500,20,0),0) -> 0 | AB12: 0 | AC12: =IFERROR(VLOOKUP(A12,Pupils!$A$5:$W$500,19,0),0) -> 0 | AD12: =IFERROR(VLOOKUP($A12,'Monthly Statement'!$A$2:$ZZ$500,21,0),0) -> 0 | AE12: 0 | AF12: =IFERROR(VLOOKUP(A12,Pupils!$A$5:$W$500,20,0),0) -> 0 | AG12: =IFERROR(VLOOKUP($A12,'Monthly Statement'!$A$2:$ZZ$500,22,0),0) -> 0 | AH12: 0 | AI12: =IFERROR(VLOOKUP(A12,Pupils!$A$5:$W$500,21,0),0) -> 0 | AJ12: =IFERROR(VLOOKUP($A12,'Monthly Statement'!$A$2:$ZZ$500,23,0),0) -> 0 | AK12: 0 | AL12: =IFERROR(VLOOKUP(A12,Pupils!$A$5:$W$500,22,0),0) -> 0 | AM12: =IFERROR(VLOOKUP($A12,'Monthly Statement'!$A$2:$ZZ$500,24,0),0) -> 0 | AN12: 0 | AO12: =IFERROR(VLOOKUP(A12,Pupils!$A$5:$W$500,23,0),0) -> 0 | AP12: =IFERROR(VLOOKUP($A12,'Monthly Statement'!$A$2:$ZZ$500,25,0),0) -> 0 | AQ12: 0
A13: ='Monthly Statement'!A9 -> 0 | B13: =IFERROR(VLOOKUP(A13,'Monthly Statement'!A:Y,4,0),"") ->  | C13: =IFERROR(VLOOKUP(A13,'Monthly Statement'!A:Y,5,0),"") ->  | D13: =IFERROR(VLOOKUP(A13,'Monthly Statement'!A:Y,7,0),"") ->  | E13: =IFERROR(VLOOKUP(A13,'Monthly Statement'!A:Y,9,0),"") ->  | F13: =IFERROR(VLOOKUP(A13,'Monthly Statement'!A:Y,10,0),"") ->  | G13: 0 | H13: =IFERROR(VLOOKUP(A13,Pupils!$A$5:$W$500,12,0),0) -> 0 | I13: =IFERROR(VLOOKUP($A13,'Monthly Statement'!$A$2:$ZZ$500,14,0),0) -> 0 | J13: 0 | K13: =IFERROR(VLOOKUP(A13,Pupils!$A$5:$W$500,13,0),0) -> 0 | L13: =IFERROR(VLOOKUP($A13,'Monthly Statement'!$A$2:$ZZ$500,15,0),0) -> 0 | M13: 0 | N13: =IFERROR(VLOOKUP(A13,Pupils!$A$5:$W$500,14,0),0) -> 0 | O13: =IFERROR(VLOOKUP($A13,'Monthly Statement'!$A$2:$ZZ$500,16,0),0) -> 0 | P13: 0 | Q13: =IFERROR(VLOOKUP(A13,Pupils!$A$5:$W$500,15,0),0) -> 0 | R13: =IFERROR(VLOOKUP($A13,'Monthly Statement'!$A$2:$ZZ$500,17,0),0) -> 0 | S13: 0 | T13: =IFERROR(VLOOKUP(A13,Pupils!$A$5:$W$500,16,0),0) -> 0 | U13: =IFERROR(VLOOKUP($A13,'Monthly Statement'!$A$2:$ZZ$500,18,0),0) -> 0 | V13: 0 | W13: =IFERROR(VLOOKUP(A13,Pupils!$A$5:$W$500,17,0),0) -> 0 | X13: =IFERROR(VLOOKUP($A13,'Monthly Statement'!$A$2:$ZZ$500,19,0),0) -> 0 | Y13: 0 | Z13: =IFERROR(VLOOKUP(A13,Pupils!$A$5:$W$500,18,0),0) -> 0 | AA13: =IFERROR(VLOOKUP($A13,'Monthly Statement'!$A$2:$ZZ$500,20,0),0) -> 0 | AB13: 0 | AC13: =IFERROR(VLOOKUP(A13,Pupils!$A$5:$W$500,19,0),0) -> 0 | AD13: =IFERROR(VLOOKUP($A13,'Monthly Statement'!$A$2:$ZZ$500,21,0),0) -> 0 | AE13: 0 | AF13: =IFERROR(VLOOKUP(A13,Pupils!$A$5:$W$500,20,0),0) -> 0 | AG13: =IFERROR(VLOOKUP($A13,'Monthly Statement'!$A$2:$ZZ$500,22,0),0) -> 0 | AH13: 0 | AI13: =IFERROR(VLOOKUP(A13,Pupils!$A$5:$W$500,21,0),0) -> 0 | AJ13: =IFERROR(VLOOKUP($A13,'Monthly Statement'!$A$2:$ZZ$500,23,0),0) -> 0 | AK13: 0 | AL13: =IFERROR(VLOOKUP(A13,Pupils!$A$5:$W$500,22,0),0) -> 0 | AM13: =IFERROR(VLOOKUP($A13,'Monthly Statement'!$A$2:$ZZ$500,24,0),0) -> 0 | AN13: 0 | AO13: =IFERROR(VLOOKUP(A13,Pupils!$A$5:$W$500,23,0),0) -> 0 | AP13: =IFERROR(VLOOKUP($A13,'Monthly Statement'!$A$2:$ZZ$500,25,0),0) -> 0 | AQ13: 0
A14: ='Monthly Statement'!A10 -> 0 | B14: =IFERROR(VLOOKUP(A14,'Monthly Statement'!A:Y,4,0),"") ->  | C14: =IFERROR(VLOOKUP(A14,'Monthly Statement'!A:Y,5,0),"") ->  | D14: =IFERROR(VLOOKUP(A14,'Monthly Statement'!A:Y,7,0),"") ->  | E14: =IFERROR(VLOOKUP(A14,'Monthly Statement'!A:Y,9,0),"") ->  | F14: =IFERROR(VLOOKUP(A14,'Monthly Statement'!A:Y,10,0),"") ->  | G14: 0 | H14: =IFERROR(VLOOKUP(A14,Pupils!$A$5:$W$500,12,0),0) -> 0 | I14: =IFERROR(VLOOKUP($A14,'Monthly Statement'!$A$2:$ZZ$500,14,0),0) -> 0 | J14: 0 | K14: =IFERROR(VLOOKUP(A14,Pupils!$A$5:$W$500,13,0),0) -> 0 | L14: =IFERROR(VLOOKUP($A14,'Monthly Statement'!$A$2:$ZZ$500,15,0),0) -> 0 | M14: 0 | N14: =IFERROR(VLOOKUP(A14,Pupils!$A$5:$W$500,14,0),0) -> 0 | O14: =IFERROR(VLOOKUP($A14,'Monthly Statement'!$A$2:$ZZ$500,16,0),0) -> 0 | P14: 0 | Q14: =IFERROR(VLOOKUP(A14,Pupils!$A$5:$W$500,15,0),0) -> 0 | R14: =IFERROR(VLOOKUP($A14,'Monthly Statement'!$A$2:$ZZ$500,17,0),0) -> 0 | S14: 0 | T14: =IFERROR(VLOOKUP(A14,Pupils!$A$5:$W$500,16,0),0) -> 0 | U14: =IFERROR(VLOOKUP($A14,'Monthly Statement'!$A$2:$ZZ$500,18,0),0) -> 0 | V14: 0 | W14: =IFERROR(VLOOKUP(A14,Pupils!$A$5:$W$500,17,0),0) -> 0 | X14: =IFERROR(VLOOKUP($A14,'Monthly Statement'!$A$2:$ZZ$500,19,0),0) -> 0 | Y14: 0 | Z14: =IFERROR(VLOOKUP(A14,Pupils!$A$5:$W$500,18,0),0) -> 0 | AA14: =IFERROR(VLOOKUP($A14,'Monthly Statement'!$A$2:$ZZ$500,20,0),0) -> 0 | AB14: 0 | AC14: =IFERROR(VLOOKUP(A14,Pupils!$A$5:$W$500,19,0),0) -> 0 | AD14: =IFERROR(VLOOKUP($A14,'Monthly Statement'!$A$2:$ZZ$500,21,0),0) -> 0 | AE14: 0 | AF14: =IFERROR(VLOOKUP(A14,Pupils!$A$5:$W$500,20,0),0) -> 0 | AG14: =IFERROR(VLOOKUP($A14,'Monthly Statement'!$A$2:$ZZ$500,22,0),0) -> 0 | AH14: 0 | AI14: =IFERROR(VLOOKUP(A14,Pupils!$A$5:$W$500,21,0),0) -> 0 | AJ14: =IFERROR(VLOOKUP($A14,'Monthly Statement'!$A$2:$ZZ$500,23,0),0) -> 0 | AK14: 0 | AL14: =IFERROR(VLOOKUP(A14,Pupils!$A$5:$W$500,22,0),0) -> 0 | AM14: =IFERROR(VLOOKUP($A14,'Monthly Statement'!$A$2:$ZZ$500,24,0),0) -> 0 | AN14: 0 | AO14: =IFERROR(VLOOKUP(A14,Pupils!$A$5:$W$500,23,0),0) -> 0 | AP14: =IFERROR(VLOOKUP($A14,'Monthly Statement'!$A$2:$ZZ$500,25,0),0) -> 0 | AQ14: 0
A15: ='Monthly Statement'!A11 -> 0 | B15: =IFERROR(VLOOKUP(A15,'Monthly Statement'!A:Y,4,0),"") ->  | C15: =IFERROR(VLOOKUP(A15,'Monthly Statement'!A:Y,5,0),"") ->  | D15: =IFERROR(VLOOKUP(A15,'Monthly Statement'!A:Y,7,0),"") ->  | E15: =IFERROR(VLOOKUP(A15,'Monthly Statement'!A:Y,9,0),"") ->  | F15: =IFERROR(VLOOKUP(A15,'Monthly Statement'!A:Y,10,0),"") ->  | G15: 0 | H15: =IFERROR(VLOOKUP(A15,Pupils!$A$5:$W$500,12,0),0) -> 0 | I15: =IFERROR(VLOOKUP($A15,'Monthly Statement'!$A$2:$ZZ$500,14,0),0) -> 0 | J15: 0 | K15: =IFERROR(VLOOKUP(A15,Pupils!$A$5:$W$500,13,0),0) -> 0 | L15: =IFERROR(VLOOKUP($A15,'Monthly Statement'!$A$2:$ZZ$500,15,0),0) -> 0 | M15: 0 | N15: =IFERROR(VLOOKUP(A15,Pupils!$A$5:$W$500,14,0),0) -> 0 | O15: =IFERROR(VLOOKUP($A15,'Monthly Statement'!$A$2:$ZZ$500,16,0),0) -> 0 | P15: 0 | Q15: =IFERROR(VLOOKUP(A15,Pupils!$A$5:$W$500,15,0),0) -> 0 | R15: =IFERROR(VLOOKUP($A15,'Monthly Statement'!$A$2:$ZZ$500,17,0),0) -> 0 | S15: 0 | T15: =IFERROR(VLOOKUP(A15,Pupils!$A$5:$W$500,16,0),0) -> 0 | U15: =IFERROR(VLOOKUP($A15,'Monthly Statement'!$A$2:$ZZ$500,18,0),0) -> 0 | V15: 0 | W15: =IFERROR(VLOOKUP(A15,Pupils!$A$5:$W$500,17,0),0) -> 0 | X15: =IFERROR(VLOOKUP($A15,'Monthly Statement'!$A$2:$ZZ$500,19,0),0) -> 0 | Y15: 0 | Z15: =IFERROR(VLOOKUP(A15,Pupils!$A$5:$W$500,18,0),0) -> 0 | AA15: =IFERROR(VLOOKUP($A15,'Monthly Statement'!$A$2:$ZZ$500,20,0),0) -> 0 | AB15: 0 | AC15: =IFERROR(VLOOKUP(A15,Pupils!$A$5:$W$500,19,0),0) -> 0 | AD15: =IFERROR(VLOOKUP($A15,'Monthly Statement'!$A$2:$ZZ$500,21,0),0) -> 0 | AE15: 0 | AF15: =IFERROR(VLOOKUP(A15,Pupils!$A$5:$W$500,20,0),0) -> 0 | AG15: =IFERROR(VLOOKUP($A15,'Monthly Statement'!$A$2:$ZZ$500,22,0),0) -> 0 | AH15: 0 | AI15: =IFERROR(VLOOKUP(A15,Pupils!$A$5:$W$500,21,0),0) -> 0 | AJ15: =IFERROR(VLOOKUP($A15,'Monthly Statement'!$A$2:$ZZ$500,23,0),0) -> 0 | AK15: 0 | AL15: =IFERROR(VLOOKUP(A15,Pupils!$A$5:$W$500,22,0),0) -> 0 | AM15: =IFERROR(VLOOKUP($A15,'Monthly Statement'!$A$2:$ZZ$500,24,0),0) -> 0 | AN15: 0 | AO15: =IFERROR(VLOOKUP(A15,Pupils!$A$5:$W$500,23,0),0) -> 0 | AP15: =IFERROR(VLOOKUP($A15,'Monthly Statement'!$A$2:$ZZ$500,25,0),0) -> 0 | AQ15: 0
A16: ='Monthly Statement'!A12 -> 0 | B16: =IFERROR(VLOOKUP(A16,'Monthly Statement'!A:Y,4,0),"") ->  | C16: =IFERROR(VLOOKUP(A16,'Monthly Statement'!A:Y,5,0),"") ->  | D16: =IFERROR(VLOOKUP(A16,'Monthly Statement'!A:Y,7,0),"") ->  | E16: =IFERROR(VLOOKUP(A16,'Monthly Statement'!A:Y,9,0),"") ->  | F16: =IFERROR(VLOOKUP(A16,'Monthly Statement'!A:Y,10,0),"") ->  | G16: 0 | H16: =IFERROR(VLOOKUP(A16,Pupils!$A$5:$W$500,12,0),0) -> 0 | I16: =IFERROR(VLOOKUP($A16,'Monthly Statement'!$A$2:$ZZ$500,14,0),0) -> 0 | J16: 0 | K16: =IFERROR(VLOOKUP(A16,Pupils!$A$5:$W$500,13,0),0) -> 0 | L16: =IFERROR(VLOOKUP($A16,'Monthly Statement'!$A$2:$ZZ$500,15,0),0) -> 0 | M16: 0 | N16: =IFERROR(VLOOKUP(A16,Pupils!$A$5:$W$500,14,0),0) -> 0 | O16: =IFERROR(VLOOKUP($A16,'Monthly Statement'!$A$2:$ZZ$500,16,0),0) -> 0 | P16: 0 | Q16: =IFERROR(VLOOKUP(A16,Pupils!$A$5:$W$500,15,0),0) -> 0 | R16: =IFERROR(VLOOKUP($A16,'Monthly Statement'!$A$2:$ZZ$500,17,0),0) -> 0 | S16: 0 | T16: =IFERROR(VLOOKUP(A16,Pupils!$A$5:$W$500,16,0),0) -> 0 | U16: =IFERROR(VLOOKUP($A16,'Monthly Statement'!$A$2:$ZZ$500,18,0),0) -> 0 | V16: 0 | W16: =IFERROR(VLOOKUP(A16,Pupils!$A$5:$W$500,17,0),0) -> 0 | X16: =IFERROR(VLOOKUP($A16,'Monthly Statement'!$A$2:$ZZ$500,19,0),0) -> 0 | Y16: 0 | Z16: =IFERROR(VLOOKUP(A16,Pupils!$A$5:$W$500,18,0),0) -> 0 | AA16: =IFERROR(VLOOKUP($A16,'Monthly Statement'!$A$2:$ZZ$500,20,0),0) -> 0 | AB16: 0 | AC16: =IFERROR(VLOOKUP(A16,Pupils!$A$5:$W$500,19,0),0) -> 0 | AD16: =IFERROR(VLOOKUP($A16,'Monthly Statement'!$A$2:$ZZ$500,21,0),0) -> 0 | AE16: 0 | AF16: =IFERROR(VLOOKUP(A16,Pupils!$A$5:$W$500,20,0),0) -> 0 | AG16: =IFERROR(VLOOKUP($A16,'Monthly Statement'!$A$2:$ZZ$500,22,0),0) -> 0 | AH16: 0 | AI16: =IFERROR(VLOOKUP(A16,Pupils!$A$5:$W$500,21,0),0) -> 0 | AJ16: =IFERROR(VLOOKUP($A16,'Monthly Statement'!$A$2:$ZZ$500,23,0),0) -> 0 | AK16: 0 | AL16: =IFERROR(VLOOKUP(A16,Pupils!$A$5:$W$500,22,0),0) -> 0 | AM16: =IFERROR(VLOOKUP($A16,'Monthly Statement'!$A$2:$ZZ$500,24,0),0) -> 0 | AN16: 0 | AO16: =IFERROR(VLOOKUP(A16,Pupils!$A$5:$W$500,23,0),0) -> 0 | AP16: =IFERROR(VLOOKUP($A16,'Monthly Statement'!$A$2:$ZZ$500,25,0),0) -> 0 | AQ16: 0
A17: ='Monthly Statement'!A13 -> 0 | B17: =IFERROR(VLOOKUP(A17,'Monthly Statement'!A:Y,4,0),"") ->  | C17: =IFERROR(VLOOKUP(A17,'Monthly Statement'!A:Y,5,0),"") ->  | D17: =IFERROR(VLOOKUP(A17,'Monthly Statement'!A:Y,7,0),"") ->  | E17: =IFERROR(VLOOKUP(A17,'Monthly Statement'!A:Y,9,0),"") ->  | F17: =IFERROR(VLOOKUP(A17,'Monthly Statement'!A:Y,10,0),"") ->  | G17: 0 | H17: =IFERROR(VLOOKUP(A17,Pupils!$A$5:$W$500,12,0),0) -> 0 | I17: =IFERROR(VLOOKUP($A17,'Monthly Statement'!$A$2:$ZZ$500,14,0),0) -> 0 | J17: 0 | K17: =IFERROR(VLOOKUP(A17,Pupils!$A$5:$W$500,13,0),0) -> 0 | L17: =IFERROR(VLOOKUP($A17,'Monthly Statement'!$A$2:$ZZ$500,15,0),0) -> 0 | M17: 0 | N17: =IFERROR(VLOOKUP(A17,Pupils!$A$5:$W$500,14,0),0) -> 0 | O17: =IFERROR(VLOOKUP($A17,'Monthly Statement'!$A$2:$ZZ$500,16,0),0) -> 0 | P17: 0 | Q17: =IFERROR(VLOOKUP(A17,Pupils!$A$5:$W$500,15,0),0) -> 0 | R17: =IFERROR(VLOOKUP($A17,'Monthly Statement'!$A$2:$ZZ$500,17,0),0) -> 0 | S17: 0 | T17: =IFERROR(VLOOKUP(A17,Pupils!$A$5:$W$500,16,0),0) -> 0 | U17: =IFERROR(VLOOKUP($A17,'Monthly Statement'!$A$2:$ZZ$500,18,0),0) -> 0 | V17: 0 | W17: =IFERROR(VLOOKUP(A17,Pupils!$A$5:$W$500,17,0),0) -> 0 | X17: =IFERROR(VLOOKUP($A17,'Monthly Statement'!$A$2:$ZZ$500,19,0),0) -> 0 | Y17: 0 | Z17: =IFERROR(VLOOKUP(A17,Pupils!$A$5:$W$500,18,0),0) -> 0 | AA17: =IFERROR(VLOOKUP($A17,'Monthly Statement'!$A$2:$ZZ$500,20,0),0) -> 0 | AB17: 0 | AC17: =IFERROR(VLOOKUP(A17,Pupils!$A$5:$W$500,19,0),0) -> 0 | AD17: =IFERROR(VLOOKUP($A17,'Monthly Statement'!$A$2:$ZZ$500,21,0),0) -> 0 | AE17: 0 | AF17: =IFERROR(VLOOKUP(A17,Pupils!$A$5:$W$500,20,0),0) -> 0 | AG17: =IFERROR(VLOOKUP($A17,'Monthly Statement'!$A$2:$ZZ$500,22,0),0) -> 0 | AH17: 0 | AI17: =IFERROR(VLOOKUP(A17,Pupils!$A$5:$W$500,21,0),0) -> 0 | AJ17: =IFERROR(VLOOKUP($A17,'Monthly Statement'!$A$2:$ZZ$500,23,0),0) -> 0 | AK17: 0 | AL17: =IFERROR(VLOOKUP(A17,Pupils!$A$5:$W$500,22,0),0) -> 0 | AM17: =IFERROR(VLOOKUP($A17,'Monthly Statement'!$A$2:$ZZ$500,24,0),0) -> 0 | AN17: 0 | AO17: =IFERROR(VLOOKUP(A17,Pupils!$A$5:$W$500,23,0),0) -> 0 | AP17: =IFERROR(VLOOKUP($A17,'Monthly Statement'!$A$2:$ZZ$500,25,0),0) -> 0 | AQ17: 0
A18: ='Monthly Statement'!A14 -> 0 | B18: =IFERROR(VLOOKUP(A18,'Monthly Statement'!A:Y,4,0),"") ->  | C18: =IFERROR(VLOOKUP(A18,'Monthly Statement'!A:Y,5,0),"") ->  | D18: =IFERROR(VLOOKUP(A18,'Monthly Statement'!A:Y,7,0),"") ->  | E18: =IFERROR(VLOOKUP(A18,'Monthly Statement'!A:Y,9,0),"") ->  | F18: =IFERROR(VLOOKUP(A18,'Monthly Statement'!A:Y,10,0),"") ->  | G18: 0 | H18: =IFERROR(VLOOKUP(A18,Pupils!$A$5:$W$500,12,0),0) -> 0 | I18: =IFERROR(VLOOKUP($A18,'Monthly Statement'!$A$2:$ZZ$500,14,0),0) -> 0 | J18: 0 | K18: =IFERROR(VLOOKUP(A18,Pupils!$A$5:$W$500,13,0),0) -> 0 | L18: =IFERROR(VLOOKUP($A18,'Monthly Statement'!$A$2:$ZZ$500,15,0),0) -> 0 | M18: 0 | N18: =IFERROR(VLOOKUP(A18,Pupils!$A$5:$W$500,14,0),0) -> 0 | O18: =IFERROR(VLOOKUP($A18,'Monthly Statement'!$A$2:$ZZ$500,16,0),0) -> 0 | P18: 0 | Q18: =IFERROR(VLOOKUP(A18,Pupils!$A$5:$W$500,15,0),0) -> 0 | R18: =IFERROR(VLOOKUP($A18,'Monthly Statement'!$A$2:$ZZ$500,17,0),0) -> 0 | S18: 0 | T18: =IFERROR(VLOOKUP(A18,Pupils!$A$5:$W$500,16,0),0) -> 0 | U18: =IFERROR(VLOOKUP($A18,'Monthly Statement'!$A$2:$ZZ$500,18,0),0) -> 0 | V18: 0 | W18: =IFERROR(VLOOKUP(A18,Pupils!$A$5:$W$500,17,0),0) -> 0 | X18: =IFERROR(VLOOKUP($A18,'Monthly Statement'!$A$2:$ZZ$500,19,0),0) -> 0 | Y18: 0 | Z18: =IFERROR(VLOOKUP(A18,Pupils!$A$5:$W$500,18,0),0) -> 0 | AA18: =IFERROR(VLOOKUP($A18,'Monthly Statement'!$A$2:$ZZ$500,20,0),0) -> 0 | AB18: 0 | AC18: =IFERROR(VLOOKUP(A18,Pupils!$A$5:$W$500,19,0),0) -> 0 | AD18: =IFERROR(VLOOKUP($A18,'Monthly Statement'!$A$2:$ZZ$500,21,0),0) -> 0 | AE18: 0 | AF18: =IFERROR(VLOOKUP(A18,Pupils!$A$5:$W$500,20,0),0) -> 0 | AG18: =IFERROR(VLOOKUP($A18,'Monthly Statement'!$A$2:$ZZ$500,22,0),0) -> 0 | AH18: 0 | AI18: =IFERROR(VLOOKUP(A18,Pupils!$A$5:$W$500,21,0),0) -> 0 | AJ18: =IFERROR(VLOOKUP($A18,'Monthly Statement'!$A$2:$ZZ$500,23,0),0) -> 0 | AK18: 0 | AL18: =IFERROR(VLOOKUP(A18,Pupils!$A$5:$W$500,22,0),0) -> 0 | AM18: =IFERROR(VLOOKUP($A18,'Monthly Statement'!$A$2:$ZZ$500,24,0),0) -> 0 | AN18: 0 | AO18: =IFERROR(VLOOKUP(A18,Pupils!$A$5:$W$500,23,0),0) -> 0 | AP18: =IFERROR(VLOOKUP($A18,'Monthly Statement'!$A$2:$ZZ$500,25,0),0) -> 0 | AQ18: 0
A19: ='Monthly Statement'!A15 -> 0 | B19: =IFERROR(VLOOKUP(A19,'Monthly Statement'!A:Y,4,0),"") ->  | C19: =IFERROR(VLOOKUP(A19,'Monthly Statement'!A:Y,5,0),"") ->  | D19: =IFERROR(VLOOKUP(A19,'Monthly Statement'!A:Y,7,0),"") ->  | E19: =IFERROR(VLOOKUP(A19,'Monthly Statement'!A:Y,9,0),"") ->  | F19: =IFERROR(VLOOKUP(A19,'Monthly Statement'!A:Y,10,0),"") ->  | G19: 0 | H19: =IFERROR(VLOOKUP(A19,Pupils!$A$5:$W$500,12,0),0) -> 0 | I19: =IFERROR(VLOOKUP($A19,'Monthly Statement'!$A$2:$ZZ$500,14,0),0) -> 0 | J19: 0 | K19: =IFERROR(VLOOKUP(A19,Pupils!$A$5:$W$500,13,0),0) -> 0 | L19: =IFERROR(VLOOKUP($A19,'Monthly Statement'!$A$2:$ZZ$500,15,0),0) -> 0 | M19: 0 | N19: =IFERROR(VLOOKUP(A19,Pupils!$A$5:$W$500,14,0),0) -> 0 | O19: =IFERROR(VLOOKUP($A19,'Monthly Statement'!$A$2:$ZZ$500,16,0),0) -> 0 | P19: 0 | Q19: =IFERROR(VLOOKUP(A19,Pupils!$A$5:$W$500,15,0),0) -> 0 | R19: =IFERROR(VLOOKUP($A19,'Monthly Statement'!$A$2:$ZZ$500,17,0),0) -> 0 | S19: 0 | T19: =IFERROR(VLOOKUP(A19,Pupils!$A$5:$W$500,16,0),0) -> 0 | U19: =IFERROR(VLOOKUP($A19,'Monthly Statement'!$A$2:$ZZ$500,18,0),0) -> 0 | V19: 0 | W19: =IFERROR(VLOOKUP(A19,Pupils!$A$5:$W$500,17,0),0) -> 0 | X19: =IFERROR(VLOOKUP($A19,'Monthly Statement'!$A$2:$ZZ$500,19,0),0) -> 0 | Y19: 0 | Z19: =IFERROR(VLOOKUP(A19,Pupils!$A$5:$W$500,18,0),0) -> 0 | AA19: =IFERROR(VLOOKUP($A19,'Monthly Statement'!$A$2:$ZZ$500,20,0),0) -> 0 | AB19: 0 | AC19: =IFERROR(VLOOKUP(A19,Pupils!$A$5:$W$500,19,0),0) -> 0 | AD19: =IFERROR(VLOOKUP($A19,'Monthly Statement'!$A$2:$ZZ$500,21,0),0) -> 0 | AE19: 0 | AF19: =IFERROR(VLOOKUP(A19,Pupils!$A$5:$W$500,20,0),0) -> 0 | AG19: =IFERROR(VLOOKUP($A19,'Monthly Statement'!$A$2:$ZZ$500,22,0),0) -> 0 | AH19: 0 | AI19: =IFERROR(VLOOKUP(A19,Pupils!$A$5:$W$500,21,0),0) -> 0 | AJ19: =IFERROR(VLOOKUP($A19,'Monthly Statement'!$A$2:$ZZ$500,23,0),0) -> 0 | AK19: 0 | AL19: =IFERROR(VLOOKUP(A19,Pupils!$A$5:$W$500,22,0),0) -> 0 | AM19: =IFERROR(VLOOKUP($A19,'Monthly Statement'!$A$2:$ZZ$500,24,0),0) -> 0 | AN19: 0 | AO19: =IFERROR(VLOOKUP(A19,Pupils!$A$5:$W$500,23,0),0) -> 0 | AP19: =IFERROR(VLOOKUP($A19,'Monthly Statement'!$A$2:$ZZ$500,25,0),0) -> 0 | AQ19: 0
A20: ='Monthly Statement'!A16 -> 0 | B20: =IFERROR(VLOOKUP(A20,'Monthly Statement'!A:Y,4,0),"") ->  | C20: =IFERROR(VLOOKUP(A20,'Monthly Statement'!A:Y,5,0),"") ->  | D20: =IFERROR(VLOOKUP(A20,'Monthly Statement'!A:Y,7,0),"") ->  | E20: =IFERROR(VLOOKUP(A20,'Monthly Statement'!A:Y,9,0),"") ->  | F20: =IFERROR(VLOOKUP(A20,'Monthly Statement'!A:Y,10,0),"") ->  | G20: 0 | H20: =IFERROR(VLOOKUP(A20,Pupils!$A$5:$W$500,12,0),0) -> 0 | I20: =IFERROR(VLOOKUP($A20,'Monthly Statement'!$A$2:$ZZ$500,14,0),0) -> 0 | J20: 0 | K20: =IFERROR(VLOOKUP(A20,Pupils!$A$5:$W$500,13,0),0) -> 0 | L20: =IFERROR(VLOOKUP($A20,'Monthly Statement'!$A$2:$ZZ$500,15,0),0) -> 0 | M20: 0 | N20: =IFERROR(VLOOKUP(A20,Pupils!$A$5:$W$500,14,0),0) -> 0 | O20: =IFERROR(VLOOKUP($A20,'Monthly Statement'!$A$2:$ZZ$500,16,0),0) -> 0 | P20: 0 | Q20: =IFERROR(VLOOKUP(A20,Pupils!$A$5:$W$500,15,0),0) -> 0 | R20: =IFERROR(VLOOKUP($A20,'Monthly Statement'!$A$2:$ZZ$500,17,0),0) -> 0 | S20: 0 | T20: =IFERROR(VLOOKUP(A20,Pupils!$A$5:$W$500,16,0),0) -> 0 | U20: =IFERROR(VLOOKUP($A20,'Monthly Statement'!$A$2:$ZZ$500,18,0),0) -> 0 | V20: 0 | W20: =IFERROR(VLOOKUP(A20,Pupils!$A$5:$W$500,17,0),0) -> 0 | X20: =IFERROR(VLOOKUP($A20,'Monthly Statement'!$A$2:$ZZ$500,19,0),0) -> 0 | Y20: 0 | Z20: =IFERROR(VLOOKUP(A20,Pupils!$A$5:$W$500,18,0),0) -> 0 | AA20: =IFERROR(VLOOKUP($A20,'Monthly Statement'!$A$2:$ZZ$500,20,0),0) -> 0 | AB20: 0 | AC20: =IFERROR(VLOOKUP(A20,Pupils!$A$5:$W$500,19,0),0) -> 0 | AD20: =IFERROR(VLOOKUP($A20,'Monthly Statement'!$A$2:$ZZ$500,21,0),0) -> 0 | AE20: 0 | AF20: =IFERROR(VLOOKUP(A20,Pupils!$A$5:$W$500,20,0),0) -> 0 | AG20: =IFERROR(VLOOKUP($A20,'Monthly Statement'!$A$2:$ZZ$500,22,0),0) -> 0 | AH20: 0 | AI20: =IFERROR(VLOOKUP(A20,Pupils!$A$5:$W$500,21,0),0) -> 0 | AJ20: =IFERROR(VLOOKUP($A20,'Monthly Statement'!$A$2:$ZZ$500,23,0),0) -> 0 | AK20: 0 | AL20: =IFERROR(VLOOKUP(A20,Pupils!$A$5:$W$500,22,0),0) -> 0 | AM20: =IFERROR(VLOOKUP($A20,'Monthly Statement'!$A$2:$ZZ$500,24,0),0) -> 0 | AN20: 0 | AO20: =IFERROR(VLOOKUP(A20,Pupils!$A$5:$W$500,23,0),0) -> 0 | AP20: =IFERROR(VLOOKUP($A20,'Monthly Statement'!$A$2:$ZZ$500,25,0),0) -> 0 | AQ20: 0
A21: ='Monthly Statement'!A17 -> 0 | B21: =IFERROR(VLOOKUP(A21,'Monthly Statement'!A:Y,4,0),"") ->  | C21: =IFERROR(VLOOKUP(A21,'Monthly Statement'!A:Y,5,0),"") ->  | D21: =IFERROR(VLOOKUP(A21,'Monthly Statement'!A:Y,7,0),"") ->  | E21: =IFERROR(VLOOKUP(A21,'Monthly Statement'!A:Y,9,0),"") ->  | F21: =IFERROR(VLOOKUP(A21,'Monthly Statement'!A:Y,10,0),"") ->  | G21: 0 | H21: =IFERROR(VLOOKUP(A21,Pupils!$A$5:$W$500,12,0),0) -> 0 | I21: =IFERROR(VLOOKUP($A21,'Monthly Statement'!$A$2:$ZZ$500,14,0),0) -> 0 | J21: 0 | K21: =IFERROR(VLOOKUP(A21,Pupils!$A$5:$W$500,13,0),0) -> 0 | L21: =IFERROR(VLOOKUP($A21,'Monthly Statement'!$A$2:$ZZ$500,15,0),0) -> 0 | M21: 0 | N21: =IFERROR(VLOOKUP(A21,Pupils!$A$5:$W$500,14,0),0) -> 0 | O21: =IFERROR(VLOOKUP($A21,'Monthly Statement'!$A$2:$ZZ$500,16,0),0) -> 0 | P21: 0 | Q21: =IFERROR(VLOOKUP(A21,Pupils!$A$5:$W$500,15,0),0) -> 0 | R21: =IFERROR(VLOOKUP($A21,'Monthly Statement'!$A$2:$ZZ$500,17,0),0) -> 0 | S21: 0 | T21: =IFERROR(VLOOKUP(A21,Pupils!$A$5:$W$500,16,0),0) -> 0 | U21: =IFERROR(VLOOKUP($A21,'Monthly Statement'!$A$2:$ZZ$500,18,0),0) -> 0 | V21: 0 | W21: =IFERROR(VLOOKUP(A21,Pupils!$A$5:$W$500,17,0),0) -> 0 | X21: =IFERROR(VLOOKUP($A21,'Monthly Statement'!$A$2:$ZZ$500,19,0),0) -> 0 | Y21: 0 | Z21: =IFERROR(VLOOKUP(A21,Pupils!$A$5:$W$500,18,0),0) -> 0 | AA21: =IFERROR(VLOOKUP($A21,'Monthly Statement'!$A$2:$ZZ$500,20,0),0) -> 0 | AB21: 0 | AC21: =IFERROR(VLOOKUP(A21,Pupils!$A$5:$W$500,19,0),0) -> 0 | AD21: =IFERROR(VLOOKUP($A21,'Monthly Statement'!$A$2:$ZZ$500,21,0),0) -> 0 | AE21: 0 | AF21: =IFERROR(VLOOKUP(A21,Pupils!$A$5:$W$500,20,0),0) -> 0 | AG21: =IFERROR(VLOOKUP($A21,'Monthly Statement'!$A$2:$ZZ$500,22,0),0) -> 0 | AH21: 0 | AI21: =IFERROR(VLOOKUP(A21,Pupils!$A$5:$W$500,21,0),0) -> 0 | AJ21: =IFERROR(VLOOKUP($A21,'Monthly Statement'!$A$2:$ZZ$500,23,0),0) -> 0 | AK21: 0 | AL21: =IFERROR(VLOOKUP(A21,Pupils!$A$5:$W$500,22,0),0) -> 0 | AM21: =IFERROR(VLOOKUP($A21,'Monthly Statement'!$A$2:$ZZ$500,24,0),0) -> 0 | AN21: 0 | AO21: =IFERROR(VLOOKUP(A21,Pupils!$A$5:$W$500,23,0),0) -> 0 | AP21: =IFERROR(VLOOKUP($A21,'Monthly Statement'!$A$2:$ZZ$500,25,0),0) -> 0 | AQ21: 0
A22: ='Monthly Statement'!A18 -> 0 | B22: =IFERROR(VLOOKUP(A22,'Monthly Statement'!A:Y,4,0),"") ->  | C22: =IFERROR(VLOOKUP(A22,'Monthly Statement'!A:Y,5,0),"") ->  | D22: =IFERROR(VLOOKUP(A22,'Monthly Statement'!A:Y,7,0),"") ->  | E22: =IFERROR(VLOOKUP(A22,'Monthly Statement'!A:Y,9,0),"") ->  | F22: =IFERROR(VLOOKUP(A22,'Monthly Statement'!A:Y,10,0),"") ->  | G22: 0 | H22: =IFERROR(VLOOKUP(A22,Pupils!$A$5:$W$500,12,0),0) -> 0 | I22: =IFERROR(VLOOKUP($A22,'Monthly Statement'!$A$2:$ZZ$500,14,0),0) -> 0 | J22: 0 | K22: =IFERROR(VLOOKUP(A22,Pupils!$A$5:$W$500,13,0),0) -> 0 | L22: =IFERROR(VLOOKUP($A22,'Monthly Statement'!$A$2:$ZZ$500,15,0),0) -> 0 | M22: 0 | N22: =IFERROR(VLOOKUP(A22,Pupils!$A$5:$W$500,14,0),0) -> 0 | O22: =IFERROR(VLOOKUP($A22,'Monthly Statement'!$A$2:$ZZ$500,16,0),0) -> 0 | P22: 0 | Q22: =IFERROR(VLOOKUP(A22,Pupils!$A$5:$W$500,15,0),0) -> 0 | R22: =IFERROR(VLOOKUP($A22,'Monthly Statement'!$A$2:$ZZ$500,17,0),0) -> 0 | S22: 0 | T22: =IFERROR(VLOOKUP(A22,Pupils!$A$5:$W$500,16,0),0) -> 0 | U22: =IFERROR(VLOOKUP($A22,'Monthly Statement'!$A$2:$ZZ$500,18,0),0) -> 0 | V22: 0 | W22: =IFERROR(VLOOKUP(A22,Pupils!$A$5:$W$500,17,0),0) -> 0 | X22: =IFERROR(VLOOKUP($A22,'Monthly Statement'!$A$2:$ZZ$500,19,0),0) -> 0 | Y22: 0 | Z22: =IFERROR(VLOOKUP(A22,Pupils!$A$5:$W$500,18,0),0) -> 0 | AA22: =IFERROR(VLOOKUP($A22,'Monthly Statement'!$A$2:$ZZ$500,20,0),0) -> 0 | AB22: 0 | AC22: =IFERROR(VLOOKUP(A22,Pupils!$A$5:$W$500,19,0),0) -> 0 | AD22: =IFERROR(VLOOKUP($A22,'Monthly Statement'!$A$2:$ZZ$500,21,0),0) -> 0 | AE22: 0 | AF22: =IFERROR(VLOOKUP(A22,Pupils!$A$5:$W$500,20,0),0) -> 0 | AG22: =IFERROR(VLOOKUP($A22,'Monthly Statement'!$A$2:$ZZ$500,22,0),0) -> 0 | AH22: 0 | AI22: =IFERROR(VLOOKUP(A22,Pupils!$A$5:$W$500,21,0),0) -> 0 | AJ22: =IFERROR(VLOOKUP($A22,'Monthly Statement'!$A$2:$ZZ$500,23,0),0) -> 0 | AK22: 0 | AL22: =IFERROR(VLOOKUP(A22,Pupils!$A$5:$W$500,22,0),0) -> 0 | AM22: =IFERROR(VLOOKUP($A22,'Monthly Statement'!$A$2:$ZZ$500,24,0),0) -> 0 | AN22: 0 | AO22: =IFERROR(VLOOKUP(A22,Pupils!$A$5:$W$500,23,0),0) -> 0 | AP22: =IFERROR(VLOOKUP($A22,'Monthly Statement'!$A$2:$ZZ$500,25,0),0) -> 0 | AQ22: 0
A23: ='Monthly Statement'!A19 -> 0 | B23: =IFERROR(VLOOKUP(A23,'Monthly Statement'!A:Y,4,0),"") ->  | C23: =IFERROR(VLOOKUP(A23,'Monthly Statement'!A:Y,5,0),"") ->  | D23: =IFERROR(VLOOKUP(A23,'Monthly Statement'!A:Y,7,0),"") ->  | E23: =IFERROR(VLOOKUP(A23,'Monthly Statement'!A:Y,9,0),"") ->  | F23: =IFERROR(VLOOKUP(A23,'Monthly Statement'!A:Y,10,0),"") ->  | G23: 0 | H23: =IFERROR(VLOOKUP(A23,Pupils!$A$5:$W$500,12,0),0) -> 0 | I23: =IFERROR(VLOOKUP($A23,'Monthly Statement'!$A$2:$ZZ$500,14,0),0) -> 0 | J23: 0 | K23: =IFERROR(VLOOKUP(A23,Pupils!$A$5:$W$500,13,0),0) -> 0 | L23: =IFERROR(VLOOKUP($A23,'Monthly Statement'!$A$2:$ZZ$500,15,0),0) -> 0 | M23: 0 | N23: =IFERROR(VLOOKUP(A23,Pupils!$A$5:$W$500,14,0),0) -> 0 | O23: =IFERROR(VLOOKUP($A23,'Monthly Statement'!$A$2:$ZZ$500,16,0),0) -> 0 | P23: 0 | Q23: =IFERROR(VLOOKUP(A23,Pupils!$A$5:$W$500,15,0),0) -> 0 | R23: =IFERROR(VLOOKUP($A23,'Monthly Statement'!$A$2:$ZZ$500,17,0),0) -> 0 | S23: 0 | T23: =IFERROR(VLOOKUP(A23,Pupils!$A$5:$W$500,16,0),0) -> 0 | U23: =IFERROR(VLOOKUP($A23,'Monthly Statement'!$A$2:$ZZ$500,18,0),0) -> 0 | V23: 0 | W23: =IFERROR(VLOOKUP(A23,Pupils!$A$5:$W$500,17,0),0) -> 0 | X23: =IFERROR(VLOOKUP($A23,'Monthly Statement'!$A$2:$ZZ$500,19,0),0) -> 0 | Y23: 0 | Z23: =IFERROR(VLOOKUP(A23,Pupils!$A$5:$W$500,18,0),0) -> 0 | AA23: =IFERROR(VLOOKUP($A23,'Monthly Statement'!$A$2:$ZZ$500,20,0),0) -> 0 | AB23: 0 | AC23: =IFERROR(VLOOKUP(A23,Pupils!$A$5:$W$500,19,0),0) -> 0 | AD23: =IFERROR(VLOOKUP($A23,'Monthly Statement'!$A$2:$ZZ$500,21,0),0) -> 0 | AE23: 0 | AF23: =IFERROR(VLOOKUP(A23,Pupils!$A$5:$W$500,20,0),0) -> 0 | AG23: =IFERROR(VLOOKUP($A23,'Monthly Statement'!$A$2:$ZZ$500,22,0),0) -> 0 | AH23: 0 | AI23: =IFERROR(VLOOKUP(A23,Pupils!$A$5:$W$500,21,0),0) -> 0 | AJ23: =IFERROR(VLOOKUP($A23,'Monthly Statement'!$A$2:$ZZ$500,23,0),0) -> 0 | AK23: 0 | AL23: =IFERROR(VLOOKUP(A23,Pupils!$A$5:$W$500,22,0),0) -> 0 | AM23: =IFERROR(VLOOKUP($A23,'Monthly Statement'!$A$2:$ZZ$500,24,0),0) -> 0 | AN23: 0 | AO23: =IFERROR(VLOOKUP(A23,Pupils!$A$5:$W$500,23,0),0) -> 0 | AP23: =IFERROR(VLOOKUP($A23,'Monthly Statement'!$A$2:$ZZ$500,25,0),0) -> 0 | AQ23: 0
A24: ='Monthly Statement'!A20 -> 0 | B24: =IFERROR(VLOOKUP(A24,'Monthly Statement'!A:Y,4,0),"") ->  | C24: =IFERROR(VLOOKUP(A24,'Monthly Statement'!A:Y,5,0),"") ->  | D24: =IFERROR(VLOOKUP(A24,'Monthly Statement'!A:Y,7,0),"") ->  | E24: =IFERROR(VLOOKUP(A24,'Monthly Statement'!A:Y,9,0),"") ->  | F24: =IFERROR(VLOOKUP(A24,'Monthly Statement'!A:Y,10,0),"") ->  | G24: 0 | H24: =IFERROR(VLOOKUP(A24,Pupils!$A$5:$W$500,12,0),0) -> 0 | I24: =IFERROR(VLOOKUP($A24,'Monthly Statement'!$A$2:$ZZ$500,14,0),0) -> 0 | J24: 0 | K24: =IFERROR(VLOOKUP(A24,Pupils!$A$5:$W$500,13,0),0) -> 0 | L24: =IFERROR(VLOOKUP($A24,'Monthly Statement'!$A$2:$ZZ$500,15,0),0) -> 0 | M24: 0 | N24: =IFERROR(VLOOKUP(A24,Pupils!$A$5:$W$500,14,0),0) -> 0 | O24: =IFERROR(VLOOKUP($A24,'Monthly Statement'!$A$2:$ZZ$500,16,0),0) -> 0 | P24: 0 | Q24: =IFERROR(VLOOKUP(A24,Pupils!$A$5:$W$500,15,0),0) -> 0 | R24: =IFERROR(VLOOKUP($A24,'Monthly Statement'!$A$2:$ZZ$500,17,0),0) -> 0 | S24: 0 | T24: =IFERROR(VLOOKUP(A24,Pupils!$A$5:$W$500,16,0),0) -> 0 | U24: =IFERROR(VLOOKUP($A24,'Monthly Statement'!$A$2:$ZZ$500,18,0),0) -> 0 | V24: 0 | W24: =IFERROR(VLOOKUP(A24,Pupils!$A$5:$W$500,17,0),0) -> 0 | X24: =IFERROR(VLOOKUP($A24,'Monthly Statement'!$A$2:$ZZ$500,19,0),0) -> 0 | Y24: 0 | Z24: =IFERROR(VLOOKUP(A24,Pupils!$A$5:$W$500,18,0),0) -> 0 | AA24: =IFERROR(VLOOKUP($A24,'Monthly Statement'!$A$2:$ZZ$500,20,0),0) -> 0 | AB24: 0 | AC24: =IFERROR(VLOOKUP(A24,Pupils!$A$5:$W$500,19,0),0) -> 0 | AD24: =IFERROR(VLOOKUP($A24,'Monthly Statement'!$A$2:$ZZ$500,21,0),0) -> 0 | AE24: 0 | AF24: =IFERROR(VLOOKUP(A24,Pupils!$A$5:$W$500,20,0),0) -> 0 | AG24: =IFERROR(VLOOKUP($A24,'Monthly Statement'!$A$2:$ZZ$500,22,0),0) -> 0 | AH24: 0 | AI24: =IFERROR(VLOOKUP(A24,Pupils!$A$5:$W$500,21,0),0) -> 0 | AJ24: =IFERROR(VLOOKUP($A24,'Monthly Statement'!$A$2:$ZZ$500,23,0),0) -> 0 | AK24: 0 | AL24: =IFERROR(VLOOKUP(A24,Pupils!$A$5:$W$500,22,0),0) -> 0 | AM24: =IFERROR(VLOOKUP($A24,'Monthly Statement'!$A$2:$ZZ$500,24,0),0) -> 0 | AN24: 0 | AO24: =IFERROR(VLOOKUP(A24,Pupils!$A$5:$W$500,23,0),0) -> 0 | AP24: =IFERROR(VLOOKUP($A24,'Monthly Statement'!$A$2:$ZZ$500,25,0),0) -> 0 | AQ24: 0
A25: ='Monthly Statement'!A21 -> 0 | B25: =IFERROR(VLOOKUP(A25,'Monthly Statement'!A:Y,4,0),"") ->  | C25: =IFERROR(VLOOKUP(A25,'Monthly Statement'!A:Y,5,0),"") ->  | D25: =IFERROR(VLOOKUP(A25,'Monthly Statement'!A:Y,7,0),"") ->  | E25: =IFERROR(VLOOKUP(A25,'Monthly Statement'!A:Y,9,0),"") ->  | F25: =IFERROR(VLOOKUP(A25,'Monthly Statement'!A:Y,10,0),"") ->  | G25: 0 | H25: =IFERROR(VLOOKUP(A25,Pupils!$A$5:$W$500,12,0),0) -> 0 | I25: =IFERROR(VLOOKUP($A25,'Monthly Statement'!$A$2:$ZZ$500,14,0),0) -> 0 | J25: 0 | K25: =IFERROR(VLOOKUP(A25,Pupils!$A$5:$W$500,13,0),0) -> 0 | L25: =IFERROR(VLOOKUP($A25,'Monthly Statement'!$A$2:$ZZ$500,15,0),0) -> 0 | M25: 0 | N25: =IFERROR(VLOOKUP(A25,Pupils!$A$5:$W$500,14,0),0) -> 0 | O25: =IFERROR(VLOOKUP($A25,'Monthly Statement'!$A$2:$ZZ$500,16,0),0) -> 0 | P25: 0 | Q25: =IFERROR(VLOOKUP(A25,Pupils!$A$5:$W$500,15,0),0) -> 0 | R25: =IFERROR(VLOOKUP($A25,'Monthly Statement'!$A$2:$ZZ$500,17,0),0) -> 0 | S25: 0 | T25: =IFERROR(VLOOKUP(A25,Pupils!$A$5:$W$500,16,0),0) -> 0 | U25: =IFERROR(VLOOKUP($A25,'Monthly Statement'!$A$2:$ZZ$500,18,0),0) -> 0 | V25: 0 | W25: =IFERROR(VLOOKUP(A25,Pupils!$A$5:$W$500,17,0),0) -> 0 | X25: =IFERROR(VLOOKUP($A25,'Monthly Statement'!$A$2:$ZZ$500,19,0),0) -> 0 | Y25: 0 | Z25: =IFERROR(VLOOKUP(A25,Pupils!$A$5:$W$500,18,0),0) -> 0 | AA25: =IFERROR(VLOOKUP($A25,'Monthly Statement'!$A$2:$ZZ$500,20,0),0) -> 0 | AB25: 0 | AC25: =IFERROR(VLOOKUP(A25,Pupils!$A$5:$W$500,19,0),0) -> 0 | AD25: =IFERROR(VLOOKUP($A25,'Monthly Statement'!$A$2:$ZZ$500,21,0),0) -> 0 | AE25: 0 | AF25: =IFERROR(VLOOKUP(A25,Pupils!$A$5:$W$500,20,0),0) -> 0 | AG25: =IFERROR(VLOOKUP($A25,'Monthly Statement'!$A$2:$ZZ$500,22,0),0) -> 0 | AH25: 0 | AI25: =IFERROR(VLOOKUP(A25,Pupils!$A$5:$W$500,21,0),0) -> 0 | AJ25: =IFERROR(VLOOKUP($A25,'Monthly Statement'!$A$2:$ZZ$500,23,0),0) -> 0 | AK25: 0 | AL25: =IFERROR(VLOOKUP(A25,Pupils!$A$5:$W$500,22,0),0) -> 0 | AM25: =IFERROR(VLOOKUP($A25,'Monthly Statement'!$A$2:$ZZ$500,24,0),0) -> 0 | AN25: 0 | AO25: =IFERROR(VLOOKUP(A25,Pupils!$A$5:$W$500,23,0),0) -> 0 | AP25: =IFERROR(VLOOKUP($A25,'Monthly Statement'!$A$2:$ZZ$500,25,0),0) -> 0 | AQ25: 0
A26: ='Monthly Statement'!A22 -> 0 | B26: =IFERROR(VLOOKUP(A26,'Monthly Statement'!A:Y,4,0),"") ->  | C26: =IFERROR(VLOOKUP(A26,'Monthly Statement'!A:Y,5,0),"") ->  | D26: =IFERROR(VLOOKUP(A26,'Monthly Statement'!A:Y,7,0),"") ->  | E26: =IFERROR(VLOOKUP(A26,'Monthly Statement'!A:Y,9,0),"") ->  | F26: =IFERROR(VLOOKUP(A26,'Monthly Statement'!A:Y,10,0),"") ->  | G26: 0 | H26: =IFERROR(VLOOKUP(A26,Pupils!$A$5:$W$500,12,0),0) -> 0 | I26: =IFERROR(VLOOKUP($A26,'Monthly Statement'!$A$2:$ZZ$500,14,0),0) -> 0 | J26: 0 | K26: =IFERROR(VLOOKUP(A26,Pupils!$A$5:$W$500,13,0),0) -> 0 | L26: =IFERROR(VLOOKUP($A26,'Monthly Statement'!$A$2:$ZZ$500,15,0),0) -> 0 | M26: 0 | N26: =IFERROR(VLOOKUP(A26,Pupils!$A$5:$W$500,14,0),0) -> 0 | O26: =IFERROR(VLOOKUP($A26,'Monthly Statement'!$A$2:$ZZ$500,16,0),0) -> 0 | P26: 0 | Q26: =IFERROR(VLOOKUP(A26,Pupils!$A$5:$W$500,15,0),0) -> 0 | R26: =IFERROR(VLOOKUP($A26,'Monthly Statement'!$A$2:$ZZ$500,17,0),0) -> 0 | S26: 0 | T26: =IFERROR(VLOOKUP(A26,Pupils!$A$5:$W$500,16,0),0) -> 0 | U26: =IFERROR(VLOOKUP($A26,'Monthly Statement'!$A$2:$ZZ$500,18,0),0) -> 0 | V26: 0 | W26: =IFERROR(VLOOKUP(A26,Pupils!$A$5:$W$500,17,0),0) -> 0 | X26: =IFERROR(VLOOKUP($A26,'Monthly Statement'!$A$2:$ZZ$500,19,0),0) -> 0 | Y26: 0 | Z26: =IFERROR(VLOOKUP(A26,Pupils!$A$5:$W$500,18,0),0) -> 0 | AA26: =IFERROR(VLOOKUP($A26,'Monthly Statement'!$A$2:$ZZ$500,20,0),0) -> 0 | AB26: 0 | AC26: =IFERROR(VLOOKUP(A26,Pupils!$A$5:$W$500,19,0),0) -> 0 | AD26: =IFERROR(VLOOKUP($A26,'Monthly Statement'!$A$2:$ZZ$500,21,0),0) -> 0 | AE26: 0 | AF26: =IFERROR(VLOOKUP(A26,Pupils!$A$5:$W$500,20,0),0) -> 0 | AG26: =IFERROR(VLOOKUP($A26,'Monthly Statement'!$A$2:$ZZ$500,22,0),0) -> 0 | AH26: 0 | AI26: =IFERROR(VLOOKUP(A26,Pupils!$A$5:$W$500,21,0),0) -> 0 | AJ26: =IFERROR(VLOOKUP($A26,'Monthly Statement'!$A$2:$ZZ$500,23,0),0) -> 0 | AK26: 0 | AL26: =IFERROR(VLOOKUP(A26,Pupils!$A$5:$W$500,22,0),0) -> 0 | AM26: =IFERROR(VLOOKUP($A26,'Monthly Statement'!$A$2:$ZZ$500,24,0),0) -> 0 | AN26: 0 | AO26: =IFERROR(VLOOKUP(A26,Pupils!$A$5:$W$500,23,0),0) -> 0 | AP26: =IFERROR(VLOOKUP($A26,'Monthly Statement'!$A$2:$ZZ$500,25,0),0) -> 0 | AQ26: 0
A27: ='Monthly Statement'!A23 -> 0 | B27: =IFERROR(VLOOKUP(A27,'Monthly Statement'!A:Y,4,0),"") ->  | C27: =IFERROR(VLOOKUP(A27,'Monthly Statement'!A:Y,5,0),"") ->  | D27: =IFERROR(VLOOKUP(A27,'Monthly Statement'!A:Y,7,0),"") ->  | E27: =IFERROR(VLOOKUP(A27,'Monthly Statement'!A:Y,9,0),"") ->  | F27: =IFERROR(VLOOKUP(A27,'Monthly Statement'!A:Y,10,0),"") ->  | G27: 0 | H27: =IFERROR(VLOOKUP(A27,Pupils!$A$5:$W$500,12,0),0) -> 0 | I27: =IFERROR(VLOOKUP($A27,'Monthly Statement'!$A$2:$ZZ$500,14,0),0) -> 0 | J27: 0 | K27: =IFERROR(VLOOKUP(A27,Pupils!$A$5:$W$500,13,0),0) -> 0 | L27: =IFERROR(VLOOKUP($A27,'Monthly Statement'!$A$2:$ZZ$500,15,0),0) -> 0 | M27: 0 | N27: =IFERROR(VLOOKUP(A27,Pupils!$A$5:$W$500,14,0),0) -> 0 | O27: =IFERROR(VLOOKUP($A27,'Monthly Statement'!$A$2:$ZZ$500,16,0),0) -> 0 | P27: 0 | Q27: =IFERROR(VLOOKUP(A27,Pupils!$A$5:$W$500,15,0),0) -> 0 | R27: =IFERROR(VLOOKUP($A27,'Monthly Statement'!$A$2:$ZZ$500,17,0),0) -> 0 | S27: 0 | T27: =IFERROR(VLOOKUP(A27,Pupils!$A$5:$W$500,16,0),0) -> 0 | U27: =IFERROR(VLOOKUP($A27,'Monthly Statement'!$A$2:$ZZ$500,18,0),0) -> 0 | V27: 0 | W27: =IFERROR(VLOOKUP(A27,Pupils!$A$5:$W$500,17,0),0) -> 0 | X27: =IFERROR(VLOOKUP($A27,'Monthly Statement'!$A$2:$ZZ$500,19,0),0) -> 0 | Y27: 0 | Z27: =IFERROR(VLOOKUP(A27,Pupils!$A$5:$W$500,18,0),0) -> 0 | AA27: =IFERROR(VLOOKUP($A27,'Monthly Statement'!$A$2:$ZZ$500,20,0),0) -> 0 | AB27: 0 | AC27: =IFERROR(VLOOKUP(A27,Pupils!$A$5:$W$500,19,0),0) -> 0 | AD27: =IFERROR(VLOOKUP($A27,'Monthly Statement'!$A$2:$ZZ$500,21,0),0) -> 0 | AE27: 0 | AF27: =IFERROR(VLOOKUP(A27,Pupils!$A$5:$W$500,20,0),0) -> 0 | AG27: =IFERROR(VLOOKUP($A27,'Monthly Statement'!$A$2:$ZZ$500,22,0),0) -> 0 | AH27: 0 | AI27: =IFERROR(VLOOKUP(A27,Pupils!$A$5:$W$500,21,0),0) -> 0 | AJ27: =IFERROR(VLOOKUP($A27,'Monthly Statement'!$A$2:$ZZ$500,23,0),0) -> 0 | AK27: 0 | AL27: =IFERROR(VLOOKUP(A27,Pupils!$A$5:$W$500,22,0),0) -> 0 | AM27: =IFERROR(VLOOKUP($A27,'Monthly Statement'!$A$2:$ZZ$500,24,0),0) -> 0 | AN27: 0 | AO27: =IFERROR(VLOOKUP(A27,Pupils!$A$5:$W$500,23,0),0) -> 0 | AP27: =IFERROR(VLOOKUP($A27,'Monthly Statement'!$A$2:$ZZ$500,25,0),0) -> 0 | AQ27: 0
